{"text_format":"1","workbook":"xlsx","n_sheets":15,"sheets":["①企業健診について ","②健康診断申込書 ","ID","③注意事項 ","④受診者リスト","ID(当院入力シート)","⑤申込みスケジュール","⑥営業時間","⑦診療日カレンダー","⓼オプション","⑧オプション一覧","取り込み用","契約コース内容","運用について","検査項目セレクト"],"not_rendered":{"charts":0,"images":4,"macros":1,"external_links":2,"defined_names":41,"comments":0,"pivot_tables":0},"unopened":[],"bounds":{"document_bytes":16777216,"sheet_cells":100000,"rows_first":2000,"rows_last":500,"rows_between":2000,"halvings":0,"cell_chars":16384,"cell_head_chars":4096},"cells_cut":0,"cells_raw":0,"read":"whole","date_system":"1900"}

{"sheet":"①企業健診について ","index":0,"n_rows":25,"n_cols":4,"rows_kept":25,"cut":false,"hidden":false,"merged":[[19,2,19,27],[22,1,22,31],[23,1,23,31],[24,1,24,31],[11,1,11,31],[14,2,14,27],[15,2,15,27],[16,2,16,27],[17,2,17,27],[18,2,18,27],[10,1,10,8],[1,1,1,31],[3,1,3,31],[6,3,6,21],[7,3,7,21]]}
[]
[null,"2026年度 企業健診申込について"]
[]
[null,"企業健診の申込みにつきまして、下記の必要書類をご用意の上ご予約いただきますようお願い申し上げます。"]
[]
[null,null,null,"【企業健診申込みに必要な書類】"]
[null,null,null,"　1.健康診断申込書"]
[null,null,null,"　2.　④受診者リスト　"]
[]
[]
[null,"【注意事項】"]
[null,"◎ご予約について\n　３名様以上のご予約は、申込書類をご入力の上、メールにてお申し込みください。\n　２名様までのご予約は個人WEB・お電話にてお申し込み可能です。\n　雇用時健診、深夜業健診についてはこちらの申込書では対応しておりません。\n\n◎請求書発行について\n　・請求書発行は10名様以上のご予約を取り纏めて頂ける企業様のみとさせて頂きます。\n　（9名様以下の企業様及び個人でのお申込みは当日窓口支払いとなります）\n　・同一年度内に複数回お申し込みいただく場合、2回目以降のご予約は、初回にご提出いただいた企業情報\n　　（お支払方法等）を基に対応いたします。\n\n◎企業様健診結果の送付について\n　『労働安全衛生規則』に定められた検査結果の提供となります。\n\n　ご理解ご協力の程よろしくお願い申し上げます。"]
[]
[]
[null,null,"■お申込み方法お問合せ"]
[null,null,"医療法人 福岡桜十字 桜十字福岡病院 <人間ドック・健診センター>"]
[null,null,"TEL : 092-791-1120  　"]
[null,null,"メール : f.web.yoyaku@sakurajyuji.jp  "]
[null,null,"受付時間 平日 8:30～16:30 ／ 第 １・３土曜 8:30～12:00"]
[null,null,"（但し、祝日及び４月第１土曜日は休診日となります。）"]
[]
[]
[null,"書類確認後、当院より健診日程のご連絡をさせて頂きます。"]
[null,"年度初めは健診のお申込を多く頂く為、予約の日程調整にお時間をいただく場合がございます。"]
[null,"順番に対応致しますので、ご了承の程よろしくお願い申し上げます。"]

{"sheet":"②健康診断申込書 ","index":1,"n_rows":56,"n_cols":27,"rows_kept":56,"cut":false,"hidden":false,"merged":[[21,1,21,4],[21,5,21,13],[21,14,21,17],[27,1,27,6],[28,1,28,26],[21,18,21,26],[22,1,22,4],[22,5,22,26],[23,1,24,4],[23,5,24,13],[23,14,24,17],[23,18,23,19],[23,20,23,26],[24,18,24,26],[26,16,26,26],[8,1,8,26],[1,15,1,18],[1,19,1,21],[3,1,3,26],[7,1,7,26],[6,11,6,15],[6,1,6,10],[4,19,4,25],[5,1,5,25],[9,1,11,4],[9,5,9,7],[9,8,9,26],[10,5,11,26],[12,1,15,4],[12,6,12,7],[12,9,12,11],[12,12,12,26],[13,5,14,26],[16,5,18,8],[16,1,18,4],[20,1,20,4],[20,5,20,13],[20,14,20,17],[19,1,19,4],[19,5,19,26],[16,10,17,26],[18,9,18,17],[29,7,29,13],[29,14,29,26],[25,16,25,26],[29,1,29,6],[33,14,33,26],[30,1,30,6],[30,7,30,13],[30,14,30,26],[31,1,31,6],[31,7,31,13],[31,14,31,26],[32,1,32,6],[32,7,32,13],[32,14,32,26],[33,1,33,6],[33,7,33,13],[34,1,34,6],[34,7,34,13],[34,14,34,26],[39,1,39,6],[39,7,39,26],[36,14,36,26],[38,1,38,6],[38,7,38,26],[37,1,37,6],[37,7,37,26],[35,14,35,26],[35,7,35,13],[35,1,35,6],[55,2,55,17],[40,1,40,7],[41,1,42,26],[52,2,52,15],[53,2,53,17],[54,2,54,17],[50,2,50,8],[47,3,47,5]]}
[]
[null,null,null,null,null,null,null,null,null,null,null,null,null,null,null,"お 申 込 日",null,null,null,null,null,null,"年",null,"月",null,"日"]
[]
[null,"２０２６年 度 健 康 診 断 団 体申 込 書 （３名様以上）"]
[null,null,null,null,null,null,null,null,null,null,null,null,null,null,null,null,null,null,null,"必須：必ず入力してください"]
[null,"②.健康診断申込書（本用紙）④.受診者リストと共にメールにてお申込み下さい。\n"]
[null,"※２名様までは個人WEBをご利用ください。⇒",null,null,null,null,null,null,null,null,null,"個人WEB申し込み"]
[null,"◎事業所様情報"]
[null,"　下記事業所様住所へ送付物（事前ご案内書類・健診結果・対象事業所様は請求書）の手配をいたします。\n　"]
[null,"事  業  所  名",null,null,null,"フ リ ガ ナ"]
[]
[]
[null,"事業所所在地\n(事前書類の発送先)",null,null,null,"〒",null,null,"-"]
[]
[]
[]
[null,"請求書・企業控え発送先\n※1※2",null,null,null,"選択してください",null,null,null,"〒"]
[]
[null,null,null,null,null,null,null,null,null,null,null,null,null,null,null,null,null,null,null,"※健診結果・請求書は同一住所となります"]
[null,"保険者名称"]
[null,"保険者番号",null,null,null,null,null,null,null,null,null,null,null,null,"記号"]
[null,"電  話  番  号",null,null,null,null,null,null,null,null,null,null,null,null,"Ｆ Ａ Ｘ 番 号"]
[null,"メールアドレス"]
[null,"担  当  部  署",null,null,null,null,null,null,null,null,null,null,null,null,"担当者様名",null,null,null,"フリガナ"]
[]
[null,null,null,null,null,null,null,null,null,null,null,null,null,null,null,null,"※1：会社請求は１０名以上の企業のみ可能です"]
[null,null,null,null,null,null,null,null,null,null,null,null,null,null,null,null,"※2：ご登録住所は事業所所在地含む２か所までとなります。"]
[null,"◎予約について"]
[null,"※空き状況によってはご希望に添えないことがございますので予めご了承ください。"]
[null,null,null,null,null,null,null,"ご希望",null,null,null,null,null,null,"備　考"]
[null,"受診時期",null,null,null,null,null,null,null,null,null,null,null,null,"例）５月以降　　７～９月　　特になし　など"]
[null,"都合の悪い曜日",null,null,null,null,null,null,null,null,null,null,null,null,"例）土曜　　　 　　特になし　など"]
[null,"開始時間",null,null,null,null,null,null,null,null,null,null,null,null,"例）8：00　　　　　特になし　など"]
[null,"受診可能な人数/日",null,null,null,null,null,null,null,null,null,null,null,null,"例）５名　　　 　　制限なし　など"]
[null,"報告書送り先（個人用）",null,null,null,null,null,"選択してください"]
[null,"企業様控え発行",null,null,null,null,null,"選択してください",null,null,null,null,null,null,"＊企業様控えは『労働安全衛生規則』に定められた検査結果の提供となります。（ご本人様用と書式が異なります）\n請求書発行が可能な企業様の場合、請求書送付時に企業控えを同封させていただきます。"]
[null,null,null,null,null,null,null,null,null,null,null,null,null,null,"胃カメラ空き状況はこちら"]
[null,"◎請求について",null,null,null,null,null,"10名様以上お申込みの場合、請求内容を１つお選び下さい。\n※内視鏡鎮静剤料を含む場合は「請求に含む」を選択してください。"]
[null,"請求内容",null,null,null,null,null,"選択してください"]
[null,"内視鏡鎮静剤料のお支払い",null,null,null,null,null,"選択してください"]
[null,"◎請求書発行について"]
[null,"・請求書発行は10名様以上のご予約を取り纏めてお申込みの企業様のみとさせていただきます。\n\n"]
[]
[null,null,"■お申込み方法（メールにて受付）"]
[null,null,"必要書類をご準備のうえ、下記宛先へお送りください。"]
[null,null,"【提出書類】"]
[null,null,1,"健康診断申込書（本用紙）"]
[null,null,2,"受診者リスト"]
[null,null,"【送信先】"]
[null,null,"医療法人 福岡桜十字",null,null,null,null,"桜十字福岡病院　＜人間ドック・健診センター＞"]
[null,null,"📩 メールアドレス"]
[]
[null,null,"※お申込みスケジュールについてはこちら"]
[null,null,"お問い合わせ：092-791-1120"]
[null,null,"受付時間 平日 8:30～16:30／第1・3土曜日 8:30～12:00"]
[null,null,"（但し、祝日及び４月第１土曜日は休診日となります。）"]

{"sheet":"ID","index":2,"n_rows":1,"n_cols":11,"rows_kept":1,"cut":false,"hidden":true,"merged":[]}
["ID","カナ氏名","氏名","性別","生年月日","団体1・団体番号","本人家族区分","任継区分","被保険者証等記号","被保険者証等番号","保険者番号"]

{"sheet":"③注意事項 ","index":3,"n_rows":32,"n_cols":13,"rows_kept":32,"cut":false,"hidden":false,"merged":[[3,1,3,15],[5,2,5,14],[6,3,6,13],[8,3,8,7],[8,9,8,13],[9,4,9,5],[9,6,9,7],[9,10,9,11],[9,12,9,13],[10,4,10,5],[10,6,10,7],[10,10,10,11],[10,12,10,13],[11,4,11,5],[11,6,11,7],[11,10,11,11],[11,12,11,13],[12,4,12,5],[12,6,12,7],[12,10,12,11],[12,12,12,13],[13,4,13,5],[13,6,13,7],[13,10,13,11],[13,12,13,13],[14,4,14,5],[14,6,14,7],[14,10,14,11],[14,12,14,13],[15,4,15,5],[15,6,15,7],[15,10,15,11],[15,12,15,13],[16,4,16,5],[16,6,16,7],[16,10,16,11],[16,12,16,13],[17,4,17,5],[17,6,17,7],[17,10,17,11],[17,12,17,13],[18,4,18,5],[18,6,18,7],[18,10,18,11],[18,12,18,13],[19,4,19,5],[19,6,19,7],[19,10,19,11],[19,12,19,13],[20,4,20,5],[20,6,20,7],[20,10,20,11],[20,12,20,13],[25,2,25,14],[27,2,27,14],[29,2,29,14],[31,2,31,14],[21,4,21,5],[21,6,21,7],[21,10,21,11],[21,12,21,13],[24,2,24,14]]}
["あ"]
[]
[]
[null,"ご予約受付時に不備が多い項目"]
[]
[null,null,"◇　【胃部検査項目】欄の記入に関して\n　　 補助内での検査をご希望の場合は「胃透視検査（バリウム）」をご選択/ご記入ください。\n　　 「胃カメラ（胃部内視鏡）」をご希望の場合、差額は実費負担となりますのでご了承ください。\n　　 \n ※ 胃カメラ選択時は、①鎮静剤なし：経口、経鼻　②鎮静剤あり：経口からお選びください。\n　　 ご希望の内容によってご予約可能なお時間が異なりますので下記表をご参照下さい。\n　　 なお、「鎮静剤なし」の時間帯でご予約いただいた方につきましては、\n　　 健診日当日に「鎮静剤あり」への変更はできませんので予めご了承ください。"]
[null,null,null,"● 鎮静剤あり　　　　　× 鎮静剤なし　　　　　△ 選択可能"]
[]
[null,null,null,"天神",null,null,null,null,null,"博多"]
[null,null,null,null,"平日",null,"土曜日",null,null,null,"平日",null,"土曜日"]
[null,null,null,"07:45:00","△",null,null,null,null,"07:45:00"]
[null,null,null,"08:00:00","△",null,"△",null,null,"08:00:00","●",null,"●"]
[null,null,null,"08:15:00","△",null,"△",null,null,"08:15:00","●",null,"●"]
[null,null,null,"08:30:00","△",null,"△",null,null,"08:30:00","×"]
[null,null,null,"08:45:00","×",null,"△",null,null,"08:45:00","×"]
[null,null,null,"09:00:00","●",null,"×",null,null,"09:00:00","●",null,"●"]
[null,null,null,"09:15:00","●",null,"×",null,null,"09:15:00","●",null,"●"]
[null,null,null,"09:30:00","×",null,null,null,null,"09:30:00","×"]
[null,null,null,"09:45:00",null,null,null,null,null,"09:45:00","×"]
[null,null,null,"10:00:00",null,null,null,null,null,"10:00:00","●",null,"●"]
[null,null,null,"10:15:00",null,null,null,null,null,"10:15:00","●"]
[null,null,null,"10:30:00",null,null,null,null,null,"10:30:00","×"]
[]
[]
[null,null,"◇　【個人情報】の記入に関して\n　　 現在お持ちの健康保険証と同じ情報をご記入ください。\n　　 相違がある場合、補助がでない場合もございますのでご注意ください。"]
[null,null,"◇　【健診コース】の記入に関して\n　　 「定期健診」や「一般健診」など、ご希望のコースをご選択/ご記入の際に、コースに誤りがないか\n　　 ご注意ください。\n　　 例） 34歳以下の方が「一般健診」で記入されている。（正しくは「定期健診」をご選択/ご記入）"]
[]
[null,null,"●　上記正確に記載されたものから受付とさせていただきます。\n　  お申込み依頼の前に必ずご確認ください。"]
[]
[null,null,"●　原則受付後2週間以内に回答をさせていただきます。\n　 ただし、年度初めはお申込みが混み合うため予約の日程調整にお時間をいただく場合が\n　 ございますので予めご了承ください。"]
[]
[null,null,"●  ご回答のスケジュールは「申込みスケジュール（別紙参照）」の期間を予定しております。\n    お申込み状況によっては予定以上にお待ちいただく可能性もございます。\n　予めご了承ください。"]

{"sheet":"④受診者リスト","index":4,"n_rows":1000,"n_cols":34,"rows_kept":1000,"cut":false,"hidden":false,"merged":[[0,1,0,2],[3,2,3,3],[10,2,11,2],[10,12,10,14],[9,11,9,14],[10,7,11,7],[10,10,11,10],[10,11,11,11],[9,17,9,18],[9,19,9,20],[10,9,11,9],[6,3,6,4],[10,24,11,24],[10,3,11,6],[8,22,8,25],[10,15,11,16],[10,17,11,18],[10,19,11,20],[9,15,9,16]]}
["出力日時",{"$f":"NOW()","v":"2026-02-10T15:51:09.850"}]
["2026年度　健康診断予約表（団体用・３名以上）",null,null,null,null,"※協会けんぽの方はこちら"]
["団体番号",null,"（当院入力箇所）"]
[]
[null,"ご入力の前に"]
[null,"記号・番号・保険者番号、生年月日、受診する健診項目、健診予定日等の情報をご準備ください。"]
[null,"２名様までは個人WEBをご利用ください⇒",null,"個人WEB予約",null,null,null,null,"年齢起算"]
[null,null,null,null,null,null,null,null,"2027-04-01"]
["自動","自動",null,null,null,null,null,null,"自動",null,null,null,null,null,null,null,null,null,null,null,null,null,"※当院入力欄"]
["NO.","ID","施設","番号","保険証氏名\n氏名間全角スペース","フリガナ（全角）\n氏名間全角スペース","性別","生年月日","年齢","健診コース\n※任意のコースを選択されると負担金額が変わりますのでご注意ください。","胃部検査","追加オプション　　　　　　　　　　　　　　　　　　　　　",null,null,null,"第1希望",null,"第2希望",null,"第3希望",null,"備考欄【当院への連絡事項】\n","決定受診日","曜日","時間","当院から連絡事項"]
[null,null,"桜十字福岡病院\n桜十字博多駅健診クリニック\n","相違があるとご受診いただけない場合があります\n      ご提出の際は今一度お間違いないかご確認ください。",null,null,null,"昭和：S\n平成：H\n西暦可\n（200/1/1）",null,"各健保指定の健診コースをご記入ください",null,"その他検査項目で追加ご希望の場合はこちら\n","女性限定",null,null,null,null,null,null,null,null,"例）転籍により保険証番号変更あり、苗字変更あり、FCF会員の場合は会員番号"]
[null,null,null,null,null,null,null,null,null,null,null,null,"マンモグラフィー","乳腺超音波","子宮細胞診"]
[null,null,"桜十字福岡病院",1,"桜十字　太郎","サクラジュウジ　タロウ","男","1974-01-01",{"$f":"IF(OR(H13=\"\", $I$8=\"\"), \"\", DATEDIF(H13,$I$8,\"y\"))","v":53},"一般健診","胃カメラ（鼻、口/鎮静なし）","内臓脂肪CT,ヘリコバクターピロリIgG",null,null,null,"4月","1日","5月","1日","6月","1日",null,"2026-04-01",{"$f":"TEXT(W13,\"(aaa)\")","v":"(水)"},"／"]
[null,null,"桜十字博多駅健診CL",12,"桜十字　花子","サクラジュウジ　ハナコ","女","1977-01-01",{"$f":"IF(OR(H14=\"\", $I$8=\"\"), \"\", DATEDIF(H14,$I$8,\"y\"))","v":50},"脳ドック",null,"骨密度検査","MG２方向","乳エコー","子宮細胞診","5月","1日","6月","1日","7月","1日",null,"2026-04-01",{"$f":"TEXT(W14,\"(aaa)\")","v":"(水)"},"／",null,null,null,null,null,null,null,"システムで使ってます\n消さないでください\n※最大3000人","システムで使ってます\n消さないでください\n※最大3000人"]
[1,{"$f":"IFERROR(VLOOKUP(AH15,'ID(当院入力シート)'!E:F,2,FALSE)&\"\",\"\")","v":""},null,null,null,null,null,null,{"$f":"IF(OR(H15=\"\", $I$8=\"\"), \"\", DATEDIF(H15,$I$8,\"y\"))","v":""},null,null,null,null,null,null,"　",null,"　",null,"　",null,null,null,{"$f":"IF(W15=\"\",\"\", \"(\" & TEXT(W15,\"aaa\") & \")\")","v":""},null,null,null,null,null,null,null,null,{"$f":"SUBSTITUTE(SUBSTITUTE(E15,\"　\",\"\"),\" \",\"\")","v":""},{"$f":"AG15&H15","v":""}]
[2,{"$f":"IFERROR(VLOOKUP(AH16,'ID(当院入力シート)'!E:F,2,FALSE)&\"\",\"\")","v":""},null,null,null,null,null,null,{"$f":"IF(OR(H16=\"\", $I$8=\"\"), \"\", DATEDIF(H16,$I$8,\"y\"))","v":""},null,null,null,null,null,null,"　",null,"　",null,"　",null,null,null,{"$f":"IF(W16=\"\",\"\", \"(\" & TEXT(W16,\"aaa\") & \")\")","v":""},null,null,null,null,null,null,null,null,{"$f":"SUBSTITUTE(SUBSTITUTE(E16,\"　\",\"\"),\" \",\"\")","v":""},{"$f":"AG16&H16","v":""}]
[3,{"$f":"IFERROR(VLOOKUP(AH17,'ID(当院入力シート)'!E:F,2,FALSE)&\"\",\"\")","v":""},null,null,null,null,null,null,"",null,null,null,null,null,null,"　",null,"　",null,"　",null,null,null,{"$f":"IF(W17=\"\",\"\", \"(\" & TEXT(W17,\"aaa\") & \")\")","v":""},null,null,null,null,null,null,null,null,"",""]
[4,{"$f":"IFERROR(VLOOKUP(AH18,'ID(当院入力シート)'!E:F,2,FALSE)&\"\",\"\")","v":""},null,null,null,null,null,null,"",null,null,null,null,null,null,"　",null,"　",null,"　",null,null,null,"",null,null,null,null,null,null,null,null,"",""]
[5,{"$f":"IFERROR(VLOOKUP(AH19,'ID(当院入力シート)'!E:F,2,FALSE)&\"\",\"\")","v":""},null,null,null,null,null,null,{"$f":"IF(OR(H19=\"\", $I$8=\"\"), \"\", DATEDIF(H19,$I$8,\"y\"))","v":""},null,null,null,null,null,null,"　",null,"　",null,"　",null,null,null,"",null,null,null,null,null,null,null,null,"",""]
[6,{"$f":"IFERROR(VLOOKUP(AH20,'ID(当院入力シート)'!E:F,2,FALSE)&\"\",\"\")","v":""},null,null,null,null,null,null,"",null,null,null,null,null,null,"　",null,"　",null,"　",null,null,null,"",null,null,null,null,null,null,null,null,"",""]
[7,{"$f":"IFERROR(VLOOKUP(AH21,'ID(当院入力シート)'!E:F,2,FALSE)&\"\",\"\")","v":""},null,null,null,null,null,null,"",null,null,null,null,null,null,"　",null,"　",null,"　",null,null,null,"",null,null,null,null,null,null,null,null,"",""]
[8,{"$f":"IFERROR(VLOOKUP(AH22,'ID(当院入力シート)'!E:F,2,FALSE)&\"\",\"\")","v":""},null,null,null,null,null,null,"",null,null,null,null,null,null,"　",null,"　",null,"　",null,null,null,"",null,null,null,null,null,null,null,null,"",""]
[9,{"$f":"IFERROR(VLOOKUP(AH23,'ID(当院入力シート)'!E:F,2,FALSE)&\"\",\"\")","v":""},null,null,null,null,null,null,"",null,null,null,null,null,null,"　",null,"　",null,"　",null,null,null,"",null,null,null,null,null,null,null,null,"",""]
[10,{"$f":"IFERROR(VLOOKUP(AH24,'ID(当院入力シート)'!E:F,2,FALSE)&\"\",\"\")","v":""},null,null,null,null,null,null,"",null,null,null,null,null,null,"　",null,"　",null,"　",null,null,null,"",null,null,null,null,null,null,null,null,"",""]
[11,{"$f":"IFERROR(VLOOKUP(AH25,'ID(当院入力シート)'!E:F,2,FALSE)&\"\",\"\")","v":""},null,null,null,null,null,null,"",null,null,null,null,null,null,"　",null,"　",null,"　",null,null,null,"",null,null,null,null,null,null,null,null,"",""]
[12,{"$f":"IFERROR(VLOOKUP(AH26,'ID(当院入力シート)'!E:F,2,FALSE)&\"\",\"\")","v":""},null,null,null,null,null,null,"",null,null,null,null,null,null,"　",null,"　",null,"　",null,null,null,"",null,null,null,null,null,null,null,null,"",""]
[13,{"$f":"IFERROR(VLOOKUP(AH27,'ID(当院入力シート)'!E:F,2,FALSE)&\"\",\"\")","v":""},null,null,null,null,null,null,"",null,null,null,null,null,null,"　",null,"　",null,"　",null,null,null,"",null,null,null,null,null,null,null,null,"",""]
[14,{"$f":"IFERROR(VLOOKUP(AH28,'ID(当院入力シート)'!E:F,2,FALSE)&\"\",\"\")","v":""},null,null,null,null,null,null,"",null,null,null,null,null,null,"　",null,"　",null,"　",null,null,null,"",null,null,null,null,null,null,null,null,"",""]
[15,{"$f":"IFERROR(VLOOKUP(AH29,'ID(当院入力シート)'!E:F,2,FALSE)&\"\",\"\")","v":""},null,null,null,null,null,null,"",null,null,null,null,null,null,"　",null,"　",null,"　",null,null,null,"",null,null,null,null,null,null,null,null,"",""]
[16,{"$f":"IFERROR(VLOOKUP(AH30,'ID(当院入力シート)'!E:F,2,FALSE)&\"\",\"\")","v":""},null,null,null,null,null,null,"",null,null,null,null,null,null,"　",null,"　",null,"　",null,null,null,"",null,null,null,null,null,null,null,null,"",""]
[17,{"$f":"IFERROR(VLOOKUP(AH31,'ID(当院入力シート)'!E:F,2,FALSE)&\"\",\"\")","v":""},null,null,null,null,null,null,"",null,null,null,null,null,null,null,null,null,null,null,null,null,null,"",null,null,null,null,null,null,null,null,"",""]
[18,{"$f":"IFERROR(VLOOKUP(AH32,'ID(当院入力シート)'!E:F,2,FALSE)&\"\",\"\")","v":""},null,null,null,null,null,null,"",null,null,null,null,null,null,null,null,null,null,null,null,null,null,"",null,null,null,null,null,null,null,null,"",""]
[19,{"$f":"IFERROR(VLOOKUP(AH33,'ID(当院入力シート)'!E:F,2,FALSE)&\"\",\"\")","v":""},null,null,null,null,null,null,"",null,null,null,null,null,null,null,null,null,null,null,null,null,null,"",null,null,null,null,null,null,null,null,"",""]
[20,{"$f":"IFERROR(VLOOKUP(AH34,'ID(当院入力シート)'!E:F,2,FALSE)&\"\",\"\")","v":""},null,null,null,null,null,null,"",null,null,null,null,null,null,null,null,null,null,null,null,null,null,"",null,null,null,null,null,null,null,null,"",""]
[21,{"$f":"IFERROR(VLOOKUP(AH35,'ID(当院入力シート)'!E:F,2,FALSE)&\"\",\"\")","v":""},null,null,null,null,null,null,"",null,null,null,null,null,null,null,null,null,null,null,null,null,null,"",null,null,null,null,null,null,null,null,"",""]
[22,{"$f":"IFERROR(VLOOKUP(AH36,'ID(当院入力シート)'!E:F,2,FALSE)&\"\",\"\")","v":""},null,null,null,null,null,null,"",null,null,null,null,null,null,null,null,null,null,null,null,null,null,"",null,null,null,null,null,null,null,null,"",""]
[23,{"$f":"IFERROR(VLOOKUP(AH37,'ID(当院入力シート)'!E:F,2,FALSE)&\"\",\"\")","v":""},null,null,null,null,null,null,"",null,null,null,null,null,null,null,null,null,null,null,null,null,null,"",null,null,null,null,null,null,null,null,"",""]
[24,{"$f":"IFERROR(VLOOKUP(AH38,'ID(当院入力シート)'!E:F,2,FALSE)&\"\",\"\")","v":""},null,null,null,null,null,null,"",null,null,null,null,null,null,null,null,null,null,null,null,null,null,"",null,null,null,null,null,null,null,null,"",""]
[25,{"$f":"IFERROR(VLOOKUP(AH39,'ID(当院入力シート)'!E:F,2,FALSE)&\"\",\"\")","v":""},null,null,null,null,null,null,"",null,null,null,null,null,null,null,null,null,null,null,null,null,null,"",null,null,null,null,null,null,null,null,"",""]
[26,{"$f":"IFERROR(VLOOKUP(AH40,'ID(当院入力シート)'!E:F,2,FALSE)&\"\",\"\")","v":""},null,null,null,null,null,null,"",null,null,null,null,null,null,null,null,null,null,null,null,null,null,"",null,null,null,null,null,null,null,null,"",""]
[27,{"$f":"IFERROR(VLOOKUP(AH41,'ID(当院入力シート)'!E:F,2,FALSE)&\"\",\"\")","v":""},null,null,null,null,null,null,"",null,null,null,null,null,null,null,null,null,null,null,null,null,null,"",null,null,null,null,null,null,null,null,"",""]
[28,{"$f":"IFERROR(VLOOKUP(AH42,'ID(当院入力シート)'!E:F,2,FALSE)&\"\",\"\")","v":""},null,null,null,null,null,null,"",null,null,null,null,null,null,null,null,null,null,null,null,null,null,"",null,null,null,null,null,null,null,null,"",""]
[29,{"$f":"IFERROR(VLOOKUP(AH43,'ID(当院入力シート)'!E:F,2,FALSE)&\"\",\"\")","v":""},null,null,null,null,null,null,"",null,null,null,null,null,null,null,null,null,null,null,null,null,null,"",null,null,null,null,null,null,null,null,"",""]
[30,{"$f":"IFERROR(VLOOKUP(AH44,'ID(当院入力シート)'!E:F,2,FALSE)&\"\",\"\")","v":""},null,null,null,null,null,null,"",null,null,null,null,null,null,null,null,null,null,null,null,null,null,"",null,null,null,null,null,null,null,null,"",""]
[31,{"$f":"IFERROR(VLOOKUP(AH45,'ID(当院入力シート)'!E:F,2,FALSE)&\"\",\"\")","v":""},null,null,null,null,null,null,"",null,null,null,null,null,null,null,null,null,null,null,null,null,null,"",null,null,null,null,null,null,null,null,"",""]
[32,{"$f":"IFERROR(VLOOKUP(AH46,'ID(当院入力シート)'!E:F,2,FALSE)&\"\",\"\")","v":""},null,null,null,null,null,null,"",null,null,null,null,null,null,null,null,null,null,null,null,null,null,"",null,null,null,null,null,null,null,null,"",""]
[33,{"$f":"IFERROR(VLOOKUP(AH47,'ID(当院入力シート)'!E:F,2,FALSE)&\"\",\"\")","v":""},null,null,null,null,null,null,"",null,null,null,null,null,null,null,null,null,null,null,null,null,null,"",null,null,null,null,null,null,null,null,"",""]
[34,{"$f":"IFERROR(VLOOKUP(AH48,'ID(当院入力シート)'!E:F,2,FALSE)&\"\",\"\")","v":""},null,null,null,null,null,null,"",null,null,null,null,null,null,null,null,null,null,null,null,null,null,"",null,null,null,null,null,null,null,null,"",""]
[35,{"$f":"IFERROR(VLOOKUP(AH49,'ID(当院入力シート)'!E:F,2,FALSE)&\"\",\"\")","v":""},null,null,null,null,null,null,"",null,null,null,null,null,null,null,null,null,null,null,null,null,null,"",null,null,null,null,null,null,null,null,"",""]
[36,{"$f":"IFERROR(VLOOKUP(AH50,'ID(当院入力シート)'!E:F,2,FALSE)&\"\",\"\")","v":""},null,null,null,null,null,null,"",null,null,null,null,null,null,null,null,null,null,null,null,null,null,"",null,null,null,null,null,null,null,null,"",""]
[37,{"$f":"IFERROR(VLOOKUP(AH51,'ID(当院入力シート)'!E:F,2,FALSE)&\"\",\"\")","v":""},null,null,null,null,null,null,"",null,null,null,null,null,null,"　",null,"　",null,"　",null,null,null,"",null,null,null,null,null,null,null,null,"",""]
[38,{"$f":"IFERROR(VLOOKUP(AH52,'ID(当院入力シート)'!E:F,2,FALSE)&\"\",\"\")","v":""},null,null,null,null,null,null,"",null,null,null,null,null,null,"　",null,"　",null,"　",null,null,null,"",null,null,null,null,null,null,null,null,"",""]
[39,{"$f":"IFERROR(VLOOKUP(AH53,'ID(当院入力シート)'!E:F,2,FALSE)&\"\",\"\")","v":""},null,null,null,null,null,null,"",null,null,null,null,null,null,"　",null,"　",null,"　",null,null,null,"",null,null,null,null,null,null,null,null,"",""]
[40,{"$f":"IFERROR(VLOOKUP(AH54,'ID(当院入力シート)'!E:F,2,FALSE)&\"\",\"\")","v":""},null,null,null,null,null,null,"",null,null,null,null,null,null,"　",null,"　",null,"　",null,null,null,"",null,null,null,null,null,null,null,null,"",""]
[41,{"$f":"IFERROR(VLOOKUP(AH55,'ID(当院入力シート)'!E:F,2,FALSE)&\"\",\"\")","v":""},null,null,null,null,null,null,"",null,null,null,null,null,null,"　",null,"　",null,"　",null,null,null,"",null,null,null,null,null,null,null,null,"",""]
[42,{"$f":"IFERROR(VLOOKUP(AH56,'ID(当院入力シート)'!E:F,2,FALSE)&\"\",\"\")","v":""},null,null,null,null,null,null,"",null,null,null,null,null,null,"　",null,"　",null,"　",null,null,null,"",null,null,null,null,null,null,null,null,"",""]
[43,{"$f":"IFERROR(VLOOKUP(AH57,'ID(当院入力シート)'!E:F,2,FALSE)&\"\",\"\")","v":""},null,null,null,null,null,null,"",null,null,null,null,null,null,"　",null,"　",null,"　",null,null,null,"",null,null,null,null,null,null,null,null,"",""]
[44,{"$f":"IFERROR(VLOOKUP(AH58,'ID(当院入力シート)'!E:F,2,FALSE)&\"\",\"\")","v":""},null,null,null,null,null,null,"",null,null,null,null,null,null,"　",null,"　",null,"　",null,null,null,"",null,null,null,null,null,null,null,null,"",""]
[45,{"$f":"IFERROR(VLOOKUP(AH59,'ID(当院入力シート)'!E:F,2,FALSE)&\"\",\"\")","v":""},null,null,null,null,null,null,"",null,null,null,null,null,null,"　",null,"　",null,"　",null,null,null,"",null,null,null,null,null,null,null,null,"",""]
[46,{"$f":"IFERROR(VLOOKUP(AH60,'ID(当院入力シート)'!E:F,2,FALSE)&\"\",\"\")","v":""},null,null,null,null,null,null,"",null,null,null,null,null,null,"　",null,"　",null,"　",null,null,null,"",null,null,null,null,null,null,null,null,"",""]
[47,{"$f":"IFERROR(VLOOKUP(AH61,'ID(当院入力シート)'!E:F,2,FALSE)&\"\",\"\")","v":""},null,null,null,null,null,null,"",null,null,null,null,null,null,"　",null,"　",null,"　",null,null,null,"",null,null,null,null,null,null,null,null,"",""]
[48,{"$f":"IFERROR(VLOOKUP(AH62,'ID(当院入力シート)'!E:F,2,FALSE)&\"\",\"\")","v":""},null,null,null,null,null,null,"",null,null,null,null,null,null,"　",null,"　",null,"　",null,null,null,"",null,null,null,null,null,null,null,null,"",""]
[49,{"$f":"IFERROR(VLOOKUP(AH63,'ID(当院入力シート)'!E:F,2,FALSE)&\"\",\"\")","v":""},null,null,null,null,null,null,"",null,null,null,null,null,null,"　",null,"　",null,"　",null,null,null,"",null,null,null,null,null,null,null,null,"",""]
[50,{"$f":"IFERROR(VLOOKUP(AH64,'ID(当院入力シート)'!E:F,2,FALSE)&\"\",\"\")","v":""},null,null,null,null,null,null,"",null,null,null,null,null,null,"　",null,"　",null,"　",null,null,null,"",null,null,null,null,null,null,null,null,"",""]
[null,{"$f":"IFERROR(VLOOKUP(AH65,'ID(当院入力シート)'!E:F,2,FALSE)&\"\",\"\")","v":""},null,null,null,null,null,null,"",null,null,null,null,null,null,"　",null,"　",null,"　",null,null,null,{"$f":"IF(W65=\"\",\"\", \"(\" & TEXT(W65,\"aaa\") & \")\")","v":""},null,null,null,null,null,null,null,null,"",""]
[null,{"$f":"IFERROR(VLOOKUP(AH66,'ID(当院入力シート)'!E:F,2,FALSE)&\"\",\"\")","v":""},null,null,null,null,null,null,"",null,null,null,null,null,null,"　",null,"　",null,"　",null,null,null,"",null,null,null,null,null,null,null,null,"",""]
[null,{"$f":"IFERROR(VLOOKUP(AH67,'ID(当院入力シート)'!E:F,2,FALSE)&\"\",\"\")","v":""},null,null,null,null,null,null,"",null,null,null,null,null,null,"　",null,"　",null,"　",null,null,null,"",null,null,null,null,null,null,null,null,"",""]
[null,{"$f":"IFERROR(VLOOKUP(AH68,'ID(当院入力シート)'!E:F,2,FALSE)&\"\",\"\")","v":""},null,null,null,null,null,null,"",null,null,null,null,null,null,"　",null,"　",null,"　",null,null,null,"",null,null,null,null,null,null,null,null,"",""]
[null,{"$f":"IFERROR(VLOOKUP(AH69,'ID(当院入力シート)'!E:F,2,FALSE)&\"\",\"\")","v":""},null,null,null,null,null,null,"",null,null,null,null,null,null,"　",null,"　",null,"　",null,null,null,"",null,null,null,null,null,null,null,null,"",""]
[null,{"$f":"IFERROR(VLOOKUP(AH70,'ID(当院入力シート)'!E:F,2,FALSE)&\"\",\"\")","v":""},null,null,null,null,null,null,"",null,null,null,null,null,null,"　",null,"　",null,"　",null,null,null,"",null,null,null,null,null,null,null,null,"",""]
[null,{"$f":"IFERROR(VLOOKUP(AH71,'ID(当院入力シート)'!E:F,2,FALSE)&\"\",\"\")","v":""},null,null,null,null,null,null,"",null,null,null,null,null,null,"　",null,"　",null,"　",null,null,null,"",null,null,null,null,null,null,null,null,"",""]
[null,{"$f":"IFERROR(VLOOKUP(AH72,'ID(当院入力シート)'!E:F,2,FALSE)&\"\",\"\")","v":""},null,null,null,null,null,null,"",null,null,null,null,null,null,"　",null,"　",null,"　",null,null,null,"",null,null,null,null,null,null,null,null,"",""]
[null,{"$f":"IFERROR(VLOOKUP(AH73,'ID(当院入力シート)'!E:F,2,FALSE)&\"\",\"\")","v":""},null,null,null,null,null,null,"",null,null,null,null,null,null,"　",null,"　",null,"　",null,null,null,"",null,null,null,null,null,null,null,null,"",""]
[null,{"$f":"IFERROR(VLOOKUP(AH74,'ID(当院入力シート)'!E:F,2,FALSE)&\"\",\"\")","v":""},null,null,null,null,null,null,"",null,null,null,null,null,null,"　",null,"　",null,"　",null,null,null,"",null,null,null,null,null,null,null,null,"",""]
[null,{"$f":"IFERROR(VLOOKUP(AH75,'ID(当院入力シート)'!E:F,2,FALSE)&\"\",\"\")","v":""},null,null,null,null,null,null,"",null,null,null,null,null,null,"　",null,"　",null,"　",null,null,null,"",null,null,null,null,null,null,null,null,"",""]
[null,{"$f":"IFERROR(VLOOKUP(AH76,'ID(当院入力シート)'!E:F,2,FALSE)&\"\",\"\")","v":""},null,null,null,null,null,null,"",null,null,null,null,null,null,"　",null,"　",null,"　",null,null,null,"",null,null,null,null,null,null,null,null,"",""]
[null,{"$f":"IFERROR(VLOOKUP(AH77,'ID(当院入力シート)'!E:F,2,FALSE)&\"\",\"\")","v":""},null,null,null,null,null,null,"",null,null,null,null,null,null,"　",null,"　",null,"　",null,null,null,"",null,null,null,null,null,null,null,null,"",""]
[null,{"$f":"IFERROR(VLOOKUP(AH78,'ID(当院入力シート)'!E:F,2,FALSE)&\"\",\"\")","v":""},null,null,null,null,null,null,"",null,null,null,null,null,null,"　",null,"　",null,"　",null,null,null,"",null,null,null,null,null,null,null,null,"",""]
[null,{"$f":"IFERROR(VLOOKUP(AH79,'ID(当院入力シート)'!E:F,2,FALSE)&\"\",\"\")","v":""},null,null,null,null,null,null,"",null,null,null,null,null,null,"　",null,"　",null,"　",null,null,null,"",null,null,null,null,null,null,null,null,"",""]
[null,{"$f":"IFERROR(VLOOKUP(AH80,'ID(当院入力シート)'!E:F,2,FALSE)&\"\",\"\")","v":""},null,null,null,null,null,null,{"$f":"IF(OR(H80=\"\", $I$8=\"\"), \"\", DATEDIF(H80,$I$8,\"y\"))","v":""},null,null,null,null,null,null,"　",null,"　",null,"　",null,null,null,"",null,null,null,null,null,null,null,null,{"$f":"SUBSTITUTE(SUBSTITUTE(E80,\"　\",\"\"),\" \",\"\")","v":""},{"$f":"AG80&H80","v":""}]
[null,{"$f":"IFERROR(VLOOKUP(AH81,'ID(当院入力シート)'!E:F,2,FALSE)&\"\",\"\")","v":""},null,null,null,null,null,null,"",null,null,null,null,null,null,"　",null,"　",null,"　",null,null,null,"",null,null,null,null,null,null,null,null,"",""]
[null,{"$f":"IFERROR(VLOOKUP(AH82,'ID(当院入力シート)'!E:F,2,FALSE)&\"\",\"\")","v":""},null,null,null,null,null,null,"",null,null,null,null,null,null,"　",null,"　",null,"　",null,null,null,"",null,null,null,null,null,null,null,null,"",""]
[null,{"$f":"IFERROR(VLOOKUP(AH83,'ID(当院入力シート)'!E:F,2,FALSE)&\"\",\"\")","v":""},null,null,null,null,null,null,"",null,null,null,null,null,null,"　",null,"　",null,"　",null,null,null,"",null,null,null,null,null,null,null,null,"",""]
[null,{"$f":"IFERROR(VLOOKUP(AH84,'ID(当院入力シート)'!E:F,2,FALSE)&\"\",\"\")","v":""},null,null,null,null,null,null,"",null,null,null,null,null,null,"　",null,"　",null,"　",null,null,null,"",null,null,null,null,null,null,null,null,"",""]
[null,{"$f":"IFERROR(VLOOKUP(AH85,'ID(当院入力シート)'!E:F,2,FALSE)&\"\",\"\")","v":""},null,null,null,null,null,null,"",null,null,null,null,null,null,"　",null,"　",null,"　",null,null,null,"",null,null,null,null,null,null,null,null,"",""]
[null,{"$f":"IFERROR(VLOOKUP(AH86,'ID(当院入力シート)'!E:F,2,FALSE)&\"\",\"\")","v":""},null,null,null,null,null,null,"",null,null,null,null,null,null,"　",null,"　",null,"　",null,null,null,"",null,null,null,null,null,null,null,null,"",""]
[null,{"$f":"IFERROR(VLOOKUP(AH87,'ID(当院入力シート)'!E:F,2,FALSE)&\"\",\"\")","v":""},null,null,null,null,null,null,"",null,null,null,null,null,null,"　",null,"　",null,"　",null,null,null,"",null,null,null,null,null,null,null,null,"",""]
[null,{"$f":"IFERROR(VLOOKUP(AH88,'ID(当院入力シート)'!E:F,2,FALSE)&\"\",\"\")","v":""},null,null,null,null,null,null,"",null,null,null,null,null,null,"　",null,"　",null,"　",null,null,null,"",null,null,null,null,null,null,null,null,"",""]
[null,{"$f":"IFERROR(VLOOKUP(AH89,'ID(当院入力シート)'!E:F,2,FALSE)&\"\",\"\")","v":""},null,null,null,null,null,null,"",null,null,null,null,null,null,"　",null,"　",null,"　",null,null,null,"",null,null,null,null,null,null,null,null,"",""]
[null,{"$f":"IFERROR(VLOOKUP(AH90,'ID(当院入力シート)'!E:F,2,FALSE)&\"\",\"\")","v":""},null,null,null,null,null,null,"",null,null,null,null,null,null,"　",null,"　",null,"　",null,null,null,"",null,null,null,null,null,null,null,null,"",""]
[null,{"$f":"IFERROR(VLOOKUP(AH91,'ID(当院入力シート)'!E:F,2,FALSE)&\"\",\"\")","v":""},null,null,null,null,null,null,"",null,null,null,null,null,null,"　",null,"　",null,"　",null,null,null,"",null,null,null,null,null,null,null,null,"",""]
[null,{"$f":"IFERROR(VLOOKUP(AH92,'ID(当院入力シート)'!E:F,2,FALSE)&\"\",\"\")","v":""},null,null,null,null,null,null,"",null,null,null,null,null,null,"　",null,"　",null,"　",null,null,null,"",null,null,null,null,null,null,null,null,"",""]
[null,{"$f":"IFERROR(VLOOKUP(AH93,'ID(当院入力シート)'!E:F,2,FALSE)&\"\",\"\")","v":""},null,null,null,null,null,null,"",null,null,null,null,null,null,"　",null,"　",null,"　",null,null,null,"",null,null,null,null,null,null,null,null,"",""]
[null,{"$f":"IFERROR(VLOOKUP(AH94,'ID(当院入力シート)'!E:F,2,FALSE)&\"\",\"\")","v":""},null,null,null,null,null,null,"",null,null,null,null,null,null,"　",null,"　",null,"　",null,null,null,"",null,null,null,null,null,null,null,null,"",""]
[null,{"$f":"IFERROR(VLOOKUP(AH95,'ID(当院入力シート)'!E:F,2,FALSE)&\"\",\"\")","v":""},null,null,null,null,null,null,"",null,null,null,null,null,null,"　",null,"　",null,"　",null,null,null,"",null,null,null,null,null,null,null,null,"",""]
[null,{"$f":"IFERROR(VLOOKUP(AH96,'ID(当院入力シート)'!E:F,2,FALSE)&\"\",\"\")","v":""},null,null,null,null,null,null,"",null,null,null,null,null,null,"　",null,"　",null,"　",null,null,null,"",null,null,null,null,null,null,null,null,"",""]
[null,{"$f":"IFERROR(VLOOKUP(AH97,'ID(当院入力シート)'!E:F,2,FALSE)&\"\",\"\")","v":""},null,null,null,null,null,null,"",null,null,null,null,null,null,"　",null,"　",null,"　",null,null,null,"",null,null,null,null,null,null,null,null,"",""]
[null,{"$f":"IFERROR(VLOOKUP(AH98,'ID(当院入力シート)'!E:F,2,FALSE)&\"\",\"\")","v":""},null,null,null,null,null,null,"",null,null,null,null,null,null,"　",null,"　",null,"　",null,null,null,"",null,null,null,null,null,null,null,null,"",""]
[null,{"$f":"IFERROR(VLOOKUP(AH99,'ID(当院入力シート)'!E:F,2,FALSE)&\"\",\"\")","v":""},null,null,null,null,null,null,"",null,null,null,null,null,null,"　",null,"　",null,"　",null,null,null,"",null,null,null,null,null,null,null,null,"",""]
[null,{"$f":"IFERROR(VLOOKUP(AH100,'ID(当院入力シート)'!E:F,2,FALSE)&\"\",\"\")","v":""},null,null,null,null,null,null,"",null,null,null,null,null,null,"　",null,"　",null,"　",null,null,null,"",null,null,null,null,null,null,null,null,"",""]
[null,{"$f":"IFERROR(VLOOKUP(AH101,'ID(当院入力シート)'!E:F,2,FALSE)&\"\",\"\")","v":""},null,null,null,null,null,null,"",null,null,null,null,null,null,"　",null,"　",null,"　",null,null,null,"",null,null,null,null,null,null,null,null,"",""]
[null,{"$f":"IFERROR(VLOOKUP(AH102,'ID(当院入力シート)'!E:F,2,FALSE)&\"\",\"\")","v":""},null,null,null,null,null,null,"",null,null,null,null,null,null,"　",null,"　",null,"　",null,null,null,"",null,null,null,null,null,null,null,null,"",""]
[null,{"$f":"IFERROR(VLOOKUP(AH103,'ID(当院入力シート)'!E:F,2,FALSE)&\"\",\"\")","v":""},null,null,null,null,null,null,"",null,null,null,null,null,null,"　",null,"　",null,"　",null,null,null,"",null,null,null,null,null,null,null,null,"",""]
[null,{"$f":"IFERROR(VLOOKUP(AH104,'ID(当院入力シート)'!E:F,2,FALSE)&\"\",\"\")","v":""},null,null,null,null,null,null,"",null,null,null,null,null,null,"　",null,"　",null,"　",null,null,null,"",null,null,null,null,null,null,null,null,"",""]
[null,{"$f":"IFERROR(VLOOKUP(AH105,'ID(当院入力シート)'!E:F,2,FALSE)&\"\",\"\")","v":""},null,null,null,null,null,null,"",null,null,null,null,null,null,"　",null,"　",null,"　",null,null,null,"",null,null,null,null,null,null,null,null,"",""]
[null,{"$f":"IFERROR(VLOOKUP(AH106,'ID(当院入力シート)'!E:F,2,FALSE)&\"\",\"\")","v":""},null,null,null,null,null,null,"",null,null,null,null,null,null,"　",null,"　",null,"　",null,null,null,"",null,null,null,null,null,null,null,null,"",""]
[null,{"$f":"IFERROR(VLOOKUP(AH107,'ID(当院入力シート)'!E:F,2,FALSE)&\"\",\"\")","v":""},null,null,null,null,null,null,"",null,null,null,null,null,null,"　",null,"　",null,"　",null,null,null,"",null,null,null,null,null,null,null,null,"",""]
[null,{"$f":"IFERROR(VLOOKUP(AH108,'ID(当院入力シート)'!E:F,2,FALSE)&\"\",\"\")","v":""},null,null,null,null,null,null,"",null,null,null,null,null,null,"　",null,"　",null,"　",null,null,null,"",null,null,null,null,null,null,null,null,"",""]
[null,{"$f":"IFERROR(VLOOKUP(AH109,'ID(当院入力シート)'!E:F,2,FALSE)&\"\",\"\")","v":""},null,null,null,null,null,null,"",null,null,null,null,null,null,"　",null,"　",null,"　",null,null,null,"",null,null,null,null,null,null,null,null,"",""]
[null,{"$f":"IFERROR(VLOOKUP(AH110,'ID(当院入力シート)'!E:F,2,FALSE)&\"\",\"\")","v":""},null,null,null,null,null,null,"",null,null,null,null,null,null,"　",null,"　",null,"　",null,null,null,"",null,null,null,null,null,null,null,null,"",""]
[null,{"$f":"IFERROR(VLOOKUP(AH111,'ID(当院入力シート)'!E:F,2,FALSE)&\"\",\"\")","v":""},null,null,null,null,null,null,"",null,null,null,null,null,null,"　",null,"　",null,"　",null,null,null,"",null,null,null,null,null,null,null,null,"",""]
[null,{"$f":"IFERROR(VLOOKUP(AH112,'ID(当院入力シート)'!E:F,2,FALSE)&\"\",\"\")","v":""},null,null,null,null,null,null,"",null,null,null,null,null,null,"　",null,"　",null,"　",null,null,null,"",null,null,null,null,null,null,null,null,"",""]
[null,{"$f":"IFERROR(VLOOKUP(AH113,'ID(当院入力シート)'!E:F,2,FALSE)&\"\",\"\")","v":""},null,null,null,null,null,null,"",null,null,null,null,null,null,"　",null,"　",null,"　",null,null,null,"",null,null,null,null,null,null,null,null,"",""]
[null,{"$f":"IFERROR(VLOOKUP(AH114,'ID(当院入力シート)'!E:F,2,FALSE)&\"\",\"\")","v":""},null,null,null,null,null,null,"",null,null,null,null,null,null,"　",null,"　",null,"　",null,null,null,"",null,null,null,null,null,null,null,null,"",""]
[null,{"$f":"IFERROR(VLOOKUP(AH115,'ID(当院入力シート)'!E:F,2,FALSE)&\"\",\"\")","v":""},null,null,null,null,null,null,"",null,null,null,null,null,null,"　",null,"　",null,"　",null,null,null,"",null,null,null,null,null,null,null,null,"",""]
[null,{"$f":"IFERROR(VLOOKUP(AH116,'ID(当院入力シート)'!E:F,2,FALSE)&\"\",\"\")","v":""},null,null,null,null,null,null,"",null,null,null,null,null,null,"　",null,"　",null,"　",null,null,null,"",null,null,null,null,null,null,null,null,"",""]
[null,{"$f":"IFERROR(VLOOKUP(AH117,'ID(当院入力シート)'!E:F,2,FALSE)&\"\",\"\")","v":""},null,null,null,null,null,null,"",null,null,null,null,null,null,"　",null,"　",null,"　",null,null,null,"",null,null,null,null,null,null,null,null,"",""]
[null,{"$f":"IFERROR(VLOOKUP(AH118,'ID(当院入力シート)'!E:F,2,FALSE)&\"\",\"\")","v":""},null,null,null,null,null,null,"",null,null,null,null,null,null,"　",null,"　",null,"　",null,null,null,"",null,null,null,null,null,null,null,null,"",""]
[null,{"$f":"IFERROR(VLOOKUP(AH119,'ID(当院入力シート)'!E:F,2,FALSE)&\"\",\"\")","v":""},null,null,null,null,null,null,"",null,null,null,null,null,null,"　",null,"　",null,"　",null,null,null,"",null,null,null,null,null,null,null,null,"",""]
[null,{"$f":"IFERROR(VLOOKUP(AH120,'ID(当院入力シート)'!E:F,2,FALSE)&\"\",\"\")","v":""},null,null,null,null,null,null,"",null,null,null,null,null,null,"　",null,"　",null,"　",null,null,null,"",null,null,null,null,null,null,null,null,"",""]
[null,{"$f":"IFERROR(VLOOKUP(AH121,'ID(当院入力シート)'!E:F,2,FALSE)&\"\",\"\")","v":""},null,null,null,null,null,null,"",null,null,null,null,null,null,"　",null,"　",null,"　",null,null,null,"",null,null,null,null,null,null,null,null,"",""]
[null,{"$f":"IFERROR(VLOOKUP(AH122,'ID(当院入力シート)'!E:F,2,FALSE)&\"\",\"\")","v":""},null,null,null,null,null,null,"",null,null,null,null,null,null,"　",null,"　",null,"　",null,null,null,"",null,null,null,null,null,null,null,null,"",""]
[null,{"$f":"IFERROR(VLOOKUP(AH123,'ID(当院入力シート)'!E:F,2,FALSE)&\"\",\"\")","v":""},null,null,null,null,null,null,"",null,null,null,null,null,null,"　",null,"　",null,"　",null,null,null,"",null,null,null,null,null,null,null,null,"",""]
[null,{"$f":"IFERROR(VLOOKUP(AH124,'ID(当院入力シート)'!E:F,2,FALSE)&\"\",\"\")","v":""},null,null,null,null,null,null,"",null,null,null,null,null,null,"　",null,"　",null,"　",null,null,null,"",null,null,null,null,null,null,null,null,"",""]
[null,{"$f":"IFERROR(VLOOKUP(AH125,'ID(当院入力シート)'!E:F,2,FALSE)&\"\",\"\")","v":""},null,null,null,null,null,null,"",null,null,null,null,null,null,"　",null,"　",null,"　",null,null,null,"",null,null,null,null,null,null,null,null,"",""]
[null,{"$f":"IFERROR(VLOOKUP(AH126,'ID(当院入力シート)'!E:F,2,FALSE)&\"\",\"\")","v":""},null,null,null,null,null,null,"",null,null,null,null,null,null,"　",null,"　",null,"　",null,null,null,"",null,null,null,null,null,null,null,null,"",""]
[null,{"$f":"IFERROR(VLOOKUP(AH127,'ID(当院入力シート)'!E:F,2,FALSE)&\"\",\"\")","v":""},null,null,null,null,null,null,"",null,null,null,null,null,null,"　",null,"　",null,"　",null,null,null,"",null,null,null,null,null,null,null,null,"",""]
[null,{"$f":"IFERROR(VLOOKUP(AH128,'ID(当院入力シート)'!E:F,2,FALSE)&\"\",\"\")","v":""},null,null,null,null,null,null,"",null,null,null,null,null,null,"　",null,"　",null,"　",null,null,null,"",null,null,null,null,null,null,null,null,"",""]
[null,{"$f":"IFERROR(VLOOKUP(AH129,'ID(当院入力シート)'!E:F,2,FALSE)&\"\",\"\")","v":""},null,null,null,null,null,null,"",null,null,null,null,null,null,"　",null,"　",null,"　",null,null,null,{"$f":"IF(W129=\"\",\"\", \"(\" & TEXT(W129,\"aaa\") & \")\")","v":""},null,null,null,null,null,null,null,null,"",""]
[null,{"$f":"IFERROR(VLOOKUP(AH130,'ID(当院入力シート)'!E:F,2,FALSE)&\"\",\"\")","v":""},null,null,null,null,null,null,"",null,null,null,null,null,null,"　",null,"　",null,"　",null,null,null,"",null,null,null,null,null,null,null,null,"",""]
[null,{"$f":"IFERROR(VLOOKUP(AH131,'ID(当院入力シート)'!E:F,2,FALSE)&\"\",\"\")","v":""},null,null,null,null,null,null,"",null,null,null,null,null,null,"　",null,"　",null,"　",null,null,null,"",null,null,null,null,null,null,null,null,"",""]
[null,{"$f":"IFERROR(VLOOKUP(AH132,'ID(当院入力シート)'!E:F,2,FALSE)&\"\",\"\")","v":""},null,null,null,null,null,null,"",null,null,null,null,null,null,"　",null,"　",null,"　",null,null,null,"",null,null,null,null,null,null,null,null,"",""]
[null,{"$f":"IFERROR(VLOOKUP(AH133,'ID(当院入力シート)'!E:F,2,FALSE)&\"\",\"\")","v":""},null,null,null,null,null,null,"",null,null,null,null,null,null,"　",null,"　",null,"　",null,null,null,"",null,null,null,null,null,null,null,null,"",""]
[null,{"$f":"IFERROR(VLOOKUP(AH134,'ID(当院入力シート)'!E:F,2,FALSE)&\"\",\"\")","v":""},null,null,null,null,null,null,"",null,null,null,null,null,null,"　",null,"　",null,"　",null,null,null,"",null,null,null,null,null,null,null,null,"",""]
[null,{"$f":"IFERROR(VLOOKUP(AH135,'ID(当院入力シート)'!E:F,2,FALSE)&\"\",\"\")","v":""},null,null,null,null,null,null,"",null,null,null,null,null,null,"　",null,"　",null,"　",null,null,null,"",null,null,null,null,null,null,null,null,"",""]
[null,{"$f":"IFERROR(VLOOKUP(AH136,'ID(当院入力シート)'!E:F,2,FALSE)&\"\",\"\")","v":""},null,null,null,null,null,null,"",null,null,null,null,null,null,"　",null,"　",null,"　",null,null,null,"",null,null,null,null,null,null,null,null,"",""]
[null,{"$f":"IFERROR(VLOOKUP(AH137,'ID(当院入力シート)'!E:F,2,FALSE)&\"\",\"\")","v":""},null,null,null,null,null,null,"",null,null,null,null,null,null,"　",null,"　",null,"　",null,null,null,"",null,null,null,null,null,null,null,null,"",""]
[null,{"$f":"IFERROR(VLOOKUP(AH138,'ID(当院入力シート)'!E:F,2,FALSE)&\"\",\"\")","v":""},null,null,null,null,null,null,"",null,null,null,null,null,null,"　",null,"　",null,"　",null,null,null,"",null,null,null,null,null,null,null,null,"",""]
[null,{"$f":"IFERROR(VLOOKUP(AH139,'ID(当院入力シート)'!E:F,2,FALSE)&\"\",\"\")","v":""},null,null,null,null,null,null,"",null,null,null,null,null,null,"　",null,"　",null,"　",null,null,null,"",null,null,null,null,null,null,null,null,"",""]
[null,{"$f":"IFERROR(VLOOKUP(AH140,'ID(当院入力シート)'!E:F,2,FALSE)&\"\",\"\")","v":""},null,null,null,null,null,null,"",null,null,null,null,null,null,"　",null,"　",null,"　",null,null,null,"",null,null,null,null,null,null,null,null,"",""]
[null,{"$f":"IFERROR(VLOOKUP(AH141,'ID(当院入力シート)'!E:F,2,FALSE)&\"\",\"\")","v":""},null,null,null,null,null,null,"",null,null,null,null,null,null,"　",null,"　",null,"　",null,null,null,"",null,null,null,null,null,null,null,null,"",""]
[null,{"$f":"IFERROR(VLOOKUP(AH142,'ID(当院入力シート)'!E:F,2,FALSE)&\"\",\"\")","v":""},null,null,null,null,null,null,"",null,null,null,null,null,null,"　",null,"　",null,"　",null,null,null,"",null,null,null,null,null,null,null,null,"",""]
[null,{"$f":"IFERROR(VLOOKUP(AH143,'ID(当院入力シート)'!E:F,2,FALSE)&\"\",\"\")","v":""},null,null,null,null,null,null,"",null,null,null,null,null,null,"　",null,"　",null,"　",null,null,null,"",null,null,null,null,null,null,null,null,"",""]
[null,{"$f":"IFERROR(VLOOKUP(AH144,'ID(当院入力シート)'!E:F,2,FALSE)&\"\",\"\")","v":""},null,null,null,null,null,null,{"$f":"IF(OR(H144=\"\", $I$8=\"\"), \"\", DATEDIF(H144,$I$8,\"y\"))","v":""},null,null,null,null,null,null,"　",null,"　",null,"　",null,null,null,"",null,null,null,null,null,null,null,null,{"$f":"SUBSTITUTE(SUBSTITUTE(E144,\"　\",\"\"),\" \",\"\")","v":""},{"$f":"AG144&H144","v":""}]
[null,{"$f":"IFERROR(VLOOKUP(AH145,'ID(当院入力シート)'!E:F,2,FALSE)&\"\",\"\")","v":""},null,null,null,null,null,null,"",null,null,null,null,null,null,"　",null,"　",null,"　",null,null,null,"",null,null,null,null,null,null,null,null,"",""]
[null,{"$f":"IFERROR(VLOOKUP(AH146,'ID(当院入力シート)'!E:F,2,FALSE)&\"\",\"\")","v":""},null,null,null,null,null,null,"",null,null,null,null,null,null,"　",null,"　",null,"　",null,null,null,"",null,null,null,null,null,null,null,null,"",""]
[null,{"$f":"IFERROR(VLOOKUP(AH147,'ID(当院入力シート)'!E:F,2,FALSE)&\"\",\"\")","v":""},null,null,null,null,null,null,"",null,null,null,null,null,null,"　",null,"　",null,"　",null,null,null,"",null,null,null,null,null,null,null,null,"",""]
[null,{"$f":"IFERROR(VLOOKUP(AH148,'ID(当院入力シート)'!E:F,2,FALSE)&\"\",\"\")","v":""},null,null,null,null,null,null,"",null,null,null,null,null,null,"　",null,"　",null,"　",null,null,null,"",null,null,null,null,null,null,null,null,"",""]
[null,{"$f":"IFERROR(VLOOKUP(AH149,'ID(当院入力シート)'!E:F,2,FALSE)&\"\",\"\")","v":""},null,null,null,null,null,null,"",null,null,null,null,null,null,"　",null,"　",null,"　",null,null,null,"",null,null,null,null,null,null,null,null,"",""]
[null,{"$f":"IFERROR(VLOOKUP(AH150,'ID(当院入力シート)'!E:F,2,FALSE)&\"\",\"\")","v":""},null,null,null,null,null,null,"",null,null,null,null,null,null,"　",null,"　",null,"　",null,null,null,"",null,null,null,null,null,null,null,null,"",""]
[null,{"$f":"IFERROR(VLOOKUP(AH151,'ID(当院入力シート)'!E:F,2,FALSE)&\"\",\"\")","v":""},null,null,null,null,null,null,"",null,null,null,null,null,null,"　",null,"　",null,"　",null,null,null,"",null,null,null,null,null,null,null,null,"",""]
[null,{"$f":"IFERROR(VLOOKUP(AH152,'ID(当院入力シート)'!E:F,2,FALSE)&\"\",\"\")","v":""},null,null,null,null,null,null,"",null,null,null,null,null,null,"　",null,"　",null,"　",null,null,null,"",null,null,null,null,null,null,null,null,"",""]
[null,{"$f":"IFERROR(VLOOKUP(AH153,'ID(当院入力シート)'!E:F,2,FALSE)&\"\",\"\")","v":""},null,null,null,null,null,null,"",null,null,null,null,null,null,"　",null,"　",null,"　",null,null,null,"",null,null,null,null,null,null,null,null,"",""]
[null,{"$f":"IFERROR(VLOOKUP(AH154,'ID(当院入力シート)'!E:F,2,FALSE)&\"\",\"\")","v":""},null,null,null,null,null,null,"",null,null,null,null,null,null,"　",null,"　",null,"　",null,null,null,"",null,null,null,null,null,null,null,null,"",""]
[null,{"$f":"IFERROR(VLOOKUP(AH155,'ID(当院入力シート)'!E:F,2,FALSE)&\"\",\"\")","v":""},null,null,null,null,null,null,"",null,null,null,null,null,null,"　",null,"　",null,"　",null,null,null,"",null,null,null,null,null,null,null,null,"",""]
[null,{"$f":"IFERROR(VLOOKUP(AH156,'ID(当院入力シート)'!E:F,2,FALSE)&\"\",\"\")","v":""},null,null,null,null,null,null,"",null,null,null,null,null,null,"　",null,"　",null,"　",null,null,null,"",null,null,null,null,null,null,null,null,"",""]
[null,{"$f":"IFERROR(VLOOKUP(AH157,'ID(当院入力シート)'!E:F,2,FALSE)&\"\",\"\")","v":""},null,null,null,null,null,null,"",null,null,null,null,null,null,"　",null,"　",null,"　",null,null,null,"",null,null,null,null,null,null,null,null,"",""]
[null,{"$f":"IFERROR(VLOOKUP(AH158,'ID(当院入力シート)'!E:F,2,FALSE)&\"\",\"\")","v":""},null,null,null,null,null,null,"",null,null,null,null,null,null,"　",null,"　",null,"　",null,null,null,"",null,null,null,null,null,null,null,null,"",""]
[null,{"$f":"IFERROR(VLOOKUP(AH159,'ID(当院入力シート)'!E:F,2,FALSE)&\"\",\"\")","v":""},null,null,null,null,null,null,"",null,null,null,null,null,null,"　",null,"　",null,"　",null,null,null,"",null,null,null,null,null,null,null,null,"",""]
[null,{"$f":"IFERROR(VLOOKUP(AH160,'ID(当院入力シート)'!E:F,2,FALSE)&\"\",\"\")","v":""},null,null,null,null,null,null,"",null,null,null,null,null,null,"　",null,"　",null,"　",null,null,null,"",null,null,null,null,null,null,null,null,"",""]
[null,{"$f":"IFERROR(VLOOKUP(AH161,'ID(当院入力シート)'!E:F,2,FALSE)&\"\",\"\")","v":""},null,null,null,null,null,null,"",null,null,null,null,null,null,"　",null,"　",null,"　",null,null,null,"",null,null,null,null,null,null,null,null,"",""]
[null,{"$f":"IFERROR(VLOOKUP(AH162,'ID(当院入力シート)'!E:F,2,FALSE)&\"\",\"\")","v":""},null,null,null,null,null,null,"",null,null,null,null,null,null,"　",null,"　",null,"　",null,null,null,"",null,null,null,null,null,null,null,null,"",""]
[null,{"$f":"IFERROR(VLOOKUP(AH163,'ID(当院入力シート)'!E:F,2,FALSE)&\"\",\"\")","v":""},null,null,null,null,null,null,"",null,null,null,null,null,null,"　",null,"　",null,"　",null,null,null,"",null,null,null,null,null,null,null,null,"",""]
[null,{"$f":"IFERROR(VLOOKUP(AH164,'ID(当院入力シート)'!E:F,2,FALSE)&\"\",\"\")","v":""},null,null,null,null,null,null,"",null,null,null,null,null,null,"　",null,"　",null,"　",null,null,null,"",null,null,null,null,null,null,null,null,"",""]
[null,{"$f":"IFERROR(VLOOKUP(AH165,'ID(当院入力シート)'!E:F,2,FALSE)&\"\",\"\")","v":""},null,null,null,null,null,null,"",null,null,null,null,null,null,"　",null,"　",null,"　",null,null,null,"",null,null,null,null,null,null,null,null,"",""]
[null,{"$f":"IFERROR(VLOOKUP(AH166,'ID(当院入力シート)'!E:F,2,FALSE)&\"\",\"\")","v":""},null,null,null,null,null,null,"",null,null,null,null,null,null,"　",null,"　",null,"　",null,null,null,"",null,null,null,null,null,null,null,null,"",""]
[null,{"$f":"IFERROR(VLOOKUP(AH167,'ID(当院入力シート)'!E:F,2,FALSE)&\"\",\"\")","v":""},null,null,null,null,null,null,"",null,null,null,null,null,null,"　",null,"　",null,"　",null,null,null,"",null,null,null,null,null,null,null,null,"",""]
[null,{"$f":"IFERROR(VLOOKUP(AH168,'ID(当院入力シート)'!E:F,2,FALSE)&\"\",\"\")","v":""},null,null,null,null,null,null,"",null,null,null,null,null,null,"　",null,"　",null,"　",null,null,null,"",null,null,null,null,null,null,null,null,"",""]
[null,{"$f":"IFERROR(VLOOKUP(AH169,'ID(当院入力シート)'!E:F,2,FALSE)&\"\",\"\")","v":""},null,null,null,null,null,null,"",null,null,null,null,null,null,"　",null,"　",null,"　",null,null,null,"",null,null,null,null,null,null,null,null,"",""]
[null,{"$f":"IFERROR(VLOOKUP(AH170,'ID(当院入力シート)'!E:F,2,FALSE)&\"\",\"\")","v":""},null,null,null,null,null,null,"",null,null,null,null,null,null,"　",null,"　",null,"　",null,null,null,"",null,null,null,null,null,null,null,null,"",""]
[null,{"$f":"IFERROR(VLOOKUP(AH171,'ID(当院入力シート)'!E:F,2,FALSE)&\"\",\"\")","v":""},null,null,null,null,null,null,"",null,null,null,null,null,null,"　",null,"　",null,"　",null,null,null,"",null,null,null,null,null,null,null,null,"",""]
[null,{"$f":"IFERROR(VLOOKUP(AH172,'ID(当院入力シート)'!E:F,2,FALSE)&\"\",\"\")","v":""},null,null,null,null,null,null,"",null,null,null,null,null,null,"　",null,"　",null,"　",null,null,null,"",null,null,null,null,null,null,null,null,"",""]
[null,{"$f":"IFERROR(VLOOKUP(AH173,'ID(当院入力シート)'!E:F,2,FALSE)&\"\",\"\")","v":""},null,null,null,null,null,null,"",null,null,null,null,null,null,"　",null,"　",null,"　",null,null,null,"",null,null,null,null,null,null,null,null,"",""]
[null,{"$f":"IFERROR(VLOOKUP(AH174,'ID(当院入力シート)'!E:F,2,FALSE)&\"\",\"\")","v":""},null,null,null,null,null,null,"",null,null,null,null,null,null,"　",null,"　",null,"　",null,null,null,"",null,null,null,null,null,null,null,null,"",""]
[null,{"$f":"IFERROR(VLOOKUP(AH175,'ID(当院入力シート)'!E:F,2,FALSE)&\"\",\"\")","v":""},null,null,null,null,null,null,"",null,null,null,null,null,null,"　",null,"　",null,"　",null,null,null,"",null,null,null,null,null,null,null,null,"",""]
[null,{"$f":"IFERROR(VLOOKUP(AH176,'ID(当院入力シート)'!E:F,2,FALSE)&\"\",\"\")","v":""},null,null,null,null,null,null,"",null,null,null,null,null,null,"　",null,"　",null,"　",null,null,null,"",null,null,null,null,null,null,null,null,"",""]
[null,{"$f":"IFERROR(VLOOKUP(AH177,'ID(当院入力シート)'!E:F,2,FALSE)&\"\",\"\")","v":""},null,null,null,null,null,null,"",null,null,null,null,null,null,"　",null,"　",null,"　",null,null,null,"",null,null,null,null,null,null,null,null,"",""]
[null,{"$f":"IFERROR(VLOOKUP(AH178,'ID(当院入力シート)'!E:F,2,FALSE)&\"\",\"\")","v":""},null,null,null,null,null,null,"",null,null,null,null,null,null,"　",null,"　",null,"　",null,null,null,"",null,null,null,null,null,null,null,null,"",""]
[null,{"$f":"IFERROR(VLOOKUP(AH179,'ID(当院入力シート)'!E:F,2,FALSE)&\"\",\"\")","v":""},null,null,null,null,null,null,"",null,null,null,null,null,null,"　",null,"　",null,"　",null,null,null,"",null,null,null,null,null,null,null,null,"",""]
[null,{"$f":"IFERROR(VLOOKUP(AH180,'ID(当院入力シート)'!E:F,2,FALSE)&\"\",\"\")","v":""},null,null,null,null,null,null,"",null,null,null,null,null,null,"　",null,"　",null,"　",null,null,null,"",null,null,null,null,null,null,null,null,"",""]
[null,{"$f":"IFERROR(VLOOKUP(AH181,'ID(当院入力シート)'!E:F,2,FALSE)&\"\",\"\")","v":""},null,null,null,null,null,null,"",null,null,null,null,null,null,"　",null,"　",null,"　",null,null,null,"",null,null,null,null,null,null,null,null,"",""]
[null,{"$f":"IFERROR(VLOOKUP(AH182,'ID(当院入力シート)'!E:F,2,FALSE)&\"\",\"\")","v":""},null,null,null,null,null,null,"",null,null,null,null,null,null,"　",null,"　",null,"　",null,null,null,"",null,null,null,null,null,null,null,null,"",""]
[null,{"$f":"IFERROR(VLOOKUP(AH183,'ID(当院入力シート)'!E:F,2,FALSE)&\"\",\"\")","v":""},null,null,null,null,null,null,"",null,null,null,null,null,null,"　",null,"　",null,"　",null,null,null,"",null,null,null,null,null,null,null,null,"",""]
[null,{"$f":"IFERROR(VLOOKUP(AH184,'ID(当院入力シート)'!E:F,2,FALSE)&\"\",\"\")","v":""},null,null,null,null,null,null,"",null,null,null,null,null,null,"　",null,"　",null,"　",null,null,null,"",null,null,null,null,null,null,null,null,"",""]
[null,{"$f":"IFERROR(VLOOKUP(AH185,'ID(当院入力シート)'!E:F,2,FALSE)&\"\",\"\")","v":""},null,null,null,null,null,null,"",null,null,null,null,null,null,"　",null,"　",null,"　",null,null,null,"",null,null,null,null,null,null,null,null,"",""]
[null,{"$f":"IFERROR(VLOOKUP(AH186,'ID(当院入力シート)'!E:F,2,FALSE)&\"\",\"\")","v":""},null,null,null,null,null,null,"",null,null,null,null,null,null,"　",null,"　",null,"　",null,null,null,"",null,null,null,null,null,null,null,null,"",""]
[null,{"$f":"IFERROR(VLOOKUP(AH187,'ID(当院入力シート)'!E:F,2,FALSE)&\"\",\"\")","v":""},null,null,null,null,null,null,"",null,null,null,null,null,null,"　",null,"　",null,"　",null,null,null,"",null,null,null,null,null,null,null,null,"",""]
[null,{"$f":"IFERROR(VLOOKUP(AH188,'ID(当院入力シート)'!E:F,2,FALSE)&\"\",\"\")","v":""},null,null,null,null,null,null,"",null,null,null,null,null,null,"　",null,"　",null,"　",null,null,null,"",null,null,null,null,null,null,null,null,"",""]
[null,{"$f":"IFERROR(VLOOKUP(AH189,'ID(当院入力シート)'!E:F,2,FALSE)&\"\",\"\")","v":""},null,null,null,null,null,null,"",null,null,null,null,null,null,"　",null,"　",null,"　",null,null,null,"",null,null,null,null,null,null,null,null,"",""]
[null,{"$f":"IFERROR(VLOOKUP(AH190,'ID(当院入力シート)'!E:F,2,FALSE)&\"\",\"\")","v":""},null,null,null,null,null,null,"",null,null,null,null,null,null,"　",null,"　",null,"　",null,null,null,"",null,null,null,null,null,null,null,null,"",""]
[null,{"$f":"IFERROR(VLOOKUP(AH191,'ID(当院入力シート)'!E:F,2,FALSE)&\"\",\"\")","v":""},null,null,null,null,null,null,"",null,null,null,null,null,null,"　",null,"　",null,"　",null,null,null,"",null,null,null,null,null,null,null,null,"",""]
[null,{"$f":"IFERROR(VLOOKUP(AH192,'ID(当院入力シート)'!E:F,2,FALSE)&\"\",\"\")","v":""},null,null,null,null,null,null,"",null,null,null,null,null,null,"　",null,"　",null,"　",null,null,null,"",null,null,null,null,null,null,null,null,"",""]
[null,{"$f":"IFERROR(VLOOKUP(AH193,'ID(当院入力シート)'!E:F,2,FALSE)&\"\",\"\")","v":""},null,null,null,null,null,null,"",null,null,null,null,null,null,"　",null,"　",null,"　",null,null,null,{"$f":"IF(W193=\"\",\"\", \"(\" & TEXT(W193,\"aaa\") & \")\")","v":""},null,null,null,null,null,null,null,null,"",""]
[null,{"$f":"IFERROR(VLOOKUP(AH194,'ID(当院入力シート)'!E:F,2,FALSE)&\"\",\"\")","v":""},null,null,null,null,null,null,"",null,null,null,null,null,null,"　",null,"　",null,"　",null,null,null,"",null,null,null,null,null,null,null,null,"",""]
[null,{"$f":"IFERROR(VLOOKUP(AH195,'ID(当院入力シート)'!E:F,2,FALSE)&\"\",\"\")","v":""},null,null,null,null,null,null,"",null,null,null,null,null,null,"　",null,"　",null,"　",null,null,null,"",null,null,null,null,null,null,null,null,"",""]
[null,{"$f":"IFERROR(VLOOKUP(AH196,'ID(当院入力シート)'!E:F,2,FALSE)&\"\",\"\")","v":""},null,null,null,null,null,null,"",null,null,null,null,null,null,"　",null,"　",null,"　",null,null,null,"",null,null,null,null,null,null,null,null,"",""]
[null,{"$f":"IFERROR(VLOOKUP(AH197,'ID(当院入力シート)'!E:F,2,FALSE)&\"\",\"\")","v":""},null,null,null,null,null,null,"",null,null,null,null,null,null,"　",null,"　",null,"　",null,null,null,"",null,null,null,null,null,null,null,null,"",""]
[null,{"$f":"IFERROR(VLOOKUP(AH198,'ID(当院入力シート)'!E:F,2,FALSE)&\"\",\"\")","v":""},null,null,null,null,null,null,"",null,null,null,null,null,null,"　",null,"　",null,"　",null,null,null,"",null,null,null,null,null,null,null,null,"",""]
[null,{"$f":"IFERROR(VLOOKUP(AH199,'ID(当院入力シート)'!E:F,2,FALSE)&\"\",\"\")","v":""},null,null,null,null,null,null,"",null,null,null,null,null,null,"　",null,"　",null,"　",null,null,null,"",null,null,null,null,null,null,null,null,"",""]
[null,{"$f":"IFERROR(VLOOKUP(AH200,'ID(当院入力シート)'!E:F,2,FALSE)&\"\",\"\")","v":""},null,null,null,null,null,null,"",null,null,null,null,null,null,"　",null,"　",null,"　",null,null,null,"",null,null,null,null,null,null,null,null,"",""]
[null,{"$f":"IFERROR(VLOOKUP(AH201,'ID(当院入力シート)'!E:F,2,FALSE)&\"\",\"\")","v":""},null,null,null,null,null,null,"",null,null,null,null,null,null,"　",null,"　",null,"　",null,null,null,"",null,null,null,null,null,null,null,null,"",""]
[null,{"$f":"IFERROR(VLOOKUP(AH202,'ID(当院入力シート)'!E:F,2,FALSE)&\"\",\"\")","v":""},null,null,null,null,null,null,"",null,null,null,null,null,null,"　",null,"　",null,"　",null,null,null,"",null,null,null,null,null,null,null,null,"",""]
[null,{"$f":"IFERROR(VLOOKUP(AH203,'ID(当院入力シート)'!E:F,2,FALSE)&\"\",\"\")","v":""},null,null,null,null,null,null,"",null,null,null,null,null,null,"　",null,"　",null,"　",null,null,null,"",null,null,null,null,null,null,null,null,"",""]
[null,{"$f":"IFERROR(VLOOKUP(AH204,'ID(当院入力シート)'!E:F,2,FALSE)&\"\",\"\")","v":""},null,null,null,null,null,null,"",null,null,null,null,null,null,"　",null,"　",null,"　",null,null,null,"",null,null,null,null,null,null,null,null,"",""]
[null,{"$f":"IFERROR(VLOOKUP(AH205,'ID(当院入力シート)'!E:F,2,FALSE)&\"\",\"\")","v":""},null,null,null,null,null,null,"",null,null,null,null,null,null,"　",null,"　",null,"　",null,null,null,"",null,null,null,null,null,null,null,null,"",""]
[null,{"$f":"IFERROR(VLOOKUP(AH206,'ID(当院入力シート)'!E:F,2,FALSE)&\"\",\"\")","v":""},null,null,null,null,null,null,"",null,null,null,null,null,null,"　",null,"　",null,"　",null,null,null,"",null,null,null,null,null,null,null,null,"",""]
[null,{"$f":"IFERROR(VLOOKUP(AH207,'ID(当院入力シート)'!E:F,2,FALSE)&\"\",\"\")","v":""},null,null,null,null,null,null,"",null,null,null,null,null,null,"　",null,"　",null,"　",null,null,null,"",null,null,null,null,null,null,null,null,"",""]
[null,{"$f":"IFERROR(VLOOKUP(AH208,'ID(当院入力シート)'!E:F,2,FALSE)&\"\",\"\")","v":""},null,null,null,null,null,null,{"$f":"IF(OR(H208=\"\", $I$8=\"\"), \"\", DATEDIF(H208,$I$8,\"y\"))","v":""},null,null,null,null,null,null,"　",null,"　",null,"　",null,null,null,"",null,null,null,null,null,null,null,null,{"$f":"SUBSTITUTE(SUBSTITUTE(E208,\"　\",\"\"),\" \",\"\")","v":""},{"$f":"AG208&H208","v":""}]
[null,{"$f":"IFERROR(VLOOKUP(AH209,'ID(当院入力シート)'!E:F,2,FALSE)&\"\",\"\")","v":""},null,null,null,null,null,null,"",null,null,null,null,null,null,"　",null,"　",null,"　",null,null,null,"",null,null,null,null,null,null,null,null,"",""]
[null,{"$f":"IFERROR(VLOOKUP(AH210,'ID(当院入力シート)'!E:F,2,FALSE)&\"\",\"\")","v":""},null,null,null,null,null,null,"",null,null,null,null,null,null,"　",null,"　",null,"　",null,null,null,"",null,null,null,null,null,null,null,null,"",""]
[null,{"$f":"IFERROR(VLOOKUP(AH211,'ID(当院入力シート)'!E:F,2,FALSE)&\"\",\"\")","v":""},null,null,null,null,null,null,"",null,null,null,null,null,null,"　",null,"　",null,"　",null,null,null,"",null,null,null,null,null,null,null,null,"",""]
[null,{"$f":"IFERROR(VLOOKUP(AH212,'ID(当院入力シート)'!E:F,2,FALSE)&\"\",\"\")","v":""},null,null,null,null,null,null,"",null,null,null,null,null,null,"　",null,"　",null,"　",null,null,null,"",null,null,null,null,null,null,null,null,"",""]
[null,{"$f":"IFERROR(VLOOKUP(AH213,'ID(当院入力シート)'!E:F,2,FALSE)&\"\",\"\")","v":""},null,null,null,null,null,null,"",null,null,null,null,null,null,"　",null,"　",null,"　",null,null,null,"",null,null,null,null,null,null,null,null,"",""]
[null,{"$f":"IFERROR(VLOOKUP(AH214,'ID(当院入力シート)'!E:F,2,FALSE)&\"\",\"\")","v":""},null,null,null,null,null,null,"",null,null,null,null,null,null,"　",null,"　",null,"　",null,null,null,"",null,null,null,null,null,null,null,null,"",""]
[null,{"$f":"IFERROR(VLOOKUP(AH215,'ID(当院入力シート)'!E:F,2,FALSE)&\"\",\"\")","v":""},null,null,null,null,null,null,"",null,null,null,null,null,null,"　",null,"　",null,"　",null,null,null,"",null,null,null,null,null,null,null,null,"",""]
[null,{"$f":"IFERROR(VLOOKUP(AH216,'ID(当院入力シート)'!E:F,2,FALSE)&\"\",\"\")","v":""},null,null,null,null,null,null,"",null,null,null,null,null,null,"　",null,"　",null,"　",null,null,null,"",null,null,null,null,null,null,null,null,"",""]
[null,{"$f":"IFERROR(VLOOKUP(AH217,'ID(当院入力シート)'!E:F,2,FALSE)&\"\",\"\")","v":""},null,null,null,null,null,null,"",null,null,null,null,null,null,"　",null,"　",null,"　",null,null,null,"",null,null,null,null,null,null,null,null,"",""]
[null,{"$f":"IFERROR(VLOOKUP(AH218,'ID(当院入力シート)'!E:F,2,FALSE)&\"\",\"\")","v":""},null,null,null,null,null,null,"",null,null,null,null,null,null,"　",null,"　",null,"　",null,null,null,"",null,null,null,null,null,null,null,null,"",""]
[null,{"$f":"IFERROR(VLOOKUP(AH219,'ID(当院入力シート)'!E:F,2,FALSE)&\"\",\"\")","v":""},null,null,null,null,null,null,"",null,null,null,null,null,null,"　",null,"　",null,"　",null,null,null,"",null,null,null,null,null,null,null,null,"",""]
[null,{"$f":"IFERROR(VLOOKUP(AH220,'ID(当院入力シート)'!E:F,2,FALSE)&\"\",\"\")","v":""},null,null,null,null,null,null,"",null,null,null,null,null,null,"　",null,"　",null,"　",null,null,null,"",null,null,null,null,null,null,null,null,"",""]
[null,{"$f":"IFERROR(VLOOKUP(AH221,'ID(当院入力シート)'!E:F,2,FALSE)&\"\",\"\")","v":""},null,null,null,null,null,null,"",null,null,null,null,null,null,"　",null,"　",null,"　",null,null,null,"",null,null,null,null,null,null,null,null,"",""]
[null,{"$f":"IFERROR(VLOOKUP(AH222,'ID(当院入力シート)'!E:F,2,FALSE)&\"\",\"\")","v":""},null,null,null,null,null,null,"",null,null,null,null,null,null,"　",null,"　",null,"　",null,null,null,"",null,null,null,null,null,null,null,null,"",""]
[null,{"$f":"IFERROR(VLOOKUP(AH223,'ID(当院入力シート)'!E:F,2,FALSE)&\"\",\"\")","v":""},null,null,null,null,null,null,"",null,null,null,null,null,null,"　",null,"　",null,"　",null,null,null,"",null,null,null,null,null,null,null,null,"",""]
[null,{"$f":"IFERROR(VLOOKUP(AH224,'ID(当院入力シート)'!E:F,2,FALSE)&\"\",\"\")","v":""},null,null,null,null,null,null,"",null,null,null,null,null,null,"　",null,"　",null,"　",null,null,null,"",null,null,null,null,null,null,null,null,"",""]
[null,{"$f":"IFERROR(VLOOKUP(AH225,'ID(当院入力シート)'!E:F,2,FALSE)&\"\",\"\")","v":""},null,null,null,null,null,null,"",null,null,null,null,null,null,"　",null,"　",null,"　",null,null,null,"",null,null,null,null,null,null,null,null,"",""]
[null,{"$f":"IFERROR(VLOOKUP(AH226,'ID(当院入力シート)'!E:F,2,FALSE)&\"\",\"\")","v":""},null,null,null,null,null,null,"",null,null,null,null,null,null,"　",null,"　",null,"　",null,null,null,"",null,null,null,null,null,null,null,null,"",""]
[null,{"$f":"IFERROR(VLOOKUP(AH227,'ID(当院入力シート)'!E:F,2,FALSE)&\"\",\"\")","v":""},null,null,null,null,null,null,"",null,null,null,null,null,null,"　",null,"　",null,"　",null,null,null,"",null,null,null,null,null,null,null,null,"",""]
[null,{"$f":"IFERROR(VLOOKUP(AH228,'ID(当院入力シート)'!E:F,2,FALSE)&\"\",\"\")","v":""},null,null,null,null,null,null,"",null,null,null,null,null,null,"　",null,"　",null,"　",null,null,null,"",null,null,null,null,null,null,null,null,"",""]
[null,{"$f":"IFERROR(VLOOKUP(AH229,'ID(当院入力シート)'!E:F,2,FALSE)&\"\",\"\")","v":""},null,null,null,null,null,null,"",null,null,null,null,null,null,"　",null,"　",null,"　",null,null,null,"",null,null,null,null,null,null,null,null,"",""]
[null,{"$f":"IFERROR(VLOOKUP(AH230,'ID(当院入力シート)'!E:F,2,FALSE)&\"\",\"\")","v":""},null,null,null,null,null,null,"",null,null,null,null,null,null,"　",null,"　",null,"　",null,null,null,"",null,null,null,null,null,null,null,null,"",""]
[null,{"$f":"IFERROR(VLOOKUP(AH231,'ID(当院入力シート)'!E:F,2,FALSE)&\"\",\"\")","v":""},null,null,null,null,null,null,"",null,null,null,null,null,null,"　",null,"　",null,"　",null,null,null,"",null,null,null,null,null,null,null,null,"",""]
[null,{"$f":"IFERROR(VLOOKUP(AH232,'ID(当院入力シート)'!E:F,2,FALSE)&\"\",\"\")","v":""},null,null,null,null,null,null,"",null,null,null,null,null,null,"　",null,"　",null,"　",null,null,null,"",null,null,null,null,null,null,null,null,"",""]
[null,{"$f":"IFERROR(VLOOKUP(AH233,'ID(当院入力シート)'!E:F,2,FALSE)&\"\",\"\")","v":""},null,null,null,null,null,null,"",null,null,null,null,null,null,"　",null,"　",null,"　",null,null,null,"",null,null,null,null,null,null,null,null,"",""]
[null,{"$f":"IFERROR(VLOOKUP(AH234,'ID(当院入力シート)'!E:F,2,FALSE)&\"\",\"\")","v":""},null,null,null,null,null,null,"",null,null,null,null,null,null,"　",null,"　",null,"　",null,null,null,"",null,null,null,null,null,null,null,null,"",""]
[null,{"$f":"IFERROR(VLOOKUP(AH235,'ID(当院入力シート)'!E:F,2,FALSE)&\"\",\"\")","v":""},null,null,null,null,null,null,"",null,null,null,null,null,null,"　",null,"　",null,"　",null,null,null,"",null,null,null,null,null,null,null,null,"",""]
[null,{"$f":"IFERROR(VLOOKUP(AH236,'ID(当院入力シート)'!E:F,2,FALSE)&\"\",\"\")","v":""},null,null,null,null,null,null,"",null,null,null,null,null,null,"　",null,"　",null,"　",null,null,null,"",null,null,null,null,null,null,null,null,"",""]
[null,{"$f":"IFERROR(VLOOKUP(AH237,'ID(当院入力シート)'!E:F,2,FALSE)&\"\",\"\")","v":""},null,null,null,null,null,null,"",null,null,null,null,null,null,"　",null,"　",null,"　",null,null,null,"",null,null,null,null,null,null,null,null,"",""]
[null,{"$f":"IFERROR(VLOOKUP(AH238,'ID(当院入力シート)'!E:F,2,FALSE)&\"\",\"\")","v":""},null,null,null,null,null,null,"",null,null,null,null,null,null,"　",null,"　",null,"　",null,null,null,"",null,null,null,null,null,null,null,null,"",""]
[null,{"$f":"IFERROR(VLOOKUP(AH239,'ID(当院入力シート)'!E:F,2,FALSE)&\"\",\"\")","v":""},null,null,null,null,null,null,"",null,null,null,null,null,null,"　",null,"　",null,"　",null,null,null,"",null,null,null,null,null,null,null,null,"",""]
[null,{"$f":"IFERROR(VLOOKUP(AH240,'ID(当院入力シート)'!E:F,2,FALSE)&\"\",\"\")","v":""},null,null,null,null,null,null,"",null,null,null,null,null,null,"　",null,"　",null,"　",null,null,null,"",null,null,null,null,null,null,null,null,"",""]
[null,{"$f":"IFERROR(VLOOKUP(AH241,'ID(当院入力シート)'!E:F,2,FALSE)&\"\",\"\")","v":""},null,null,null,null,null,null,"",null,null,null,null,null,null,"　",null,"　",null,"　",null,null,null,"",null,null,null,null,null,null,null,null,"",""]
[null,{"$f":"IFERROR(VLOOKUP(AH242,'ID(当院入力シート)'!E:F,2,FALSE)&\"\",\"\")","v":""},null,null,null,null,null,null,"",null,null,null,null,null,null,"　",null,"　",null,"　",null,null,null,"",null,null,null,null,null,null,null,null,"",""]
[null,{"$f":"IFERROR(VLOOKUP(AH243,'ID(当院入力シート)'!E:F,2,FALSE)&\"\",\"\")","v":""},null,null,null,null,null,null,"",null,null,null,null,null,null,"　",null,"　",null,"　",null,null,null,"",null,null,null,null,null,null,null,null,"",""]
[null,{"$f":"IFERROR(VLOOKUP(AH244,'ID(当院入力シート)'!E:F,2,FALSE)&\"\",\"\")","v":""},null,null,null,null,null,null,"",null,null,null,null,null,null,"　",null,"　",null,"　",null,null,null,"",null,null,null,null,null,null,null,null,"",""]
[null,{"$f":"IFERROR(VLOOKUP(AH245,'ID(当院入力シート)'!E:F,2,FALSE)&\"\",\"\")","v":""},null,null,null,null,null,null,"",null,null,null,null,null,null,"　",null,"　",null,"　",null,null,null,"",null,null,null,null,null,null,null,null,"",""]
[null,{"$f":"IFERROR(VLOOKUP(AH246,'ID(当院入力シート)'!E:F,2,FALSE)&\"\",\"\")","v":""},null,null,null,null,null,null,"",null,null,null,null,null,null,"　",null,"　",null,"　",null,null,null,"",null,null,null,null,null,null,null,null,"",""]
[null,{"$f":"IFERROR(VLOOKUP(AH247,'ID(当院入力シート)'!E:F,2,FALSE)&\"\",\"\")","v":""},null,null,null,null,null,null,"",null,null,null,null,null,null,"　",null,"　",null,"　",null,null,null,"",null,null,null,null,null,null,null,null,"",""]
[null,{"$f":"IFERROR(VLOOKUP(AH248,'ID(当院入力シート)'!E:F,2,FALSE)&\"\",\"\")","v":""},null,null,null,null,null,null,"",null,null,null,null,null,null,"　",null,"　",null,"　",null,null,null,"",null,null,null,null,null,null,null,null,"",""]
[null,{"$f":"IFERROR(VLOOKUP(AH249,'ID(当院入力シート)'!E:F,2,FALSE)&\"\",\"\")","v":""},null,null,null,null,null,null,"",null,null,null,null,null,null,"　",null,"　",null,"　",null,null,null,"",null,null,null,null,null,null,null,null,"",""]
[null,{"$f":"IFERROR(VLOOKUP(AH250,'ID(当院入力シート)'!E:F,2,FALSE)&\"\",\"\")","v":""},null,null,null,null,null,null,"",null,null,null,null,null,null,"　",null,"　",null,"　",null,null,null,"",null,null,null,null,null,null,null,null,"",""]
[null,{"$f":"IFERROR(VLOOKUP(AH251,'ID(当院入力シート)'!E:F,2,FALSE)&\"\",\"\")","v":""},null,null,null,null,null,null,"",null,null,null,null,null,null,"　",null,"　",null,"　",null,null,null,"",null,null,null,null,null,null,null,null,"",""]
[null,{"$f":"IFERROR(VLOOKUP(AH252,'ID(当院入力シート)'!E:F,2,FALSE)&\"\",\"\")","v":""},null,null,null,null,null,null,"",null,null,null,null,null,null,"　",null,"　",null,"　",null,null,null,"",null,null,null,null,null,null,null,null,"",""]
[null,{"$f":"IFERROR(VLOOKUP(AH253,'ID(当院入力シート)'!E:F,2,FALSE)&\"\",\"\")","v":""},null,null,null,null,null,null,"",null,null,null,null,null,null,"　",null,"　",null,"　",null,null,null,"",null,null,null,null,null,null,null,null,"",""]
[null,{"$f":"IFERROR(VLOOKUP(AH254,'ID(当院入力シート)'!E:F,2,FALSE)&\"\",\"\")","v":""},null,null,null,null,null,null,"",null,null,null,null,null,null,"　",null,"　",null,"　",null,null,null,"",null,null,null,null,null,null,null,null,"",""]
[null,{"$f":"IFERROR(VLOOKUP(AH255,'ID(当院入力シート)'!E:F,2,FALSE)&\"\",\"\")","v":""},null,null,null,null,null,null,"",null,null,null,null,null,null,"　",null,"　",null,"　",null,null,null,"",null,null,null,null,null,null,null,null,"",""]
[null,{"$f":"IFERROR(VLOOKUP(AH256,'ID(当院入力シート)'!E:F,2,FALSE)&\"\",\"\")","v":""},null,null,null,null,null,null,"",null,null,null,null,null,null,"　",null,"　",null,"　",null,null,null,"",null,null,null,null,null,null,null,null,"",""]
[null,{"$f":"IFERROR(VLOOKUP(AH257,'ID(当院入力シート)'!E:F,2,FALSE)&\"\",\"\")","v":""},null,null,null,null,null,null,"",null,null,null,null,null,null,"　",null,"　",null,"　",null,null,null,{"$f":"IF(W257=\"\",\"\", \"(\" & TEXT(W257,\"aaa\") & \")\")","v":""},null,null,null,null,null,null,null,null,"",""]
[null,{"$f":"IFERROR(VLOOKUP(AH258,'ID(当院入力シート)'!E:F,2,FALSE)&\"\",\"\")","v":""},null,null,null,null,null,null,"",null,null,null,null,null,null,"　",null,"　",null,"　",null,null,null,"",null,null,null,null,null,null,null,null,"",""]
[null,{"$f":"IFERROR(VLOOKUP(AH259,'ID(当院入力シート)'!E:F,2,FALSE)&\"\",\"\")","v":""},null,null,null,null,null,null,"",null,null,null,null,null,null,"　",null,"　",null,"　",null,null,null,"",null,null,null,null,null,null,null,null,"",""]
[null,{"$f":"IFERROR(VLOOKUP(AH260,'ID(当院入力シート)'!E:F,2,FALSE)&\"\",\"\")","v":""},null,null,null,null,null,null,"",null,null,null,null,null,null,"　",null,"　",null,"　",null,null,null,"",null,null,null,null,null,null,null,null,"",""]
[null,{"$f":"IFERROR(VLOOKUP(AH261,'ID(当院入力シート)'!E:F,2,FALSE)&\"\",\"\")","v":""},null,null,null,null,null,null,"",null,null,null,null,null,null,"　",null,"　",null,"　",null,null,null,"",null,null,null,null,null,null,null,null,"",""]
[null,{"$f":"IFERROR(VLOOKUP(AH262,'ID(当院入力シート)'!E:F,2,FALSE)&\"\",\"\")","v":""},null,null,null,null,null,null,"",null,null,null,null,null,null,"　",null,"　",null,"　",null,null,null,"",null,null,null,null,null,null,null,null,"",""]
[null,{"$f":"IFERROR(VLOOKUP(AH263,'ID(当院入力シート)'!E:F,2,FALSE)&\"\",\"\")","v":""},null,null,null,null,null,null,"",null,null,null,null,null,null,"　",null,"　",null,"　",null,null,null,"",null,null,null,null,null,null,null,null,"",""]
[null,{"$f":"IFERROR(VLOOKUP(AH264,'ID(当院入力シート)'!E:F,2,FALSE)&\"\",\"\")","v":""},null,null,null,null,null,null,"",null,null,null,null,null,null,"　",null,"　",null,"　",null,null,null,"",null,null,null,null,null,null,null,null,"",""]
[null,{"$f":"IFERROR(VLOOKUP(AH265,'ID(当院入力シート)'!E:F,2,FALSE)&\"\",\"\")","v":""},null,null,null,null,null,null,"",null,null,null,null,null,null,"　",null,"　",null,"　",null,null,null,"",null,null,null,null,null,null,null,null,"",""]
[null,{"$f":"IFERROR(VLOOKUP(AH266,'ID(当院入力シート)'!E:F,2,FALSE)&\"\",\"\")","v":""},null,null,null,null,null,null,"",null,null,null,null,null,null,"　",null,"　",null,"　",null,null,null,"",null,null,null,null,null,null,null,null,"",""]
[null,{"$f":"IFERROR(VLOOKUP(AH267,'ID(当院入力シート)'!E:F,2,FALSE)&\"\",\"\")","v":""},null,null,null,null,null,null,"",null,null,null,null,null,null,"　",null,"　",null,"　",null,null,null,"",null,null,null,null,null,null,null,null,"",""]
[null,{"$f":"IFERROR(VLOOKUP(AH268,'ID(当院入力シート)'!E:F,2,FALSE)&\"\",\"\")","v":""},null,null,null,null,null,null,"",null,null,null,null,null,null,"　",null,"　",null,"　",null,null,null,"",null,null,null,null,null,null,null,null,"",""]
[null,{"$f":"IFERROR(VLOOKUP(AH269,'ID(当院入力シート)'!E:F,2,FALSE)&\"\",\"\")","v":""},null,null,null,null,null,null,"",null,null,null,null,null,null,"　",null,"　",null,"　",null,null,null,"",null,null,null,null,null,null,null,null,"",""]
[null,{"$f":"IFERROR(VLOOKUP(AH270,'ID(当院入力シート)'!E:F,2,FALSE)&\"\",\"\")","v":""},null,null,null,null,null,null,"",null,null,null,null,null,null,"　",null,"　",null,"　",null,null,null,"",null,null,null,null,null,null,null,null,"",""]
[null,{"$f":"IFERROR(VLOOKUP(AH271,'ID(当院入力シート)'!E:F,2,FALSE)&\"\",\"\")","v":""},null,null,null,null,null,null,"",null,null,null,null,null,null,"　",null,"　",null,"　",null,null,null,"",null,null,null,null,null,null,null,null,"",""]
[null,{"$f":"IFERROR(VLOOKUP(AH272,'ID(当院入力シート)'!E:F,2,FALSE)&\"\",\"\")","v":""},null,null,null,null,null,null,{"$f":"IF(OR(H272=\"\", $I$8=\"\"), \"\", DATEDIF(H272,$I$8,\"y\"))","v":""},null,null,null,null,null,null,"　",null,"　",null,"　",null,null,null,"",null,null,null,null,null,null,null,null,{"$f":"SUBSTITUTE(SUBSTITUTE(E272,\"　\",\"\"),\" \",\"\")","v":""},{"$f":"AG272&H272","v":""}]
[null,{"$f":"IFERROR(VLOOKUP(AH273,'ID(当院入力シート)'!E:F,2,FALSE)&\"\",\"\")","v":""},null,null,null,null,null,null,"",null,null,null,null,null,null,"　",null,"　",null,"　",null,null,null,"",null,null,null,null,null,null,null,null,"",""]
[null,{"$f":"IFERROR(VLOOKUP(AH274,'ID(当院入力シート)'!E:F,2,FALSE)&\"\",\"\")","v":""},null,null,null,null,null,null,"",null,null,null,null,null,null,"　",null,"　",null,"　",null,null,null,"",null,null,null,null,null,null,null,null,"",""]
[null,{"$f":"IFERROR(VLOOKUP(AH275,'ID(当院入力シート)'!E:F,2,FALSE)&\"\",\"\")","v":""},null,null,null,null,null,null,"",null,null,null,null,null,null,"　",null,"　",null,"　",null,null,null,"",null,null,null,null,null,null,null,null,"",""]
[null,{"$f":"IFERROR(VLOOKUP(AH276,'ID(当院入力シート)'!E:F,2,FALSE)&\"\",\"\")","v":""},null,null,null,null,null,null,"",null,null,null,null,null,null,"　",null,"　",null,"　",null,null,null,"",null,null,null,null,null,null,null,null,"",""]
[null,{"$f":"IFERROR(VLOOKUP(AH277,'ID(当院入力シート)'!E:F,2,FALSE)&\"\",\"\")","v":""},null,null,null,null,null,null,"",null,null,null,null,null,null,"　",null,"　",null,"　",null,null,null,"",null,null,null,null,null,null,null,null,"",""]
[null,{"$f":"IFERROR(VLOOKUP(AH278,'ID(当院入力シート)'!E:F,2,FALSE)&\"\",\"\")","v":""},null,null,null,null,null,null,"",null,null,null,null,null,null,"　",null,"　",null,"　",null,null,null,"",null,null,null,null,null,null,null,null,"",""]
[null,{"$f":"IFERROR(VLOOKUP(AH279,'ID(当院入力シート)'!E:F,2,FALSE)&\"\",\"\")","v":""},null,null,null,null,null,null,"",null,null,null,null,null,null,"　",null,"　",null,"　",null,null,null,"",null,null,null,null,null,null,null,null,"",""]
[null,{"$f":"IFERROR(VLOOKUP(AH280,'ID(当院入力シート)'!E:F,2,FALSE)&\"\",\"\")","v":""},null,null,null,null,null,null,"",null,null,null,null,null,null,"　",null,"　",null,"　",null,null,null,"",null,null,null,null,null,null,null,null,"",""]
[null,{"$f":"IFERROR(VLOOKUP(AH281,'ID(当院入力シート)'!E:F,2,FALSE)&\"\",\"\")","v":""},null,null,null,null,null,null,"",null,null,null,null,null,null,"　",null,"　",null,"　",null,null,null,"",null,null,null,null,null,null,null,null,"",""]
[null,{"$f":"IFERROR(VLOOKUP(AH282,'ID(当院入力シート)'!E:F,2,FALSE)&\"\",\"\")","v":""},null,null,null,null,null,null,"",null,null,null,null,null,null,"　",null,"　",null,"　",null,null,null,"",null,null,null,null,null,null,null,null,"",""]
[null,{"$f":"IFERROR(VLOOKUP(AH283,'ID(当院入力シート)'!E:F,2,FALSE)&\"\",\"\")","v":""},null,null,null,null,null,null,"",null,null,null,null,null,null,"　",null,"　",null,"　",null,null,null,"",null,null,null,null,null,null,null,null,"",""]
[null,{"$f":"IFERROR(VLOOKUP(AH284,'ID(当院入力シート)'!E:F,2,FALSE)&\"\",\"\")","v":""},null,null,null,null,null,null,"",null,null,null,null,null,null,"　",null,"　",null,"　",null,null,null,"",null,null,null,null,null,null,null,null,"",""]
[null,{"$f":"IFERROR(VLOOKUP(AH285,'ID(当院入力シート)'!E:F,2,FALSE)&\"\",\"\")","v":""},null,null,null,null,null,null,"",null,null,null,null,null,null,"　",null,"　",null,"　",null,null,null,"",null,null,null,null,null,null,null,null,"",""]
[null,{"$f":"IFERROR(VLOOKUP(AH286,'ID(当院入力シート)'!E:F,2,FALSE)&\"\",\"\")","v":""},null,null,null,null,null,null,"",null,null,null,null,null,null,"　",null,"　",null,"　",null,null,null,"",null,null,null,null,null,null,null,null,"",""]
[null,{"$f":"IFERROR(VLOOKUP(AH287,'ID(当院入力シート)'!E:F,2,FALSE)&\"\",\"\")","v":""},null,null,null,null,null,null,"",null,null,null,null,null,null,"　",null,"　",null,"　",null,null,null,"",null,null,null,null,null,null,null,null,"",""]
[null,{"$f":"IFERROR(VLOOKUP(AH288,'ID(当院入力シート)'!E:F,2,FALSE)&\"\",\"\")","v":""},null,null,null,null,null,null,"",null,null,null,null,null,null,"　",null,"　",null,"　",null,null,null,"",null,null,null,null,null,null,null,null,"",""]
[null,{"$f":"IFERROR(VLOOKUP(AH289,'ID(当院入力シート)'!E:F,2,FALSE)&\"\",\"\")","v":""},null,null,null,null,null,null,"",null,null,null,null,null,null,"　",null,"　",null,"　",null,null,null,"",null,null,null,null,null,null,null,null,"",""]
[null,{"$f":"IFERROR(VLOOKUP(AH290,'ID(当院入力シート)'!E:F,2,FALSE)&\"\",\"\")","v":""},null,null,null,null,null,null,"",null,null,null,null,null,null,"　",null,"　",null,"　",null,null,null,"",null,null,null,null,null,null,null,null,"",""]
[null,{"$f":"IFERROR(VLOOKUP(AH291,'ID(当院入力シート)'!E:F,2,FALSE)&\"\",\"\")","v":""},null,null,null,null,null,null,"",null,null,null,null,null,null,"　",null,"　",null,"　",null,null,null,"",null,null,null,null,null,null,null,null,"",""]
[null,{"$f":"IFERROR(VLOOKUP(AH292,'ID(当院入力シート)'!E:F,2,FALSE)&\"\",\"\")","v":""},null,null,null,null,null,null,"",null,null,null,null,null,null,"　",null,"　",null,"　",null,null,null,"",null,null,null,null,null,null,null,null,"",""]
[null,{"$f":"IFERROR(VLOOKUP(AH293,'ID(当院入力シート)'!E:F,2,FALSE)&\"\",\"\")","v":""},null,null,null,null,null,null,"",null,null,null,null,null,null,"　",null,"　",null,"　",null,null,null,"",null,null,null,null,null,null,null,null,"",""]
[null,{"$f":"IFERROR(VLOOKUP(AH294,'ID(当院入力シート)'!E:F,2,FALSE)&\"\",\"\")","v":""},null,null,null,null,null,null,"",null,null,null,null,null,null,"　",null,"　",null,"　",null,null,null,"",null,null,null,null,null,null,null,null,"",""]
[null,{"$f":"IFERROR(VLOOKUP(AH295,'ID(当院入力シート)'!E:F,2,FALSE)&\"\",\"\")","v":""},null,null,null,null,null,null,"",null,null,null,null,null,null,"　",null,"　",null,"　",null,null,null,"",null,null,null,null,null,null,null,null,"",""]
[null,{"$f":"IFERROR(VLOOKUP(AH296,'ID(当院入力シート)'!E:F,2,FALSE)&\"\",\"\")","v":""},null,null,null,null,null,null,"",null,null,null,null,null,null,"　",null,"　",null,"　",null,null,null,"",null,null,null,null,null,null,null,null,"",""]
[null,{"$f":"IFERROR(VLOOKUP(AH297,'ID(当院入力シート)'!E:F,2,FALSE)&\"\",\"\")","v":""},null,null,null,null,null,null,"",null,null,null,null,null,null,"　",null,"　",null,"　",null,null,null,"",null,null,null,null,null,null,null,null,"",""]
[null,{"$f":"IFERROR(VLOOKUP(AH298,'ID(当院入力シート)'!E:F,2,FALSE)&\"\",\"\")","v":""},null,null,null,null,null,null,"",null,null,null,null,null,null,"　",null,"　",null,"　",null,null,null,"",null,null,null,null,null,null,null,null,"",""]
[null,{"$f":"IFERROR(VLOOKUP(AH299,'ID(当院入力シート)'!E:F,2,FALSE)&\"\",\"\")","v":""},null,null,null,null,null,null,"",null,null,null,null,null,null,"　",null,"　",null,"　",null,null,null,"",null,null,null,null,null,null,null,null,"",""]
[null,{"$f":"IFERROR(VLOOKUP(AH300,'ID(当院入力シート)'!E:F,2,FALSE)&\"\",\"\")","v":""},null,null,null,null,null,null,"",null,null,null,null,null,null,"　",null,"　",null,"　",null,null,null,"",null,null,null,null,null,null,null,null,"",""]
[null,{"$f":"IFERROR(VLOOKUP(AH301,'ID(当院入力シート)'!E:F,2,FALSE)&\"\",\"\")","v":""},null,null,null,null,null,null,"",null,null,null,null,null,null,"　",null,"　",null,"　",null,null,null,"",null,null,null,null,null,null,null,null,"",""]
[null,{"$f":"IFERROR(VLOOKUP(AH302,'ID(当院入力シート)'!E:F,2,FALSE)&\"\",\"\")","v":""},null,null,null,null,null,null,"",null,null,null,null,null,null,"　",null,"　",null,"　",null,null,null,"",null,null,null,null,null,null,null,null,"",""]
[null,{"$f":"IFERROR(VLOOKUP(AH303,'ID(当院入力シート)'!E:F,2,FALSE)&\"\",\"\")","v":""},null,null,null,null,null,null,"",null,null,null,null,null,null,"　",null,"　",null,"　",null,null,null,"",null,null,null,null,null,null,null,null,"",""]
[null,{"$f":"IFERROR(VLOOKUP(AH304,'ID(当院入力シート)'!E:F,2,FALSE)&\"\",\"\")","v":""},null,null,null,null,null,null,"",null,null,null,null,null,null,"　",null,"　",null,"　",null,null,null,"",null,null,null,null,null,null,null,null,"",""]
[null,{"$f":"IFERROR(VLOOKUP(AH305,'ID(当院入力シート)'!E:F,2,FALSE)&\"\",\"\")","v":""},null,null,null,null,null,null,"",null,null,null,null,null,null,"　",null,"　",null,"　",null,null,null,"",null,null,null,null,null,null,null,null,"",""]
[null,{"$f":"IFERROR(VLOOKUP(AH306,'ID(当院入力シート)'!E:F,2,FALSE)&\"\",\"\")","v":""},null,null,null,null,null,null,"",null,null,null,null,null,null,"　",null,"　",null,"　",null,null,null,"",null,null,null,null,null,null,null,null,"",""]
[null,{"$f":"IFERROR(VLOOKUP(AH307,'ID(当院入力シート)'!E:F,2,FALSE)&\"\",\"\")","v":""},null,null,null,null,null,null,"",null,null,null,null,null,null,"　",null,"　",null,"　",null,null,null,"",null,null,null,null,null,null,null,null,"",""]
[null,{"$f":"IFERROR(VLOOKUP(AH308,'ID(当院入力シート)'!E:F,2,FALSE)&\"\",\"\")","v":""},null,null,null,null,null,null,"",null,null,null,null,null,null,"　",null,"　",null,"　",null,null,null,"",null,null,null,null,null,null,null,null,"",""]
[null,{"$f":"IFERROR(VLOOKUP(AH309,'ID(当院入力シート)'!E:F,2,FALSE)&\"\",\"\")","v":""},null,null,null,null,null,null,"",null,null,null,null,null,null,"　",null,"　",null,"　",null,null,null,"",null,null,null,null,null,null,null,null,"",""]
[null,{"$f":"IFERROR(VLOOKUP(AH310,'ID(当院入力シート)'!E:F,2,FALSE)&\"\",\"\")","v":""},null,null,null,null,null,null,"",null,null,null,null,null,null,"　",null,"　",null,"　",null,null,null,"",null,null,null,null,null,null,null,null,"",""]
[null,{"$f":"IFERROR(VLOOKUP(AH311,'ID(当院入力シート)'!E:F,2,FALSE)&\"\",\"\")","v":""},null,null,null,null,null,null,"",null,null,null,null,null,null,"　",null,"　",null,"　",null,null,null,"",null,null,null,null,null,null,null,null,"",""]
[null,{"$f":"IFERROR(VLOOKUP(AH312,'ID(当院入力シート)'!E:F,2,FALSE)&\"\",\"\")","v":""},null,null,null,null,null,null,"",null,null,null,null,null,null,"　",null,"　",null,"　",null,null,null,"",null,null,null,null,null,null,null,null,"",""]
[null,{"$f":"IFERROR(VLOOKUP(AH313,'ID(当院入力シート)'!E:F,2,FALSE)&\"\",\"\")","v":""},null,null,null,null,null,null,"",null,null,null,null,null,null,"　",null,"　",null,"　",null,null,null,"",null,null,null,null,null,null,null,null,"",""]
[null,{"$f":"IFERROR(VLOOKUP(AH314,'ID(当院入力シート)'!E:F,2,FALSE)&\"\",\"\")","v":""},null,null,null,null,null,null,"",null,null,null,null,null,null,"　",null,"　",null,"　",null,null,null,"",null,null,null,null,null,null,null,null,"",""]
[null,{"$f":"IFERROR(VLOOKUP(AH315,'ID(当院入力シート)'!E:F,2,FALSE)&\"\",\"\")","v":""},null,null,null,null,null,null,"",null,null,null,null,null,null,"　",null,"　",null,"　",null,null,null,"",null,null,null,null,null,null,null,null,"",""]
[null,{"$f":"IFERROR(VLOOKUP(AH316,'ID(当院入力シート)'!E:F,2,FALSE)&\"\",\"\")","v":""},null,null,null,null,null,null,"",null,null,null,null,null,null,"　",null,"　",null,"　",null,null,null,"",null,null,null,null,null,null,null,null,"",""]
[null,{"$f":"IFERROR(VLOOKUP(AH317,'ID(当院入力シート)'!E:F,2,FALSE)&\"\",\"\")","v":""},null,null,null,null,null,null,"",null,null,null,null,null,null,"　",null,"　",null,"　",null,null,null,"",null,null,null,null,null,null,null,null,"",""]
[null,{"$f":"IFERROR(VLOOKUP(AH318,'ID(当院入力シート)'!E:F,2,FALSE)&\"\",\"\")","v":""},null,null,null,null,null,null,"",null,null,null,null,null,null,"　",null,"　",null,"　",null,null,null,"",null,null,null,null,null,null,null,null,"",""]
[null,{"$f":"IFERROR(VLOOKUP(AH319,'ID(当院入力シート)'!E:F,2,FALSE)&\"\",\"\")","v":""},null,null,null,null,null,null,"",null,null,null,null,null,null,"　",null,"　",null,"　",null,null,null,"",null,null,null,null,null,null,null,null,"",""]
[null,{"$f":"IFERROR(VLOOKUP(AH320,'ID(当院入力シート)'!E:F,2,FALSE)&\"\",\"\")","v":""},null,null,null,null,null,null,"",null,null,null,null,null,null,"　",null,"　",null,"　",null,null,null,"",null,null,null,null,null,null,null,null,"",""]
[null,{"$f":"IFERROR(VLOOKUP(AH321,'ID(当院入力シート)'!E:F,2,FALSE)&\"\",\"\")","v":""},null,null,null,null,null,null,"",null,null,null,null,null,null,"　",null,"　",null,"　",null,null,null,{"$f":"IF(W321=\"\",\"\", \"(\" & TEXT(W321,\"aaa\") & \")\")","v":""},null,null,null,null,null,null,null,null,"",""]
[null,{"$f":"IFERROR(VLOOKUP(AH322,'ID(当院入力シート)'!E:F,2,FALSE)&\"\",\"\")","v":""},null,null,null,null,null,null,"",null,null,null,null,null,null,"　",null,"　",null,"　",null,null,null,"",null,null,null,null,null,null,null,null,"",""]
[null,{"$f":"IFERROR(VLOOKUP(AH323,'ID(当院入力シート)'!E:F,2,FALSE)&\"\",\"\")","v":""},null,null,null,null,null,null,"",null,null,null,null,null,null,"　",null,"　",null,"　",null,null,null,"",null,null,null,null,null,null,null,null,"",""]
[null,{"$f":"IFERROR(VLOOKUP(AH324,'ID(当院入力シート)'!E:F,2,FALSE)&\"\",\"\")","v":""},null,null,null,null,null,null,"",null,null,null,null,null,null,"　",null,"　",null,"　",null,null,null,"",null,null,null,null,null,null,null,null,"",""]
[null,{"$f":"IFERROR(VLOOKUP(AH325,'ID(当院入力シート)'!E:F,2,FALSE)&\"\",\"\")","v":""},null,null,null,null,null,null,"",null,null,null,null,null,null,"　",null,"　",null,"　",null,null,null,"",null,null,null,null,null,null,null,null,"",""]
[null,{"$f":"IFERROR(VLOOKUP(AH326,'ID(当院入力シート)'!E:F,2,FALSE)&\"\",\"\")","v":""},null,null,null,null,null,null,"",null,null,null,null,null,null,"　",null,"　",null,"　",null,null,null,"",null,null,null,null,null,null,null,null,"",""]
[null,{"$f":"IFERROR(VLOOKUP(AH327,'ID(当院入力シート)'!E:F,2,FALSE)&\"\",\"\")","v":""},null,null,null,null,null,null,"",null,null,null,null,null,null,"　",null,"　",null,"　",null,null,null,"",null,null,null,null,null,null,null,null,"",""]
[null,{"$f":"IFERROR(VLOOKUP(AH328,'ID(当院入力シート)'!E:F,2,FALSE)&\"\",\"\")","v":""},null,null,null,null,null,null,"",null,null,null,null,null,null,"　",null,"　",null,"　",null,null,null,"",null,null,null,null,null,null,null,null,"",""]
[null,{"$f":"IFERROR(VLOOKUP(AH329,'ID(当院入力シート)'!E:F,2,FALSE)&\"\",\"\")","v":""},null,null,null,null,null,null,"",null,null,null,null,null,null,"　",null,"　",null,"　",null,null,null,"",null,null,null,null,null,null,null,null,"",""]
[null,{"$f":"IFERROR(VLOOKUP(AH330,'ID(当院入力シート)'!E:F,2,FALSE)&\"\",\"\")","v":""},null,null,null,null,null,null,"",null,null,null,null,null,null,"　",null,"　",null,"　",null,null,null,"",null,null,null,null,null,null,null,null,"",""]
[null,{"$f":"IFERROR(VLOOKUP(AH331,'ID(当院入力シート)'!E:F,2,FALSE)&\"\",\"\")","v":""},null,null,null,null,null,null,"",null,null,null,null,null,null,"　",null,"　",null,"　",null,null,null,"",null,null,null,null,null,null,null,null,"",""]
[null,{"$f":"IFERROR(VLOOKUP(AH332,'ID(当院入力シート)'!E:F,2,FALSE)&\"\",\"\")","v":""},null,null,null,null,null,null,"",null,null,null,null,null,null,"　",null,"　",null,"　",null,null,null,"",null,null,null,null,null,null,null,null,"",""]
[null,{"$f":"IFERROR(VLOOKUP(AH333,'ID(当院入力シート)'!E:F,2,FALSE)&\"\",\"\")","v":""},null,null,null,null,null,null,"",null,null,null,null,null,null,"　",null,"　",null,"　",null,null,null,"",null,null,null,null,null,null,null,null,"",""]
[null,{"$f":"IFERROR(VLOOKUP(AH334,'ID(当院入力シート)'!E:F,2,FALSE)&\"\",\"\")","v":""},null,null,null,null,null,null,"",null,null,null,null,null,null,"　",null,"　",null,"　",null,null,null,"",null,null,null,null,null,null,null,null,"",""]
[null,{"$f":"IFERROR(VLOOKUP(AH335,'ID(当院入力シート)'!E:F,2,FALSE)&\"\",\"\")","v":""},null,null,null,null,null,null,"",null,null,null,null,null,null,"　",null,"　",null,"　",null,null,null,"",null,null,null,null,null,null,null,null,"",""]
[null,{"$f":"IFERROR(VLOOKUP(AH336,'ID(当院入力シート)'!E:F,2,FALSE)&\"\",\"\")","v":""},null,null,null,null,null,null,{"$f":"IF(OR(H336=\"\", $I$8=\"\"), \"\", DATEDIF(H336,$I$8,\"y\"))","v":""},null,null,null,null,null,null,"　",null,"　",null,"　",null,null,null,"",null,null,null,null,null,null,null,null,{"$f":"SUBSTITUTE(SUBSTITUTE(E336,\"　\",\"\"),\" \",\"\")","v":""},{"$f":"AG336&H336","v":""}]
[null,{"$f":"IFERROR(VLOOKUP(AH337,'ID(当院入力シート)'!E:F,2,FALSE)&\"\",\"\")","v":""},null,null,null,null,null,null,"",null,null,null,null,null,null,"　",null,"　",null,"　",null,null,null,"",null,null,null,null,null,null,null,null,"",""]
[null,{"$f":"IFERROR(VLOOKUP(AH338,'ID(当院入力シート)'!E:F,2,FALSE)&\"\",\"\")","v":""},null,null,null,null,null,null,"",null,null,null,null,null,null,"　",null,"　",null,"　",null,null,null,"",null,null,null,null,null,null,null,null,"",""]
[null,{"$f":"IFERROR(VLOOKUP(AH339,'ID(当院入力シート)'!E:F,2,FALSE)&\"\",\"\")","v":""},null,null,null,null,null,null,"",null,null,null,null,null,null,"　",null,"　",null,"　",null,null,null,"",null,null,null,null,null,null,null,null,"",""]
[null,{"$f":"IFERROR(VLOOKUP(AH340,'ID(当院入力シート)'!E:F,2,FALSE)&\"\",\"\")","v":""},null,null,null,null,null,null,"",null,null,null,null,null,null,"　",null,"　",null,"　",null,null,null,"",null,null,null,null,null,null,null,null,"",""]
[null,{"$f":"IFERROR(VLOOKUP(AH341,'ID(当院入力シート)'!E:F,2,FALSE)&\"\",\"\")","v":""},null,null,null,null,null,null,"",null,null,null,null,null,null,"　",null,"　",null,"　",null,null,null,"",null,null,null,null,null,null,null,null,"",""]
[null,{"$f":"IFERROR(VLOOKUP(AH342,'ID(当院入力シート)'!E:F,2,FALSE)&\"\",\"\")","v":""},null,null,null,null,null,null,"",null,null,null,null,null,null,"　",null,"　",null,"　",null,null,null,"",null,null,null,null,null,null,null,null,"",""]
[null,{"$f":"IFERROR(VLOOKUP(AH343,'ID(当院入力シート)'!E:F,2,FALSE)&\"\",\"\")","v":""},null,null,null,null,null,null,"",null,null,null,null,null,null,"　",null,"　",null,"　",null,null,null,"",null,null,null,null,null,null,null,null,"",""]
[null,{"$f":"IFERROR(VLOOKUP(AH344,'ID(当院入力シート)'!E:F,2,FALSE)&\"\",\"\")","v":""},null,null,null,null,null,null,"",null,null,null,null,null,null,"　",null,"　",null,"　",null,null,null,"",null,null,null,null,null,null,null,null,"",""]
[null,{"$f":"IFERROR(VLOOKUP(AH345,'ID(当院入力シート)'!E:F,2,FALSE)&\"\",\"\")","v":""},null,null,null,null,null,null,"",null,null,null,null,null,null,"　",null,"　",null,"　",null,null,null,"",null,null,null,null,null,null,null,null,"",""]
[null,{"$f":"IFERROR(VLOOKUP(AH346,'ID(当院入力シート)'!E:F,2,FALSE)&\"\",\"\")","v":""},null,null,null,null,null,null,"",null,null,null,null,null,null,"　",null,"　",null,"　",null,null,null,"",null,null,null,null,null,null,null,null,"",""]
[null,{"$f":"IFERROR(VLOOKUP(AH347,'ID(当院入力シート)'!E:F,2,FALSE)&\"\",\"\")","v":""},null,null,null,null,null,null,"",null,null,null,null,null,null,"　",null,"　",null,"　",null,null,null,"",null,null,null,null,null,null,null,null,"",""]
[null,{"$f":"IFERROR(VLOOKUP(AH348,'ID(当院入力シート)'!E:F,2,FALSE)&\"\",\"\")","v":""},null,null,null,null,null,null,"",null,null,null,null,null,null,"　",null,"　",null,"　",null,null,null,"",null,null,null,null,null,null,null,null,"",""]
[null,{"$f":"IFERROR(VLOOKUP(AH349,'ID(当院入力シート)'!E:F,2,FALSE)&\"\",\"\")","v":""},null,null,null,null,null,null,"",null,null,null,null,null,null,"　",null,"　",null,"　",null,null,null,"",null,null,null,null,null,null,null,null,"",""]
[null,{"$f":"IFERROR(VLOOKUP(AH350,'ID(当院入力シート)'!E:F,2,FALSE)&\"\",\"\")","v":""},null,null,null,null,null,null,"",null,null,null,null,null,null,"　",null,"　",null,"　",null,null,null,"",null,null,null,null,null,null,null,null,"",""]
[null,{"$f":"IFERROR(VLOOKUP(AH351,'ID(当院入力シート)'!E:F,2,FALSE)&\"\",\"\")","v":""},null,null,null,null,null,null,"",null,null,null,null,null,null,"　",null,"　",null,"　",null,null,null,"",null,null,null,null,null,null,null,null,"",""]
[null,{"$f":"IFERROR(VLOOKUP(AH352,'ID(当院入力シート)'!E:F,2,FALSE)&\"\",\"\")","v":""},null,null,null,null,null,null,"",null,null,null,null,null,null,"　",null,"　",null,"　",null,null,null,"",null,null,null,null,null,null,null,null,"",""]
[null,{"$f":"IFERROR(VLOOKUP(AH353,'ID(当院入力シート)'!E:F,2,FALSE)&\"\",\"\")","v":""},null,null,null,null,null,null,"",null,null,null,null,null,null,"　",null,"　",null,"　",null,null,null,"",null,null,null,null,null,null,null,null,"",""]
[null,{"$f":"IFERROR(VLOOKUP(AH354,'ID(当院入力シート)'!E:F,2,FALSE)&\"\",\"\")","v":""},null,null,null,null,null,null,"",null,null,null,null,null,null,"　",null,"　",null,"　",null,null,null,"",null,null,null,null,null,null,null,null,"",""]
[null,{"$f":"IFERROR(VLOOKUP(AH355,'ID(当院入力シート)'!E:F,2,FALSE)&\"\",\"\")","v":""},null,null,null,null,null,null,"",null,null,null,null,null,null,"　",null,"　",null,"　",null,null,null,"",null,null,null,null,null,null,null,null,"",""]
[null,{"$f":"IFERROR(VLOOKUP(AH356,'ID(当院入力シート)'!E:F,2,FALSE)&\"\",\"\")","v":""},null,null,null,null,null,null,"",null,null,null,null,null,null,"　",null,"　",null,"　",null,null,null,"",null,null,null,null,null,null,null,null,"",""]
[null,{"$f":"IFERROR(VLOOKUP(AH357,'ID(当院入力シート)'!E:F,2,FALSE)&\"\",\"\")","v":""},null,null,null,null,null,null,"",null,null,null,null,null,null,"　",null,"　",null,"　",null,null,null,"",null,null,null,null,null,null,null,null,"",""]
[null,{"$f":"IFERROR(VLOOKUP(AH358,'ID(当院入力シート)'!E:F,2,FALSE)&\"\",\"\")","v":""},null,null,null,null,null,null,"",null,null,null,null,null,null,"　",null,"　",null,"　",null,null,null,"",null,null,null,null,null,null,null,null,"",""]
[null,{"$f":"IFERROR(VLOOKUP(AH359,'ID(当院入力シート)'!E:F,2,FALSE)&\"\",\"\")","v":""},null,null,null,null,null,null,"",null,null,null,null,null,null,"　",null,"　",null,"　",null,null,null,"",null,null,null,null,null,null,null,null,"",""]
[null,{"$f":"IFERROR(VLOOKUP(AH360,'ID(当院入力シート)'!E:F,2,FALSE)&\"\",\"\")","v":""},null,null,null,null,null,null,"",null,null,null,null,null,null,"　",null,"　",null,"　",null,null,null,"",null,null,null,null,null,null,null,null,"",""]
[null,{"$f":"IFERROR(VLOOKUP(AH361,'ID(当院入力シート)'!E:F,2,FALSE)&\"\",\"\")","v":""},null,null,null,null,null,null,"",null,null,null,null,null,null,"　",null,"　",null,"　",null,null,null,"",null,null,null,null,null,null,null,null,"",""]
[null,{"$f":"IFERROR(VLOOKUP(AH362,'ID(当院入力シート)'!E:F,2,FALSE)&\"\",\"\")","v":""},null,null,null,null,null,null,"",null,null,null,null,null,null,"　",null,"　",null,"　",null,null,null,"",null,null,null,null,null,null,null,null,"",""]
[null,{"$f":"IFERROR(VLOOKUP(AH363,'ID(当院入力シート)'!E:F,2,FALSE)&\"\",\"\")","v":""},null,null,null,null,null,null,"",null,null,null,null,null,null,"　",null,"　",null,"　",null,null,null,"",null,null,null,null,null,null,null,null,"",""]
[null,{"$f":"IFERROR(VLOOKUP(AH364,'ID(当院入力シート)'!E:F,2,FALSE)&\"\",\"\")","v":""},null,null,null,null,null,null,"",null,null,null,null,null,null,"　",null,"　",null,"　",null,null,null,"",null,null,null,null,null,null,null,null,"",""]
[null,{"$f":"IFERROR(VLOOKUP(AH365,'ID(当院入力シート)'!E:F,2,FALSE)&\"\",\"\")","v":""},null,null,null,null,null,null,"",null,null,null,null,null,null,"　",null,"　",null,"　",null,null,null,"",null,null,null,null,null,null,null,null,"",""]
[null,{"$f":"IFERROR(VLOOKUP(AH366,'ID(当院入力シート)'!E:F,2,FALSE)&\"\",\"\")","v":""},null,null,null,null,null,null,"",null,null,null,null,null,null,"　",null,"　",null,"　",null,null,null,"",null,null,null,null,null,null,null,null,"",""]
[null,{"$f":"IFERROR(VLOOKUP(AH367,'ID(当院入力シート)'!E:F,2,FALSE)&\"\",\"\")","v":""},null,null,null,null,null,null,"",null,null,null,null,null,null,"　",null,"　",null,"　",null,null,null,"",null,null,null,null,null,null,null,null,"",""]
[null,{"$f":"IFERROR(VLOOKUP(AH368,'ID(当院入力シート)'!E:F,2,FALSE)&\"\",\"\")","v":""},null,null,null,null,null,null,"",null,null,null,null,null,null,"　",null,"　",null,"　",null,null,null,"",null,null,null,null,null,null,null,null,"",""]
[null,{"$f":"IFERROR(VLOOKUP(AH369,'ID(当院入力シート)'!E:F,2,FALSE)&\"\",\"\")","v":""},null,null,null,null,null,null,"",null,null,null,null,null,null,"　",null,"　",null,"　",null,null,null,"",null,null,null,null,null,null,null,null,"",""]
[null,{"$f":"IFERROR(VLOOKUP(AH370,'ID(当院入力シート)'!E:F,2,FALSE)&\"\",\"\")","v":""},null,null,null,null,null,null,"",null,null,null,null,null,null,"　",null,"　",null,"　",null,null,null,"",null,null,null,null,null,null,null,null,"",""]
[null,{"$f":"IFERROR(VLOOKUP(AH371,'ID(当院入力シート)'!E:F,2,FALSE)&\"\",\"\")","v":""},null,null,null,null,null,null,"",null,null,null,null,null,null,"　",null,"　",null,"　",null,null,null,"",null,null,null,null,null,null,null,null,"",""]
[null,{"$f":"IFERROR(VLOOKUP(AH372,'ID(当院入力シート)'!E:F,2,FALSE)&\"\",\"\")","v":""},null,null,null,null,null,null,"",null,null,null,null,null,null,"　",null,"　",null,"　",null,null,null,"",null,null,null,null,null,null,null,null,"",""]
[null,{"$f":"IFERROR(VLOOKUP(AH373,'ID(当院入力シート)'!E:F,2,FALSE)&\"\",\"\")","v":""},null,null,null,null,null,null,"",null,null,null,null,null,null,"　",null,"　",null,"　",null,null,null,"",null,null,null,null,null,null,null,null,"",""]
[null,{"$f":"IFERROR(VLOOKUP(AH374,'ID(当院入力シート)'!E:F,2,FALSE)&\"\",\"\")","v":""},null,null,null,null,null,null,"",null,null,null,null,null,null,"　",null,"　",null,"　",null,null,null,"",null,null,null,null,null,null,null,null,"",""]
[null,{"$f":"IFERROR(VLOOKUP(AH375,'ID(当院入力シート)'!E:F,2,FALSE)&\"\",\"\")","v":""},null,null,null,null,null,null,"",null,null,null,null,null,null,"　",null,"　",null,"　",null,null,null,"",null,null,null,null,null,null,null,null,"",""]
[null,{"$f":"IFERROR(VLOOKUP(AH376,'ID(当院入力シート)'!E:F,2,FALSE)&\"\",\"\")","v":""},null,null,null,null,null,null,"",null,null,null,null,null,null,"　",null,"　",null,"　",null,null,null,"",null,null,null,null,null,null,null,null,"",""]
[null,{"$f":"IFERROR(VLOOKUP(AH377,'ID(当院入力シート)'!E:F,2,FALSE)&\"\",\"\")","v":""},null,null,null,null,null,null,"",null,null,null,null,null,null,"　",null,"　",null,"　",null,null,null,"",null,null,null,null,null,null,null,null,"",""]
[null,{"$f":"IFERROR(VLOOKUP(AH378,'ID(当院入力シート)'!E:F,2,FALSE)&\"\",\"\")","v":""},null,null,null,null,null,null,"",null,null,null,null,null,null,"　",null,"　",null,"　",null,null,null,"",null,null,null,null,null,null,null,null,"",""]
[null,{"$f":"IFERROR(VLOOKUP(AH379,'ID(当院入力シート)'!E:F,2,FALSE)&\"\",\"\")","v":""},null,null,null,null,null,null,"",null,null,null,null,null,null,"　",null,"　",null,"　",null,null,null,"",null,null,null,null,null,null,null,null,"",""]
[null,{"$f":"IFERROR(VLOOKUP(AH380,'ID(当院入力シート)'!E:F,2,FALSE)&\"\",\"\")","v":""},null,null,null,null,null,null,"",null,null,null,null,null,null,"　",null,"　",null,"　",null,null,null,"",null,null,null,null,null,null,null,null,"",""]
[null,{"$f":"IFERROR(VLOOKUP(AH381,'ID(当院入力シート)'!E:F,2,FALSE)&\"\",\"\")","v":""},null,null,null,null,null,null,"",null,null,null,null,null,null,"　",null,"　",null,"　",null,null,null,"",null,null,null,null,null,null,null,null,"",""]
[null,{"$f":"IFERROR(VLOOKUP(AH382,'ID(当院入力シート)'!E:F,2,FALSE)&\"\",\"\")","v":""},null,null,null,null,null,null,"",null,null,null,null,null,null,"　",null,"　",null,"　",null,null,null,"",null,null,null,null,null,null,null,null,"",""]
[null,{"$f":"IFERROR(VLOOKUP(AH383,'ID(当院入力シート)'!E:F,2,FALSE)&\"\",\"\")","v":""},null,null,null,null,null,null,"",null,null,null,null,null,null,"　",null,"　",null,"　",null,null,null,"",null,null,null,null,null,null,null,null,"",""]
[null,{"$f":"IFERROR(VLOOKUP(AH384,'ID(当院入力シート)'!E:F,2,FALSE)&\"\",\"\")","v":""},null,null,null,null,null,null,"",null,null,null,null,null,null,"　",null,"　",null,"　",null,null,null,"",null,null,null,null,null,null,null,null,"",""]
[null,{"$f":"IFERROR(VLOOKUP(AH385,'ID(当院入力シート)'!E:F,2,FALSE)&\"\",\"\")","v":""},null,null,null,null,null,null,"",null,null,null,null,null,null,"　",null,"　",null,"　",null,null,null,{"$f":"IF(W385=\"\",\"\", \"(\" & TEXT(W385,\"aaa\") & \")\")","v":""},null,null,null,null,null,null,null,null,"",""]
[null,{"$f":"IFERROR(VLOOKUP(AH386,'ID(当院入力シート)'!E:F,2,FALSE)&\"\",\"\")","v":""},null,null,null,null,null,null,"",null,null,null,null,null,null,"　",null,"　",null,"　",null,null,null,"",null,null,null,null,null,null,null,null,"",""]
[null,{"$f":"IFERROR(VLOOKUP(AH387,'ID(当院入力シート)'!E:F,2,FALSE)&\"\",\"\")","v":""},null,null,null,null,null,null,"",null,null,null,null,null,null,"　",null,"　",null,"　",null,null,null,"",null,null,null,null,null,null,null,null,"",""]
[null,{"$f":"IFERROR(VLOOKUP(AH388,'ID(当院入力シート)'!E:F,2,FALSE)&\"\",\"\")","v":""},null,null,null,null,null,null,"",null,null,null,null,null,null,"　",null,"　",null,"　",null,null,null,"",null,null,null,null,null,null,null,null,"",""]
[null,{"$f":"IFERROR(VLOOKUP(AH389,'ID(当院入力シート)'!E:F,2,FALSE)&\"\",\"\")","v":""},null,null,null,null,null,null,"",null,null,null,null,null,null,"　",null,"　",null,"　",null,null,null,"",null,null,null,null,null,null,null,null,"",""]
[null,{"$f":"IFERROR(VLOOKUP(AH390,'ID(当院入力シート)'!E:F,2,FALSE)&\"\",\"\")","v":""},null,null,null,null,null,null,"",null,null,null,null,null,null,"　",null,"　",null,"　",null,null,null,"",null,null,null,null,null,null,null,null,"",""]
[null,{"$f":"IFERROR(VLOOKUP(AH391,'ID(当院入力シート)'!E:F,2,FALSE)&\"\",\"\")","v":""},null,null,null,null,null,null,"",null,null,null,null,null,null,"　",null,"　",null,"　",null,null,null,"",null,null,null,null,null,null,null,null,"",""]
[null,{"$f":"IFERROR(VLOOKUP(AH392,'ID(当院入力シート)'!E:F,2,FALSE)&\"\",\"\")","v":""},null,null,null,null,null,null,"",null,null,null,null,null,null,"　",null,"　",null,"　",null,null,null,"",null,null,null,null,null,null,null,null,"",""]
[null,{"$f":"IFERROR(VLOOKUP(AH393,'ID(当院入力シート)'!E:F,2,FALSE)&\"\",\"\")","v":""},null,null,null,null,null,null,"",null,null,null,null,null,null,"　",null,"　",null,"　",null,null,null,"",null,null,null,null,null,null,null,null,"",""]
[null,{"$f":"IFERROR(VLOOKUP(AH394,'ID(当院入力シート)'!E:F,2,FALSE)&\"\",\"\")","v":""},null,null,null,null,null,null,"",null,null,null,null,null,null,"　",null,"　",null,"　",null,null,null,"",null,null,null,null,null,null,null,null,"",""]
[null,{"$f":"IFERROR(VLOOKUP(AH395,'ID(当院入力シート)'!E:F,2,FALSE)&\"\",\"\")","v":""},null,null,null,null,null,null,"",null,null,null,null,null,null,"　",null,"　",null,"　",null,null,null,"",null,null,null,null,null,null,null,null,"",""]
[null,{"$f":"IFERROR(VLOOKUP(AH396,'ID(当院入力シート)'!E:F,2,FALSE)&\"\",\"\")","v":""},null,null,null,null,null,null,"",null,null,null,null,null,null,"　",null,"　",null,"　",null,null,null,"",null,null,null,null,null,null,null,null,"",""]
[null,{"$f":"IFERROR(VLOOKUP(AH397,'ID(当院入力シート)'!E:F,2,FALSE)&\"\",\"\")","v":""},null,null,null,null,null,null,"",null,null,null,null,null,null,"　",null,"　",null,"　",null,null,null,"",null,null,null,null,null,null,null,null,"",""]
[null,{"$f":"IFERROR(VLOOKUP(AH398,'ID(当院入力シート)'!E:F,2,FALSE)&\"\",\"\")","v":""},null,null,null,null,null,null,"",null,null,null,null,null,null,"　",null,"　",null,"　",null,null,null,"",null,null,null,null,null,null,null,null,"",""]
[null,{"$f":"IFERROR(VLOOKUP(AH399,'ID(当院入力シート)'!E:F,2,FALSE)&\"\",\"\")","v":""},null,null,null,null,null,null,"",null,null,null,null,null,null,"　",null,"　",null,"　",null,null,null,"",null,null,null,null,null,null,null,null,"",""]
[null,{"$f":"IFERROR(VLOOKUP(AH400,'ID(当院入力シート)'!E:F,2,FALSE)&\"\",\"\")","v":""},null,null,null,null,null,null,{"$f":"IF(OR(H400=\"\", $I$8=\"\"), \"\", DATEDIF(H400,$I$8,\"y\"))","v":""},null,null,null,null,null,null,"　",null,"　",null,"　",null,null,null,"",null,null,null,null,null,null,null,null,{"$f":"SUBSTITUTE(SUBSTITUTE(E400,\"　\",\"\"),\" \",\"\")","v":""},{"$f":"AG400&H400","v":""}]
[null,{"$f":"IFERROR(VLOOKUP(AH401,'ID(当院入力シート)'!E:F,2,FALSE)&\"\",\"\")","v":""},null,null,null,null,null,null,"",null,null,null,null,null,null,"　",null,"　",null,"　",null,null,null,"",null,null,null,null,null,null,null,null,"",""]
[null,{"$f":"IFERROR(VLOOKUP(AH402,'ID(当院入力シート)'!E:F,2,FALSE)&\"\",\"\")","v":""},null,null,null,null,null,null,"",null,null,null,null,null,null,"　",null,"　",null,"　",null,null,null,"",null,null,null,null,null,null,null,null,"",""]
[null,{"$f":"IFERROR(VLOOKUP(AH403,'ID(当院入力シート)'!E:F,2,FALSE)&\"\",\"\")","v":""},null,null,null,null,null,null,"",null,null,null,null,null,null,"　",null,"　",null,"　",null,null,null,"",null,null,null,null,null,null,null,null,"",""]
[null,{"$f":"IFERROR(VLOOKUP(AH404,'ID(当院入力シート)'!E:F,2,FALSE)&\"\",\"\")","v":""},null,null,null,null,null,null,"",null,null,null,null,null,null,"　",null,"　",null,"　",null,null,null,"",null,null,null,null,null,null,null,null,"",""]
[null,{"$f":"IFERROR(VLOOKUP(AH405,'ID(当院入力シート)'!E:F,2,FALSE)&\"\",\"\")","v":""},null,null,null,null,null,null,"",null,null,null,null,null,null,"　",null,"　",null,"　",null,null,null,"",null,null,null,null,null,null,null,null,"",""]
[null,{"$f":"IFERROR(VLOOKUP(AH406,'ID(当院入力シート)'!E:F,2,FALSE)&\"\",\"\")","v":""},null,null,null,null,null,null,"",null,null,null,null,null,null,"　",null,"　",null,"　",null,null,null,"",null,null,null,null,null,null,null,null,"",""]
[null,{"$f":"IFERROR(VLOOKUP(AH407,'ID(当院入力シート)'!E:F,2,FALSE)&\"\",\"\")","v":""},null,null,null,null,null,null,"",null,null,null,null,null,null,"　",null,"　",null,"　",null,null,null,"",null,null,null,null,null,null,null,null,"",""]
[null,{"$f":"IFERROR(VLOOKUP(AH408,'ID(当院入力シート)'!E:F,2,FALSE)&\"\",\"\")","v":""},null,null,null,null,null,null,"",null,null,null,null,null,null,"　",null,"　",null,"　",null,null,null,"",null,null,null,null,null,null,null,null,"",""]
[null,{"$f":"IFERROR(VLOOKUP(AH409,'ID(当院入力シート)'!E:F,2,FALSE)&\"\",\"\")","v":""},null,null,null,null,null,null,"",null,null,null,null,null,null,"　",null,"　",null,"　",null,null,null,"",null,null,null,null,null,null,null,null,"",""]
[null,{"$f":"IFERROR(VLOOKUP(AH410,'ID(当院入力シート)'!E:F,2,FALSE)&\"\",\"\")","v":""},null,null,null,null,null,null,"",null,null,null,null,null,null,"　",null,"　",null,"　",null,null,null,"",null,null,null,null,null,null,null,null,"",""]
[null,{"$f":"IFERROR(VLOOKUP(AH411,'ID(当院入力シート)'!E:F,2,FALSE)&\"\",\"\")","v":""},null,null,null,null,null,null,"",null,null,null,null,null,null,"　",null,"　",null,"　",null,null,null,"",null,null,null,null,null,null,null,null,"",""]
[null,{"$f":"IFERROR(VLOOKUP(AH412,'ID(当院入力シート)'!E:F,2,FALSE)&\"\",\"\")","v":""},null,null,null,null,null,null,"",null,null,null,null,null,null,"　",null,"　",null,"　",null,null,null,"",null,null,null,null,null,null,null,null,"",""]
[null,{"$f":"IFERROR(VLOOKUP(AH413,'ID(当院入力シート)'!E:F,2,FALSE)&\"\",\"\")","v":""},null,null,null,null,null,null,"",null,null,null,null,null,null,"　",null,"　",null,"　",null,null,null,"",null,null,null,null,null,null,null,null,"",""]
[null,{"$f":"IFERROR(VLOOKUP(AH414,'ID(当院入力シート)'!E:F,2,FALSE)&\"\",\"\")","v":""},null,null,null,null,null,null,"",null,null,null,null,null,null,"　",null,"　",null,"　",null,null,null,"",null,null,null,null,null,null,null,null,"",""]
[null,{"$f":"IFERROR(VLOOKUP(AH415,'ID(当院入力シート)'!E:F,2,FALSE)&\"\",\"\")","v":""},null,null,null,null,null,null,"",null,null,null,null,null,null,"　",null,"　",null,"　",null,null,null,"",null,null,null,null,null,null,null,null,"",""]
[null,{"$f":"IFERROR(VLOOKUP(AH416,'ID(当院入力シート)'!E:F,2,FALSE)&\"\",\"\")","v":""},null,null,null,null,null,null,"",null,null,null,null,null,null,"　",null,"　",null,"　",null,null,null,"",null,null,null,null,null,null,null,null,"",""]
[null,{"$f":"IFERROR(VLOOKUP(AH417,'ID(当院入力シート)'!E:F,2,FALSE)&\"\",\"\")","v":""},null,null,null,null,null,null,"",null,null,null,null,null,null,"　",null,"　",null,"　",null,null,null,"",null,null,null,null,null,null,null,null,"",""]
[null,{"$f":"IFERROR(VLOOKUP(AH418,'ID(当院入力シート)'!E:F,2,FALSE)&\"\",\"\")","v":""},null,null,null,null,null,null,"",null,null,null,null,null,null,"　",null,"　",null,"　",null,null,null,"",null,null,null,null,null,null,null,null,"",""]
[null,{"$f":"IFERROR(VLOOKUP(AH419,'ID(当院入力シート)'!E:F,2,FALSE)&\"\",\"\")","v":""},null,null,null,null,null,null,"",null,null,null,null,null,null,"　",null,"　",null,"　",null,null,null,"",null,null,null,null,null,null,null,null,"",""]
[null,{"$f":"IFERROR(VLOOKUP(AH420,'ID(当院入力シート)'!E:F,2,FALSE)&\"\",\"\")","v":""},null,null,null,null,null,null,"",null,null,null,null,null,null,"　",null,"　",null,"　",null,null,null,"",null,null,null,null,null,null,null,null,"",""]
[null,{"$f":"IFERROR(VLOOKUP(AH421,'ID(当院入力シート)'!E:F,2,FALSE)&\"\",\"\")","v":""},null,null,null,null,null,null,"",null,null,null,null,null,null,"　",null,"　",null,"　",null,null,null,"",null,null,null,null,null,null,null,null,"",""]
[null,{"$f":"IFERROR(VLOOKUP(AH422,'ID(当院入力シート)'!E:F,2,FALSE)&\"\",\"\")","v":""},null,null,null,null,null,null,"",null,null,null,null,null,null,"　",null,"　",null,"　",null,null,null,"",null,null,null,null,null,null,null,null,"",""]
[null,{"$f":"IFERROR(VLOOKUP(AH423,'ID(当院入力シート)'!E:F,2,FALSE)&\"\",\"\")","v":""},null,null,null,null,null,null,"",null,null,null,null,null,null,"　",null,"　",null,"　",null,null,null,"",null,null,null,null,null,null,null,null,"",""]
[null,{"$f":"IFERROR(VLOOKUP(AH424,'ID(当院入力シート)'!E:F,2,FALSE)&\"\",\"\")","v":""},null,null,null,null,null,null,"",null,null,null,null,null,null,"　",null,"　",null,"　",null,null,null,"",null,null,null,null,null,null,null,null,"",""]
[null,{"$f":"IFERROR(VLOOKUP(AH425,'ID(当院入力シート)'!E:F,2,FALSE)&\"\",\"\")","v":""},null,null,null,null,null,null,"",null,null,null,null,null,null,"　",null,"　",null,"　",null,null,null,"",null,null,null,null,null,null,null,null,"",""]
[null,{"$f":"IFERROR(VLOOKUP(AH426,'ID(当院入力シート)'!E:F,2,FALSE)&\"\",\"\")","v":""},null,null,null,null,null,null,"",null,null,null,null,null,null,"　",null,"　",null,"　",null,null,null,"",null,null,null,null,null,null,null,null,"",""]
[null,{"$f":"IFERROR(VLOOKUP(AH427,'ID(当院入力シート)'!E:F,2,FALSE)&\"\",\"\")","v":""},null,null,null,null,null,null,"",null,null,null,null,null,null,"　",null,"　",null,"　",null,null,null,"",null,null,null,null,null,null,null,null,"",""]
[null,{"$f":"IFERROR(VLOOKUP(AH428,'ID(当院入力シート)'!E:F,2,FALSE)&\"\",\"\")","v":""},null,null,null,null,null,null,"",null,null,null,null,null,null,"　",null,"　",null,"　",null,null,null,"",null,null,null,null,null,null,null,null,"",""]
[null,{"$f":"IFERROR(VLOOKUP(AH429,'ID(当院入力シート)'!E:F,2,FALSE)&\"\",\"\")","v":""},null,null,null,null,null,null,"",null,null,null,null,null,null,"　",null,"　",null,"　",null,null,null,"",null,null,null,null,null,null,null,null,"",""]
[null,{"$f":"IFERROR(VLOOKUP(AH430,'ID(当院入力シート)'!E:F,2,FALSE)&\"\",\"\")","v":""},null,null,null,null,null,null,"",null,null,null,null,null,null,"　",null,"　",null,"　",null,null,null,"",null,null,null,null,null,null,null,null,"",""]
[null,{"$f":"IFERROR(VLOOKUP(AH431,'ID(当院入力シート)'!E:F,2,FALSE)&\"\",\"\")","v":""},null,null,null,null,null,null,"",null,null,null,null,null,null,"　",null,"　",null,"　",null,null,null,"",null,null,null,null,null,null,null,null,"",""]
[null,{"$f":"IFERROR(VLOOKUP(AH432,'ID(当院入力シート)'!E:F,2,FALSE)&\"\",\"\")","v":""},null,null,null,null,null,null,"",null,null,null,null,null,null,"　",null,"　",null,"　",null,null,null,"",null,null,null,null,null,null,null,null,"",""]
[null,{"$f":"IFERROR(VLOOKUP(AH433,'ID(当院入力シート)'!E:F,2,FALSE)&\"\",\"\")","v":""},null,null,null,null,null,null,"",null,null,null,null,null,null,"　",null,"　",null,"　",null,null,null,"",null,null,null,null,null,null,null,null,"",""]
[null,{"$f":"IFERROR(VLOOKUP(AH434,'ID(当院入力シート)'!E:F,2,FALSE)&\"\",\"\")","v":""},null,null,null,null,null,null,"",null,null,null,null,null,null,"　",null,"　",null,"　",null,null,null,"",null,null,null,null,null,null,null,null,"",""]
[null,{"$f":"IFERROR(VLOOKUP(AH435,'ID(当院入力シート)'!E:F,2,FALSE)&\"\",\"\")","v":""},null,null,null,null,null,null,"",null,null,null,null,null,null,"　",null,"　",null,"　",null,null,null,"",null,null,null,null,null,null,null,null,"",""]
[null,{"$f":"IFERROR(VLOOKUP(AH436,'ID(当院入力シート)'!E:F,2,FALSE)&\"\",\"\")","v":""},null,null,null,null,null,null,"",null,null,null,null,null,null,"　",null,"　",null,"　",null,null,null,"",null,null,null,null,null,null,null,null,"",""]
[null,{"$f":"IFERROR(VLOOKUP(AH437,'ID(当院入力シート)'!E:F,2,FALSE)&\"\",\"\")","v":""},null,null,null,null,null,null,"",null,null,null,null,null,null,"　",null,"　",null,"　",null,null,null,"",null,null,null,null,null,null,null,null,"",""]
[null,{"$f":"IFERROR(VLOOKUP(AH438,'ID(当院入力シート)'!E:F,2,FALSE)&\"\",\"\")","v":""},null,null,null,null,null,null,"",null,null,null,null,null,null,"　",null,"　",null,"　",null,null,null,"",null,null,null,null,null,null,null,null,"",""]
[null,{"$f":"IFERROR(VLOOKUP(AH439,'ID(当院入力シート)'!E:F,2,FALSE)&\"\",\"\")","v":""},null,null,null,null,null,null,"",null,null,null,null,null,null,"　",null,"　",null,"　",null,null,null,"",null,null,null,null,null,null,null,null,"",""]
[null,{"$f":"IFERROR(VLOOKUP(AH440,'ID(当院入力シート)'!E:F,2,FALSE)&\"\",\"\")","v":""},null,null,null,null,null,null,"",null,null,null,null,null,null,"　",null,"　",null,"　",null,null,null,"",null,null,null,null,null,null,null,null,"",""]
[null,{"$f":"IFERROR(VLOOKUP(AH441,'ID(当院入力シート)'!E:F,2,FALSE)&\"\",\"\")","v":""},null,null,null,null,null,null,"",null,null,null,null,null,null,"　",null,"　",null,"　",null,null,null,"",null,null,null,null,null,null,null,null,"",""]
[null,{"$f":"IFERROR(VLOOKUP(AH442,'ID(当院入力シート)'!E:F,2,FALSE)&\"\",\"\")","v":""},null,null,null,null,null,null,"",null,null,null,null,null,null,"　",null,"　",null,"　",null,null,null,"",null,null,null,null,null,null,null,null,"",""]
[null,{"$f":"IFERROR(VLOOKUP(AH443,'ID(当院入力シート)'!E:F,2,FALSE)&\"\",\"\")","v":""},null,null,null,null,null,null,"",null,null,null,null,null,null,"　",null,"　",null,"　",null,null,null,"",null,null,null,null,null,null,null,null,"",""]
[null,{"$f":"IFERROR(VLOOKUP(AH444,'ID(当院入力シート)'!E:F,2,FALSE)&\"\",\"\")","v":""},null,null,null,null,null,null,"",null,null,null,null,null,null,"　",null,"　",null,"　",null,null,null,"",null,null,null,null,null,null,null,null,"",""]
[null,{"$f":"IFERROR(VLOOKUP(AH445,'ID(当院入力シート)'!E:F,2,FALSE)&\"\",\"\")","v":""},null,null,null,null,null,null,"",null,null,null,null,null,null,"　",null,"　",null,"　",null,null,null,"",null,null,null,null,null,null,null,null,"",""]
[null,{"$f":"IFERROR(VLOOKUP(AH446,'ID(当院入力シート)'!E:F,2,FALSE)&\"\",\"\")","v":""},null,null,null,null,null,null,"",null,null,null,null,null,null,"　",null,"　",null,"　",null,null,null,"",null,null,null,null,null,null,null,null,"",""]
[null,{"$f":"IFERROR(VLOOKUP(AH447,'ID(当院入力シート)'!E:F,2,FALSE)&\"\",\"\")","v":""},null,null,null,null,null,null,"",null,null,null,null,null,null,"　",null,"　",null,"　",null,null,null,"",null,null,null,null,null,null,null,null,"",""]
[null,{"$f":"IFERROR(VLOOKUP(AH448,'ID(当院入力シート)'!E:F,2,FALSE)&\"\",\"\")","v":""},null,null,null,null,null,null,"",null,null,null,null,null,null,"　",null,"　",null,"　",null,null,null,"",null,null,null,null,null,null,null,null,"",""]
[null,{"$f":"IFERROR(VLOOKUP(AH449,'ID(当院入力シート)'!E:F,2,FALSE)&\"\",\"\")","v":""},null,null,null,null,null,null,"",null,null,null,null,null,null,"　",null,"　",null,"　",null,null,null,{"$f":"IF(W449=\"\",\"\", \"(\" & TEXT(W449,\"aaa\") & \")\")","v":""},null,null,null,null,null,null,null,null,"",""]
[null,{"$f":"IFERROR(VLOOKUP(AH450,'ID(当院入力シート)'!E:F,2,FALSE)&\"\",\"\")","v":""},null,null,null,null,null,null,"",null,null,null,null,null,null,"　",null,"　",null,"　",null,null,null,"",null,null,null,null,null,null,null,null,"",""]
[null,{"$f":"IFERROR(VLOOKUP(AH451,'ID(当院入力シート)'!E:F,2,FALSE)&\"\",\"\")","v":""},null,null,null,null,null,null,"",null,null,null,null,null,null,"　",null,"　",null,"　",null,null,null,"",null,null,null,null,null,null,null,null,"",""]
[null,{"$f":"IFERROR(VLOOKUP(AH452,'ID(当院入力シート)'!E:F,2,FALSE)&\"\",\"\")","v":""},null,null,null,null,null,null,"",null,null,null,null,null,null,"　",null,"　",null,"　",null,null,null,"",null,null,null,null,null,null,null,null,"",""]
[null,{"$f":"IFERROR(VLOOKUP(AH453,'ID(当院入力シート)'!E:F,2,FALSE)&\"\",\"\")","v":""},null,null,null,null,null,null,"",null,null,null,null,null,null,"　",null,"　",null,"　",null,null,null,"",null,null,null,null,null,null,null,null,"",""]
[null,{"$f":"IFERROR(VLOOKUP(AH454,'ID(当院入力シート)'!E:F,2,FALSE)&\"\",\"\")","v":""},null,null,null,null,null,null,"",null,null,null,null,null,null,"　",null,"　",null,"　",null,null,null,"",null,null,null,null,null,null,null,null,"",""]
[null,{"$f":"IFERROR(VLOOKUP(AH455,'ID(当院入力シート)'!E:F,2,FALSE)&\"\",\"\")","v":""},null,null,null,null,null,null,"",null,null,null,null,null,null,"　",null,"　",null,"　",null,null,null,"",null,null,null,null,null,null,null,null,"",""]
[null,{"$f":"IFERROR(VLOOKUP(AH456,'ID(当院入力シート)'!E:F,2,FALSE)&\"\",\"\")","v":""},null,null,null,null,null,null,"",null,null,null,null,null,null,"　",null,"　",null,"　",null,null,null,"",null,null,null,null,null,null,null,null,"",""]
[null,{"$f":"IFERROR(VLOOKUP(AH457,'ID(当院入力シート)'!E:F,2,FALSE)&\"\",\"\")","v":""},null,null,null,null,null,null,"",null,null,null,null,null,null,"　",null,"　",null,"　",null,null,null,"",null,null,null,null,null,null,null,null,"",""]
[null,{"$f":"IFERROR(VLOOKUP(AH458,'ID(当院入力シート)'!E:F,2,FALSE)&\"\",\"\")","v":""},null,null,null,null,null,null,"",null,null,null,null,null,null,"　",null,"　",null,"　",null,null,null,"",null,null,null,null,null,null,null,null,"",""]
[null,{"$f":"IFERROR(VLOOKUP(AH459,'ID(当院入力シート)'!E:F,2,FALSE)&\"\",\"\")","v":""},null,null,null,null,null,null,"",null,null,null,null,null,null,"　",null,"　",null,"　",null,null,null,"",null,null,null,null,null,null,null,null,"",""]
[null,{"$f":"IFERROR(VLOOKUP(AH460,'ID(当院入力シート)'!E:F,2,FALSE)&\"\",\"\")","v":""},null,null,null,null,null,null,"",null,null,null,null,null,null,"　",null,"　",null,"　",null,null,null,"",null,null,null,null,null,null,null,null,"",""]
[null,{"$f":"IFERROR(VLOOKUP(AH461,'ID(当院入力シート)'!E:F,2,FALSE)&\"\",\"\")","v":""},null,null,null,null,null,null,"",null,null,null,null,null,null,"　",null,"　",null,"　",null,null,null,"",null,null,null,null,null,null,null,null,"",""]
[null,{"$f":"IFERROR(VLOOKUP(AH462,'ID(当院入力シート)'!E:F,2,FALSE)&\"\",\"\")","v":""},null,null,null,null,null,null,"",null,null,null,null,null,null,"　",null,"　",null,"　",null,null,null,"",null,null,null,null,null,null,null,null,"",""]
[null,{"$f":"IFERROR(VLOOKUP(AH463,'ID(当院入力シート)'!E:F,2,FALSE)&\"\",\"\")","v":""},null,null,null,null,null,null,"",null,null,null,null,null,null,"　",null,"　",null,"　",null,null,null,"",null,null,null,null,null,null,null,null,"",""]
[null,{"$f":"IFERROR(VLOOKUP(AH464,'ID(当院入力シート)'!E:F,2,FALSE)&\"\",\"\")","v":""},null,null,null,null,null,null,{"$f":"IF(OR(H464=\"\", $I$8=\"\"), \"\", DATEDIF(H464,$I$8,\"y\"))","v":""},null,null,null,null,null,null,"　",null,"　",null,"　",null,null,null,"",null,null,null,null,null,null,null,null,{"$f":"SUBSTITUTE(SUBSTITUTE(E464,\"　\",\"\"),\" \",\"\")","v":""},{"$f":"AG464&H464","v":""}]
[null,{"$f":"IFERROR(VLOOKUP(AH465,'ID(当院入力シート)'!E:F,2,FALSE)&\"\",\"\")","v":""},null,null,null,null,null,null,"",null,null,null,null,null,null,"　",null,"　",null,"　",null,null,null,"",null,null,null,null,null,null,null,null,"",""]
[null,{"$f":"IFERROR(VLOOKUP(AH466,'ID(当院入力シート)'!E:F,2,FALSE)&\"\",\"\")","v":""},null,null,null,null,null,null,"",null,null,null,null,null,null,"　",null,"　",null,"　",null,null,null,"",null,null,null,null,null,null,null,null,"",""]
[null,{"$f":"IFERROR(VLOOKUP(AH467,'ID(当院入力シート)'!E:F,2,FALSE)&\"\",\"\")","v":""},null,null,null,null,null,null,"",null,null,null,null,null,null,"　",null,"　",null,"　",null,null,null,"",null,null,null,null,null,null,null,null,"",""]
[null,{"$f":"IFERROR(VLOOKUP(AH468,'ID(当院入力シート)'!E:F,2,FALSE)&\"\",\"\")","v":""},null,null,null,null,null,null,"",null,null,null,null,null,null,"　",null,"　",null,"　",null,null,null,"",null,null,null,null,null,null,null,null,"",""]
[null,{"$f":"IFERROR(VLOOKUP(AH469,'ID(当院入力シート)'!E:F,2,FALSE)&\"\",\"\")","v":""},null,null,null,null,null,null,"",null,null,null,null,null,null,"　",null,"　",null,"　",null,null,null,"",null,null,null,null,null,null,null,null,"",""]
[null,{"$f":"IFERROR(VLOOKUP(AH470,'ID(当院入力シート)'!E:F,2,FALSE)&\"\",\"\")","v":""},null,null,null,null,null,null,"",null,null,null,null,null,null,"　",null,"　",null,"　",null,null,null,"",null,null,null,null,null,null,null,null,"",""]
[null,{"$f":"IFERROR(VLOOKUP(AH471,'ID(当院入力シート)'!E:F,2,FALSE)&\"\",\"\")","v":""},null,null,null,null,null,null,"",null,null,null,null,null,null,"　",null,"　",null,"　",null,null,null,"",null,null,null,null,null,null,null,null,"",""]
[null,{"$f":"IFERROR(VLOOKUP(AH472,'ID(当院入力シート)'!E:F,2,FALSE)&\"\",\"\")","v":""},null,null,null,null,null,null,"",null,null,null,null,null,null,"　",null,"　",null,"　",null,null,null,"",null,null,null,null,null,null,null,null,"",""]
[null,{"$f":"IFERROR(VLOOKUP(AH473,'ID(当院入力シート)'!E:F,2,FALSE)&\"\",\"\")","v":""},null,null,null,null,null,null,"",null,null,null,null,null,null,"　",null,"　",null,"　",null,null,null,"",null,null,null,null,null,null,null,null,"",""]
[null,{"$f":"IFERROR(VLOOKUP(AH474,'ID(当院入力シート)'!E:F,2,FALSE)&\"\",\"\")","v":""},null,null,null,null,null,null,"",null,null,null,null,null,null,"　",null,"　",null,"　",null,null,null,"",null,null,null,null,null,null,null,null,"",""]
[null,{"$f":"IFERROR(VLOOKUP(AH475,'ID(当院入力シート)'!E:F,2,FALSE)&\"\",\"\")","v":""},null,null,null,null,null,null,"",null,null,null,null,null,null,"　",null,"　",null,"　",null,null,null,"",null,null,null,null,null,null,null,null,"",""]
[null,{"$f":"IFERROR(VLOOKUP(AH476,'ID(当院入力シート)'!E:F,2,FALSE)&\"\",\"\")","v":""},null,null,null,null,null,null,"",null,null,null,null,null,null,"　",null,"　",null,"　",null,null,null,"",null,null,null,null,null,null,null,null,"",""]
[null,{"$f":"IFERROR(VLOOKUP(AH477,'ID(当院入力シート)'!E:F,2,FALSE)&\"\",\"\")","v":""},null,null,null,null,null,null,"",null,null,null,null,null,null,"　",null,"　",null,"　",null,null,null,"",null,null,null,null,null,null,null,null,"",""]
[null,{"$f":"IFERROR(VLOOKUP(AH478,'ID(当院入力シート)'!E:F,2,FALSE)&\"\",\"\")","v":""},null,null,null,null,null,null,"",null,null,null,null,null,null,"　",null,"　",null,"　",null,null,null,"",null,null,null,null,null,null,null,null,"",""]
[null,{"$f":"IFERROR(VLOOKUP(AH479,'ID(当院入力シート)'!E:F,2,FALSE)&\"\",\"\")","v":""},null,null,null,null,null,null,"",null,null,null,null,null,null,"　",null,"　",null,"　",null,null,null,"",null,null,null,null,null,null,null,null,"",""]
[null,{"$f":"IFERROR(VLOOKUP(AH480,'ID(当院入力シート)'!E:F,2,FALSE)&\"\",\"\")","v":""},null,null,null,null,null,null,"",null,null,null,null,null,null,"　",null,"　",null,"　",null,null,null,"",null,null,null,null,null,null,null,null,"",""]
[null,{"$f":"IFERROR(VLOOKUP(AH481,'ID(当院入力シート)'!E:F,2,FALSE)&\"\",\"\")","v":""},null,null,null,null,null,null,"",null,null,null,null,null,null,"　",null,"　",null,"　",null,null,null,"",null,null,null,null,null,null,null,null,"",""]
[null,{"$f":"IFERROR(VLOOKUP(AH482,'ID(当院入力シート)'!E:F,2,FALSE)&\"\",\"\")","v":""},null,null,null,null,null,null,"",null,null,null,null,null,null,"　",null,"　",null,"　",null,null,null,"",null,null,null,null,null,null,null,null,"",""]
[null,{"$f":"IFERROR(VLOOKUP(AH483,'ID(当院入力シート)'!E:F,2,FALSE)&\"\",\"\")","v":""},null,null,null,null,null,null,"",null,null,null,null,null,null,"　",null,"　",null,"　",null,null,null,"",null,null,null,null,null,null,null,null,"",""]
[null,{"$f":"IFERROR(VLOOKUP(AH484,'ID(当院入力シート)'!E:F,2,FALSE)&\"\",\"\")","v":""},null,null,null,null,null,null,"",null,null,null,null,null,null,"　",null,"　",null,"　",null,null,null,"",null,null,null,null,null,null,null,null,"",""]
[null,{"$f":"IFERROR(VLOOKUP(AH485,'ID(当院入力シート)'!E:F,2,FALSE)&\"\",\"\")","v":""},null,null,null,null,null,null,"",null,null,null,null,null,null,"　",null,"　",null,"　",null,null,null,"",null,null,null,null,null,null,null,null,"",""]
[null,{"$f":"IFERROR(VLOOKUP(AH486,'ID(当院入力シート)'!E:F,2,FALSE)&\"\",\"\")","v":""},null,null,null,null,null,null,"",null,null,null,null,null,null,"　",null,"　",null,"　",null,null,null,"",null,null,null,null,null,null,null,null,"",""]
[null,{"$f":"IFERROR(VLOOKUP(AH487,'ID(当院入力シート)'!E:F,2,FALSE)&\"\",\"\")","v":""},null,null,null,null,null,null,"",null,null,null,null,null,null,"　",null,"　",null,"　",null,null,null,"",null,null,null,null,null,null,null,null,"",""]
[null,{"$f":"IFERROR(VLOOKUP(AH488,'ID(当院入力シート)'!E:F,2,FALSE)&\"\",\"\")","v":""},null,null,null,null,null,null,"",null,null,null,null,null,null,"　",null,"　",null,"　",null,null,null,"",null,null,null,null,null,null,null,null,"",""]
[null,{"$f":"IFERROR(VLOOKUP(AH489,'ID(当院入力シート)'!E:F,2,FALSE)&\"\",\"\")","v":""},null,null,null,null,null,null,"",null,null,null,null,null,null,"　",null,"　",null,"　",null,null,null,"",null,null,null,null,null,null,null,null,"",""]
[null,{"$f":"IFERROR(VLOOKUP(AH490,'ID(当院入力シート)'!E:F,2,FALSE)&\"\",\"\")","v":""},null,null,null,null,null,null,"",null,null,null,null,null,null,"　",null,"　",null,"　",null,null,null,"",null,null,null,null,null,null,null,null,"",""]
[null,{"$f":"IFERROR(VLOOKUP(AH491,'ID(当院入力シート)'!E:F,2,FALSE)&\"\",\"\")","v":""},null,null,null,null,null,null,"",null,null,null,null,null,null,"　",null,"　",null,"　",null,null,null,"",null,null,null,null,null,null,null,null,"",""]
[null,{"$f":"IFERROR(VLOOKUP(AH492,'ID(当院入力シート)'!E:F,2,FALSE)&\"\",\"\")","v":""},null,null,null,null,null,null,"",null,null,null,null,null,null,"　",null,"　",null,"　",null,null,null,"",null,null,null,null,null,null,null,null,"",""]
[null,{"$f":"IFERROR(VLOOKUP(AH493,'ID(当院入力シート)'!E:F,2,FALSE)&\"\",\"\")","v":""},null,null,null,null,null,null,"",null,null,null,null,null,null,"　",null,"　",null,"　",null,null,null,"",null,null,null,null,null,null,null,null,"",""]
[null,{"$f":"IFERROR(VLOOKUP(AH494,'ID(当院入力シート)'!E:F,2,FALSE)&\"\",\"\")","v":""},null,null,null,null,null,null,"",null,null,null,null,null,null,"　",null,"　",null,"　",null,null,null,"",null,null,null,null,null,null,null,null,"",""]
[null,{"$f":"IFERROR(VLOOKUP(AH495,'ID(当院入力シート)'!E:F,2,FALSE)&\"\",\"\")","v":""},null,null,null,null,null,null,"",null,null,null,null,null,null,"　",null,"　",null,"　",null,null,null,"",null,null,null,null,null,null,null,null,"",""]
[null,{"$f":"IFERROR(VLOOKUP(AH496,'ID(当院入力シート)'!E:F,2,FALSE)&\"\",\"\")","v":""},null,null,null,null,null,null,"",null,null,null,null,null,null,"　",null,"　",null,"　",null,null,null,"",null,null,null,null,null,null,null,null,"",""]
[null,{"$f":"IFERROR(VLOOKUP(AH497,'ID(当院入力シート)'!E:F,2,FALSE)&\"\",\"\")","v":""},null,null,null,null,null,null,"",null,null,null,null,null,null,"　",null,"　",null,"　",null,null,null,"",null,null,null,null,null,null,null,null,"",""]
[null,{"$f":"IFERROR(VLOOKUP(AH498,'ID(当院入力シート)'!E:F,2,FALSE)&\"\",\"\")","v":""},null,null,null,null,null,null,"",null,null,null,null,null,null,"　",null,"　",null,"　",null,null,null,"",null,null,null,null,null,null,null,null,"",""]
[null,{"$f":"IFERROR(VLOOKUP(AH499,'ID(当院入力シート)'!E:F,2,FALSE)&\"\",\"\")","v":""},null,null,null,null,null,null,"",null,null,null,null,null,null,"　",null,"　",null,"　",null,null,null,"",null,null,null,null,null,null,null,null,"",""]
[null,{"$f":"IFERROR(VLOOKUP(AH500,'ID(当院入力シート)'!E:F,2,FALSE)&\"\",\"\")","v":""},null,null,null,null,null,null,"",null,null,null,null,null,null,"　",null,"　",null,"　",null,null,null,"",null,null,null,null,null,null,null,null,"",""]
[null,{"$f":"IFERROR(VLOOKUP(AH501,'ID(当院入力シート)'!E:F,2,FALSE)&\"\",\"\")","v":""},null,null,null,null,null,null,"",null,null,null,null,null,null,"　",null,"　",null,"　",null,null,null,"",null,null,null,null,null,null,null,null,"",""]
[null,{"$f":"IFERROR(VLOOKUP(AH502,'ID(当院入力シート)'!E:F,2,FALSE)&\"\",\"\")","v":""},null,null,null,null,null,null,"",null,null,null,null,null,null,"　",null,"　",null,"　",null,null,null,"",null,null,null,null,null,null,null,null,"",""]
[null,{"$f":"IFERROR(VLOOKUP(AH503,'ID(当院入力シート)'!E:F,2,FALSE)&\"\",\"\")","v":""},null,null,null,null,null,null,"",null,null,null,null,null,null,"　",null,"　",null,"　",null,null,null,"",null,null,null,null,null,null,null,null,"",""]
[null,{"$f":"IFERROR(VLOOKUP(AH504,'ID(当院入力シート)'!E:F,2,FALSE)&\"\",\"\")","v":""},null,null,null,null,null,null,"",null,null,null,null,null,null,"　",null,"　",null,"　",null,null,null,"",null,null,null,null,null,null,null,null,"",""]
[null,{"$f":"IFERROR(VLOOKUP(AH505,'ID(当院入力シート)'!E:F,2,FALSE)&\"\",\"\")","v":""},null,null,null,null,null,null,"",null,null,null,null,null,null,"　",null,"　",null,"　",null,null,null,"",null,null,null,null,null,null,null,null,"",""]
[null,{"$f":"IFERROR(VLOOKUP(AH506,'ID(当院入力シート)'!E:F,2,FALSE)&\"\",\"\")","v":""},null,null,null,null,null,null,"",null,null,null,null,null,null,"　",null,"　",null,"　",null,null,null,"",null,null,null,null,null,null,null,null,"",""]
[null,{"$f":"IFERROR(VLOOKUP(AH507,'ID(当院入力シート)'!E:F,2,FALSE)&\"\",\"\")","v":""},null,null,null,null,null,null,"",null,null,null,null,null,null,"　",null,"　",null,"　",null,null,null,"",null,null,null,null,null,null,null,null,"",""]
[null,{"$f":"IFERROR(VLOOKUP(AH508,'ID(当院入力シート)'!E:F,2,FALSE)&\"\",\"\")","v":""},null,null,null,null,null,null,"",null,null,null,null,null,null,"　",null,"　",null,"　",null,null,null,"",null,null,null,null,null,null,null,null,"",""]
[null,{"$f":"IFERROR(VLOOKUP(AH509,'ID(当院入力シート)'!E:F,2,FALSE)&\"\",\"\")","v":""},null,null,null,null,null,null,"",null,null,null,null,null,null,"　",null,"　",null,"　",null,null,null,"",null,null,null,null,null,null,null,null,"",""]
[null,{"$f":"IFERROR(VLOOKUP(AH510,'ID(当院入力シート)'!E:F,2,FALSE)&\"\",\"\")","v":""},null,null,null,null,null,null,"",null,null,null,null,null,null,"　",null,"　",null,"　",null,null,null,"",null,null,null,null,null,null,null,null,"",""]
[null,{"$f":"IFERROR(VLOOKUP(AH511,'ID(当院入力シート)'!E:F,2,FALSE)&\"\",\"\")","v":""},null,null,null,null,null,null,"",null,null,null,null,null,null,"　",null,"　",null,"　",null,null,null,"",null,null,null,null,null,null,null,null,"",""]
[null,{"$f":"IFERROR(VLOOKUP(AH512,'ID(当院入力シート)'!E:F,2,FALSE)&\"\",\"\")","v":""},null,null,null,null,null,null,"",null,null,null,null,null,null,"　",null,"　",null,"　",null,null,null,"",null,null,null,null,null,null,null,null,"",""]
[null,{"$f":"IFERROR(VLOOKUP(AH513,'ID(当院入力シート)'!E:F,2,FALSE)&\"\",\"\")","v":""},null,null,null,null,null,null,"",null,null,null,null,null,null,"　",null,"　",null,"　",null,null,null,{"$f":"IF(W513=\"\",\"\", \"(\" & TEXT(W513,\"aaa\") & \")\")","v":""},null,null,null,null,null,null,null,null,"",""]
[null,{"$f":"IFERROR(VLOOKUP(AH514,'ID(当院入力シート)'!E:F,2,FALSE)&\"\",\"\")","v":""},null,null,null,null,null,null,"",null,null,null,null,null,null,"　",null,"　",null,"　",null,null,null,"",null,null,null,null,null,null,null,null,"",""]
[null,{"$f":"IFERROR(VLOOKUP(AH515,'ID(当院入力シート)'!E:F,2,FALSE)&\"\",\"\")","v":""},null,null,null,null,null,null,"",null,null,null,null,null,null,"　",null,"　",null,"　",null,null,null,"",null,null,null,null,null,null,null,null,"",""]
[null,{"$f":"IFERROR(VLOOKUP(AH516,'ID(当院入力シート)'!E:F,2,FALSE)&\"\",\"\")","v":""},null,null,null,null,null,null,"",null,null,null,null,null,null,"　",null,"　",null,"　",null,null,null,"",null,null,null,null,null,null,null,null,"",""]
[null,{"$f":"IFERROR(VLOOKUP(AH517,'ID(当院入力シート)'!E:F,2,FALSE)&\"\",\"\")","v":""},null,null,null,null,null,null,"",null,null,null,null,null,null,"　",null,"　",null,"　",null,null,null,"",null,null,null,null,null,null,null,null,"",""]
[null,{"$f":"IFERROR(VLOOKUP(AH518,'ID(当院入力シート)'!E:F,2,FALSE)&\"\",\"\")","v":""},null,null,null,null,null,null,"",null,null,null,null,null,null,"　",null,"　",null,"　",null,null,null,"",null,null,null,null,null,null,null,null,"",""]
[null,{"$f":"IFERROR(VLOOKUP(AH519,'ID(当院入力シート)'!E:F,2,FALSE)&\"\",\"\")","v":""},null,null,null,null,null,null,"",null,null,null,null,null,null,"　",null,"　",null,"　",null,null,null,"",null,null,null,null,null,null,null,null,"",""]
[null,{"$f":"IFERROR(VLOOKUP(AH520,'ID(当院入力シート)'!E:F,2,FALSE)&\"\",\"\")","v":""},null,null,null,null,null,null,"",null,null,null,null,null,null,"　",null,"　",null,"　",null,null,null,"",null,null,null,null,null,null,null,null,"",""]
[null,{"$f":"IFERROR(VLOOKUP(AH521,'ID(当院入力シート)'!E:F,2,FALSE)&\"\",\"\")","v":""},null,null,null,null,null,null,"",null,null,null,null,null,null,"　",null,"　",null,"　",null,null,null,"",null,null,null,null,null,null,null,null,"",""]
[null,{"$f":"IFERROR(VLOOKUP(AH522,'ID(当院入力シート)'!E:F,2,FALSE)&\"\",\"\")","v":""},null,null,null,null,null,null,"",null,null,null,null,null,null,"　",null,"　",null,"　",null,null,null,"",null,null,null,null,null,null,null,null,"",""]
[null,{"$f":"IFERROR(VLOOKUP(AH523,'ID(当院入力シート)'!E:F,2,FALSE)&\"\",\"\")","v":""},null,null,null,null,null,null,"",null,null,null,null,null,null,"　",null,"　",null,"　",null,null,null,"",null,null,null,null,null,null,null,null,"",""]
[null,{"$f":"IFERROR(VLOOKUP(AH524,'ID(当院入力シート)'!E:F,2,FALSE)&\"\",\"\")","v":""},null,null,null,null,null,null,"",null,null,null,null,null,null,"　",null,"　",null,"　",null,null,null,"",null,null,null,null,null,null,null,null,"",""]
[null,{"$f":"IFERROR(VLOOKUP(AH525,'ID(当院入力シート)'!E:F,2,FALSE)&\"\",\"\")","v":""},null,null,null,null,null,null,"",null,null,null,null,null,null,"　",null,"　",null,"　",null,null,null,"",null,null,null,null,null,null,null,null,"",""]
[null,{"$f":"IFERROR(VLOOKUP(AH526,'ID(当院入力シート)'!E:F,2,FALSE)&\"\",\"\")","v":""},null,null,null,null,null,null,"",null,null,null,null,null,null,"　",null,"　",null,"　",null,null,null,"",null,null,null,null,null,null,null,null,"",""]
[null,{"$f":"IFERROR(VLOOKUP(AH527,'ID(当院入力シート)'!E:F,2,FALSE)&\"\",\"\")","v":""},null,null,null,null,null,null,"",null,null,null,null,null,null,"　",null,"　",null,"　",null,null,null,"",null,null,null,null,null,null,null,null,"",""]
[null,{"$f":"IFERROR(VLOOKUP(AH528,'ID(当院入力シート)'!E:F,2,FALSE)&\"\",\"\")","v":""},null,null,null,null,null,null,{"$f":"IF(OR(H528=\"\", $I$8=\"\"), \"\", DATEDIF(H528,$I$8,\"y\"))","v":""},null,null,null,null,null,null,"　",null,"　",null,"　",null,null,null,"",null,null,null,null,null,null,null,null,{"$f":"SUBSTITUTE(SUBSTITUTE(E528,\"　\",\"\"),\" \",\"\")","v":""},{"$f":"AG528&H528","v":""}]
[null,{"$f":"IFERROR(VLOOKUP(AH529,'ID(当院入力シート)'!E:F,2,FALSE)&\"\",\"\")","v":""},null,null,null,null,null,null,"",null,null,null,null,null,null,"　",null,"　",null,"　",null,null,null,"",null,null,null,null,null,null,null,null,"",""]
[null,{"$f":"IFERROR(VLOOKUP(AH530,'ID(当院入力シート)'!E:F,2,FALSE)&\"\",\"\")","v":""},null,null,null,null,null,null,"",null,null,null,null,null,null,"　",null,"　",null,"　",null,null,null,"",null,null,null,null,null,null,null,null,"",""]
[null,{"$f":"IFERROR(VLOOKUP(AH531,'ID(当院入力シート)'!E:F,2,FALSE)&\"\",\"\")","v":""},null,null,null,null,null,null,"",null,null,null,null,null,null,"　",null,"　",null,"　",null,null,null,"",null,null,null,null,null,null,null,null,"",""]
[null,{"$f":"IFERROR(VLOOKUP(AH532,'ID(当院入力シート)'!E:F,2,FALSE)&\"\",\"\")","v":""},null,null,null,null,null,null,"",null,null,null,null,null,null,"　",null,"　",null,"　",null,null,null,"",null,null,null,null,null,null,null,null,"",""]
[null,{"$f":"IFERROR(VLOOKUP(AH533,'ID(当院入力シート)'!E:F,2,FALSE)&\"\",\"\")","v":""},null,null,null,null,null,null,"",null,null,null,null,null,null,"　",null,"　",null,"　",null,null,null,"",null,null,null,null,null,null,null,null,"",""]
[null,{"$f":"IFERROR(VLOOKUP(AH534,'ID(当院入力シート)'!E:F,2,FALSE)&\"\",\"\")","v":""},null,null,null,null,null,null,"",null,null,null,null,null,null,"　",null,"　",null,"　",null,null,null,"",null,null,null,null,null,null,null,null,"",""]
[null,{"$f":"IFERROR(VLOOKUP(AH535,'ID(当院入力シート)'!E:F,2,FALSE)&\"\",\"\")","v":""},null,null,null,null,null,null,"",null,null,null,null,null,null,"　",null,"　",null,"　",null,null,null,"",null,null,null,null,null,null,null,null,"",""]
[null,{"$f":"IFERROR(VLOOKUP(AH536,'ID(当院入力シート)'!E:F,2,FALSE)&\"\",\"\")","v":""},null,null,null,null,null,null,"",null,null,null,null,null,null,"　",null,"　",null,"　",null,null,null,"",null,null,null,null,null,null,null,null,"",""]
[null,{"$f":"IFERROR(VLOOKUP(AH537,'ID(当院入力シート)'!E:F,2,FALSE)&\"\",\"\")","v":""},null,null,null,null,null,null,"",null,null,null,null,null,null,"　",null,"　",null,"　",null,null,null,"",null,null,null,null,null,null,null,null,"",""]
[null,{"$f":"IFERROR(VLOOKUP(AH538,'ID(当院入力シート)'!E:F,2,FALSE)&\"\",\"\")","v":""},null,null,null,null,null,null,"",null,null,null,null,null,null,"　",null,"　",null,"　",null,null,null,"",null,null,null,null,null,null,null,null,"",""]
[null,{"$f":"IFERROR(VLOOKUP(AH539,'ID(当院入力シート)'!E:F,2,FALSE)&\"\",\"\")","v":""},null,null,null,null,null,null,"",null,null,null,null,null,null,"　",null,"　",null,"　",null,null,null,"",null,null,null,null,null,null,null,null,"",""]
[null,{"$f":"IFERROR(VLOOKUP(AH540,'ID(当院入力シート)'!E:F,2,FALSE)&\"\",\"\")","v":""},null,null,null,null,null,null,"",null,null,null,null,null,null,"　",null,"　",null,"　",null,null,null,"",null,null,null,null,null,null,null,null,"",""]
[null,{"$f":"IFERROR(VLOOKUP(AH541,'ID(当院入力シート)'!E:F,2,FALSE)&\"\",\"\")","v":""},null,null,null,null,null,null,"",null,null,null,null,null,null,"　",null,"　",null,"　",null,null,null,"",null,null,null,null,null,null,null,null,"",""]
[null,{"$f":"IFERROR(VLOOKUP(AH542,'ID(当院入力シート)'!E:F,2,FALSE)&\"\",\"\")","v":""},null,null,null,null,null,null,"",null,null,null,null,null,null,"　",null,"　",null,"　",null,null,null,"",null,null,null,null,null,null,null,null,"",""]
[null,{"$f":"IFERROR(VLOOKUP(AH543,'ID(当院入力シート)'!E:F,2,FALSE)&\"\",\"\")","v":""},null,null,null,null,null,null,"",null,null,null,null,null,null,"　",null,"　",null,"　",null,null,null,"",null,null,null,null,null,null,null,null,"",""]
[null,{"$f":"IFERROR(VLOOKUP(AH544,'ID(当院入力シート)'!E:F,2,FALSE)&\"\",\"\")","v":""},null,null,null,null,null,null,"",null,null,null,null,null,null,"　",null,"　",null,"　",null,null,null,"",null,null,null,null,null,null,null,null,"",""]
[null,{"$f":"IFERROR(VLOOKUP(AH545,'ID(当院入力シート)'!E:F,2,FALSE)&\"\",\"\")","v":""},null,null,null,null,null,null,"",null,null,null,null,null,null,"　",null,"　",null,"　",null,null,null,"",null,null,null,null,null,null,null,null,"",""]
[null,{"$f":"IFERROR(VLOOKUP(AH546,'ID(当院入力シート)'!E:F,2,FALSE)&\"\",\"\")","v":""},null,null,null,null,null,null,"",null,null,null,null,null,null,"　",null,"　",null,"　",null,null,null,"",null,null,null,null,null,null,null,null,"",""]
[null,{"$f":"IFERROR(VLOOKUP(AH547,'ID(当院入力シート)'!E:F,2,FALSE)&\"\",\"\")","v":""},null,null,null,null,null,null,"",null,null,null,null,null,null,"　",null,"　",null,"　",null,null,null,"",null,null,null,null,null,null,null,null,"",""]
[null,{"$f":"IFERROR(VLOOKUP(AH548,'ID(当院入力シート)'!E:F,2,FALSE)&\"\",\"\")","v":""},null,null,null,null,null,null,"",null,null,null,null,null,null,"　",null,"　",null,"　",null,null,null,"",null,null,null,null,null,null,null,null,"",""]
[null,{"$f":"IFERROR(VLOOKUP(AH549,'ID(当院入力シート)'!E:F,2,FALSE)&\"\",\"\")","v":""},null,null,null,null,null,null,"",null,null,null,null,null,null,"　",null,"　",null,"　",null,null,null,"",null,null,null,null,null,null,null,null,"",""]
[null,{"$f":"IFERROR(VLOOKUP(AH550,'ID(当院入力シート)'!E:F,2,FALSE)&\"\",\"\")","v":""},null,null,null,null,null,null,"",null,null,null,null,null,null,"　",null,"　",null,"　",null,null,null,"",null,null,null,null,null,null,null,null,"",""]
[null,{"$f":"IFERROR(VLOOKUP(AH551,'ID(当院入力シート)'!E:F,2,FALSE)&\"\",\"\")","v":""},null,null,null,null,null,null,"",null,null,null,null,null,null,"　",null,"　",null,"　",null,null,null,"",null,null,null,null,null,null,null,null,"",""]
[null,{"$f":"IFERROR(VLOOKUP(AH552,'ID(当院入力シート)'!E:F,2,FALSE)&\"\",\"\")","v":""},null,null,null,null,null,null,"",null,null,null,null,null,null,"　",null,"　",null,"　",null,null,null,"",null,null,null,null,null,null,null,null,"",""]
[null,{"$f":"IFERROR(VLOOKUP(AH553,'ID(当院入力シート)'!E:F,2,FALSE)&\"\",\"\")","v":""},null,null,null,null,null,null,"",null,null,null,null,null,null,"　",null,"　",null,"　",null,null,null,"",null,null,null,null,null,null,null,null,"",""]
[null,{"$f":"IFERROR(VLOOKUP(AH554,'ID(当院入力シート)'!E:F,2,FALSE)&\"\",\"\")","v":""},null,null,null,null,null,null,"",null,null,null,null,null,null,"　",null,"　",null,"　",null,null,null,"",null,null,null,null,null,null,null,null,"",""]
[null,{"$f":"IFERROR(VLOOKUP(AH555,'ID(当院入力シート)'!E:F,2,FALSE)&\"\",\"\")","v":""},null,null,null,null,null,null,"",null,null,null,null,null,null,"　",null,"　",null,"　",null,null,null,"",null,null,null,null,null,null,null,null,"",""]
[null,{"$f":"IFERROR(VLOOKUP(AH556,'ID(当院入力シート)'!E:F,2,FALSE)&\"\",\"\")","v":""},null,null,null,null,null,null,"",null,null,null,null,null,null,"　",null,"　",null,"　",null,null,null,"",null,null,null,null,null,null,null,null,"",""]
[null,{"$f":"IFERROR(VLOOKUP(AH557,'ID(当院入力シート)'!E:F,2,FALSE)&\"\",\"\")","v":""},null,null,null,null,null,null,"",null,null,null,null,null,null,"　",null,"　",null,"　",null,null,null,"",null,null,null,null,null,null,null,null,"",""]
[null,{"$f":"IFERROR(VLOOKUP(AH558,'ID(当院入力シート)'!E:F,2,FALSE)&\"\",\"\")","v":""},null,null,null,null,null,null,"",null,null,null,null,null,null,"　",null,"　",null,"　",null,null,null,"",null,null,null,null,null,null,null,null,"",""]
[null,{"$f":"IFERROR(VLOOKUP(AH559,'ID(当院入力シート)'!E:F,2,FALSE)&\"\",\"\")","v":""},null,null,null,null,null,null,"",null,null,null,null,null,null,"　",null,"　",null,"　",null,null,null,"",null,null,null,null,null,null,null,null,"",""]
[null,{"$f":"IFERROR(VLOOKUP(AH560,'ID(当院入力シート)'!E:F,2,FALSE)&\"\",\"\")","v":""},null,null,null,null,null,null,"",null,null,null,null,null,null,"　",null,"　",null,"　",null,null,null,"",null,null,null,null,null,null,null,null,"",""]
[null,{"$f":"IFERROR(VLOOKUP(AH561,'ID(当院入力シート)'!E:F,2,FALSE)&\"\",\"\")","v":""},null,null,null,null,null,null,"",null,null,null,null,null,null,"　",null,"　",null,"　",null,null,null,"",null,null,null,null,null,null,null,null,"",""]
[null,{"$f":"IFERROR(VLOOKUP(AH562,'ID(当院入力シート)'!E:F,2,FALSE)&\"\",\"\")","v":""},null,null,null,null,null,null,"",null,null,null,null,null,null,"　",null,"　",null,"　",null,null,null,"",null,null,null,null,null,null,null,null,"",""]
[null,{"$f":"IFERROR(VLOOKUP(AH563,'ID(当院入力シート)'!E:F,2,FALSE)&\"\",\"\")","v":""},null,null,null,null,null,null,"",null,null,null,null,null,null,"　",null,"　",null,"　",null,null,null,"",null,null,null,null,null,null,null,null,"",""]
[null,{"$f":"IFERROR(VLOOKUP(AH564,'ID(当院入力シート)'!E:F,2,FALSE)&\"\",\"\")","v":""},null,null,null,null,null,null,"",null,null,null,null,null,null,"　",null,"　",null,"　",null,null,null,"",null,null,null,null,null,null,null,null,"",""]
[null,{"$f":"IFERROR(VLOOKUP(AH565,'ID(当院入力シート)'!E:F,2,FALSE)&\"\",\"\")","v":""},null,null,null,null,null,null,"",null,null,null,null,null,null,"　",null,"　",null,"　",null,null,null,"",null,null,null,null,null,null,null,null,"",""]
[null,{"$f":"IFERROR(VLOOKUP(AH566,'ID(当院入力シート)'!E:F,2,FALSE)&\"\",\"\")","v":""},null,null,null,null,null,null,"",null,null,null,null,null,null,"　",null,"　",null,"　",null,null,null,"",null,null,null,null,null,null,null,null,"",""]
[null,{"$f":"IFERROR(VLOOKUP(AH567,'ID(当院入力シート)'!E:F,2,FALSE)&\"\",\"\")","v":""},null,null,null,null,null,null,"",null,null,null,null,null,null,"　",null,"　",null,"　",null,null,null,"",null,null,null,null,null,null,null,null,"",""]
[null,{"$f":"IFERROR(VLOOKUP(AH568,'ID(当院入力シート)'!E:F,2,FALSE)&\"\",\"\")","v":""},null,null,null,null,null,null,"",null,null,null,null,null,null,"　",null,"　",null,"　",null,null,null,"",null,null,null,null,null,null,null,null,"",""]
[null,{"$f":"IFERROR(VLOOKUP(AH569,'ID(当院入力シート)'!E:F,2,FALSE)&\"\",\"\")","v":""},null,null,null,null,null,null,"",null,null,null,null,null,null,"　",null,"　",null,"　",null,null,null,"",null,null,null,null,null,null,null,null,"",""]
[null,{"$f":"IFERROR(VLOOKUP(AH570,'ID(当院入力シート)'!E:F,2,FALSE)&\"\",\"\")","v":""},null,null,null,null,null,null,"",null,null,null,null,null,null,"　",null,"　",null,"　",null,null,null,"",null,null,null,null,null,null,null,null,"",""]
[null,{"$f":"IFERROR(VLOOKUP(AH571,'ID(当院入力シート)'!E:F,2,FALSE)&\"\",\"\")","v":""},null,null,null,null,null,null,"",null,null,null,null,null,null,"　",null,"　",null,"　",null,null,null,"",null,null,null,null,null,null,null,null,"",""]
[null,{"$f":"IFERROR(VLOOKUP(AH572,'ID(当院入力シート)'!E:F,2,FALSE)&\"\",\"\")","v":""},null,null,null,null,null,null,"",null,null,null,null,null,null,"　",null,"　",null,"　",null,null,null,"",null,null,null,null,null,null,null,null,"",""]
[null,{"$f":"IFERROR(VLOOKUP(AH573,'ID(当院入力シート)'!E:F,2,FALSE)&\"\",\"\")","v":""},null,null,null,null,null,null,"",null,null,null,null,null,null,"　",null,"　",null,"　",null,null,null,"",null,null,null,null,null,null,null,null,"",""]
[null,{"$f":"IFERROR(VLOOKUP(AH574,'ID(当院入力シート)'!E:F,2,FALSE)&\"\",\"\")","v":""},null,null,null,null,null,null,"",null,null,null,null,null,null,"　",null,"　",null,"　",null,null,null,"",null,null,null,null,null,null,null,null,"",""]
[null,{"$f":"IFERROR(VLOOKUP(AH575,'ID(当院入力シート)'!E:F,2,FALSE)&\"\",\"\")","v":""},null,null,null,null,null,null,"",null,null,null,null,null,null,"　",null,"　",null,"　",null,null,null,"",null,null,null,null,null,null,null,null,"",""]
[null,{"$f":"IFERROR(VLOOKUP(AH576,'ID(当院入力シート)'!E:F,2,FALSE)&\"\",\"\")","v":""},null,null,null,null,null,null,"",null,null,null,null,null,null,"　",null,"　",null,"　",null,null,null,"",null,null,null,null,null,null,null,null,"",""]
[null,{"$f":"IFERROR(VLOOKUP(AH577,'ID(当院入力シート)'!E:F,2,FALSE)&\"\",\"\")","v":""},null,null,null,null,null,null,"",null,null,null,null,null,null,"　",null,"　",null,"　",null,null,null,{"$f":"IF(W577=\"\",\"\", \"(\" & TEXT(W577,\"aaa\") & \")\")","v":""},null,null,null,null,null,null,null,null,"",""]
[null,{"$f":"IFERROR(VLOOKUP(AH578,'ID(当院入力シート)'!E:F,2,FALSE)&\"\",\"\")","v":""},null,null,null,null,null,null,"",null,null,null,null,null,null,"　",null,"　",null,"　",null,null,null,"",null,null,null,null,null,null,null,null,"",""]
[null,{"$f":"IFERROR(VLOOKUP(AH579,'ID(当院入力シート)'!E:F,2,FALSE)&\"\",\"\")","v":""},null,null,null,null,null,null,"",null,null,null,null,null,null,"　",null,"　",null,"　",null,null,null,"",null,null,null,null,null,null,null,null,"",""]
[null,{"$f":"IFERROR(VLOOKUP(AH580,'ID(当院入力シート)'!E:F,2,FALSE)&\"\",\"\")","v":""},null,null,null,null,null,null,"",null,null,null,null,null,null,"　",null,"　",null,"　",null,null,null,"",null,null,null,null,null,null,null,null,"",""]
[null,{"$f":"IFERROR(VLOOKUP(AH581,'ID(当院入力シート)'!E:F,2,FALSE)&\"\",\"\")","v":""},null,null,null,null,null,null,"",null,null,null,null,null,null,"　",null,"　",null,"　",null,null,null,"",null,null,null,null,null,null,null,null,"",""]
[null,{"$f":"IFERROR(VLOOKUP(AH582,'ID(当院入力シート)'!E:F,2,FALSE)&\"\",\"\")","v":""},null,null,null,null,null,null,"",null,null,null,null,null,null,"　",null,"　",null,"　",null,null,null,"",null,null,null,null,null,null,null,null,"",""]
[null,{"$f":"IFERROR(VLOOKUP(AH583,'ID(当院入力シート)'!E:F,2,FALSE)&\"\",\"\")","v":""},null,null,null,null,null,null,"",null,null,null,null,null,null,"　",null,"　",null,"　",null,null,null,"",null,null,null,null,null,null,null,null,"",""]
[null,{"$f":"IFERROR(VLOOKUP(AH584,'ID(当院入力シート)'!E:F,2,FALSE)&\"\",\"\")","v":""},null,null,null,null,null,null,"",null,null,null,null,null,null,"　",null,"　",null,"　",null,null,null,"",null,null,null,null,null,null,null,null,"",""]
[null,{"$f":"IFERROR(VLOOKUP(AH585,'ID(当院入力シート)'!E:F,2,FALSE)&\"\",\"\")","v":""},null,null,null,null,null,null,"",null,null,null,null,null,null,"　",null,"　",null,"　",null,null,null,"",null,null,null,null,null,null,null,null,"",""]
[null,{"$f":"IFERROR(VLOOKUP(AH586,'ID(当院入力シート)'!E:F,2,FALSE)&\"\",\"\")","v":""},null,null,null,null,null,null,"",null,null,null,null,null,null,"　",null,"　",null,"　",null,null,null,"",null,null,null,null,null,null,null,null,"",""]
[null,{"$f":"IFERROR(VLOOKUP(AH587,'ID(当院入力シート)'!E:F,2,FALSE)&\"\",\"\")","v":""},null,null,null,null,null,null,"",null,null,null,null,null,null,"　",null,"　",null,"　",null,null,null,"",null,null,null,null,null,null,null,null,"",""]
[null,{"$f":"IFERROR(VLOOKUP(AH588,'ID(当院入力シート)'!E:F,2,FALSE)&\"\",\"\")","v":""},null,null,null,null,null,null,"",null,null,null,null,null,null,"　",null,"　",null,"　",null,null,null,"",null,null,null,null,null,null,null,null,"",""]
[null,{"$f":"IFERROR(VLOOKUP(AH589,'ID(当院入力シート)'!E:F,2,FALSE)&\"\",\"\")","v":""},null,null,null,null,null,null,"",null,null,null,null,null,null,"　",null,"　",null,"　",null,null,null,"",null,null,null,null,null,null,null,null,"",""]
[null,{"$f":"IFERROR(VLOOKUP(AH590,'ID(当院入力シート)'!E:F,2,FALSE)&\"\",\"\")","v":""},null,null,null,null,null,null,"",null,null,null,null,null,null,"　",null,"　",null,"　",null,null,null,"",null,null,null,null,null,null,null,null,"",""]
[null,{"$f":"IFERROR(VLOOKUP(AH591,'ID(当院入力シート)'!E:F,2,FALSE)&\"\",\"\")","v":""},null,null,null,null,null,null,"",null,null,null,null,null,null,"　",null,"　",null,"　",null,null,null,"",null,null,null,null,null,null,null,null,"",""]
[null,{"$f":"IFERROR(VLOOKUP(AH592,'ID(当院入力シート)'!E:F,2,FALSE)&\"\",\"\")","v":""},null,null,null,null,null,null,{"$f":"IF(OR(H592=\"\", $I$8=\"\"), \"\", DATEDIF(H592,$I$8,\"y\"))","v":""},null,null,null,null,null,null,"　",null,"　",null,"　",null,null,null,"",null,null,null,null,null,null,null,null,{"$f":"SUBSTITUTE(SUBSTITUTE(E592,\"　\",\"\"),\" \",\"\")","v":""},{"$f":"AG592&H592","v":""}]
[null,{"$f":"IFERROR(VLOOKUP(AH593,'ID(当院入力シート)'!E:F,2,FALSE)&\"\",\"\")","v":""},null,null,null,null,null,null,"",null,null,null,null,null,null,"　",null,"　",null,"　",null,null,null,"",null,null,null,null,null,null,null,null,"",""]
[null,{"$f":"IFERROR(VLOOKUP(AH594,'ID(当院入力シート)'!E:F,2,FALSE)&\"\",\"\")","v":""},null,null,null,null,null,null,"",null,null,null,null,null,null,"　",null,"　",null,"　",null,null,null,"",null,null,null,null,null,null,null,null,"",""]
[null,{"$f":"IFERROR(VLOOKUP(AH595,'ID(当院入力シート)'!E:F,2,FALSE)&\"\",\"\")","v":""},null,null,null,null,null,null,"",null,null,null,null,null,null,"　",null,"　",null,"　",null,null,null,"",null,null,null,null,null,null,null,null,"",""]
[null,{"$f":"IFERROR(VLOOKUP(AH596,'ID(当院入力シート)'!E:F,2,FALSE)&\"\",\"\")","v":""},null,null,null,null,null,null,"",null,null,null,null,null,null,"　",null,"　",null,"　",null,null,null,"",null,null,null,null,null,null,null,null,"",""]
[null,{"$f":"IFERROR(VLOOKUP(AH597,'ID(当院入力シート)'!E:F,2,FALSE)&\"\",\"\")","v":""},null,null,null,null,null,null,"",null,null,null,null,null,null,"　",null,"　",null,"　",null,null,null,"",null,null,null,null,null,null,null,null,"",""]
[null,{"$f":"IFERROR(VLOOKUP(AH598,'ID(当院入力シート)'!E:F,2,FALSE)&\"\",\"\")","v":""},null,null,null,null,null,null,"",null,null,null,null,null,null,"　",null,"　",null,"　",null,null,null,"",null,null,null,null,null,null,null,null,"",""]
[null,{"$f":"IFERROR(VLOOKUP(AH599,'ID(当院入力シート)'!E:F,2,FALSE)&\"\",\"\")","v":""},null,null,null,null,null,null,"",null,null,null,null,null,null,"　",null,"　",null,"　",null,null,null,"",null,null,null,null,null,null,null,null,"",""]
[null,{"$f":"IFERROR(VLOOKUP(AH600,'ID(当院入力シート)'!E:F,2,FALSE)&\"\",\"\")","v":""},null,null,null,null,null,null,"",null,null,null,null,null,null,"　",null,"　",null,"　",null,null,null,"",null,null,null,null,null,null,null,null,"",""]
[null,{"$f":"IFERROR(VLOOKUP(AH601,'ID(当院入力シート)'!E:F,2,FALSE)&\"\",\"\")","v":""},null,null,null,null,null,null,"",null,null,null,null,null,null,"　",null,"　",null,"　",null,null,null,"",null,null,null,null,null,null,null,null,"",""]
[null,{"$f":"IFERROR(VLOOKUP(AH602,'ID(当院入力シート)'!E:F,2,FALSE)&\"\",\"\")","v":""},null,null,null,null,null,null,"",null,null,null,null,null,null,"　",null,"　",null,"　",null,null,null,"",null,null,null,null,null,null,null,null,"",""]
[null,{"$f":"IFERROR(VLOOKUP(AH603,'ID(当院入力シート)'!E:F,2,FALSE)&\"\",\"\")","v":""},null,null,null,null,null,null,"",null,null,null,null,null,null,"　",null,"　",null,"　",null,null,null,"",null,null,null,null,null,null,null,null,"",""]
[null,{"$f":"IFERROR(VLOOKUP(AH604,'ID(当院入力シート)'!E:F,2,FALSE)&\"\",\"\")","v":""},null,null,null,null,null,null,"",null,null,null,null,null,null,"　",null,"　",null,"　",null,null,null,"",null,null,null,null,null,null,null,null,"",""]
[null,{"$f":"IFERROR(VLOOKUP(AH605,'ID(当院入力シート)'!E:F,2,FALSE)&\"\",\"\")","v":""},null,null,null,null,null,null,"",null,null,null,null,null,null,"　",null,"　",null,"　",null,null,null,"",null,null,null,null,null,null,null,null,"",""]
[null,{"$f":"IFERROR(VLOOKUP(AH606,'ID(当院入力シート)'!E:F,2,FALSE)&\"\",\"\")","v":""},null,null,null,null,null,null,"",null,null,null,null,null,null,"　",null,"　",null,"　",null,null,null,"",null,null,null,null,null,null,null,null,"",""]
[null,{"$f":"IFERROR(VLOOKUP(AH607,'ID(当院入力シート)'!E:F,2,FALSE)&\"\",\"\")","v":""},null,null,null,null,null,null,"",null,null,null,null,null,null,"　",null,"　",null,"　",null,null,null,"",null,null,null,null,null,null,null,null,"",""]
[null,{"$f":"IFERROR(VLOOKUP(AH608,'ID(当院入力シート)'!E:F,2,FALSE)&\"\",\"\")","v":""},null,null,null,null,null,null,"",null,null,null,null,null,null,"　",null,"　",null,"　",null,null,null,"",null,null,null,null,null,null,null,null,"",""]
[null,{"$f":"IFERROR(VLOOKUP(AH609,'ID(当院入力シート)'!E:F,2,FALSE)&\"\",\"\")","v":""},null,null,null,null,null,null,"",null,null,null,null,null,null,"　",null,"　",null,"　",null,null,null,"",null,null,null,null,null,null,null,null,"",""]
[null,{"$f":"IFERROR(VLOOKUP(AH610,'ID(当院入力シート)'!E:F,2,FALSE)&\"\",\"\")","v":""},null,null,null,null,null,null,"",null,null,null,null,null,null,"　",null,"　",null,"　",null,null,null,"",null,null,null,null,null,null,null,null,"",""]
[null,{"$f":"IFERROR(VLOOKUP(AH611,'ID(当院入力シート)'!E:F,2,FALSE)&\"\",\"\")","v":""},null,null,null,null,null,null,"",null,null,null,null,null,null,"　",null,"　",null,"　",null,null,null,"",null,null,null,null,null,null,null,null,"",""]
[null,{"$f":"IFERROR(VLOOKUP(AH612,'ID(当院入力シート)'!E:F,2,FALSE)&\"\",\"\")","v":""},null,null,null,null,null,null,"",null,null,null,null,null,null,"　",null,"　",null,"　",null,null,null,"",null,null,null,null,null,null,null,null,"",""]
[null,{"$f":"IFERROR(VLOOKUP(AH613,'ID(当院入力シート)'!E:F,2,FALSE)&\"\",\"\")","v":""},null,null,null,null,null,null,"",null,null,null,null,null,null,"　",null,"　",null,"　",null,null,null,"",null,null,null,null,null,null,null,null,"",""]
[null,{"$f":"IFERROR(VLOOKUP(AH614,'ID(当院入力シート)'!E:F,2,FALSE)&\"\",\"\")","v":""},null,null,null,null,null,null,"",null,null,null,null,null,null,"　",null,"　",null,"　",null,null,null,"",null,null,null,null,null,null,null,null,"",""]
[null,{"$f":"IFERROR(VLOOKUP(AH615,'ID(当院入力シート)'!E:F,2,FALSE)&\"\",\"\")","v":""},null,null,null,null,null,null,"",null,null,null,null,null,null,"　",null,"　",null,"　",null,null,null,"",null,null,null,null,null,null,null,null,"",""]
[null,{"$f":"IFERROR(VLOOKUP(AH616,'ID(当院入力シート)'!E:F,2,FALSE)&\"\",\"\")","v":""},null,null,null,null,null,null,"",null,null,null,null,null,null,"　",null,"　",null,"　",null,null,null,"",null,null,null,null,null,null,null,null,"",""]
[null,{"$f":"IFERROR(VLOOKUP(AH617,'ID(当院入力シート)'!E:F,2,FALSE)&\"\",\"\")","v":""},null,null,null,null,null,null,"",null,null,null,null,null,null,"　",null,"　",null,"　",null,null,null,"",null,null,null,null,null,null,null,null,"",""]
[null,{"$f":"IFERROR(VLOOKUP(AH618,'ID(当院入力シート)'!E:F,2,FALSE)&\"\",\"\")","v":""},null,null,null,null,null,null,"",null,null,null,null,null,null,"　",null,"　",null,"　",null,null,null,"",null,null,null,null,null,null,null,null,"",""]
[null,{"$f":"IFERROR(VLOOKUP(AH619,'ID(当院入力シート)'!E:F,2,FALSE)&\"\",\"\")","v":""},null,null,null,null,null,null,"",null,null,null,null,null,null,"　",null,"　",null,"　",null,null,null,"",null,null,null,null,null,null,null,null,"",""]
[null,{"$f":"IFERROR(VLOOKUP(AH620,'ID(当院入力シート)'!E:F,2,FALSE)&\"\",\"\")","v":""},null,null,null,null,null,null,"",null,null,null,null,null,null,"　",null,"　",null,"　",null,null,null,"",null,null,null,null,null,null,null,null,"",""]
[null,{"$f":"IFERROR(VLOOKUP(AH621,'ID(当院入力シート)'!E:F,2,FALSE)&\"\",\"\")","v":""},null,null,null,null,null,null,"",null,null,null,null,null,null,"　",null,"　",null,"　",null,null,null,"",null,null,null,null,null,null,null,null,"",""]
[null,{"$f":"IFERROR(VLOOKUP(AH622,'ID(当院入力シート)'!E:F,2,FALSE)&\"\",\"\")","v":""},null,null,null,null,null,null,"",null,null,null,null,null,null,"　",null,"　",null,"　",null,null,null,"",null,null,null,null,null,null,null,null,"",""]
[null,{"$f":"IFERROR(VLOOKUP(AH623,'ID(当院入力シート)'!E:F,2,FALSE)&\"\",\"\")","v":""},null,null,null,null,null,null,"",null,null,null,null,null,null,"　",null,"　",null,"　",null,null,null,"",null,null,null,null,null,null,null,null,"",""]
[null,{"$f":"IFERROR(VLOOKUP(AH624,'ID(当院入力シート)'!E:F,2,FALSE)&\"\",\"\")","v":""},null,null,null,null,null,null,"",null,null,null,null,null,null,"　",null,"　",null,"　",null,null,null,"",null,null,null,null,null,null,null,null,"",""]
[null,{"$f":"IFERROR(VLOOKUP(AH625,'ID(当院入力シート)'!E:F,2,FALSE)&\"\",\"\")","v":""},null,null,null,null,null,null,"",null,null,null,null,null,null,"　",null,"　",null,"　",null,null,null,"",null,null,null,null,null,null,null,null,"",""]
[null,{"$f":"IFERROR(VLOOKUP(AH626,'ID(当院入力シート)'!E:F,2,FALSE)&\"\",\"\")","v":""},null,null,null,null,null,null,"",null,null,null,null,null,null,"　",null,"　",null,"　",null,null,null,"",null,null,null,null,null,null,null,null,"",""]
[null,{"$f":"IFERROR(VLOOKUP(AH627,'ID(当院入力シート)'!E:F,2,FALSE)&\"\",\"\")","v":""},null,null,null,null,null,null,"",null,null,null,null,null,null,"　",null,"　",null,"　",null,null,null,"",null,null,null,null,null,null,null,null,"",""]
[null,{"$f":"IFERROR(VLOOKUP(AH628,'ID(当院入力シート)'!E:F,2,FALSE)&\"\",\"\")","v":""},null,null,null,null,null,null,"",null,null,null,null,null,null,"　",null,"　",null,"　",null,null,null,"",null,null,null,null,null,null,null,null,"",""]
[null,{"$f":"IFERROR(VLOOKUP(AH629,'ID(当院入力シート)'!E:F,2,FALSE)&\"\",\"\")","v":""},null,null,null,null,null,null,"",null,null,null,null,null,null,"　",null,"　",null,"　",null,null,null,"",null,null,null,null,null,null,null,null,"",""]
[null,{"$f":"IFERROR(VLOOKUP(AH630,'ID(当院入力シート)'!E:F,2,FALSE)&\"\",\"\")","v":""},null,null,null,null,null,null,"",null,null,null,null,null,null,"　",null,"　",null,"　",null,null,null,"",null,null,null,null,null,null,null,null,"",""]
[null,{"$f":"IFERROR(VLOOKUP(AH631,'ID(当院入力シート)'!E:F,2,FALSE)&\"\",\"\")","v":""},null,null,null,null,null,null,"",null,null,null,null,null,null,"　",null,"　",null,"　",null,null,null,"",null,null,null,null,null,null,null,null,"",""]
[null,{"$f":"IFERROR(VLOOKUP(AH632,'ID(当院入力シート)'!E:F,2,FALSE)&\"\",\"\")","v":""},null,null,null,null,null,null,"",null,null,null,null,null,null,"　",null,"　",null,"　",null,null,null,"",null,null,null,null,null,null,null,null,"",""]
[null,{"$f":"IFERROR(VLOOKUP(AH633,'ID(当院入力シート)'!E:F,2,FALSE)&\"\",\"\")","v":""},null,null,null,null,null,null,"",null,null,null,null,null,null,"　",null,"　",null,"　",null,null,null,"",null,null,null,null,null,null,null,null,"",""]
[null,{"$f":"IFERROR(VLOOKUP(AH634,'ID(当院入力シート)'!E:F,2,FALSE)&\"\",\"\")","v":""},null,null,null,null,null,null,"",null,null,null,null,null,null,"　",null,"　",null,"　",null,null,null,"",null,null,null,null,null,null,null,null,"",""]
[null,{"$f":"IFERROR(VLOOKUP(AH635,'ID(当院入力シート)'!E:F,2,FALSE)&\"\",\"\")","v":""},null,null,null,null,null,null,"",null,null,null,null,null,null,"　",null,"　",null,"　",null,null,null,"",null,null,null,null,null,null,null,null,"",""]
[null,{"$f":"IFERROR(VLOOKUP(AH636,'ID(当院入力シート)'!E:F,2,FALSE)&\"\",\"\")","v":""},null,null,null,null,null,null,"",null,null,null,null,null,null,"　",null,"　",null,"　",null,null,null,"",null,null,null,null,null,null,null,null,"",""]
[null,{"$f":"IFERROR(VLOOKUP(AH637,'ID(当院入力シート)'!E:F,2,FALSE)&\"\",\"\")","v":""},null,null,null,null,null,null,"",null,null,null,null,null,null,"　",null,"　",null,"　",null,null,null,"",null,null,null,null,null,null,null,null,"",""]
[null,{"$f":"IFERROR(VLOOKUP(AH638,'ID(当院入力シート)'!E:F,2,FALSE)&\"\",\"\")","v":""},null,null,null,null,null,null,"",null,null,null,null,null,null,"　",null,"　",null,"　",null,null,null,"",null,null,null,null,null,null,null,null,"",""]
[null,{"$f":"IFERROR(VLOOKUP(AH639,'ID(当院入力シート)'!E:F,2,FALSE)&\"\",\"\")","v":""},null,null,null,null,null,null,"",null,null,null,null,null,null,"　",null,"　",null,"　",null,null,null,"",null,null,null,null,null,null,null,null,"",""]
[null,{"$f":"IFERROR(VLOOKUP(AH640,'ID(当院入力シート)'!E:F,2,FALSE)&\"\",\"\")","v":""},null,null,null,null,null,null,"",null,null,null,null,null,null,"　",null,"　",null,"　",null,null,null,"",null,null,null,null,null,null,null,null,"",""]
[null,{"$f":"IFERROR(VLOOKUP(AH641,'ID(当院入力シート)'!E:F,2,FALSE)&\"\",\"\")","v":""},null,null,null,null,null,null,"",null,null,null,null,null,null,"　",null,"　",null,"　",null,null,null,{"$f":"IF(W641=\"\",\"\", \"(\" & TEXT(W641,\"aaa\") & \")\")","v":""},null,null,null,null,null,null,null,null,"",""]
[null,{"$f":"IFERROR(VLOOKUP(AH642,'ID(当院入力シート)'!E:F,2,FALSE)&\"\",\"\")","v":""},null,null,null,null,null,null,"",null,null,null,null,null,null,"　",null,"　",null,"　",null,null,null,"",null,null,null,null,null,null,null,null,"",""]
[null,{"$f":"IFERROR(VLOOKUP(AH643,'ID(当院入力シート)'!E:F,2,FALSE)&\"\",\"\")","v":""},null,null,null,null,null,null,"",null,null,null,null,null,null,"　",null,"　",null,"　",null,null,null,"",null,null,null,null,null,null,null,null,"",""]
[null,{"$f":"IFERROR(VLOOKUP(AH644,'ID(当院入力シート)'!E:F,2,FALSE)&\"\",\"\")","v":""},null,null,null,null,null,null,"",null,null,null,null,null,null,"　",null,"　",null,"　",null,null,null,"",null,null,null,null,null,null,null,null,"",""]
[null,{"$f":"IFERROR(VLOOKUP(AH645,'ID(当院入力シート)'!E:F,2,FALSE)&\"\",\"\")","v":""},null,null,null,null,null,null,"",null,null,null,null,null,null,"　",null,"　",null,"　",null,null,null,"",null,null,null,null,null,null,null,null,"",""]
[null,{"$f":"IFERROR(VLOOKUP(AH646,'ID(当院入力シート)'!E:F,2,FALSE)&\"\",\"\")","v":""},null,null,null,null,null,null,"",null,null,null,null,null,null,"　",null,"　",null,"　",null,null,null,"",null,null,null,null,null,null,null,null,"",""]
[null,{"$f":"IFERROR(VLOOKUP(AH647,'ID(当院入力シート)'!E:F,2,FALSE)&\"\",\"\")","v":""},null,null,null,null,null,null,"",null,null,null,null,null,null,"　",null,"　",null,"　",null,null,null,"",null,null,null,null,null,null,null,null,"",""]
[null,{"$f":"IFERROR(VLOOKUP(AH648,'ID(当院入力シート)'!E:F,2,FALSE)&\"\",\"\")","v":""},null,null,null,null,null,null,"",null,null,null,null,null,null,"　",null,"　",null,"　",null,null,null,"",null,null,null,null,null,null,null,null,"",""]
[null,{"$f":"IFERROR(VLOOKUP(AH649,'ID(当院入力シート)'!E:F,2,FALSE)&\"\",\"\")","v":""},null,null,null,null,null,null,"",null,null,null,null,null,null,"　",null,"　",null,"　",null,null,null,"",null,null,null,null,null,null,null,null,"",""]
[null,{"$f":"IFERROR(VLOOKUP(AH650,'ID(当院入力シート)'!E:F,2,FALSE)&\"\",\"\")","v":""},null,null,null,null,null,null,"",null,null,null,null,null,null,"　",null,"　",null,"　",null,null,null,"",null,null,null,null,null,null,null,null,"",""]
[null,{"$f":"IFERROR(VLOOKUP(AH651,'ID(当院入力シート)'!E:F,2,FALSE)&\"\",\"\")","v":""},null,null,null,null,null,null,"",null,null,null,null,null,null,"　",null,"　",null,"　",null,null,null,"",null,null,null,null,null,null,null,null,"",""]
[null,{"$f":"IFERROR(VLOOKUP(AH652,'ID(当院入力シート)'!E:F,2,FALSE)&\"\",\"\")","v":""},null,null,null,null,null,null,"",null,null,null,null,null,null,"　",null,"　",null,"　",null,null,null,"",null,null,null,null,null,null,null,null,"",""]
[null,{"$f":"IFERROR(VLOOKUP(AH653,'ID(当院入力シート)'!E:F,2,FALSE)&\"\",\"\")","v":""},null,null,null,null,null,null,"",null,null,null,null,null,null,"　",null,"　",null,"　",null,null,null,"",null,null,null,null,null,null,null,null,"",""]
[null,{"$f":"IFERROR(VLOOKUP(AH654,'ID(当院入力シート)'!E:F,2,FALSE)&\"\",\"\")","v":""},null,null,null,null,null,null,"",null,null,null,null,null,null,"　",null,"　",null,"　",null,null,null,"",null,null,null,null,null,null,null,null,"",""]
[null,{"$f":"IFERROR(VLOOKUP(AH655,'ID(当院入力シート)'!E:F,2,FALSE)&\"\",\"\")","v":""},null,null,null,null,null,null,"",null,null,null,null,null,null,"　",null,"　",null,"　",null,null,null,"",null,null,null,null,null,null,null,null,"",""]
[null,{"$f":"IFERROR(VLOOKUP(AH656,'ID(当院入力シート)'!E:F,2,FALSE)&\"\",\"\")","v":""},null,null,null,null,null,null,{"$f":"IF(OR(H656=\"\", $I$8=\"\"), \"\", DATEDIF(H656,$I$8,\"y\"))","v":""},null,null,null,null,null,null,"　",null,"　",null,"　",null,null,null,"",null,null,null,null,null,null,null,null,{"$f":"SUBSTITUTE(SUBSTITUTE(E656,\"　\",\"\"),\" \",\"\")","v":""},{"$f":"AG656&H656","v":""}]
[null,{"$f":"IFERROR(VLOOKUP(AH657,'ID(当院入力シート)'!E:F,2,FALSE)&\"\",\"\")","v":""},null,null,null,null,null,null,"",null,null,null,null,null,null,"　",null,"　",null,"　",null,null,null,"",null,null,null,null,null,null,null,null,"",""]
[null,{"$f":"IFERROR(VLOOKUP(AH658,'ID(当院入力シート)'!E:F,2,FALSE)&\"\",\"\")","v":""},null,null,null,null,null,null,"",null,null,null,null,null,null,"　",null,"　",null,"　",null,null,null,"",null,null,null,null,null,null,null,null,"",""]
[null,{"$f":"IFERROR(VLOOKUP(AH659,'ID(当院入力シート)'!E:F,2,FALSE)&\"\",\"\")","v":""},null,null,null,null,null,null,"",null,null,null,null,null,null,"　",null,"　",null,"　",null,null,null,"",null,null,null,null,null,null,null,null,"",""]
[null,{"$f":"IFERROR(VLOOKUP(AH660,'ID(当院入力シート)'!E:F,2,FALSE)&\"\",\"\")","v":""},null,null,null,null,null,null,"",null,null,null,null,null,null,"　",null,"　",null,"　",null,null,null,"",null,null,null,null,null,null,null,null,"",""]
[null,{"$f":"IFERROR(VLOOKUP(AH661,'ID(当院入力シート)'!E:F,2,FALSE)&\"\",\"\")","v":""},null,null,null,null,null,null,"",null,null,null,null,null,null,"　",null,"　",null,"　",null,null,null,"",null,null,null,null,null,null,null,null,"",""]
[null,{"$f":"IFERROR(VLOOKUP(AH662,'ID(当院入力シート)'!E:F,2,FALSE)&\"\",\"\")","v":""},null,null,null,null,null,null,"",null,null,null,null,null,null,"　",null,"　",null,"　",null,null,null,"",null,null,null,null,null,null,null,null,"",""]
[null,{"$f":"IFERROR(VLOOKUP(AH663,'ID(当院入力シート)'!E:F,2,FALSE)&\"\",\"\")","v":""},null,null,null,null,null,null,"",null,null,null,null,null,null,"　",null,"　",null,"　",null,null,null,"",null,null,null,null,null,null,null,null,"",""]
[null,{"$f":"IFERROR(VLOOKUP(AH664,'ID(当院入力シート)'!E:F,2,FALSE)&\"\",\"\")","v":""},null,null,null,null,null,null,"",null,null,null,null,null,null,"　",null,"　",null,"　",null,null,null,"",null,null,null,null,null,null,null,null,"",""]
[null,{"$f":"IFERROR(VLOOKUP(AH665,'ID(当院入力シート)'!E:F,2,FALSE)&\"\",\"\")","v":""},null,null,null,null,null,null,"",null,null,null,null,null,null,"　",null,"　",null,"　",null,null,null,"",null,null,null,null,null,null,null,null,"",""]
[null,{"$f":"IFERROR(VLOOKUP(AH666,'ID(当院入力シート)'!E:F,2,FALSE)&\"\",\"\")","v":""},null,null,null,null,null,null,"",null,null,null,null,null,null,"　",null,"　",null,"　",null,null,null,"",null,null,null,null,null,null,null,null,"",""]
[null,{"$f":"IFERROR(VLOOKUP(AH667,'ID(当院入力シート)'!E:F,2,FALSE)&\"\",\"\")","v":""},null,null,null,null,null,null,"",null,null,null,null,null,null,"　",null,"　",null,"　",null,null,null,"",null,null,null,null,null,null,null,null,"",""]
[null,{"$f":"IFERROR(VLOOKUP(AH668,'ID(当院入力シート)'!E:F,2,FALSE)&\"\",\"\")","v":""},null,null,null,null,null,null,"",null,null,null,null,null,null,"　",null,"　",null,"　",null,null,null,"",null,null,null,null,null,null,null,null,"",""]
[null,{"$f":"IFERROR(VLOOKUP(AH669,'ID(当院入力シート)'!E:F,2,FALSE)&\"\",\"\")","v":""},null,null,null,null,null,null,"",null,null,null,null,null,null,"　",null,"　",null,"　",null,null,null,"",null,null,null,null,null,null,null,null,"",""]
[null,{"$f":"IFERROR(VLOOKUP(AH670,'ID(当院入力シート)'!E:F,2,FALSE)&\"\",\"\")","v":""},null,null,null,null,null,null,"",null,null,null,null,null,null,"　",null,"　",null,"　",null,null,null,"",null,null,null,null,null,null,null,null,"",""]
[null,{"$f":"IFERROR(VLOOKUP(AH671,'ID(当院入力シート)'!E:F,2,FALSE)&\"\",\"\")","v":""},null,null,null,null,null,null,"",null,null,null,null,null,null,"　",null,"　",null,"　",null,null,null,"",null,null,null,null,null,null,null,null,"",""]
[null,{"$f":"IFERROR(VLOOKUP(AH672,'ID(当院入力シート)'!E:F,2,FALSE)&\"\",\"\")","v":""},null,null,null,null,null,null,"",null,null,null,null,null,null,"　",null,"　",null,"　",null,null,null,"",null,null,null,null,null,null,null,null,"",""]
[null,{"$f":"IFERROR(VLOOKUP(AH673,'ID(当院入力シート)'!E:F,2,FALSE)&\"\",\"\")","v":""},null,null,null,null,null,null,"",null,null,null,null,null,null,"　",null,"　",null,"　",null,null,null,"",null,null,null,null,null,null,null,null,"",""]
[null,{"$f":"IFERROR(VLOOKUP(AH674,'ID(当院入力シート)'!E:F,2,FALSE)&\"\",\"\")","v":""},null,null,null,null,null,null,"",null,null,null,null,null,null,"　",null,"　",null,"　",null,null,null,"",null,null,null,null,null,null,null,null,"",""]
[null,{"$f":"IFERROR(VLOOKUP(AH675,'ID(当院入力シート)'!E:F,2,FALSE)&\"\",\"\")","v":""},null,null,null,null,null,null,"",null,null,null,null,null,null,"　",null,"　",null,"　",null,null,null,"",null,null,null,null,null,null,null,null,"",""]
[null,{"$f":"IFERROR(VLOOKUP(AH676,'ID(当院入力シート)'!E:F,2,FALSE)&\"\",\"\")","v":""},null,null,null,null,null,null,"",null,null,null,null,null,null,"　",null,"　",null,"　",null,null,null,"",null,null,null,null,null,null,null,null,"",""]
[null,{"$f":"IFERROR(VLOOKUP(AH677,'ID(当院入力シート)'!E:F,2,FALSE)&\"\",\"\")","v":""},null,null,null,null,null,null,"",null,null,null,null,null,null,"　",null,"　",null,"　",null,null,null,"",null,null,null,null,null,null,null,null,"",""]
[null,{"$f":"IFERROR(VLOOKUP(AH678,'ID(当院入力シート)'!E:F,2,FALSE)&\"\",\"\")","v":""},null,null,null,null,null,null,"",null,null,null,null,null,null,"　",null,"　",null,"　",null,null,null,"",null,null,null,null,null,null,null,null,"",""]
[null,{"$f":"IFERROR(VLOOKUP(AH679,'ID(当院入力シート)'!E:F,2,FALSE)&\"\",\"\")","v":""},null,null,null,null,null,null,"",null,null,null,null,null,null,"　",null,"　",null,"　",null,null,null,"",null,null,null,null,null,null,null,null,"",""]
[null,{"$f":"IFERROR(VLOOKUP(AH680,'ID(当院入力シート)'!E:F,2,FALSE)&\"\",\"\")","v":""},null,null,null,null,null,null,"",null,null,null,null,null,null,"　",null,"　",null,"　",null,null,null,"",null,null,null,null,null,null,null,null,"",""]
[null,{"$f":"IFERROR(VLOOKUP(AH681,'ID(当院入力シート)'!E:F,2,FALSE)&\"\",\"\")","v":""},null,null,null,null,null,null,"",null,null,null,null,null,null,"　",null,"　",null,"　",null,null,null,"",null,null,null,null,null,null,null,null,"",""]
[null,{"$f":"IFERROR(VLOOKUP(AH682,'ID(当院入力シート)'!E:F,2,FALSE)&\"\",\"\")","v":""},null,null,null,null,null,null,"",null,null,null,null,null,null,"　",null,"　",null,"　",null,null,null,"",null,null,null,null,null,null,null,null,"",""]
[null,{"$f":"IFERROR(VLOOKUP(AH683,'ID(当院入力シート)'!E:F,2,FALSE)&\"\",\"\")","v":""},null,null,null,null,null,null,"",null,null,null,null,null,null,"　",null,"　",null,"　",null,null,null,"",null,null,null,null,null,null,null,null,"",""]
[null,{"$f":"IFERROR(VLOOKUP(AH684,'ID(当院入力シート)'!E:F,2,FALSE)&\"\",\"\")","v":""},null,null,null,null,null,null,"",null,null,null,null,null,null,"　",null,"　",null,"　",null,null,null,"",null,null,null,null,null,null,null,null,"",""]
[null,{"$f":"IFERROR(VLOOKUP(AH685,'ID(当院入力シート)'!E:F,2,FALSE)&\"\",\"\")","v":""},null,null,null,null,null,null,"",null,null,null,null,null,null,"　",null,"　",null,"　",null,null,null,"",null,null,null,null,null,null,null,null,"",""]
[null,{"$f":"IFERROR(VLOOKUP(AH686,'ID(当院入力シート)'!E:F,2,FALSE)&\"\",\"\")","v":""},null,null,null,null,null,null,"",null,null,null,null,null,null,"　",null,"　",null,"　",null,null,null,"",null,null,null,null,null,null,null,null,"",""]
[null,{"$f":"IFERROR(VLOOKUP(AH687,'ID(当院入力シート)'!E:F,2,FALSE)&\"\",\"\")","v":""},null,null,null,null,null,null,"",null,null,null,null,null,null,"　",null,"　",null,"　",null,null,null,"",null,null,null,null,null,null,null,null,"",""]
[null,{"$f":"IFERROR(VLOOKUP(AH688,'ID(当院入力シート)'!E:F,2,FALSE)&\"\",\"\")","v":""},null,null,null,null,null,null,"",null,null,null,null,null,null,"　",null,"　",null,"　",null,null,null,"",null,null,null,null,null,null,null,null,"",""]
[null,{"$f":"IFERROR(VLOOKUP(AH689,'ID(当院入力シート)'!E:F,2,FALSE)&\"\",\"\")","v":""},null,null,null,null,null,null,"",null,null,null,null,null,null,"　",null,"　",null,"　",null,null,null,"",null,null,null,null,null,null,null,null,"",""]
[null,{"$f":"IFERROR(VLOOKUP(AH690,'ID(当院入力シート)'!E:F,2,FALSE)&\"\",\"\")","v":""},null,null,null,null,null,null,"",null,null,null,null,null,null,"　",null,"　",null,"　",null,null,null,"",null,null,null,null,null,null,null,null,"",""]
[null,{"$f":"IFERROR(VLOOKUP(AH691,'ID(当院入力シート)'!E:F,2,FALSE)&\"\",\"\")","v":""},null,null,null,null,null,null,"",null,null,null,null,null,null,"　",null,"　",null,"　",null,null,null,"",null,null,null,null,null,null,null,null,"",""]
[null,{"$f":"IFERROR(VLOOKUP(AH692,'ID(当院入力シート)'!E:F,2,FALSE)&\"\",\"\")","v":""},null,null,null,null,null,null,"",null,null,null,null,null,null,"　",null,"　",null,"　",null,null,null,"",null,null,null,null,null,null,null,null,"",""]
[null,{"$f":"IFERROR(VLOOKUP(AH693,'ID(当院入力シート)'!E:F,2,FALSE)&\"\",\"\")","v":""},null,null,null,null,null,null,"",null,null,null,null,null,null,"　",null,"　",null,"　",null,null,null,"",null,null,null,null,null,null,null,null,"",""]
[null,{"$f":"IFERROR(VLOOKUP(AH694,'ID(当院入力シート)'!E:F,2,FALSE)&\"\",\"\")","v":""},null,null,null,null,null,null,"",null,null,null,null,null,null,"　",null,"　",null,"　",null,null,null,"",null,null,null,null,null,null,null,null,"",""]
[null,{"$f":"IFERROR(VLOOKUP(AH695,'ID(当院入力シート)'!E:F,2,FALSE)&\"\",\"\")","v":""},null,null,null,null,null,null,"",null,null,null,null,null,null,"　",null,"　",null,"　",null,null,null,"",null,null,null,null,null,null,null,null,"",""]
[null,{"$f":"IFERROR(VLOOKUP(AH696,'ID(当院入力シート)'!E:F,2,FALSE)&\"\",\"\")","v":""},null,null,null,null,null,null,"",null,null,null,null,null,null,"　",null,"　",null,"　",null,null,null,"",null,null,null,null,null,null,null,null,"",""]
[null,{"$f":"IFERROR(VLOOKUP(AH697,'ID(当院入力シート)'!E:F,2,FALSE)&\"\",\"\")","v":""},null,null,null,null,null,null,"",null,null,null,null,null,null,"　",null,"　",null,"　",null,null,null,"",null,null,null,null,null,null,null,null,"",""]
[null,{"$f":"IFERROR(VLOOKUP(AH698,'ID(当院入力シート)'!E:F,2,FALSE)&\"\",\"\")","v":""},null,null,null,null,null,null,"",null,null,null,null,null,null,"　",null,"　",null,"　",null,null,null,"",null,null,null,null,null,null,null,null,"",""]
[null,{"$f":"IFERROR(VLOOKUP(AH699,'ID(当院入力シート)'!E:F,2,FALSE)&\"\",\"\")","v":""},null,null,null,null,null,null,"",null,null,null,null,null,null,"　",null,"　",null,"　",null,null,null,"",null,null,null,null,null,null,null,null,"",""]
[null,{"$f":"IFERROR(VLOOKUP(AH700,'ID(当院入力シート)'!E:F,2,FALSE)&\"\",\"\")","v":""},null,null,null,null,null,null,"",null,null,null,null,null,null,"　",null,"　",null,"　",null,null,null,"",null,null,null,null,null,null,null,null,"",""]
[null,{"$f":"IFERROR(VLOOKUP(AH701,'ID(当院入力シート)'!E:F,2,FALSE)&\"\",\"\")","v":""},null,null,null,null,null,null,"",null,null,null,null,null,null,"　",null,"　",null,"　",null,null,null,"",null,null,null,null,null,null,null,null,"",""]
[null,{"$f":"IFERROR(VLOOKUP(AH702,'ID(当院入力シート)'!E:F,2,FALSE)&\"\",\"\")","v":""},null,null,null,null,null,null,"",null,null,null,null,null,null,"　",null,"　",null,"　",null,null,null,"",null,null,null,null,null,null,null,null,"",""]
[null,{"$f":"IFERROR(VLOOKUP(AH703,'ID(当院入力シート)'!E:F,2,FALSE)&\"\",\"\")","v":""},null,null,null,null,null,null,"",null,null,null,null,null,null,"　",null,"　",null,"　",null,null,null,"",null,null,null,null,null,null,null,null,"",""]
[null,{"$f":"IFERROR(VLOOKUP(AH704,'ID(当院入力シート)'!E:F,2,FALSE)&\"\",\"\")","v":""},null,null,null,null,null,null,"",null,null,null,null,null,null,"　",null,"　",null,"　",null,null,null,"",null,null,null,null,null,null,null,null,"",""]
[null,{"$f":"IFERROR(VLOOKUP(AH705,'ID(当院入力シート)'!E:F,2,FALSE)&\"\",\"\")","v":""},null,null,null,null,null,null,"",null,null,null,null,null,null,"　",null,"　",null,"　",null,null,null,{"$f":"IF(W705=\"\",\"\", \"(\" & TEXT(W705,\"aaa\") & \")\")","v":""},null,null,null,null,null,null,null,null,"",""]
[null,{"$f":"IFERROR(VLOOKUP(AH706,'ID(当院入力シート)'!E:F,2,FALSE)&\"\",\"\")","v":""},null,null,null,null,null,null,"",null,null,null,null,null,null,"　",null,"　",null,"　",null,null,null,"",null,null,null,null,null,null,null,null,"",""]
[null,{"$f":"IFERROR(VLOOKUP(AH707,'ID(当院入力シート)'!E:F,2,FALSE)&\"\",\"\")","v":""},null,null,null,null,null,null,"",null,null,null,null,null,null,"　",null,"　",null,"　",null,null,null,"",null,null,null,null,null,null,null,null,"",""]
[null,{"$f":"IFERROR(VLOOKUP(AH708,'ID(当院入力シート)'!E:F,2,FALSE)&\"\",\"\")","v":""},null,null,null,null,null,null,"",null,null,null,null,null,null,"　",null,"　",null,"　",null,null,null,"",null,null,null,null,null,null,null,null,"",""]
[null,{"$f":"IFERROR(VLOOKUP(AH709,'ID(当院入力シート)'!E:F,2,FALSE)&\"\",\"\")","v":""},null,null,null,null,null,null,"",null,null,null,null,null,null,"　",null,"　",null,"　",null,null,null,"",null,null,null,null,null,null,null,null,"",""]
[null,{"$f":"IFERROR(VLOOKUP(AH710,'ID(当院入力シート)'!E:F,2,FALSE)&\"\",\"\")","v":""},null,null,null,null,null,null,"",null,null,null,null,null,null,"　",null,"　",null,"　",null,null,null,"",null,null,null,null,null,null,null,null,"",""]
[null,{"$f":"IFERROR(VLOOKUP(AH711,'ID(当院入力シート)'!E:F,2,FALSE)&\"\",\"\")","v":""},null,null,null,null,null,null,"",null,null,null,null,null,null,"　",null,"　",null,"　",null,null,null,"",null,null,null,null,null,null,null,null,"",""]
[null,{"$f":"IFERROR(VLOOKUP(AH712,'ID(当院入力シート)'!E:F,2,FALSE)&\"\",\"\")","v":""},null,null,null,null,null,null,"",null,null,null,null,null,null,"　",null,"　",null,"　",null,null,null,"",null,null,null,null,null,null,null,null,"",""]
[null,{"$f":"IFERROR(VLOOKUP(AH713,'ID(当院入力シート)'!E:F,2,FALSE)&\"\",\"\")","v":""},null,null,null,null,null,null,"",null,null,null,null,null,null,"　",null,"　",null,"　",null,null,null,"",null,null,null,null,null,null,null,null,"",""]
[null,{"$f":"IFERROR(VLOOKUP(AH714,'ID(当院入力シート)'!E:F,2,FALSE)&\"\",\"\")","v":""},null,null,null,null,null,null,"",null,null,null,null,null,null,"　",null,"　",null,"　",null,null,null,"",null,null,null,null,null,null,null,null,"",""]
[null,{"$f":"IFERROR(VLOOKUP(AH715,'ID(当院入力シート)'!E:F,2,FALSE)&\"\",\"\")","v":""},null,null,null,null,null,null,"",null,null,null,null,null,null,"　",null,"　",null,"　",null,null,null,"",null,null,null,null,null,null,null,null,"",""]
[null,{"$f":"IFERROR(VLOOKUP(AH716,'ID(当院入力シート)'!E:F,2,FALSE)&\"\",\"\")","v":""},null,null,null,null,null,null,"",null,null,null,null,null,null,"　",null,"　",null,"　",null,null,null,"",null,null,null,null,null,null,null,null,"",""]
[null,{"$f":"IFERROR(VLOOKUP(AH717,'ID(当院入力シート)'!E:F,2,FALSE)&\"\",\"\")","v":""},null,null,null,null,null,null,"",null,null,null,null,null,null,"　",null,"　",null,"　",null,null,null,"",null,null,null,null,null,null,null,null,"",""]
[null,{"$f":"IFERROR(VLOOKUP(AH718,'ID(当院入力シート)'!E:F,2,FALSE)&\"\",\"\")","v":""},null,null,null,null,null,null,"",null,null,null,null,null,null,"　",null,"　",null,"　",null,null,null,"",null,null,null,null,null,null,null,null,"",""]
[null,{"$f":"IFERROR(VLOOKUP(AH719,'ID(当院入力シート)'!E:F,2,FALSE)&\"\",\"\")","v":""},null,null,null,null,null,null,"",null,null,null,null,null,null,"　",null,"　",null,"　",null,null,null,"",null,null,null,null,null,null,null,null,"",""]
[null,{"$f":"IFERROR(VLOOKUP(AH720,'ID(当院入力シート)'!E:F,2,FALSE)&\"\",\"\")","v":""},null,null,null,null,null,null,{"$f":"IF(OR(H720=\"\", $I$8=\"\"), \"\", DATEDIF(H720,$I$8,\"y\"))","v":""},null,null,null,null,null,null,"　",null,"　",null,"　",null,null,null,"",null,null,null,null,null,null,null,null,{"$f":"SUBSTITUTE(SUBSTITUTE(E720,\"　\",\"\"),\" \",\"\")","v":""},{"$f":"AG720&H720","v":""}]
[null,{"$f":"IFERROR(VLOOKUP(AH721,'ID(当院入力シート)'!E:F,2,FALSE)&\"\",\"\")","v":""},null,null,null,null,null,null,"",null,null,null,null,null,null,"　",null,"　",null,"　",null,null,null,"",null,null,null,null,null,null,null,null,"",""]
[null,{"$f":"IFERROR(VLOOKUP(AH722,'ID(当院入力シート)'!E:F,2,FALSE)&\"\",\"\")","v":""},null,null,null,null,null,null,"",null,null,null,null,null,null,"　",null,"　",null,"　",null,null,null,"",null,null,null,null,null,null,null,null,"",""]
[null,{"$f":"IFERROR(VLOOKUP(AH723,'ID(当院入力シート)'!E:F,2,FALSE)&\"\",\"\")","v":""},null,null,null,null,null,null,"",null,null,null,null,null,null,"　",null,"　",null,"　",null,null,null,"",null,null,null,null,null,null,null,null,"",""]
[null,{"$f":"IFERROR(VLOOKUP(AH724,'ID(当院入力シート)'!E:F,2,FALSE)&\"\",\"\")","v":""},null,null,null,null,null,null,"",null,null,null,null,null,null,"　",null,"　",null,"　",null,null,null,"",null,null,null,null,null,null,null,null,"",""]
[null,{"$f":"IFERROR(VLOOKUP(AH725,'ID(当院入力シート)'!E:F,2,FALSE)&\"\",\"\")","v":""},null,null,null,null,null,null,"",null,null,null,null,null,null,"　",null,"　",null,"　",null,null,null,"",null,null,null,null,null,null,null,null,"",""]
[null,{"$f":"IFERROR(VLOOKUP(AH726,'ID(当院入力シート)'!E:F,2,FALSE)&\"\",\"\")","v":""},null,null,null,null,null,null,"",null,null,null,null,null,null,"　",null,"　",null,"　",null,null,null,"",null,null,null,null,null,null,null,null,"",""]
[null,{"$f":"IFERROR(VLOOKUP(AH727,'ID(当院入力シート)'!E:F,2,FALSE)&\"\",\"\")","v":""},null,null,null,null,null,null,"",null,null,null,null,null,null,"　",null,"　",null,"　",null,null,null,"",null,null,null,null,null,null,null,null,"",""]
[null,{"$f":"IFERROR(VLOOKUP(AH728,'ID(当院入力シート)'!E:F,2,FALSE)&\"\",\"\")","v":""},null,null,null,null,null,null,"",null,null,null,null,null,null,"　",null,"　",null,"　",null,null,null,"",null,null,null,null,null,null,null,null,"",""]
[null,{"$f":"IFERROR(VLOOKUP(AH729,'ID(当院入力シート)'!E:F,2,FALSE)&\"\",\"\")","v":""},null,null,null,null,null,null,"",null,null,null,null,null,null,"　",null,"　",null,"　",null,null,null,"",null,null,null,null,null,null,null,null,"",""]
[null,{"$f":"IFERROR(VLOOKUP(AH730,'ID(当院入力シート)'!E:F,2,FALSE)&\"\",\"\")","v":""},null,null,null,null,null,null,"",null,null,null,null,null,null,"　",null,"　",null,"　",null,null,null,"",null,null,null,null,null,null,null,null,"",""]
[null,{"$f":"IFERROR(VLOOKUP(AH731,'ID(当院入力シート)'!E:F,2,FALSE)&\"\",\"\")","v":""},null,null,null,null,null,null,"",null,null,null,null,null,null,"　",null,"　",null,"　",null,null,null,"",null,null,null,null,null,null,null,null,"",""]
[null,{"$f":"IFERROR(VLOOKUP(AH732,'ID(当院入力シート)'!E:F,2,FALSE)&\"\",\"\")","v":""},null,null,null,null,null,null,"",null,null,null,null,null,null,"　",null,"　",null,"　",null,null,null,"",null,null,null,null,null,null,null,null,"",""]
[null,{"$f":"IFERROR(VLOOKUP(AH733,'ID(当院入力シート)'!E:F,2,FALSE)&\"\",\"\")","v":""},null,null,null,null,null,null,"",null,null,null,null,null,null,"　",null,"　",null,"　",null,null,null,"",null,null,null,null,null,null,null,null,"",""]
[null,{"$f":"IFERROR(VLOOKUP(AH734,'ID(当院入力シート)'!E:F,2,FALSE)&\"\",\"\")","v":""},null,null,null,null,null,null,"",null,null,null,null,null,null,"　",null,"　",null,"　",null,null,null,"",null,null,null,null,null,null,null,null,"",""]
[null,{"$f":"IFERROR(VLOOKUP(AH735,'ID(当院入力シート)'!E:F,2,FALSE)&\"\",\"\")","v":""},null,null,null,null,null,null,"",null,null,null,null,null,null,"　",null,"　",null,"　",null,null,null,"",null,null,null,null,null,null,null,null,"",""]
[null,{"$f":"IFERROR(VLOOKUP(AH736,'ID(当院入力シート)'!E:F,2,FALSE)&\"\",\"\")","v":""},null,null,null,null,null,null,"",null,null,null,null,null,null,"　",null,"　",null,"　",null,null,null,"",null,null,null,null,null,null,null,null,"",""]
[null,{"$f":"IFERROR(VLOOKUP(AH737,'ID(当院入力シート)'!E:F,2,FALSE)&\"\",\"\")","v":""},null,null,null,null,null,null,"",null,null,null,null,null,null,"　",null,"　",null,"　",null,null,null,"",null,null,null,null,null,null,null,null,"",""]
[null,{"$f":"IFERROR(VLOOKUP(AH738,'ID(当院入力シート)'!E:F,2,FALSE)&\"\",\"\")","v":""},null,null,null,null,null,null,"",null,null,null,null,null,null,"　",null,"　",null,"　",null,null,null,"",null,null,null,null,null,null,null,null,"",""]
[null,{"$f":"IFERROR(VLOOKUP(AH739,'ID(当院入力シート)'!E:F,2,FALSE)&\"\",\"\")","v":""},null,null,null,null,null,null,"",null,null,null,null,null,null,"　",null,"　",null,"　",null,null,null,"",null,null,null,null,null,null,null,null,"",""]
[null,{"$f":"IFERROR(VLOOKUP(AH740,'ID(当院入力シート)'!E:F,2,FALSE)&\"\",\"\")","v":""},null,null,null,null,null,null,"",null,null,null,null,null,null,"　",null,"　",null,"　",null,null,null,"",null,null,null,null,null,null,null,null,"",""]
[null,{"$f":"IFERROR(VLOOKUP(AH741,'ID(当院入力シート)'!E:F,2,FALSE)&\"\",\"\")","v":""},null,null,null,null,null,null,"",null,null,null,null,null,null,"　",null,"　",null,"　",null,null,null,"",null,null,null,null,null,null,null,null,"",""]
[null,{"$f":"IFERROR(VLOOKUP(AH742,'ID(当院入力シート)'!E:F,2,FALSE)&\"\",\"\")","v":""},null,null,null,null,null,null,"",null,null,null,null,null,null,"　",null,"　",null,"　",null,null,null,"",null,null,null,null,null,null,null,null,"",""]
[null,{"$f":"IFERROR(VLOOKUP(AH743,'ID(当院入力シート)'!E:F,2,FALSE)&\"\",\"\")","v":""},null,null,null,null,null,null,"",null,null,null,null,null,null,"　",null,"　",null,"　",null,null,null,"",null,null,null,null,null,null,null,null,"",""]
[null,{"$f":"IFERROR(VLOOKUP(AH744,'ID(当院入力シート)'!E:F,2,FALSE)&\"\",\"\")","v":""},null,null,null,null,null,null,"",null,null,null,null,null,null,"　",null,"　",null,"　",null,null,null,"",null,null,null,null,null,null,null,null,"",""]
[null,{"$f":"IFERROR(VLOOKUP(AH745,'ID(当院入力シート)'!E:F,2,FALSE)&\"\",\"\")","v":""},null,null,null,null,null,null,"",null,null,null,null,null,null,"　",null,"　",null,"　",null,null,null,"",null,null,null,null,null,null,null,null,"",""]
[null,{"$f":"IFERROR(VLOOKUP(AH746,'ID(当院入力シート)'!E:F,2,FALSE)&\"\",\"\")","v":""},null,null,null,null,null,null,"",null,null,null,null,null,null,"　",null,"　",null,"　",null,null,null,"",null,null,null,null,null,null,null,null,"",""]
[null,{"$f":"IFERROR(VLOOKUP(AH747,'ID(当院入力シート)'!E:F,2,FALSE)&\"\",\"\")","v":""},null,null,null,null,null,null,"",null,null,null,null,null,null,"　",null,"　",null,"　",null,null,null,"",null,null,null,null,null,null,null,null,"",""]
[null,{"$f":"IFERROR(VLOOKUP(AH748,'ID(当院入力シート)'!E:F,2,FALSE)&\"\",\"\")","v":""},null,null,null,null,null,null,"",null,null,null,null,null,null,"　",null,"　",null,"　",null,null,null,"",null,null,null,null,null,null,null,null,"",""]
[null,{"$f":"IFERROR(VLOOKUP(AH749,'ID(当院入力シート)'!E:F,2,FALSE)&\"\",\"\")","v":""},null,null,null,null,null,null,"",null,null,null,null,null,null,"　",null,"　",null,"　",null,null,null,"",null,null,null,null,null,null,null,null,"",""]
[null,{"$f":"IFERROR(VLOOKUP(AH750,'ID(当院入力シート)'!E:F,2,FALSE)&\"\",\"\")","v":""},null,null,null,null,null,null,"",null,null,null,null,null,null,"　",null,"　",null,"　",null,null,null,"",null,null,null,null,null,null,null,null,"",""]
[null,{"$f":"IFERROR(VLOOKUP(AH751,'ID(当院入力シート)'!E:F,2,FALSE)&\"\",\"\")","v":""},null,null,null,null,null,null,"",null,null,null,null,null,null,"　",null,"　",null,"　",null,null,null,"",null,null,null,null,null,null,null,null,"",""]
[null,{"$f":"IFERROR(VLOOKUP(AH752,'ID(当院入力シート)'!E:F,2,FALSE)&\"\",\"\")","v":""},null,null,null,null,null,null,"",null,null,null,null,null,null,"　",null,"　",null,"　",null,null,null,"",null,null,null,null,null,null,null,null,"",""]
[null,{"$f":"IFERROR(VLOOKUP(AH753,'ID(当院入力シート)'!E:F,2,FALSE)&\"\",\"\")","v":""},null,null,null,null,null,null,"",null,null,null,null,null,null,"　",null,"　",null,"　",null,null,null,"",null,null,null,null,null,null,null,null,"",""]
[null,{"$f":"IFERROR(VLOOKUP(AH754,'ID(当院入力シート)'!E:F,2,FALSE)&\"\",\"\")","v":""},null,null,null,null,null,null,"",null,null,null,null,null,null,"　",null,"　",null,"　",null,null,null,"",null,null,null,null,null,null,null,null,"",""]
[null,{"$f":"IFERROR(VLOOKUP(AH755,'ID(当院入力シート)'!E:F,2,FALSE)&\"\",\"\")","v":""},null,null,null,null,null,null,"",null,null,null,null,null,null,"　",null,"　",null,"　",null,null,null,"",null,null,null,null,null,null,null,null,"",""]
[null,{"$f":"IFERROR(VLOOKUP(AH756,'ID(当院入力シート)'!E:F,2,FALSE)&\"\",\"\")","v":""},null,null,null,null,null,null,"",null,null,null,null,null,null,"　",null,"　",null,"　",null,null,null,"",null,null,null,null,null,null,null,null,"",""]
[null,{"$f":"IFERROR(VLOOKUP(AH757,'ID(当院入力シート)'!E:F,2,FALSE)&\"\",\"\")","v":""},null,null,null,null,null,null,"",null,null,null,null,null,null,"　",null,"　",null,"　",null,null,null,"",null,null,null,null,null,null,null,null,"",""]
[null,{"$f":"IFERROR(VLOOKUP(AH758,'ID(当院入力シート)'!E:F,2,FALSE)&\"\",\"\")","v":""},null,null,null,null,null,null,"",null,null,null,null,null,null,"　",null,"　",null,"　",null,null,null,"",null,null,null,null,null,null,null,null,"",""]
[null,{"$f":"IFERROR(VLOOKUP(AH759,'ID(当院入力シート)'!E:F,2,FALSE)&\"\",\"\")","v":""},null,null,null,null,null,null,"",null,null,null,null,null,null,"　",null,"　",null,"　",null,null,null,"",null,null,null,null,null,null,null,null,"",""]
[null,{"$f":"IFERROR(VLOOKUP(AH760,'ID(当院入力シート)'!E:F,2,FALSE)&\"\",\"\")","v":""},null,null,null,null,null,null,"",null,null,null,null,null,null,"　",null,"　",null,"　",null,null,null,"",null,null,null,null,null,null,null,null,"",""]
[null,{"$f":"IFERROR(VLOOKUP(AH761,'ID(当院入力シート)'!E:F,2,FALSE)&\"\",\"\")","v":""},null,null,null,null,null,null,"",null,null,null,null,null,null,"　",null,"　",null,"　",null,null,null,"",null,null,null,null,null,null,null,null,"",""]
[null,{"$f":"IFERROR(VLOOKUP(AH762,'ID(当院入力シート)'!E:F,2,FALSE)&\"\",\"\")","v":""},null,null,null,null,null,null,"",null,null,null,null,null,null,"　",null,"　",null,"　",null,null,null,"",null,null,null,null,null,null,null,null,"",""]
[null,{"$f":"IFERROR(VLOOKUP(AH763,'ID(当院入力シート)'!E:F,2,FALSE)&\"\",\"\")","v":""},null,null,null,null,null,null,"",null,null,null,null,null,null,"　",null,"　",null,"　",null,null,null,"",null,null,null,null,null,null,null,null,"",""]
[null,{"$f":"IFERROR(VLOOKUP(AH764,'ID(当院入力シート)'!E:F,2,FALSE)&\"\",\"\")","v":""},null,null,null,null,null,null,"",null,null,null,null,null,null,"　",null,"　",null,"　",null,null,null,"",null,null,null,null,null,null,null,null,"",""]
[null,{"$f":"IFERROR(VLOOKUP(AH765,'ID(当院入力シート)'!E:F,2,FALSE)&\"\",\"\")","v":""},null,null,null,null,null,null,"",null,null,null,null,null,null,"　",null,"　",null,"　",null,null,null,"",null,null,null,null,null,null,null,null,"",""]
[null,{"$f":"IFERROR(VLOOKUP(AH766,'ID(当院入力シート)'!E:F,2,FALSE)&\"\",\"\")","v":""},null,null,null,null,null,null,"",null,null,null,null,null,null,"　",null,"　",null,"　",null,null,null,"",null,null,null,null,null,null,null,null,"",""]
[null,{"$f":"IFERROR(VLOOKUP(AH767,'ID(当院入力シート)'!E:F,2,FALSE)&\"\",\"\")","v":""},null,null,null,null,null,null,"",null,null,null,null,null,null,"　",null,"　",null,"　",null,null,null,"",null,null,null,null,null,null,null,null,"",""]
[null,{"$f":"IFERROR(VLOOKUP(AH768,'ID(当院入力シート)'!E:F,2,FALSE)&\"\",\"\")","v":""},null,null,null,null,null,null,"",null,null,null,null,null,null,"　",null,"　",null,"　",null,null,null,"",null,null,null,null,null,null,null,null,"",""]
[null,{"$f":"IFERROR(VLOOKUP(AH769,'ID(当院入力シート)'!E:F,2,FALSE)&\"\",\"\")","v":""},null,null,null,null,null,null,"",null,null,null,null,null,null,"　",null,"　",null,"　",null,null,null,{"$f":"IF(W769=\"\",\"\", \"(\" & TEXT(W769,\"aaa\") & \")\")","v":""},null,null,null,null,null,null,null,null,"",""]
[null,{"$f":"IFERROR(VLOOKUP(AH770,'ID(当院入力シート)'!E:F,2,FALSE)&\"\",\"\")","v":""},null,null,null,null,null,null,"",null,null,null,null,null,null,"　",null,"　",null,"　",null,null,null,"",null,null,null,null,null,null,null,null,"",""]
[null,{"$f":"IFERROR(VLOOKUP(AH771,'ID(当院入力シート)'!E:F,2,FALSE)&\"\",\"\")","v":""},null,null,null,null,null,null,"",null,null,null,null,null,null,"　",null,"　",null,"　",null,null,null,"",null,null,null,null,null,null,null,null,"",""]
[null,{"$f":"IFERROR(VLOOKUP(AH772,'ID(当院入力シート)'!E:F,2,FALSE)&\"\",\"\")","v":""},null,null,null,null,null,null,"",null,null,null,null,null,null,"　",null,"　",null,"　",null,null,null,"",null,null,null,null,null,null,null,null,"",""]
[null,{"$f":"IFERROR(VLOOKUP(AH773,'ID(当院入力シート)'!E:F,2,FALSE)&\"\",\"\")","v":""},null,null,null,null,null,null,"",null,null,null,null,null,null,"　",null,"　",null,"　",null,null,null,"",null,null,null,null,null,null,null,null,"",""]
[null,{"$f":"IFERROR(VLOOKUP(AH774,'ID(当院入力シート)'!E:F,2,FALSE)&\"\",\"\")","v":""},null,null,null,null,null,null,"",null,null,null,null,null,null,"　",null,"　",null,"　",null,null,null,"",null,null,null,null,null,null,null,null,"",""]
[null,{"$f":"IFERROR(VLOOKUP(AH775,'ID(当院入力シート)'!E:F,2,FALSE)&\"\",\"\")","v":""},null,null,null,null,null,null,"",null,null,null,null,null,null,"　",null,"　",null,"　",null,null,null,"",null,null,null,null,null,null,null,null,"",""]
[null,{"$f":"IFERROR(VLOOKUP(AH776,'ID(当院入力シート)'!E:F,2,FALSE)&\"\",\"\")","v":""},null,null,null,null,null,null,"",null,null,null,null,null,null,"　",null,"　",null,"　",null,null,null,"",null,null,null,null,null,null,null,null,"",""]
[null,{"$f":"IFERROR(VLOOKUP(AH777,'ID(当院入力シート)'!E:F,2,FALSE)&\"\",\"\")","v":""},null,null,null,null,null,null,"",null,null,null,null,null,null,"　",null,"　",null,"　",null,null,null,"",null,null,null,null,null,null,null,null,"",""]
[null,{"$f":"IFERROR(VLOOKUP(AH778,'ID(当院入力シート)'!E:F,2,FALSE)&\"\",\"\")","v":""},null,null,null,null,null,null,"",null,null,null,null,null,null,"　",null,"　",null,"　",null,null,null,"",null,null,null,null,null,null,null,null,"",""]
[null,{"$f":"IFERROR(VLOOKUP(AH779,'ID(当院入力シート)'!E:F,2,FALSE)&\"\",\"\")","v":""},null,null,null,null,null,null,"",null,null,null,null,null,null,"　",null,"　",null,"　",null,null,null,"",null,null,null,null,null,null,null,null,"",""]
[null,{"$f":"IFERROR(VLOOKUP(AH780,'ID(当院入力シート)'!E:F,2,FALSE)&\"\",\"\")","v":""},null,null,null,null,null,null,"",null,null,null,null,null,null,"　",null,"　",null,"　",null,null,null,"",null,null,null,null,null,null,null,null,"",""]
[null,{"$f":"IFERROR(VLOOKUP(AH781,'ID(当院入力シート)'!E:F,2,FALSE)&\"\",\"\")","v":""},null,null,null,null,null,null,"",null,null,null,null,null,null,"　",null,"　",null,"　",null,null,null,"",null,null,null,null,null,null,null,null,"",""]
[null,{"$f":"IFERROR(VLOOKUP(AH782,'ID(当院入力シート)'!E:F,2,FALSE)&\"\",\"\")","v":""},null,null,null,null,null,null,"",null,null,null,null,null,null,"　",null,"　",null,"　",null,null,null,"",null,null,null,null,null,null,null,null,"",""]
[null,{"$f":"IFERROR(VLOOKUP(AH783,'ID(当院入力シート)'!E:F,2,FALSE)&\"\",\"\")","v":""},null,null,null,null,null,null,"",null,null,null,null,null,null,"　",null,"　",null,"　",null,null,null,"",null,null,null,null,null,null,null,null,"",""]
[null,{"$f":"IFERROR(VLOOKUP(AH784,'ID(当院入力シート)'!E:F,2,FALSE)&\"\",\"\")","v":""},null,null,null,null,null,null,{"$f":"IF(OR(H784=\"\", $I$8=\"\"), \"\", DATEDIF(H784,$I$8,\"y\"))","v":""},null,null,null,null,null,null,"　",null,"　",null,"　",null,null,null,"",null,null,null,null,null,null,null,null,{"$f":"SUBSTITUTE(SUBSTITUTE(E784,\"　\",\"\"),\" \",\"\")","v":""},{"$f":"AG784&H784","v":""}]
[null,{"$f":"IFERROR(VLOOKUP(AH785,'ID(当院入力シート)'!E:F,2,FALSE)&\"\",\"\")","v":""},null,null,null,null,null,null,"",null,null,null,null,null,null,"　",null,"　",null,"　",null,null,null,"",null,null,null,null,null,null,null,null,"",""]
[null,{"$f":"IFERROR(VLOOKUP(AH786,'ID(当院入力シート)'!E:F,2,FALSE)&\"\",\"\")","v":""},null,null,null,null,null,null,"",null,null,null,null,null,null,"　",null,"　",null,"　",null,null,null,"",null,null,null,null,null,null,null,null,"",""]
[null,{"$f":"IFERROR(VLOOKUP(AH787,'ID(当院入力シート)'!E:F,2,FALSE)&\"\",\"\")","v":""},null,null,null,null,null,null,"",null,null,null,null,null,null,"　",null,"　",null,"　",null,null,null,"",null,null,null,null,null,null,null,null,"",""]
[null,{"$f":"IFERROR(VLOOKUP(AH788,'ID(当院入力シート)'!E:F,2,FALSE)&\"\",\"\")","v":""},null,null,null,null,null,null,"",null,null,null,null,null,null,"　",null,"　",null,"　",null,null,null,"",null,null,null,null,null,null,null,null,"",""]
[null,{"$f":"IFERROR(VLOOKUP(AH789,'ID(当院入力シート)'!E:F,2,FALSE)&\"\",\"\")","v":""},null,null,null,null,null,null,"",null,null,null,null,null,null,"　",null,"　",null,"　",null,null,null,"",null,null,null,null,null,null,null,null,"",""]
[null,{"$f":"IFERROR(VLOOKUP(AH790,'ID(当院入力シート)'!E:F,2,FALSE)&\"\",\"\")","v":""},null,null,null,null,null,null,"",null,null,null,null,null,null,"　",null,"　",null,"　",null,null,null,"",null,null,null,null,null,null,null,null,"",""]
[null,{"$f":"IFERROR(VLOOKUP(AH791,'ID(当院入力シート)'!E:F,2,FALSE)&\"\",\"\")","v":""},null,null,null,null,null,null,"",null,null,null,null,null,null,"　",null,"　",null,"　",null,null,null,"",null,null,null,null,null,null,null,null,"",""]
[null,{"$f":"IFERROR(VLOOKUP(AH792,'ID(当院入力シート)'!E:F,2,FALSE)&\"\",\"\")","v":""},null,null,null,null,null,null,"",null,null,null,null,null,null,"　",null,"　",null,"　",null,null,null,"",null,null,null,null,null,null,null,null,"",""]
[null,{"$f":"IFERROR(VLOOKUP(AH793,'ID(当院入力シート)'!E:F,2,FALSE)&\"\",\"\")","v":""},null,null,null,null,null,null,"",null,null,null,null,null,null,"　",null,"　",null,"　",null,null,null,"",null,null,null,null,null,null,null,null,"",""]
[null,{"$f":"IFERROR(VLOOKUP(AH794,'ID(当院入力シート)'!E:F,2,FALSE)&\"\",\"\")","v":""},null,null,null,null,null,null,"",null,null,null,null,null,null,"　",null,"　",null,"　",null,null,null,"",null,null,null,null,null,null,null,null,"",""]
[null,{"$f":"IFERROR(VLOOKUP(AH795,'ID(当院入力シート)'!E:F,2,FALSE)&\"\",\"\")","v":""},null,null,null,null,null,null,"",null,null,null,null,null,null,"　",null,"　",null,"　",null,null,null,"",null,null,null,null,null,null,null,null,"",""]
[null,{"$f":"IFERROR(VLOOKUP(AH796,'ID(当院入力シート)'!E:F,2,FALSE)&\"\",\"\")","v":""},null,null,null,null,null,null,"",null,null,null,null,null,null,"　",null,"　",null,"　",null,null,null,"",null,null,null,null,null,null,null,null,"",""]
[null,{"$f":"IFERROR(VLOOKUP(AH797,'ID(当院入力シート)'!E:F,2,FALSE)&\"\",\"\")","v":""},null,null,null,null,null,null,"",null,null,null,null,null,null,"　",null,"　",null,"　",null,null,null,"",null,null,null,null,null,null,null,null,"",""]
[null,{"$f":"IFERROR(VLOOKUP(AH798,'ID(当院入力シート)'!E:F,2,FALSE)&\"\",\"\")","v":""},null,null,null,null,null,null,"",null,null,null,null,null,null,"　",null,"　",null,"　",null,null,null,"",null,null,null,null,null,null,null,null,"",""]
[null,{"$f":"IFERROR(VLOOKUP(AH799,'ID(当院入力シート)'!E:F,2,FALSE)&\"\",\"\")","v":""},null,null,null,null,null,null,"",null,null,null,null,null,null,"　",null,"　",null,"　",null,null,null,"",null,null,null,null,null,null,null,null,"",""]
[null,{"$f":"IFERROR(VLOOKUP(AH800,'ID(当院入力シート)'!E:F,2,FALSE)&\"\",\"\")","v":""},null,null,null,null,null,null,"",null,null,null,null,null,null,"　",null,"　",null,"　",null,null,null,"",null,null,null,null,null,null,null,null,"",""]
[null,{"$f":"IFERROR(VLOOKUP(AH801,'ID(当院入力シート)'!E:F,2,FALSE)&\"\",\"\")","v":""},null,null,null,null,null,null,"",null,null,null,null,null,null,"　",null,"　",null,"　",null,null,null,"",null,null,null,null,null,null,null,null,"",""]
[null,{"$f":"IFERROR(VLOOKUP(AH802,'ID(当院入力シート)'!E:F,2,FALSE)&\"\",\"\")","v":""},null,null,null,null,null,null,"",null,null,null,null,null,null,"　",null,"　",null,"　",null,null,null,"",null,null,null,null,null,null,null,null,"",""]
[null,{"$f":"IFERROR(VLOOKUP(AH803,'ID(当院入力シート)'!E:F,2,FALSE)&\"\",\"\")","v":""},null,null,null,null,null,null,"",null,null,null,null,null,null,"　",null,"　",null,"　",null,null,null,"",null,null,null,null,null,null,null,null,"",""]
[null,{"$f":"IFERROR(VLOOKUP(AH804,'ID(当院入力シート)'!E:F,2,FALSE)&\"\",\"\")","v":""},null,null,null,null,null,null,"",null,null,null,null,null,null,"　",null,"　",null,"　",null,null,null,"",null,null,null,null,null,null,null,null,"",""]
[null,{"$f":"IFERROR(VLOOKUP(AH805,'ID(当院入力シート)'!E:F,2,FALSE)&\"\",\"\")","v":""},null,null,null,null,null,null,"",null,null,null,null,null,null,"　",null,"　",null,"　",null,null,null,"",null,null,null,null,null,null,null,null,"",""]
[null,{"$f":"IFERROR(VLOOKUP(AH806,'ID(当院入力シート)'!E:F,2,FALSE)&\"\",\"\")","v":""},null,null,null,null,null,null,"",null,null,null,null,null,null,"　",null,"　",null,"　",null,null,null,"",null,null,null,null,null,null,null,null,"",""]
[null,{"$f":"IFERROR(VLOOKUP(AH807,'ID(当院入力シート)'!E:F,2,FALSE)&\"\",\"\")","v":""},null,null,null,null,null,null,"",null,null,null,null,null,null,"　",null,"　",null,"　",null,null,null,"",null,null,null,null,null,null,null,null,"",""]
[null,{"$f":"IFERROR(VLOOKUP(AH808,'ID(当院入力シート)'!E:F,2,FALSE)&\"\",\"\")","v":""},null,null,null,null,null,null,"",null,null,null,null,null,null,"　",null,"　",null,"　",null,null,null,"",null,null,null,null,null,null,null,null,"",""]
[null,{"$f":"IFERROR(VLOOKUP(AH809,'ID(当院入力シート)'!E:F,2,FALSE)&\"\",\"\")","v":""},null,null,null,null,null,null,"",null,null,null,null,null,null,"　",null,"　",null,"　",null,null,null,"",null,null,null,null,null,null,null,null,"",""]
[null,{"$f":"IFERROR(VLOOKUP(AH810,'ID(当院入力シート)'!E:F,2,FALSE)&\"\",\"\")","v":""},null,null,null,null,null,null,"",null,null,null,null,null,null,"　",null,"　",null,"　",null,null,null,"",null,null,null,null,null,null,null,null,"",""]
[null,{"$f":"IFERROR(VLOOKUP(AH811,'ID(当院入力シート)'!E:F,2,FALSE)&\"\",\"\")","v":""},null,null,null,null,null,null,"",null,null,null,null,null,null,"　",null,"　",null,"　",null,null,null,"",null,null,null,null,null,null,null,null,"",""]
[null,{"$f":"IFERROR(VLOOKUP(AH812,'ID(当院入力シート)'!E:F,2,FALSE)&\"\",\"\")","v":""},null,null,null,null,null,null,"",null,null,null,null,null,null,"　",null,"　",null,"　",null,null,null,"",null,null,null,null,null,null,null,null,"",""]
[null,{"$f":"IFERROR(VLOOKUP(AH813,'ID(当院入力シート)'!E:F,2,FALSE)&\"\",\"\")","v":""},null,null,null,null,null,null,"",null,null,null,null,null,null,"　",null,"　",null,"　",null,null,null,"",null,null,null,null,null,null,null,null,"",""]
[null,{"$f":"IFERROR(VLOOKUP(AH814,'ID(当院入力シート)'!E:F,2,FALSE)&\"\",\"\")","v":""},null,null,null,null,null,null,"",null,null,null,null,null,null,"　",null,"　",null,"　",null,null,null,"",null,null,null,null,null,null,null,null,"",""]
[null,{"$f":"IFERROR(VLOOKUP(AH815,'ID(当院入力シート)'!E:F,2,FALSE)&\"\",\"\")","v":""},null,null,null,null,null,null,"",null,null,null,null,null,null,"　",null,"　",null,"　",null,null,null,"",null,null,null,null,null,null,null,null,"",""]
[null,{"$f":"IFERROR(VLOOKUP(AH816,'ID(当院入力シート)'!E:F,2,FALSE)&\"\",\"\")","v":""},null,null,null,null,null,null,"",null,null,null,null,null,null,"　",null,"　",null,"　",null,null,null,"",null,null,null,null,null,null,null,null,"",""]
[null,{"$f":"IFERROR(VLOOKUP(AH817,'ID(当院入力シート)'!E:F,2,FALSE)&\"\",\"\")","v":""},null,null,null,null,null,null,"",null,null,null,null,null,null,"　",null,"　",null,"　",null,null,null,"",null,null,null,null,null,null,null,null,"",""]
[null,{"$f":"IFERROR(VLOOKUP(AH818,'ID(当院入力シート)'!E:F,2,FALSE)&\"\",\"\")","v":""},null,null,null,null,null,null,"",null,null,null,null,null,null,"　",null,"　",null,"　",null,null,null,"",null,null,null,null,null,null,null,null,"",""]
[null,{"$f":"IFERROR(VLOOKUP(AH819,'ID(当院入力シート)'!E:F,2,FALSE)&\"\",\"\")","v":""},null,null,null,null,null,null,"",null,null,null,null,null,null,"　",null,"　",null,"　",null,null,null,"",null,null,null,null,null,null,null,null,"",""]
[null,{"$f":"IFERROR(VLOOKUP(AH820,'ID(当院入力シート)'!E:F,2,FALSE)&\"\",\"\")","v":""},null,null,null,null,null,null,"",null,null,null,null,null,null,"　",null,"　",null,"　",null,null,null,"",null,null,null,null,null,null,null,null,"",""]
[null,{"$f":"IFERROR(VLOOKUP(AH821,'ID(当院入力シート)'!E:F,2,FALSE)&\"\",\"\")","v":""},null,null,null,null,null,null,"",null,null,null,null,null,null,"　",null,"　",null,"　",null,null,null,"",null,null,null,null,null,null,null,null,"",""]
[null,{"$f":"IFERROR(VLOOKUP(AH822,'ID(当院入力シート)'!E:F,2,FALSE)&\"\",\"\")","v":""},null,null,null,null,null,null,"",null,null,null,null,null,null,"　",null,"　",null,"　",null,null,null,"",null,null,null,null,null,null,null,null,"",""]
[null,{"$f":"IFERROR(VLOOKUP(AH823,'ID(当院入力シート)'!E:F,2,FALSE)&\"\",\"\")","v":""},null,null,null,null,null,null,"",null,null,null,null,null,null,"　",null,"　",null,"　",null,null,null,"",null,null,null,null,null,null,null,null,"",""]
[null,{"$f":"IFERROR(VLOOKUP(AH824,'ID(当院入力シート)'!E:F,2,FALSE)&\"\",\"\")","v":""},null,null,null,null,null,null,"",null,null,null,null,null,null,"　",null,"　",null,"　",null,null,null,"",null,null,null,null,null,null,null,null,"",""]
[null,{"$f":"IFERROR(VLOOKUP(AH825,'ID(当院入力シート)'!E:F,2,FALSE)&\"\",\"\")","v":""},null,null,null,null,null,null,"",null,null,null,null,null,null,"　",null,"　",null,"　",null,null,null,"",null,null,null,null,null,null,null,null,"",""]
[null,{"$f":"IFERROR(VLOOKUP(AH826,'ID(当院入力シート)'!E:F,2,FALSE)&\"\",\"\")","v":""},null,null,null,null,null,null,"",null,null,null,null,null,null,"　",null,"　",null,"　",null,null,null,"",null,null,null,null,null,null,null,null,"",""]
[null,{"$f":"IFERROR(VLOOKUP(AH827,'ID(当院入力シート)'!E:F,2,FALSE)&\"\",\"\")","v":""},null,null,null,null,null,null,"",null,null,null,null,null,null,"　",null,"　",null,"　",null,null,null,"",null,null,null,null,null,null,null,null,"",""]
[null,{"$f":"IFERROR(VLOOKUP(AH828,'ID(当院入力シート)'!E:F,2,FALSE)&\"\",\"\")","v":""},null,null,null,null,null,null,"",null,null,null,null,null,null,"　",null,"　",null,"　",null,null,null,"",null,null,null,null,null,null,null,null,"",""]
[null,{"$f":"IFERROR(VLOOKUP(AH829,'ID(当院入力シート)'!E:F,2,FALSE)&\"\",\"\")","v":""},null,null,null,null,null,null,"",null,null,null,null,null,null,"　",null,"　",null,"　",null,null,null,"",null,null,null,null,null,null,null,null,"",""]
[null,{"$f":"IFERROR(VLOOKUP(AH830,'ID(当院入力シート)'!E:F,2,FALSE)&\"\",\"\")","v":""},null,null,null,null,null,null,"",null,null,null,null,null,null,"　",null,"　",null,"　",null,null,null,"",null,null,null,null,null,null,null,null,"",""]
[null,{"$f":"IFERROR(VLOOKUP(AH831,'ID(当院入力シート)'!E:F,2,FALSE)&\"\",\"\")","v":""},null,null,null,null,null,null,"",null,null,null,null,null,null,"　",null,"　",null,"　",null,null,null,"",null,null,null,null,null,null,null,null,"",""]
[null,{"$f":"IFERROR(VLOOKUP(AH832,'ID(当院入力シート)'!E:F,2,FALSE)&\"\",\"\")","v":""},null,null,null,null,null,null,"",null,null,null,null,null,null,"　",null,"　",null,"　",null,null,null,"",null,null,null,null,null,null,null,null,"",""]
[null,{"$f":"IFERROR(VLOOKUP(AH833,'ID(当院入力シート)'!E:F,2,FALSE)&\"\",\"\")","v":""},null,null,null,null,null,null,"",null,null,null,null,null,null,"　",null,"　",null,"　",null,null,null,{"$f":"IF(W833=\"\",\"\", \"(\" & TEXT(W833,\"aaa\") & \")\")","v":""},null,null,null,null,null,null,null,null,"",""]
[null,{"$f":"IFERROR(VLOOKUP(AH834,'ID(当院入力シート)'!E:F,2,FALSE)&\"\",\"\")","v":""},null,null,null,null,null,null,"",null,null,null,null,null,null,"　",null,"　",null,"　",null,null,null,"",null,null,null,null,null,null,null,null,"",""]
[null,{"$f":"IFERROR(VLOOKUP(AH835,'ID(当院入力シート)'!E:F,2,FALSE)&\"\",\"\")","v":""},null,null,null,null,null,null,"",null,null,null,null,null,null,"　",null,"　",null,"　",null,null,null,"",null,null,null,null,null,null,null,null,"",""]
[null,{"$f":"IFERROR(VLOOKUP(AH836,'ID(当院入力シート)'!E:F,2,FALSE)&\"\",\"\")","v":""},null,null,null,null,null,null,"",null,null,null,null,null,null,"　",null,"　",null,"　",null,null,null,"",null,null,null,null,null,null,null,null,"",""]
[null,{"$f":"IFERROR(VLOOKUP(AH837,'ID(当院入力シート)'!E:F,2,FALSE)&\"\",\"\")","v":""},null,null,null,null,null,null,"",null,null,null,null,null,null,"　",null,"　",null,"　",null,null,null,"",null,null,null,null,null,null,null,null,"",""]
[null,{"$f":"IFERROR(VLOOKUP(AH838,'ID(当院入力シート)'!E:F,2,FALSE)&\"\",\"\")","v":""},null,null,null,null,null,null,"",null,null,null,null,null,null,"　",null,"　",null,"　",null,null,null,"",null,null,null,null,null,null,null,null,"",""]
[null,{"$f":"IFERROR(VLOOKUP(AH839,'ID(当院入力シート)'!E:F,2,FALSE)&\"\",\"\")","v":""},null,null,null,null,null,null,"",null,null,null,null,null,null,"　",null,"　",null,"　",null,null,null,"",null,null,null,null,null,null,null,null,"",""]
[null,{"$f":"IFERROR(VLOOKUP(AH840,'ID(当院入力シート)'!E:F,2,FALSE)&\"\",\"\")","v":""},null,null,null,null,null,null,"",null,null,null,null,null,null,"　",null,"　",null,"　",null,null,null,"",null,null,null,null,null,null,null,null,"",""]
[null,{"$f":"IFERROR(VLOOKUP(AH841,'ID(当院入力シート)'!E:F,2,FALSE)&\"\",\"\")","v":""},null,null,null,null,null,null,"",null,null,null,null,null,null,"　",null,"　",null,"　",null,null,null,"",null,null,null,null,null,null,null,null,"",""]
[null,{"$f":"IFERROR(VLOOKUP(AH842,'ID(当院入力シート)'!E:F,2,FALSE)&\"\",\"\")","v":""},null,null,null,null,null,null,"",null,null,null,null,null,null,"　",null,"　",null,"　",null,null,null,"",null,null,null,null,null,null,null,null,"",""]
[null,{"$f":"IFERROR(VLOOKUP(AH843,'ID(当院入力シート)'!E:F,2,FALSE)&\"\",\"\")","v":""},null,null,null,null,null,null,"",null,null,null,null,null,null,"　",null,"　",null,"　",null,null,null,"",null,null,null,null,null,null,null,null,"",""]
[null,{"$f":"IFERROR(VLOOKUP(AH844,'ID(当院入力シート)'!E:F,2,FALSE)&\"\",\"\")","v":""},null,null,null,null,null,null,"",null,null,null,null,null,null,"　",null,"　",null,"　",null,null,null,"",null,null,null,null,null,null,null,null,"",""]
[null,{"$f":"IFERROR(VLOOKUP(AH845,'ID(当院入力シート)'!E:F,2,FALSE)&\"\",\"\")","v":""},null,null,null,null,null,null,"",null,null,null,null,null,null,"　",null,"　",null,"　",null,null,null,"",null,null,null,null,null,null,null,null,"",""]
[null,{"$f":"IFERROR(VLOOKUP(AH846,'ID(当院入力シート)'!E:F,2,FALSE)&\"\",\"\")","v":""},null,null,null,null,null,null,"",null,null,null,null,null,null,"　",null,"　",null,"　",null,null,null,"",null,null,null,null,null,null,null,null,"",""]
[null,{"$f":"IFERROR(VLOOKUP(AH847,'ID(当院入力シート)'!E:F,2,FALSE)&\"\",\"\")","v":""},null,null,null,null,null,null,"",null,null,null,null,null,null,"　",null,"　",null,"　",null,null,null,"",null,null,null,null,null,null,null,null,"",""]
[null,{"$f":"IFERROR(VLOOKUP(AH848,'ID(当院入力シート)'!E:F,2,FALSE)&\"\",\"\")","v":""},null,null,null,null,null,null,{"$f":"IF(OR(H848=\"\", $I$8=\"\"), \"\", DATEDIF(H848,$I$8,\"y\"))","v":""},null,null,null,null,null,null,"　",null,"　",null,"　",null,null,null,"",null,null,null,null,null,null,null,null,{"$f":"SUBSTITUTE(SUBSTITUTE(E848,\"　\",\"\"),\" \",\"\")","v":""},{"$f":"AG848&H848","v":""}]
[null,{"$f":"IFERROR(VLOOKUP(AH849,'ID(当院入力シート)'!E:F,2,FALSE)&\"\",\"\")","v":""},null,null,null,null,null,null,"",null,null,null,null,null,null,"　",null,"　",null,"　",null,null,null,"",null,null,null,null,null,null,null,null,"",""]
[null,{"$f":"IFERROR(VLOOKUP(AH850,'ID(当院入力シート)'!E:F,2,FALSE)&\"\",\"\")","v":""},null,null,null,null,null,null,"",null,null,null,null,null,null,"　",null,"　",null,"　",null,null,null,"",null,null,null,null,null,null,null,null,"",""]
[null,{"$f":"IFERROR(VLOOKUP(AH851,'ID(当院入力シート)'!E:F,2,FALSE)&\"\",\"\")","v":""},null,null,null,null,null,null,"",null,null,null,null,null,null,"　",null,"　",null,"　",null,null,null,"",null,null,null,null,null,null,null,null,"",""]
[null,{"$f":"IFERROR(VLOOKUP(AH852,'ID(当院入力シート)'!E:F,2,FALSE)&\"\",\"\")","v":""},null,null,null,null,null,null,"",null,null,null,null,null,null,"　",null,"　",null,"　",null,null,null,"",null,null,null,null,null,null,null,null,"",""]
[null,{"$f":"IFERROR(VLOOKUP(AH853,'ID(当院入力シート)'!E:F,2,FALSE)&\"\",\"\")","v":""},null,null,null,null,null,null,"",null,null,null,null,null,null,"　",null,"　",null,"　",null,null,null,"",null,null,null,null,null,null,null,null,"",""]
[null,{"$f":"IFERROR(VLOOKUP(AH854,'ID(当院入力シート)'!E:F,2,FALSE)&\"\",\"\")","v":""},null,null,null,null,null,null,"",null,null,null,null,null,null,"　",null,"　",null,"　",null,null,null,"",null,null,null,null,null,null,null,null,"",""]
[null,{"$f":"IFERROR(VLOOKUP(AH855,'ID(当院入力シート)'!E:F,2,FALSE)&\"\",\"\")","v":""},null,null,null,null,null,null,"",null,null,null,null,null,null,"　",null,"　",null,"　",null,null,null,"",null,null,null,null,null,null,null,null,"",""]
[null,{"$f":"IFERROR(VLOOKUP(AH856,'ID(当院入力シート)'!E:F,2,FALSE)&\"\",\"\")","v":""},null,null,null,null,null,null,"",null,null,null,null,null,null,"　",null,"　",null,"　",null,null,null,"",null,null,null,null,null,null,null,null,"",""]
[null,{"$f":"IFERROR(VLOOKUP(AH857,'ID(当院入力シート)'!E:F,2,FALSE)&\"\",\"\")","v":""},null,null,null,null,null,null,"",null,null,null,null,null,null,"　",null,"　",null,"　",null,null,null,"",null,null,null,null,null,null,null,null,"",""]
[null,{"$f":"IFERROR(VLOOKUP(AH858,'ID(当院入力シート)'!E:F,2,FALSE)&\"\",\"\")","v":""},null,null,null,null,null,null,"",null,null,null,null,null,null,"　",null,"　",null,"　",null,null,null,"",null,null,null,null,null,null,null,null,"",""]
[null,{"$f":"IFERROR(VLOOKUP(AH859,'ID(当院入力シート)'!E:F,2,FALSE)&\"\",\"\")","v":""},null,null,null,null,null,null,"",null,null,null,null,null,null,"　",null,"　",null,"　",null,null,null,"",null,null,null,null,null,null,null,null,"",""]
[null,{"$f":"IFERROR(VLOOKUP(AH860,'ID(当院入力シート)'!E:F,2,FALSE)&\"\",\"\")","v":""},null,null,null,null,null,null,"",null,null,null,null,null,null,"　",null,"　",null,"　",null,null,null,"",null,null,null,null,null,null,null,null,"",""]
[null,{"$f":"IFERROR(VLOOKUP(AH861,'ID(当院入力シート)'!E:F,2,FALSE)&\"\",\"\")","v":""},null,null,null,null,null,null,"",null,null,null,null,null,null,"　",null,"　",null,"　",null,null,null,"",null,null,null,null,null,null,null,null,"",""]
[null,{"$f":"IFERROR(VLOOKUP(AH862,'ID(当院入力シート)'!E:F,2,FALSE)&\"\",\"\")","v":""},null,null,null,null,null,null,"",null,null,null,null,null,null,"　",null,"　",null,"　",null,null,null,"",null,null,null,null,null,null,null,null,"",""]
[null,{"$f":"IFERROR(VLOOKUP(AH863,'ID(当院入力シート)'!E:F,2,FALSE)&\"\",\"\")","v":""},null,null,null,null,null,null,"",null,null,null,null,null,null,"　",null,"　",null,"　",null,null,null,"",null,null,null,null,null,null,null,null,"",""]
[null,{"$f":"IFERROR(VLOOKUP(AH864,'ID(当院入力シート)'!E:F,2,FALSE)&\"\",\"\")","v":""},null,null,null,null,null,null,"",null,null,null,null,null,null,"　",null,"　",null,"　",null,null,null,"",null,null,null,null,null,null,null,null,"",""]
[null,{"$f":"IFERROR(VLOOKUP(AH865,'ID(当院入力シート)'!E:F,2,FALSE)&\"\",\"\")","v":""},null,null,null,null,null,null,"",null,null,null,null,null,null,"　",null,"　",null,"　",null,null,null,"",null,null,null,null,null,null,null,null,"",""]
[null,{"$f":"IFERROR(VLOOKUP(AH866,'ID(当院入力シート)'!E:F,2,FALSE)&\"\",\"\")","v":""},null,null,null,null,null,null,"",null,null,null,null,null,null,"　",null,"　",null,"　",null,null,null,"",null,null,null,null,null,null,null,null,"",""]
[null,{"$f":"IFERROR(VLOOKUP(AH867,'ID(当院入力シート)'!E:F,2,FALSE)&\"\",\"\")","v":""},null,null,null,null,null,null,"",null,null,null,null,null,null,"　",null,"　",null,"　",null,null,null,"",null,null,null,null,null,null,null,null,"",""]
[null,{"$f":"IFERROR(VLOOKUP(AH868,'ID(当院入力シート)'!E:F,2,FALSE)&\"\",\"\")","v":""},null,null,null,null,null,null,"",null,null,null,null,null,null,"　",null,"　",null,"　",null,null,null,"",null,null,null,null,null,null,null,null,"",""]
[null,{"$f":"IFERROR(VLOOKUP(AH869,'ID(当院入力シート)'!E:F,2,FALSE)&\"\",\"\")","v":""},null,null,null,null,null,null,"",null,null,null,null,null,null,"　",null,"　",null,"　",null,null,null,"",null,null,null,null,null,null,null,null,"",""]
[null,{"$f":"IFERROR(VLOOKUP(AH870,'ID(当院入力シート)'!E:F,2,FALSE)&\"\",\"\")","v":""},null,null,null,null,null,null,"",null,null,null,null,null,null,"　",null,"　",null,"　",null,null,null,"",null,null,null,null,null,null,null,null,"",""]
[null,{"$f":"IFERROR(VLOOKUP(AH871,'ID(当院入力シート)'!E:F,2,FALSE)&\"\",\"\")","v":""},null,null,null,null,null,null,"",null,null,null,null,null,null,"　",null,"　",null,"　",null,null,null,"",null,null,null,null,null,null,null,null,"",""]
[null,{"$f":"IFERROR(VLOOKUP(AH872,'ID(当院入力シート)'!E:F,2,FALSE)&\"\",\"\")","v":""},null,null,null,null,null,null,"",null,null,null,null,null,null,"　",null,"　",null,"　",null,null,null,"",null,null,null,null,null,null,null,null,"",""]
[null,{"$f":"IFERROR(VLOOKUP(AH873,'ID(当院入力シート)'!E:F,2,FALSE)&\"\",\"\")","v":""},null,null,null,null,null,null,"",null,null,null,null,null,null,"　",null,"　",null,"　",null,null,null,"",null,null,null,null,null,null,null,null,"",""]
[null,{"$f":"IFERROR(VLOOKUP(AH874,'ID(当院入力シート)'!E:F,2,FALSE)&\"\",\"\")","v":""},null,null,null,null,null,null,"",null,null,null,null,null,null,"　",null,"　",null,"　",null,null,null,"",null,null,null,null,null,null,null,null,"",""]
[null,{"$f":"IFERROR(VLOOKUP(AH875,'ID(当院入力シート)'!E:F,2,FALSE)&\"\",\"\")","v":""},null,null,null,null,null,null,"",null,null,null,null,null,null,"　",null,"　",null,"　",null,null,null,"",null,null,null,null,null,null,null,null,"",""]
[null,{"$f":"IFERROR(VLOOKUP(AH876,'ID(当院入力シート)'!E:F,2,FALSE)&\"\",\"\")","v":""},null,null,null,null,null,null,"",null,null,null,null,null,null,"　",null,"　",null,"　",null,null,null,"",null,null,null,null,null,null,null,null,"",""]
[null,{"$f":"IFERROR(VLOOKUP(AH877,'ID(当院入力シート)'!E:F,2,FALSE)&\"\",\"\")","v":""},null,null,null,null,null,null,"",null,null,null,null,null,null,"　",null,"　",null,"　",null,null,null,"",null,null,null,null,null,null,null,null,"",""]
[null,{"$f":"IFERROR(VLOOKUP(AH878,'ID(当院入力シート)'!E:F,2,FALSE)&\"\",\"\")","v":""},null,null,null,null,null,null,"",null,null,null,null,null,null,"　",null,"　",null,"　",null,null,null,"",null,null,null,null,null,null,null,null,"",""]
[null,{"$f":"IFERROR(VLOOKUP(AH879,'ID(当院入力シート)'!E:F,2,FALSE)&\"\",\"\")","v":""},null,null,null,null,null,null,"",null,null,null,null,null,null,"　",null,"　",null,"　",null,null,null,"",null,null,null,null,null,null,null,null,"",""]
[null,{"$f":"IFERROR(VLOOKUP(AH880,'ID(当院入力シート)'!E:F,2,FALSE)&\"\",\"\")","v":""},null,null,null,null,null,null,"",null,null,null,null,null,null,"　",null,"　",null,"　",null,null,null,"",null,null,null,null,null,null,null,null,"",""]
[null,{"$f":"IFERROR(VLOOKUP(AH881,'ID(当院入力シート)'!E:F,2,FALSE)&\"\",\"\")","v":""},null,null,null,null,null,null,"",null,null,null,null,null,null,"　",null,"　",null,"　",null,null,null,"",null,null,null,null,null,null,null,null,"",""]
[null,{"$f":"IFERROR(VLOOKUP(AH882,'ID(当院入力シート)'!E:F,2,FALSE)&\"\",\"\")","v":""},null,null,null,null,null,null,"",null,null,null,null,null,null,"　",null,"　",null,"　",null,null,null,"",null,null,null,null,null,null,null,null,"",""]
[null,{"$f":"IFERROR(VLOOKUP(AH883,'ID(当院入力シート)'!E:F,2,FALSE)&\"\",\"\")","v":""},null,null,null,null,null,null,"",null,null,null,null,null,null,"　",null,"　",null,"　",null,null,null,"",null,null,null,null,null,null,null,null,"",""]
[null,{"$f":"IFERROR(VLOOKUP(AH884,'ID(当院入力シート)'!E:F,2,FALSE)&\"\",\"\")","v":""},null,null,null,null,null,null,"",null,null,null,null,null,null,"　",null,"　",null,"　",null,null,null,"",null,null,null,null,null,null,null,null,"",""]
[null,{"$f":"IFERROR(VLOOKUP(AH885,'ID(当院入力シート)'!E:F,2,FALSE)&\"\",\"\")","v":""},null,null,null,null,null,null,"",null,null,null,null,null,null,"　",null,"　",null,"　",null,null,null,"",null,null,null,null,null,null,null,null,"",""]
[null,{"$f":"IFERROR(VLOOKUP(AH886,'ID(当院入力シート)'!E:F,2,FALSE)&\"\",\"\")","v":""},null,null,null,null,null,null,"",null,null,null,null,null,null,"　",null,"　",null,"　",null,null,null,"",null,null,null,null,null,null,null,null,"",""]
[null,{"$f":"IFERROR(VLOOKUP(AH887,'ID(当院入力シート)'!E:F,2,FALSE)&\"\",\"\")","v":""},null,null,null,null,null,null,"",null,null,null,null,null,null,"　",null,"　",null,"　",null,null,null,"",null,null,null,null,null,null,null,null,"",""]
[null,{"$f":"IFERROR(VLOOKUP(AH888,'ID(当院入力シート)'!E:F,2,FALSE)&\"\",\"\")","v":""},null,null,null,null,null,null,"",null,null,null,null,null,null,"　",null,"　",null,"　",null,null,null,"",null,null,null,null,null,null,null,null,"",""]
[null,{"$f":"IFERROR(VLOOKUP(AH889,'ID(当院入力シート)'!E:F,2,FALSE)&\"\",\"\")","v":""},null,null,null,null,null,null,"",null,null,null,null,null,null,"　",null,"　",null,"　",null,null,null,"",null,null,null,null,null,null,null,null,"",""]
[null,{"$f":"IFERROR(VLOOKUP(AH890,'ID(当院入力シート)'!E:F,2,FALSE)&\"\",\"\")","v":""},null,null,null,null,null,null,"",null,null,null,null,null,null,"　",null,"　",null,"　",null,null,null,"",null,null,null,null,null,null,null,null,"",""]
[null,{"$f":"IFERROR(VLOOKUP(AH891,'ID(当院入力シート)'!E:F,2,FALSE)&\"\",\"\")","v":""},null,null,null,null,null,null,"",null,null,null,null,null,null,"　",null,"　",null,"　",null,null,null,"",null,null,null,null,null,null,null,null,"",""]
[null,{"$f":"IFERROR(VLOOKUP(AH892,'ID(当院入力シート)'!E:F,2,FALSE)&\"\",\"\")","v":""},null,null,null,null,null,null,"",null,null,null,null,null,null,"　",null,"　",null,"　",null,null,null,"",null,null,null,null,null,null,null,null,"",""]
[null,{"$f":"IFERROR(VLOOKUP(AH893,'ID(当院入力シート)'!E:F,2,FALSE)&\"\",\"\")","v":""},null,null,null,null,null,null,"",null,null,null,null,null,null,"　",null,"　",null,"　",null,null,null,"",null,null,null,null,null,null,null,null,"",""]
[null,{"$f":"IFERROR(VLOOKUP(AH894,'ID(当院入力シート)'!E:F,2,FALSE)&\"\",\"\")","v":""},null,null,null,null,null,null,"",null,null,null,null,null,null,"　",null,"　",null,"　",null,null,null,"",null,null,null,null,null,null,null,null,"",""]
[null,{"$f":"IFERROR(VLOOKUP(AH895,'ID(当院入力シート)'!E:F,2,FALSE)&\"\",\"\")","v":""},null,null,null,null,null,null,"",null,null,null,null,null,null,"　",null,"　",null,"　",null,null,null,"",null,null,null,null,null,null,null,null,"",""]
[null,{"$f":"IFERROR(VLOOKUP(AH896,'ID(当院入力シート)'!E:F,2,FALSE)&\"\",\"\")","v":""},null,null,null,null,null,null,"",null,null,null,null,null,null,"　",null,"　",null,"　",null,null,null,"",null,null,null,null,null,null,null,null,"",""]
[null,{"$f":"IFERROR(VLOOKUP(AH897,'ID(当院入力シート)'!E:F,2,FALSE)&\"\",\"\")","v":""},null,null,null,null,null,null,"",null,null,null,null,null,null,"　",null,"　",null,"　",null,null,null,{"$f":"IF(W897=\"\",\"\", \"(\" & TEXT(W897,\"aaa\") & \")\")","v":""},null,null,null,null,null,null,null,null,"",""]
[null,{"$f":"IFERROR(VLOOKUP(AH898,'ID(当院入力シート)'!E:F,2,FALSE)&\"\",\"\")","v":""},null,null,null,null,null,null,"",null,null,null,null,null,null,"　",null,"　",null,"　",null,null,null,"",null,null,null,null,null,null,null,null,"",""]
[null,{"$f":"IFERROR(VLOOKUP(AH899,'ID(当院入力シート)'!E:F,2,FALSE)&\"\",\"\")","v":""},null,null,null,null,null,null,"",null,null,null,null,null,null,"　",null,"　",null,"　",null,null,null,"",null,null,null,null,null,null,null,null,"",""]
[null,{"$f":"IFERROR(VLOOKUP(AH900,'ID(当院入力シート)'!E:F,2,FALSE)&\"\",\"\")","v":""},null,null,null,null,null,null,"",null,null,null,null,null,null,"　",null,"　",null,"　",null,null,null,"",null,null,null,null,null,null,null,null,"",""]
[null,{"$f":"IFERROR(VLOOKUP(AH901,'ID(当院入力シート)'!E:F,2,FALSE)&\"\",\"\")","v":""},null,null,null,null,null,null,"",null,null,null,null,null,null,"　",null,"　",null,"　",null,null,null,"",null,null,null,null,null,null,null,null,"",""]
[null,{"$f":"IFERROR(VLOOKUP(AH902,'ID(当院入力シート)'!E:F,2,FALSE)&\"\",\"\")","v":""},null,null,null,null,null,null,"",null,null,null,null,null,null,"　",null,"　",null,"　",null,null,null,"",null,null,null,null,null,null,null,null,"",""]
[null,{"$f":"IFERROR(VLOOKUP(AH903,'ID(当院入力シート)'!E:F,2,FALSE)&\"\",\"\")","v":""},null,null,null,null,null,null,"",null,null,null,null,null,null,"　",null,"　",null,"　",null,null,null,"",null,null,null,null,null,null,null,null,"",""]
[null,{"$f":"IFERROR(VLOOKUP(AH904,'ID(当院入力シート)'!E:F,2,FALSE)&\"\",\"\")","v":""},null,null,null,null,null,null,"",null,null,null,null,null,null,"　",null,"　",null,"　",null,null,null,"",null,null,null,null,null,null,null,null,"",""]
[null,{"$f":"IFERROR(VLOOKUP(AH905,'ID(当院入力シート)'!E:F,2,FALSE)&\"\",\"\")","v":""},null,null,null,null,null,null,"",null,null,null,null,null,null,"　",null,"　",null,"　",null,null,null,"",null,null,null,null,null,null,null,null,"",""]
[null,{"$f":"IFERROR(VLOOKUP(AH906,'ID(当院入力シート)'!E:F,2,FALSE)&\"\",\"\")","v":""},null,null,null,null,null,null,"",null,null,null,null,null,null,"　",null,"　",null,"　",null,null,null,"",null,null,null,null,null,null,null,null,"",""]
[null,{"$f":"IFERROR(VLOOKUP(AH907,'ID(当院入力シート)'!E:F,2,FALSE)&\"\",\"\")","v":""},null,null,null,null,null,null,"",null,null,null,null,null,null,"　",null,"　",null,"　",null,null,null,"",null,null,null,null,null,null,null,null,"",""]
[null,{"$f":"IFERROR(VLOOKUP(AH908,'ID(当院入力シート)'!E:F,2,FALSE)&\"\",\"\")","v":""},null,null,null,null,null,null,"",null,null,null,null,null,null,"　",null,"　",null,"　",null,null,null,"",null,null,null,null,null,null,null,null,"",""]
[null,{"$f":"IFERROR(VLOOKUP(AH909,'ID(当院入力シート)'!E:F,2,FALSE)&\"\",\"\")","v":""},null,null,null,null,null,null,"",null,null,null,null,null,null,"　",null,"　",null,"　",null,null,null,"",null,null,null,null,null,null,null,null,"",""]
[null,{"$f":"IFERROR(VLOOKUP(AH910,'ID(当院入力シート)'!E:F,2,FALSE)&\"\",\"\")","v":""},null,null,null,null,null,null,"",null,null,null,null,null,null,"　",null,"　",null,"　",null,null,null,"",null,null,null,null,null,null,null,null,"",""]
[null,{"$f":"IFERROR(VLOOKUP(AH911,'ID(当院入力シート)'!E:F,2,FALSE)&\"\",\"\")","v":""},null,null,null,null,null,null,"",null,null,null,null,null,null,"　",null,"　",null,"　",null,null,null,"",null,null,null,null,null,null,null,null,"",""]
[null,{"$f":"IFERROR(VLOOKUP(AH912,'ID(当院入力シート)'!E:F,2,FALSE)&\"\",\"\")","v":""},null,null,null,null,null,null,{"$f":"IF(OR(H912=\"\", $I$8=\"\"), \"\", DATEDIF(H912,$I$8,\"y\"))","v":""},null,null,null,null,null,null,"　",null,"　",null,"　",null,null,null,"",null,null,null,null,null,null,null,null,{"$f":"SUBSTITUTE(SUBSTITUTE(E912,\"　\",\"\"),\" \",\"\")","v":""},{"$f":"AG912&H912","v":""}]
[null,{"$f":"IFERROR(VLOOKUP(AH913,'ID(当院入力シート)'!E:F,2,FALSE)&\"\",\"\")","v":""},null,null,null,null,null,null,"",null,null,null,null,null,null,"　",null,"　",null,"　",null,null,null,"",null,null,null,null,null,null,null,null,"",""]
[null,{"$f":"IFERROR(VLOOKUP(AH914,'ID(当院入力シート)'!E:F,2,FALSE)&\"\",\"\")","v":""},null,null,null,null,null,null,"",null,null,null,null,null,null,"　",null,"　",null,"　",null,null,null,"",null,null,null,null,null,null,null,null,"",""]
[null,{"$f":"IFERROR(VLOOKUP(AH915,'ID(当院入力シート)'!E:F,2,FALSE)&\"\",\"\")","v":""},null,null,null,null,null,null,"",null,null,null,null,null,null,"　",null,"　",null,"　",null,null,null,"",null,null,null,null,null,null,null,null,"",""]
[null,{"$f":"IFERROR(VLOOKUP(AH916,'ID(当院入力シート)'!E:F,2,FALSE)&\"\",\"\")","v":""},null,null,null,null,null,null,"",null,null,null,null,null,null,"　",null,"　",null,"　",null,null,null,"",null,null,null,null,null,null,null,null,"",""]
[null,{"$f":"IFERROR(VLOOKUP(AH917,'ID(当院入力シート)'!E:F,2,FALSE)&\"\",\"\")","v":""},null,null,null,null,null,null,"",null,null,null,null,null,null,"　",null,"　",null,"　",null,null,null,"",null,null,null,null,null,null,null,null,"",""]
[null,{"$f":"IFERROR(VLOOKUP(AH918,'ID(当院入力シート)'!E:F,2,FALSE)&\"\",\"\")","v":""},null,null,null,null,null,null,"",null,null,null,null,null,null,"　",null,"　",null,"　",null,null,null,"",null,null,null,null,null,null,null,null,"",""]
[null,{"$f":"IFERROR(VLOOKUP(AH919,'ID(当院入力シート)'!E:F,2,FALSE)&\"\",\"\")","v":""},null,null,null,null,null,null,"",null,null,null,null,null,null,"　",null,"　",null,"　",null,null,null,"",null,null,null,null,null,null,null,null,"",""]
[null,{"$f":"IFERROR(VLOOKUP(AH920,'ID(当院入力シート)'!E:F,2,FALSE)&\"\",\"\")","v":""},null,null,null,null,null,null,"",null,null,null,null,null,null,"　",null,"　",null,"　",null,null,null,"",null,null,null,null,null,null,null,null,"",""]
[null,{"$f":"IFERROR(VLOOKUP(AH921,'ID(当院入力シート)'!E:F,2,FALSE)&\"\",\"\")","v":""},null,null,null,null,null,null,"",null,null,null,null,null,null,"　",null,"　",null,"　",null,null,null,"",null,null,null,null,null,null,null,null,"",""]
[null,{"$f":"IFERROR(VLOOKUP(AH922,'ID(当院入力シート)'!E:F,2,FALSE)&\"\",\"\")","v":""},null,null,null,null,null,null,"",null,null,null,null,null,null,"　",null,"　",null,"　",null,null,null,"",null,null,null,null,null,null,null,null,"",""]
[null,{"$f":"IFERROR(VLOOKUP(AH923,'ID(当院入力シート)'!E:F,2,FALSE)&\"\",\"\")","v":""},null,null,null,null,null,null,"",null,null,null,null,null,null,"　",null,"　",null,"　",null,null,null,"",null,null,null,null,null,null,null,null,"",""]
[null,{"$f":"IFERROR(VLOOKUP(AH924,'ID(当院入力シート)'!E:F,2,FALSE)&\"\",\"\")","v":""},null,null,null,null,null,null,"",null,null,null,null,null,null,"　",null,"　",null,"　",null,null,null,"",null,null,null,null,null,null,null,null,"",""]
[null,{"$f":"IFERROR(VLOOKUP(AH925,'ID(当院入力シート)'!E:F,2,FALSE)&\"\",\"\")","v":""},null,null,null,null,null,null,"",null,null,null,null,null,null,"　",null,"　",null,"　",null,null,null,"",null,null,null,null,null,null,null,null,"",""]
[null,{"$f":"IFERROR(VLOOKUP(AH926,'ID(当院入力シート)'!E:F,2,FALSE)&\"\",\"\")","v":""},null,null,null,null,null,null,"",null,null,null,null,null,null,"　",null,"　",null,"　",null,null,null,"",null,null,null,null,null,null,null,null,"",""]
[null,{"$f":"IFERROR(VLOOKUP(AH927,'ID(当院入力シート)'!E:F,2,FALSE)&\"\",\"\")","v":""},null,null,null,null,null,null,"",null,null,null,null,null,null,"　",null,"　",null,"　",null,null,null,"",null,null,null,null,null,null,null,null,"",""]
[null,{"$f":"IFERROR(VLOOKUP(AH928,'ID(当院入力シート)'!E:F,2,FALSE)&\"\",\"\")","v":""},null,null,null,null,null,null,"",null,null,null,null,null,null,"　",null,"　",null,"　",null,null,null,"",null,null,null,null,null,null,null,null,"",""]
[null,{"$f":"IFERROR(VLOOKUP(AH929,'ID(当院入力シート)'!E:F,2,FALSE)&\"\",\"\")","v":""},null,null,null,null,null,null,"",null,null,null,null,null,null,"　",null,"　",null,"　",null,null,null,"",null,null,null,null,null,null,null,null,"",""]
[null,{"$f":"IFERROR(VLOOKUP(AH930,'ID(当院入力シート)'!E:F,2,FALSE)&\"\",\"\")","v":""},null,null,null,null,null,null,"",null,null,null,null,null,null,"　",null,"　",null,"　",null,null,null,"",null,null,null,null,null,null,null,null,"",""]
[null,{"$f":"IFERROR(VLOOKUP(AH931,'ID(当院入力シート)'!E:F,2,FALSE)&\"\",\"\")","v":""},null,null,null,null,null,null,"",null,null,null,null,null,null,"　",null,"　",null,"　",null,null,null,"",null,null,null,null,null,null,null,null,"",""]
[null,{"$f":"IFERROR(VLOOKUP(AH932,'ID(当院入力シート)'!E:F,2,FALSE)&\"\",\"\")","v":""},null,null,null,null,null,null,"",null,null,null,null,null,null,"　",null,"　",null,"　",null,null,null,"",null,null,null,null,null,null,null,null,"",""]
[null,{"$f":"IFERROR(VLOOKUP(AH933,'ID(当院入力シート)'!E:F,2,FALSE)&\"\",\"\")","v":""},null,null,null,null,null,null,"",null,null,null,null,null,null,"　",null,"　",null,"　",null,null,null,"",null,null,null,null,null,null,null,null,"",""]
[null,{"$f":"IFERROR(VLOOKUP(AH934,'ID(当院入力シート)'!E:F,2,FALSE)&\"\",\"\")","v":""},null,null,null,null,null,null,"",null,null,null,null,null,null,"　",null,"　",null,"　",null,null,null,"",null,null,null,null,null,null,null,null,"",""]
[null,{"$f":"IFERROR(VLOOKUP(AH935,'ID(当院入力シート)'!E:F,2,FALSE)&\"\",\"\")","v":""},null,null,null,null,null,null,"",null,null,null,null,null,null,"　",null,"　",null,"　",null,null,null,"",null,null,null,null,null,null,null,null,"",""]
[null,{"$f":"IFERROR(VLOOKUP(AH936,'ID(当院入力シート)'!E:F,2,FALSE)&\"\",\"\")","v":""},null,null,null,null,null,null,"",null,null,null,null,null,null,"　",null,"　",null,"　",null,null,null,"",null,null,null,null,null,null,null,null,"",""]
[null,{"$f":"IFERROR(VLOOKUP(AH937,'ID(当院入力シート)'!E:F,2,FALSE)&\"\",\"\")","v":""},null,null,null,null,null,null,"",null,null,null,null,null,null,"　",null,"　",null,"　",null,null,null,"",null,null,null,null,null,null,null,null,"",""]
[null,{"$f":"IFERROR(VLOOKUP(AH938,'ID(当院入力シート)'!E:F,2,FALSE)&\"\",\"\")","v":""},null,null,null,null,null,null,"",null,null,null,null,null,null,"　",null,"　",null,"　",null,null,null,"",null,null,null,null,null,null,null,null,"",""]
[null,{"$f":"IFERROR(VLOOKUP(AH939,'ID(当院入力シート)'!E:F,2,FALSE)&\"\",\"\")","v":""},null,null,null,null,null,null,"",null,null,null,null,null,null,"　",null,"　",null,"　",null,null,null,"",null,null,null,null,null,null,null,null,"",""]
[null,{"$f":"IFERROR(VLOOKUP(AH940,'ID(当院入力シート)'!E:F,2,FALSE)&\"\",\"\")","v":""},null,null,null,null,null,null,"",null,null,null,null,null,null,"　",null,"　",null,"　",null,null,null,"",null,null,null,null,null,null,null,null,"",""]
[null,{"$f":"IFERROR(VLOOKUP(AH941,'ID(当院入力シート)'!E:F,2,FALSE)&\"\",\"\")","v":""},null,null,null,null,null,null,"",null,null,null,null,null,null,"　",null,"　",null,"　",null,null,null,"",null,null,null,null,null,null,null,null,"",""]
[null,{"$f":"IFERROR(VLOOKUP(AH942,'ID(当院入力シート)'!E:F,2,FALSE)&\"\",\"\")","v":""},null,null,null,null,null,null,"",null,null,null,null,null,null,"　",null,"　",null,"　",null,null,null,"",null,null,null,null,null,null,null,null,"",""]
[null,{"$f":"IFERROR(VLOOKUP(AH943,'ID(当院入力シート)'!E:F,2,FALSE)&\"\",\"\")","v":""},null,null,null,null,null,null,"",null,null,null,null,null,null,"　",null,"　",null,"　",null,null,null,"",null,null,null,null,null,null,null,null,"",""]
[null,{"$f":"IFERROR(VLOOKUP(AH944,'ID(当院入力シート)'!E:F,2,FALSE)&\"\",\"\")","v":""},null,null,null,null,null,null,"",null,null,null,null,null,null,"　",null,"　",null,"　",null,null,null,"",null,null,null,null,null,null,null,null,"",""]
[null,{"$f":"IFERROR(VLOOKUP(AH945,'ID(当院入力シート)'!E:F,2,FALSE)&\"\",\"\")","v":""},null,null,null,null,null,null,"",null,null,null,null,null,null,"　",null,"　",null,"　",null,null,null,"",null,null,null,null,null,null,null,null,"",""]
[null,{"$f":"IFERROR(VLOOKUP(AH946,'ID(当院入力シート)'!E:F,2,FALSE)&\"\",\"\")","v":""},null,null,null,null,null,null,"",null,null,null,null,null,null,"　",null,"　",null,"　",null,null,null,"",null,null,null,null,null,null,null,null,"",""]
[null,{"$f":"IFERROR(VLOOKUP(AH947,'ID(当院入力シート)'!E:F,2,FALSE)&\"\",\"\")","v":""},null,null,null,null,null,null,"",null,null,null,null,null,null,"　",null,"　",null,"　",null,null,null,"",null,null,null,null,null,null,null,null,"",""]
[null,{"$f":"IFERROR(VLOOKUP(AH948,'ID(当院入力シート)'!E:F,2,FALSE)&\"\",\"\")","v":""},null,null,null,null,null,null,"",null,null,null,null,null,null,"　",null,"　",null,"　",null,null,null,"",null,null,null,null,null,null,null,null,"",""]
[null,{"$f":"IFERROR(VLOOKUP(AH949,'ID(当院入力シート)'!E:F,2,FALSE)&\"\",\"\")","v":""},null,null,null,null,null,null,"",null,null,null,null,null,null,"　",null,"　",null,"　",null,null,null,"",null,null,null,null,null,null,null,null,"",""]
[null,{"$f":"IFERROR(VLOOKUP(AH950,'ID(当院入力シート)'!E:F,2,FALSE)&\"\",\"\")","v":""},null,null,null,null,null,null,"",null,null,null,null,null,null,"　",null,"　",null,"　",null,null,null,"",null,null,null,null,null,null,null,null,"",""]
[null,{"$f":"IFERROR(VLOOKUP(AH951,'ID(当院入力シート)'!E:F,2,FALSE)&\"\",\"\")","v":""},null,null,null,null,null,null,"",null,null,null,null,null,null,"　",null,"　",null,"　",null,null,null,"",null,null,null,null,null,null,null,null,"",""]
[null,{"$f":"IFERROR(VLOOKUP(AH952,'ID(当院入力シート)'!E:F,2,FALSE)&\"\",\"\")","v":""},null,null,null,null,null,null,"",null,null,null,null,null,null,"　",null,"　",null,"　",null,null,null,"",null,null,null,null,null,null,null,null,"",""]
[null,{"$f":"IFERROR(VLOOKUP(AH953,'ID(当院入力シート)'!E:F,2,FALSE)&\"\",\"\")","v":""},null,null,null,null,null,null,"",null,null,null,null,null,null,"　",null,"　",null,"　",null,null,null,"",null,null,null,null,null,null,null,null,"",""]
[null,{"$f":"IFERROR(VLOOKUP(AH954,'ID(当院入力シート)'!E:F,2,FALSE)&\"\",\"\")","v":""},null,null,null,null,null,null,"",null,null,null,null,null,null,"　",null,"　",null,"　",null,null,null,"",null,null,null,null,null,null,null,null,"",""]
[null,{"$f":"IFERROR(VLOOKUP(AH955,'ID(当院入力シート)'!E:F,2,FALSE)&\"\",\"\")","v":""},null,null,null,null,null,null,"",null,null,null,null,null,null,"　",null,"　",null,"　",null,null,null,"",null,null,null,null,null,null,null,null,"",""]
[null,{"$f":"IFERROR(VLOOKUP(AH956,'ID(当院入力シート)'!E:F,2,FALSE)&\"\",\"\")","v":""},null,null,null,null,null,null,"",null,null,null,null,null,null,"　",null,"　",null,"　",null,null,null,"",null,null,null,null,null,null,null,null,"",""]
[null,{"$f":"IFERROR(VLOOKUP(AH957,'ID(当院入力シート)'!E:F,2,FALSE)&\"\",\"\")","v":""},null,null,null,null,null,null,"",null,null,null,null,null,null,"　",null,"　",null,"　",null,null,null,"",null,null,null,null,null,null,null,null,"",""]
[null,{"$f":"IFERROR(VLOOKUP(AH958,'ID(当院入力シート)'!E:F,2,FALSE)&\"\",\"\")","v":""},null,null,null,null,null,null,"",null,null,null,null,null,null,"　",null,"　",null,"　",null,null,null,"",null,null,null,null,null,null,null,null,"",""]
[null,{"$f":"IFERROR(VLOOKUP(AH959,'ID(当院入力シート)'!E:F,2,FALSE)&\"\",\"\")","v":""},null,null,null,null,null,null,"",null,null,null,null,null,null,"　",null,"　",null,"　",null,null,null,"",null,null,null,null,null,null,null,null,"",""]
[null,{"$f":"IFERROR(VLOOKUP(AH960,'ID(当院入力シート)'!E:F,2,FALSE)&\"\",\"\")","v":""},null,null,null,null,null,null,"",null,null,null,null,null,null,"　",null,"　",null,"　",null,null,null,"",null,null,null,null,null,null,null,null,"",""]
[null,{"$f":"IFERROR(VLOOKUP(AH961,'ID(当院入力シート)'!E:F,2,FALSE)&\"\",\"\")","v":""},null,null,null,null,null,null,"",null,null,null,null,null,null,"　",null,"　",null,"　",null,null,null,{"$f":"IF(W961=\"\",\"\", \"(\" & TEXT(W961,\"aaa\") & \")\")","v":""},null,null,null,null,null,null,null,null,"",""]
[null,{"$f":"IFERROR(VLOOKUP(AH962,'ID(当院入力シート)'!E:F,2,FALSE)&\"\",\"\")","v":""},null,null,null,null,null,null,"",null,null,null,null,null,null,"　",null,"　",null,"　",null,null,null,"",null,null,null,null,null,null,null,null,"",""]
[null,{"$f":"IFERROR(VLOOKUP(AH963,'ID(当院入力シート)'!E:F,2,FALSE)&\"\",\"\")","v":""},null,null,null,null,null,null,"",null,null,null,null,null,null,"　",null,"　",null,"　",null,null,null,"",null,null,null,null,null,null,null,null,"",""]
[null,{"$f":"IFERROR(VLOOKUP(AH964,'ID(当院入力シート)'!E:F,2,FALSE)&\"\",\"\")","v":""},null,null,null,null,null,null,"",null,null,null,null,null,null,"　",null,"　",null,"　",null,null,null,"",null,null,null,null,null,null,null,null,"",""]
[null,{"$f":"IFERROR(VLOOKUP(AH965,'ID(当院入力シート)'!E:F,2,FALSE)&\"\",\"\")","v":""},null,null,null,null,null,null,"",null,null,null,null,null,null,"　",null,"　",null,"　",null,null,null,"",null,null,null,null,null,null,null,null,"",""]
[null,{"$f":"IFERROR(VLOOKUP(AH966,'ID(当院入力シート)'!E:F,2,FALSE)&\"\",\"\")","v":""},null,null,null,null,null,null,"",null,null,null,null,null,null,"　",null,"　",null,"　",null,null,null,"",null,null,null,null,null,null,null,null,"",""]
[null,{"$f":"IFERROR(VLOOKUP(AH967,'ID(当院入力シート)'!E:F,2,FALSE)&\"\",\"\")","v":""},null,null,null,null,null,null,"",null,null,null,null,null,null,"　",null,"　",null,"　",null,null,null,"",null,null,null,null,null,null,null,null,"",""]
[null,{"$f":"IFERROR(VLOOKUP(AH968,'ID(当院入力シート)'!E:F,2,FALSE)&\"\",\"\")","v":""},null,null,null,null,null,null,"",null,null,null,null,null,null,"　",null,"　",null,"　",null,null,null,"",null,null,null,null,null,null,null,null,"",""]
[null,{"$f":"IFERROR(VLOOKUP(AH969,'ID(当院入力シート)'!E:F,2,FALSE)&\"\",\"\")","v":""},null,null,null,null,null,null,"",null,null,null,null,null,null,"　",null,"　",null,"　",null,null,null,"",null,null,null,null,null,null,null,null,"",""]
[null,{"$f":"IFERROR(VLOOKUP(AH970,'ID(当院入力シート)'!E:F,2,FALSE)&\"\",\"\")","v":""},null,null,null,null,null,null,"",null,null,null,null,null,null,"　",null,"　",null,"　",null,null,null,"",null,null,null,null,null,null,null,null,"",""]
[null,{"$f":"IFERROR(VLOOKUP(AH971,'ID(当院入力シート)'!E:F,2,FALSE)&\"\",\"\")","v":""},null,null,null,null,null,null,"",null,null,null,null,null,null,"　",null,"　",null,"　",null,null,null,"",null,null,null,null,null,null,null,null,"",""]
[null,{"$f":"IFERROR(VLOOKUP(AH972,'ID(当院入力シート)'!E:F,2,FALSE)&\"\",\"\")","v":""},null,null,null,null,null,null,"",null,null,null,null,null,null,"　",null,"　",null,"　",null,null,null,"",null,null,null,null,null,null,null,null,"",""]
[null,{"$f":"IFERROR(VLOOKUP(AH973,'ID(当院入力シート)'!E:F,2,FALSE)&\"\",\"\")","v":""},null,null,null,null,null,null,"",null,null,null,null,null,null,"　",null,"　",null,"　",null,null,null,"",null,null,null,null,null,null,null,null,"",""]
[null,{"$f":"IFERROR(VLOOKUP(AH974,'ID(当院入力シート)'!E:F,2,FALSE)&\"\",\"\")","v":""},null,null,null,null,null,null,"",null,null,null,null,null,null,"　",null,"　",null,"　",null,null,null,"",null,null,null,null,null,null,null,null,"",""]
[null,{"$f":"IFERROR(VLOOKUP(AH975,'ID(当院入力シート)'!E:F,2,FALSE)&\"\",\"\")","v":""},null,null,null,null,null,null,"",null,null,null,null,null,null,"　",null,"　",null,"　",null,null,null,"",null,null,null,null,null,null,null,null,"",""]
[null,{"$f":"IFERROR(VLOOKUP(AH976,'ID(当院入力シート)'!E:F,2,FALSE)&\"\",\"\")","v":""},null,null,null,null,null,null,{"$f":"IF(OR(H976=\"\", $I$8=\"\"), \"\", DATEDIF(H976,$I$8,\"y\"))","v":""},null,null,null,null,null,null,"　",null,"　",null,"　",null,null,null,"",null,null,null,null,null,null,null,null,{"$f":"SUBSTITUTE(SUBSTITUTE(E976,\"　\",\"\"),\" \",\"\")","v":""},{"$f":"AG976&H976","v":""}]
[null,{"$f":"IFERROR(VLOOKUP(AH977,'ID(当院入力シート)'!E:F,2,FALSE)&\"\",\"\")","v":""},null,null,null,null,null,null,"",null,null,null,null,null,null,"　",null,"　",null,"　",null,null,null,"",null,null,null,null,null,null,null,null,"",""]
[null,{"$f":"IFERROR(VLOOKUP(AH978,'ID(当院入力シート)'!E:F,2,FALSE)&\"\",\"\")","v":""},null,null,null,null,null,null,"",null,null,null,null,null,null,"　",null,"　",null,"　",null,null,null,"",null,null,null,null,null,null,null,null,"",""]
[null,{"$f":"IFERROR(VLOOKUP(AH979,'ID(当院入力シート)'!E:F,2,FALSE)&\"\",\"\")","v":""},null,null,null,null,null,null,"",null,null,null,null,null,null,"　",null,"　",null,"　",null,null,null,"",null,null,null,null,null,null,null,null,"",""]
[null,{"$f":"IFERROR(VLOOKUP(AH980,'ID(当院入力シート)'!E:F,2,FALSE)&\"\",\"\")","v":""},null,null,null,null,null,null,"",null,null,null,null,null,null,"　",null,"　",null,"　",null,null,null,"",null,null,null,null,null,null,null,null,"",""]
[null,{"$f":"IFERROR(VLOOKUP(AH981,'ID(当院入力シート)'!E:F,2,FALSE)&\"\",\"\")","v":""},null,null,null,null,null,null,"",null,null,null,null,null,null,"　",null,"　",null,"　",null,null,null,"",null,null,null,null,null,null,null,null,"",""]
[null,{"$f":"IFERROR(VLOOKUP(AH982,'ID(当院入力シート)'!E:F,2,FALSE)&\"\",\"\")","v":""},null,null,null,null,null,null,"",null,null,null,null,null,null,"　",null,"　",null,"　",null,null,null,"",null,null,null,null,null,null,null,null,"",""]
[null,{"$f":"IFERROR(VLOOKUP(AH983,'ID(当院入力シート)'!E:F,2,FALSE)&\"\",\"\")","v":""},null,null,null,null,null,null,"",null,null,null,null,null,null,"　",null,"　",null,"　",null,null,null,"",null,null,null,null,null,null,null,null,"",""]
[null,{"$f":"IFERROR(VLOOKUP(AH984,'ID(当院入力シート)'!E:F,2,FALSE)&\"\",\"\")","v":""},null,null,null,null,null,null,"",null,null,null,null,null,null,"　",null,"　",null,"　",null,null,null,"",null,null,null,null,null,null,null,null,"",""]
[null,{"$f":"IFERROR(VLOOKUP(AH985,'ID(当院入力シート)'!E:F,2,FALSE)&\"\",\"\")","v":""},null,null,null,null,null,null,"",null,null,null,null,null,null,"　",null,"　",null,"　",null,null,null,"",null,null,null,null,null,null,null,null,"",""]
[null,{"$f":"IFERROR(VLOOKUP(AH986,'ID(当院入力シート)'!E:F,2,FALSE)&\"\",\"\")","v":""},null,null,null,null,null,null,"",null,null,null,null,null,null,"　",null,"　",null,"　",null,null,null,"",null,null,null,null,null,null,null,null,"",""]
[null,{"$f":"IFERROR(VLOOKUP(AH987,'ID(当院入力シート)'!E:F,2,FALSE)&\"\",\"\")","v":""},null,null,null,null,null,null,"",null,null,null,null,null,null,"　",null,"　",null,"　",null,null,null,"",null,null,null,null,null,null,null,null,"",""]
[null,{"$f":"IFERROR(VLOOKUP(AH988,'ID(当院入力シート)'!E:F,2,FALSE)&\"\",\"\")","v":""},null,null,null,null,null,null,"",null,null,null,null,null,null,"　",null,"　",null,"　",null,null,null,"",null,null,null,null,null,null,null,null,"",""]
[null,{"$f":"IFERROR(VLOOKUP(AH989,'ID(当院入力シート)'!E:F,2,FALSE)&\"\",\"\")","v":""},null,null,null,null,null,null,"",null,null,null,null,null,null,"　",null,"　",null,"　",null,null,null,"",null,null,null,null,null,null,null,null,"",""]
[null,{"$f":"IFERROR(VLOOKUP(AH990,'ID(当院入力シート)'!E:F,2,FALSE)&\"\",\"\")","v":""},null,null,null,null,null,null,"",null,null,null,null,null,null,"　",null,"　",null,"　",null,null,null,"",null,null,null,null,null,null,null,null,"",""]
[null,{"$f":"IFERROR(VLOOKUP(AH991,'ID(当院入力シート)'!E:F,2,FALSE)&\"\",\"\")","v":""},null,null,null,null,null,null,"",null,null,null,null,null,null,"　",null,"　",null,"　",null,null,null,"",null,null,null,null,null,null,null,null,"",""]
[null,{"$f":"IFERROR(VLOOKUP(AH992,'ID(当院入力シート)'!E:F,2,FALSE)&\"\",\"\")","v":""},null,null,null,null,null,null,"",null,null,null,null,null,null,"　",null,"　",null,"　",null,null,null,"",null,null,null,null,null,null,null,null,"",""]
[null,{"$f":"IFERROR(VLOOKUP(AH993,'ID(当院入力シート)'!E:F,2,FALSE)&\"\",\"\")","v":""},null,null,null,null,null,null,"",null,null,null,null,null,null,"　",null,"　",null,"　",null,null,null,"",null,null,null,null,null,null,null,null,"",""]
[null,{"$f":"IFERROR(VLOOKUP(AH994,'ID(当院入力シート)'!E:F,2,FALSE)&\"\",\"\")","v":""},null,null,null,null,null,null,"",null,null,null,null,null,null,"　",null,"　",null,"　",null,null,null,"",null,null,null,null,null,null,null,null,"",""]
[null,{"$f":"IFERROR(VLOOKUP(AH995,'ID(当院入力シート)'!E:F,2,FALSE)&\"\",\"\")","v":""},null,null,null,null,null,null,"",null,null,null,null,null,null,"　",null,"　",null,"　",null,null,null,"",null,null,null,null,null,null,null,null,"",""]
[null,{"$f":"IFERROR(VLOOKUP(AH996,'ID(当院入力シート)'!E:F,2,FALSE)&\"\",\"\")","v":""},null,null,null,null,null,null,"",null,null,null,null,null,null,"　",null,"　",null,"　",null,null,null,"",null,null,null,null,null,null,null,null,"",""]
[null,{"$f":"IFERROR(VLOOKUP(AH997,'ID(当院入力シート)'!E:F,2,FALSE)&\"\",\"\")","v":""},null,null,null,null,null,null,"",null,null,null,null,null,null,"　",null,"　",null,"　",null,null,null,"",null,null,null,null,null,null,null,null,"",""]
[null,{"$f":"IFERROR(VLOOKUP(AH998,'ID(当院入力シート)'!E:F,2,FALSE)&\"\",\"\")","v":""},null,null,null,null,null,null,"",null,null,null,null,null,null,"　",null,"　",null,"　",null,null,null,"",null,null,null,null,null,null,null,null,"",""]
[null,{"$f":"IFERROR(VLOOKUP(AH999,'ID(当院入力シート)'!E:F,2,FALSE)&\"\",\"\")","v":""},null,null,null,null,null,null,"",null,null,null,null,null,null,"　",null,"　",null,"　",null,null,null,"",null,null,null,null,null,null,null,null,"",""]
[null,{"$f":"IFERROR(VLOOKUP(AH1000,'ID(当院入力シート)'!E:F,2,FALSE)&\"\",\"\")","v":""},null,null,null,null,null,null,"",null,null,null,null,null,null,"　",null,"　",null,"　",null,null,null,"",null,null,null,null,null,null,null,null,"",""]

{"sheet":"ID(当院入力シート)","index":5,"n_rows":3001,"n_cols":6,"rows_kept":3001,"cut":false,"hidden":false,"merged":[]}
["氏名","カナ氏名","[団体個人]カナ氏名","生年月日","自動生成(消さないで)\n※最大3000人","ワイズマンID"]
[null,null,null,null,{"$f":"SUBSTITUTE(SUBSTITUTE(A2,\"　\",\"\"),\" \",\"\")&D2","v":""}]
[null,null,null,null,{"$f":"SUBSTITUTE(SUBSTITUTE(A3,\"　\",\"\"),\" \",\"\")&D3","v":""}]
[null,null,null,null,{"$f":"SUBSTITUTE(SUBSTITUTE(A4,\"　\",\"\"),\" \",\"\")&D4","v":""}]
[null,null,null,null,""]
[null,null,null,null,""]
[null,null,null,null,""]
[null,null,null,null,""]
[null,null,null,null,""]
[null,null,null,null,""]
[null,null,null,null,""]
[null,null,null,null,""]
[null,null,null,null,""]
[null,null,null,null,""]
[null,null,null,null,""]
[null,null,null,null,""]
[null,null,null,null,""]
[null,null,null,null,""]
[null,null,null,null,""]
[null,null,null,null,""]
[null,null,null,null,""]
[null,null,null,null,""]
[null,null,null,null,""]
[null,null,null,null,""]
[null,null,null,null,""]
[null,null,null,null,""]
[null,null,null,null,""]
[null,null,null,null,""]
[null,null,null,null,""]
[null,null,null,null,""]
[null,null,null,null,""]
[null,null,null,null,""]
[null,null,null,null,""]
[null,null,null,null,""]
[null,null,null,null,""]
[null,null,null,null,""]
[null,null,null,null,""]
[null,null,null,null,""]
[null,null,null,null,""]
[null,null,null,null,""]
[null,null,null,null,""]
[null,null,null,null,""]
[null,null,null,null,""]
[null,null,null,null,""]
[null,null,null,null,""]
[null,null,null,null,""]
[null,null,null,null,""]
[null,null,null,null,""]
[null,null,null,null,""]
[null,null,null,null,""]
[null,null,null,null,""]
[null,null,null,null,""]
[null,null,null,null,""]
[null,null,null,null,""]
[null,null,null,null,""]
[null,null,null,null,""]
[null,null,null,null,""]
[null,null,null,null,""]
[null,null,null,null,""]
[null,null,null,null,""]
[null,null,null,null,""]
[null,null,null,null,""]
[null,null,null,null,""]
[null,null,null,null,""]
[null,null,null,null,""]
[null,null,null,null,""]
[null,null,null,null,""]
[null,null,null,null,{"$f":"SUBSTITUTE(SUBSTITUTE(A68,\"　\",\"\"),\" \",\"\")&D68","v":""}]
[null,null,null,null,""]
[null,null,null,null,""]
[null,null,null,null,""]
[null,null,null,null,""]
[null,null,null,null,""]
[null,null,null,null,""]
[null,null,null,null,""]
[null,null,null,null,""]
[null,null,null,null,""]
[null,null,null,null,""]
[null,null,null,null,""]
[null,null,null,null,""]
[null,null,null,null,""]
[null,null,null,null,""]
[null,null,null,null,""]
[null,null,null,null,""]
[null,null,null,null,""]
[null,null,null,null,""]
[null,null,null,null,""]
[null,null,null,null,""]
[null,null,null,null,""]
[null,null,null,null,""]
[null,null,null,null,""]
[null,null,null,null,""]
[null,null,null,null,""]
[null,null,null,null,""]
[null,null,null,null,""]
[null,null,null,null,""]
[null,null,null,null,""]
[null,null,null,null,""]
[null,null,null,null,""]
[null,null,null,null,""]
[null,null,null,null,""]
[null,null,null,null,""]
[null,null,null,null,""]
[null,null,null,null,""]
[null,null,null,null,""]
[null,null,null,null,""]
[null,null,null,null,""]
[null,null,null,null,""]
[null,null,null,null,""]
[null,null,null,null,""]
[null,null,null,null,""]
[null,null,null,null,""]
[null,null,null,null,""]
[null,null,null,null,""]
[null,null,null,null,""]
[null,null,null,null,""]
[null,null,null,null,""]
[null,null,null,null,""]
[null,null,null,null,""]
[null,null,null,null,""]
[null,null,null,null,""]
[null,null,null,null,""]
[null,null,null,null,""]
[null,null,null,null,""]
[null,null,null,null,""]
[null,null,null,null,""]
[null,null,null,null,""]
[null,null,null,null,""]
[null,null,null,null,""]
[null,null,null,null,""]
[null,null,null,null,""]
[null,null,null,null,{"$f":"SUBSTITUTE(SUBSTITUTE(A132,\"　\",\"\"),\" \",\"\")&D132","v":""}]
[null,null,null,null,""]
[null,null,null,null,""]
[null,null,null,null,""]
[null,null,null,null,""]
[null,null,null,null,""]
[null,null,null,null,""]
[null,null,null,null,""]
[null,null,null,null,""]
[null,null,null,null,""]
[null,null,null,null,""]
[null,null,null,null,""]
[null,null,null,null,""]
[null,null,null,null,""]
[null,null,null,null,""]
[null,null,null,null,""]
[null,null,null,null,""]
[null,null,null,null,""]
[null,null,null,null,""]
[null,null,null,null,""]
[null,null,null,null,""]
[null,null,null,null,""]
[null,null,null,null,""]
[null,null,null,null,""]
[null,null,null,null,""]
[null,null,null,null,""]
[null,null,null,null,""]
[null,null,null,null,""]
[null,null,null,null,""]
[null,null,null,null,""]
[null,null,null,null,""]
[null,null,null,null,""]
[null,null,null,null,""]
[null,null,null,null,""]
[null,null,null,null,""]
[null,null,null,null,""]
[null,null,null,null,""]
[null,null,null,null,""]
[null,null,null,null,""]
[null,null,null,null,""]
[null,null,null,null,""]
[null,null,null,null,""]
[null,null,null,null,""]
[null,null,null,null,""]
[null,null,null,null,""]
[null,null,null,null,""]
[null,null,null,null,""]
[null,null,null,null,""]
[null,null,null,null,""]
[null,null,null,null,""]
[null,null,null,null,""]
[null,null,null,null,""]
[null,null,null,null,""]
[null,null,null,null,""]
[null,null,null,null,""]
[null,null,null,null,""]
[null,null,null,null,""]
[null,null,null,null,""]
[null,null,null,null,""]
[null,null,null,null,""]
[null,null,null,null,""]
[null,null,null,null,""]
[null,null,null,null,""]
[null,null,null,null,""]
[null,null,null,null,{"$f":"SUBSTITUTE(SUBSTITUTE(A196,\"　\",\"\"),\" \",\"\")&D196","v":""}]
[null,null,null,null,""]
[null,null,null,null,""]
[null,null,null,null,""]
[null,null,null,null,""]
[null,null,null,null,""]
[null,null,null,null,""]
[null,null,null,null,""]
[null,null,null,null,""]
[null,null,null,null,""]
[null,null,null,null,""]
[null,null,null,null,""]
[null,null,null,null,""]
[null,null,null,null,""]
[null,null,null,null,""]
[null,null,null,null,""]
[null,null,null,null,""]
[null,null,null,null,""]
[null,null,null,null,""]
[null,null,null,null,""]
[null,null,null,null,""]
[null,null,null,null,""]
[null,null,null,null,""]
[null,null,null,null,""]
[null,null,null,null,""]
[null,null,null,null,""]
[null,null,null,null,""]
[null,null,null,null,""]
[null,null,null,null,""]
[null,null,null,null,""]
[null,null,null,null,""]
[null,null,null,null,""]
[null,null,null,null,""]
[null,null,null,null,""]
[null,null,null,null,""]
[null,null,null,null,""]
[null,null,null,null,""]
[null,null,null,null,""]
[null,null,null,null,""]
[null,null,null,null,""]
[null,null,null,null,""]
[null,null,null,null,""]
[null,null,null,null,""]
[null,null,null,null,""]
[null,null,null,null,""]
[null,null,null,null,""]
[null,null,null,null,""]
[null,null,null,null,""]
[null,null,null,null,""]
[null,null,null,null,""]
[null,null,null,null,""]
[null,null,null,null,""]
[null,null,null,null,""]
[null,null,null,null,""]
[null,null,null,null,""]
[null,null,null,null,""]
[null,null,null,null,""]
[null,null,null,null,""]
[null,null,null,null,""]
[null,null,null,null,""]
[null,null,null,null,""]
[null,null,null,null,""]
[null,null,null,null,""]
[null,null,null,null,""]
[null,null,null,null,{"$f":"SUBSTITUTE(SUBSTITUTE(A260,\"　\",\"\"),\" \",\"\")&D260","v":""}]
[null,null,null,null,""]
[null,null,null,null,""]
[null,null,null,null,""]
[null,null,null,null,""]
[null,null,null,null,""]
[null,null,null,null,""]
[null,null,null,null,""]
[null,null,null,null,""]
[null,null,null,null,""]
[null,null,null,null,""]
[null,null,null,null,""]
[null,null,null,null,""]
[null,null,null,null,""]
[null,null,null,null,""]
[null,null,null,null,""]
[null,null,null,null,""]
[null,null,null,null,""]
[null,null,null,null,""]
[null,null,null,null,""]
[null,null,null,null,""]
[null,null,null,null,""]
[null,null,null,null,""]
[null,null,null,null,""]
[null,null,null,null,""]
[null,null,null,null,""]
[null,null,null,null,""]
[null,null,null,null,""]
[null,null,null,null,""]
[null,null,null,null,""]
[null,null,null,null,""]
[null,null,null,null,""]
[null,null,null,null,""]
[null,null,null,null,""]
[null,null,null,null,""]
[null,null,null,null,""]
[null,null,null,null,""]
[null,null,null,null,""]
[null,null,null,null,""]
[null,null,null,null,""]
[null,null,null,null,""]
[null,null,null,null,""]
[null,null,null,null,""]
[null,null,null,null,""]
[null,null,null,null,""]
[null,null,null,null,""]
[null,null,null,null,""]
[null,null,null,null,""]
[null,null,null,null,""]
[null,null,null,null,""]
[null,null,null,null,""]
[null,null,null,null,""]
[null,null,null,null,""]
[null,null,null,null,""]
[null,null,null,null,""]
[null,null,null,null,""]
[null,null,null,null,""]
[null,null,null,null,""]
[null,null,null,null,""]
[null,null,null,null,""]
[null,null,null,null,""]
[null,null,null,null,""]
[null,null,null,null,""]
[null,null,null,null,""]
[null,null,null,null,{"$f":"SUBSTITUTE(SUBSTITUTE(A324,\"　\",\"\"),\" \",\"\")&D324","v":""}]
[null,null,null,null,""]
[null,null,null,null,""]
[null,null,null,null,""]
[null,null,null,null,""]
[null,null,null,null,""]
[null,null,null,null,""]
[null,null,null,null,""]
[null,null,null,null,""]
[null,null,null,null,""]
[null,null,null,null,""]
[null,null,null,null,""]
[null,null,null,null,""]
[null,null,null,null,""]
[null,null,null,null,""]
[null,null,null,null,""]
[null,null,null,null,""]
[null,null,null,null,""]
[null,null,null,null,""]
[null,null,null,null,""]
[null,null,null,null,""]
[null,null,null,null,""]
[null,null,null,null,""]
[null,null,null,null,""]
[null,null,null,null,""]
[null,null,null,null,""]
[null,null,null,null,""]
[null,null,null,null,""]
[null,null,null,null,""]
[null,null,null,null,""]
[null,null,null,null,""]
[null,null,null,null,""]
[null,null,null,null,""]
[null,null,null,null,""]
[null,null,null,null,""]
[null,null,null,null,""]
[null,null,null,null,""]
[null,null,null,null,""]
[null,null,null,null,""]
[null,null,null,null,""]
[null,null,null,null,""]
[null,null,null,null,""]
[null,null,null,null,""]
[null,null,null,null,""]
[null,null,null,null,""]
[null,null,null,null,""]
[null,null,null,null,""]
[null,null,null,null,""]
[null,null,null,null,""]
[null,null,null,null,""]
[null,null,null,null,""]
[null,null,null,null,""]
[null,null,null,null,""]
[null,null,null,null,""]
[null,null,null,null,""]
[null,null,null,null,""]
[null,null,null,null,""]
[null,null,null,null,""]
[null,null,null,null,""]
[null,null,null,null,""]
[null,null,null,null,""]
[null,null,null,null,""]
[null,null,null,null,""]
[null,null,null,null,""]
[null,null,null,null,{"$f":"SUBSTITUTE(SUBSTITUTE(A388,\"　\",\"\"),\" \",\"\")&D388","v":""}]
[null,null,null,null,""]
[null,null,null,null,""]
[null,null,null,null,""]
[null,null,null,null,""]
[null,null,null,null,""]
[null,null,null,null,""]
[null,null,null,null,""]
[null,null,null,null,""]
[null,null,null,null,""]
[null,null,null,null,""]
[null,null,null,null,""]
[null,null,null,null,""]
[null,null,null,null,""]
[null,null,null,null,""]
[null,null,null,null,""]
[null,null,null,null,""]
[null,null,null,null,""]
[null,null,null,null,""]
[null,null,null,null,""]
[null,null,null,null,""]
[null,null,null,null,""]
[null,null,null,null,""]
[null,null,null,null,""]
[null,null,null,null,""]
[null,null,null,null,""]
[null,null,null,null,""]
[null,null,null,null,""]
[null,null,null,null,""]
[null,null,null,null,""]
[null,null,null,null,""]
[null,null,null,null,""]
[null,null,null,null,""]
[null,null,null,null,""]
[null,null,null,null,""]
[null,null,null,null,""]
[null,null,null,null,""]
[null,null,null,null,""]
[null,null,null,null,""]
[null,null,null,null,""]
[null,null,null,null,""]
[null,null,null,null,""]
[null,null,null,null,""]
[null,null,null,null,""]
[null,null,null,null,""]
[null,null,null,null,""]
[null,null,null,null,""]
[null,null,null,null,""]
[null,null,null,null,""]
[null,null,null,null,""]
[null,null,null,null,""]
[null,null,null,null,""]
[null,null,null,null,""]
[null,null,null,null,""]
[null,null,null,null,""]
[null,null,null,null,""]
[null,null,null,null,""]
[null,null,null,null,""]
[null,null,null,null,""]
[null,null,null,null,""]
[null,null,null,null,""]
[null,null,null,null,""]
[null,null,null,null,""]
[null,null,null,null,""]
[null,null,null,null,{"$f":"SUBSTITUTE(SUBSTITUTE(A452,\"　\",\"\"),\" \",\"\")&D452","v":""}]
[null,null,null,null,""]
[null,null,null,null,""]
[null,null,null,null,""]
[null,null,null,null,""]
[null,null,null,null,""]
[null,null,null,null,""]
[null,null,null,null,""]
[null,null,null,null,""]
[null,null,null,null,""]
[null,null,null,null,""]
[null,null,null,null,""]
[null,null,null,null,""]
[null,null,null,null,""]
[null,null,null,null,""]
[null,null,null,null,""]
[null,null,null,null,""]
[null,null,null,null,""]
[null,null,null,null,""]
[null,null,null,null,""]
[null,null,null,null,""]
[null,null,null,null,""]
[null,null,null,null,""]
[null,null,null,null,""]
[null,null,null,null,""]
[null,null,null,null,""]
[null,null,null,null,""]
[null,null,null,null,""]
[null,null,null,null,""]
[null,null,null,null,""]
[null,null,null,null,""]
[null,null,null,null,""]
[null,null,null,null,""]
[null,null,null,null,""]
[null,null,null,null,""]
[null,null,null,null,""]
[null,null,null,null,""]
[null,null,null,null,""]
[null,null,null,null,""]
[null,null,null,null,""]
[null,null,null,null,""]
[null,null,null,null,""]
[null,null,null,null,""]
[null,null,null,null,""]
[null,null,null,null,""]
[null,null,null,null,""]
[null,null,null,null,""]
[null,null,null,null,""]
[null,null,null,null,""]
[null,null,null,null,""]
[null,null,null,null,""]
[null,null,null,null,""]
[null,null,null,null,""]
[null,null,null,null,""]
[null,null,null,null,""]
[null,null,null,null,""]
[null,null,null,null,""]
[null,null,null,null,""]
[null,null,null,null,""]
[null,null,null,null,""]
[null,null,null,null,""]
[null,null,null,null,""]
[null,null,null,null,""]
[null,null,null,null,""]
[null,null,null,null,{"$f":"SUBSTITUTE(SUBSTITUTE(A516,\"　\",\"\"),\" \",\"\")&D516","v":""}]
[null,null,null,null,""]
[null,null,null,null,""]
[null,null,null,null,""]
[null,null,null,null,""]
[null,null,null,null,""]
[null,null,null,null,""]
[null,null,null,null,""]
[null,null,null,null,""]
[null,null,null,null,""]
[null,null,null,null,""]
[null,null,null,null,""]
[null,null,null,null,""]
[null,null,null,null,""]
[null,null,null,null,""]
[null,null,null,null,""]
[null,null,null,null,""]
[null,null,null,null,""]
[null,null,null,null,""]
[null,null,null,null,""]
[null,null,null,null,""]
[null,null,null,null,""]
[null,null,null,null,""]
[null,null,null,null,""]
[null,null,null,null,""]
[null,null,null,null,""]
[null,null,null,null,""]
[null,null,null,null,""]
[null,null,null,null,""]
[null,null,null,null,""]
[null,null,null,null,""]
[null,null,null,null,""]
[null,null,null,null,""]
[null,null,null,null,""]
[null,null,null,null,""]
[null,null,null,null,""]
[null,null,null,null,""]
[null,null,null,null,""]
[null,null,null,null,""]
[null,null,null,null,""]
[null,null,null,null,""]
[null,null,null,null,""]
[null,null,null,null,""]
[null,null,null,null,""]
[null,null,null,null,""]
[null,null,null,null,""]
[null,null,null,null,""]
[null,null,null,null,""]
[null,null,null,null,""]
[null,null,null,null,""]
[null,null,null,null,""]
[null,null,null,null,""]
[null,null,null,null,""]
[null,null,null,null,""]
[null,null,null,null,""]
[null,null,null,null,""]
[null,null,null,null,""]
[null,null,null,null,""]
[null,null,null,null,""]
[null,null,null,null,""]
[null,null,null,null,""]
[null,null,null,null,""]
[null,null,null,null,""]
[null,null,null,null,""]
[null,null,null,null,{"$f":"SUBSTITUTE(SUBSTITUTE(A580,\"　\",\"\"),\" \",\"\")&D580","v":""}]
[null,null,null,null,""]
[null,null,null,null,""]
[null,null,null,null,""]
[null,null,null,null,""]
[null,null,null,null,""]
[null,null,null,null,""]
[null,null,null,null,""]
[null,null,null,null,""]
[null,null,null,null,""]
[null,null,null,null,""]
[null,null,null,null,""]
[null,null,null,null,""]
[null,null,null,null,""]
[null,null,null,null,""]
[null,null,null,null,""]
[null,null,null,null,""]
[null,null,null,null,""]
[null,null,null,null,""]
[null,null,null,null,""]
[null,null,null,null,""]
[null,null,null,null,""]
[null,null,null,null,""]
[null,null,null,null,""]
[null,null,null,null,""]
[null,null,null,null,""]
[null,null,null,null,""]
[null,null,null,null,""]
[null,null,null,null,""]
[null,null,null,null,""]
[null,null,null,null,""]
[null,null,null,null,""]
[null,null,null,null,""]
[null,null,null,null,""]
[null,null,null,null,""]
[null,null,null,null,""]
[null,null,null,null,""]
[null,null,null,null,""]
[null,null,null,null,""]
[null,null,null,null,""]
[null,null,null,null,""]
[null,null,null,null,""]
[null,null,null,null,""]
[null,null,null,null,""]
[null,null,null,null,""]
[null,null,null,null,""]
[null,null,null,null,""]
[null,null,null,null,""]
[null,null,null,null,""]
[null,null,null,null,""]
[null,null,null,null,""]
[null,null,null,null,""]
[null,null,null,null,""]
[null,null,null,null,""]
[null,null,null,null,""]
[null,null,null,null,""]
[null,null,null,null,""]
[null,null,null,null,""]
[null,null,null,null,""]
[null,null,null,null,""]
[null,null,null,null,""]
[null,null,null,null,""]
[null,null,null,null,""]
[null,null,null,null,""]
[null,null,null,null,{"$f":"SUBSTITUTE(SUBSTITUTE(A644,\"　\",\"\"),\" \",\"\")&D644","v":""}]
[null,null,null,null,""]
[null,null,null,null,""]
[null,null,null,null,""]
[null,null,null,null,""]
[null,null,null,null,""]
[null,null,null,null,""]
[null,null,null,null,""]
[null,null,null,null,""]
[null,null,null,null,""]
[null,null,null,null,""]
[null,null,null,null,""]
[null,null,null,null,""]
[null,null,null,null,""]
[null,null,null,null,""]
[null,null,null,null,""]
[null,null,null,null,""]
[null,null,null,null,""]
[null,null,null,null,""]
[null,null,null,null,""]
[null,null,null,null,""]
[null,null,null,null,""]
[null,null,null,null,""]
[null,null,null,null,""]
[null,null,null,null,""]
[null,null,null,null,""]
[null,null,null,null,""]
[null,null,null,null,""]
[null,null,null,null,""]
[null,null,null,null,""]
[null,null,null,null,""]
[null,null,null,null,""]
[null,null,null,null,""]
[null,null,null,null,""]
[null,null,null,null,""]
[null,null,null,null,""]
[null,null,null,null,""]
[null,null,null,null,""]
[null,null,null,null,""]
[null,null,null,null,""]
[null,null,null,null,""]
[null,null,null,null,""]
[null,null,null,null,""]
[null,null,null,null,""]
[null,null,null,null,""]
[null,null,null,null,""]
[null,null,null,null,""]
[null,null,null,null,""]
[null,null,null,null,""]
[null,null,null,null,""]
[null,null,null,null,""]
[null,null,null,null,""]
[null,null,null,null,""]
[null,null,null,null,""]
[null,null,null,null,""]
[null,null,null,null,""]
[null,null,null,null,""]
[null,null,null,null,""]
[null,null,null,null,""]
[null,null,null,null,""]
[null,null,null,null,""]
[null,null,null,null,""]
[null,null,null,null,""]
[null,null,null,null,""]
[null,null,null,null,{"$f":"SUBSTITUTE(SUBSTITUTE(A708,\"　\",\"\"),\" \",\"\")&D708","v":""}]
[null,null,null,null,""]
[null,null,null,null,""]
[null,null,null,null,""]
[null,null,null,null,""]
[null,null,null,null,""]
[null,null,null,null,""]
[null,null,null,null,""]
[null,null,null,null,""]
[null,null,null,null,""]
[null,null,null,null,""]
[null,null,null,null,""]
[null,null,null,null,""]
[null,null,null,null,""]
[null,null,null,null,""]
[null,null,null,null,""]
[null,null,null,null,""]
[null,null,null,null,""]
[null,null,null,null,""]
[null,null,null,null,""]
[null,null,null,null,""]
[null,null,null,null,""]
[null,null,null,null,""]
[null,null,null,null,""]
[null,null,null,null,""]
[null,null,null,null,""]
[null,null,null,null,""]
[null,null,null,null,""]
[null,null,null,null,""]
[null,null,null,null,""]
[null,null,null,null,""]
[null,null,null,null,""]
[null,null,null,null,""]
[null,null,null,null,""]
[null,null,null,null,""]
[null,null,null,null,""]
[null,null,null,null,""]
[null,null,null,null,""]
[null,null,null,null,""]
[null,null,null,null,""]
[null,null,null,null,""]
[null,null,null,null,""]
[null,null,null,null,""]
[null,null,null,null,""]
[null,null,null,null,""]
[null,null,null,null,""]
[null,null,null,null,""]
[null,null,null,null,""]
[null,null,null,null,""]
[null,null,null,null,""]
[null,null,null,null,""]
[null,null,null,null,""]
[null,null,null,null,""]
[null,null,null,null,""]
[null,null,null,null,""]
[null,null,null,null,""]
[null,null,null,null,""]
[null,null,null,null,""]
[null,null,null,null,""]
[null,null,null,null,""]
[null,null,null,null,""]
[null,null,null,null,""]
[null,null,null,null,""]
[null,null,null,null,""]
[null,null,null,null,{"$f":"SUBSTITUTE(SUBSTITUTE(A772,\"　\",\"\"),\" \",\"\")&D772","v":""}]
[null,null,null,null,""]
[null,null,null,null,""]
[null,null,null,null,""]
[null,null,null,null,""]
[null,null,null,null,""]
[null,null,null,null,""]
[null,null,null,null,""]
[null,null,null,null,""]
[null,null,null,null,""]
[null,null,null,null,""]
[null,null,null,null,""]
[null,null,null,null,""]
[null,null,null,null,""]
[null,null,null,null,""]
[null,null,null,null,""]
[null,null,null,null,""]
[null,null,null,null,""]
[null,null,null,null,""]
[null,null,null,null,""]
[null,null,null,null,""]
[null,null,null,null,""]
[null,null,null,null,""]
[null,null,null,null,""]
[null,null,null,null,""]
[null,null,null,null,""]
[null,null,null,null,""]
[null,null,null,null,""]
[null,null,null,null,""]
[null,null,null,null,""]
[null,null,null,null,""]
[null,null,null,null,""]
[null,null,null,null,""]
[null,null,null,null,""]
[null,null,null,null,""]
[null,null,null,null,""]
[null,null,null,null,""]
[null,null,null,null,""]
[null,null,null,null,""]
[null,null,null,null,""]
[null,null,null,null,""]
[null,null,null,null,""]
[null,null,null,null,""]
[null,null,null,null,""]
[null,null,null,null,""]
[null,null,null,null,""]
[null,null,null,null,""]
[null,null,null,null,""]
[null,null,null,null,""]
[null,null,null,null,""]
[null,null,null,null,""]
[null,null,null,null,""]
[null,null,null,null,""]
[null,null,null,null,""]
[null,null,null,null,""]
[null,null,null,null,""]
[null,null,null,null,""]
[null,null,null,null,""]
[null,null,null,null,""]
[null,null,null,null,""]
[null,null,null,null,""]
[null,null,null,null,""]
[null,null,null,null,""]
[null,null,null,null,""]
[null,null,null,null,{"$f":"SUBSTITUTE(SUBSTITUTE(A836,\"　\",\"\"),\" \",\"\")&D836","v":""}]
[null,null,null,null,""]
[null,null,null,null,""]
[null,null,null,null,""]
[null,null,null,null,""]
[null,null,null,null,""]
[null,null,null,null,""]
[null,null,null,null,""]
[null,null,null,null,""]
[null,null,null,null,""]
[null,null,null,null,""]
[null,null,null,null,""]
[null,null,null,null,""]
[null,null,null,null,""]
[null,null,null,null,""]
[null,null,null,null,""]
[null,null,null,null,""]
[null,null,null,null,""]
[null,null,null,null,""]
[null,null,null,null,""]
[null,null,null,null,""]
[null,null,null,null,""]
[null,null,null,null,""]
[null,null,null,null,""]
[null,null,null,null,""]
[null,null,null,null,""]
[null,null,null,null,""]
[null,null,null,null,""]
[null,null,null,null,""]
[null,null,null,null,""]
[null,null,null,null,""]
[null,null,null,null,""]
[null,null,null,null,""]
[null,null,null,null,""]
[null,null,null,null,""]
[null,null,null,null,""]
[null,null,null,null,""]
[null,null,null,null,""]
[null,null,null,null,""]
[null,null,null,null,""]
[null,null,null,null,""]
[null,null,null,null,""]
[null,null,null,null,""]
[null,null,null,null,""]
[null,null,null,null,""]
[null,null,null,null,""]
[null,null,null,null,""]
[null,null,null,null,""]
[null,null,null,null,""]
[null,null,null,null,""]
[null,null,null,null,""]
[null,null,null,null,""]
[null,null,null,null,""]
[null,null,null,null,""]
[null,null,null,null,""]
[null,null,null,null,""]
[null,null,null,null,""]
[null,null,null,null,""]
[null,null,null,null,""]
[null,null,null,null,""]
[null,null,null,null,""]
[null,null,null,null,""]
[null,null,null,null,""]
[null,null,null,null,""]
[null,null,null,null,{"$f":"SUBSTITUTE(SUBSTITUTE(A900,\"　\",\"\"),\" \",\"\")&D900","v":""}]
[null,null,null,null,""]
[null,null,null,null,""]
[null,null,null,null,""]
[null,null,null,null,""]
[null,null,null,null,""]
[null,null,null,null,""]
[null,null,null,null,""]
[null,null,null,null,""]
[null,null,null,null,""]
[null,null,null,null,""]
[null,null,null,null,""]
[null,null,null,null,""]
[null,null,null,null,""]
[null,null,null,null,""]
[null,null,null,null,""]
[null,null,null,null,""]
[null,null,null,null,""]
[null,null,null,null,""]
[null,null,null,null,""]
[null,null,null,null,""]
[null,null,null,null,""]
[null,null,null,null,""]
[null,null,null,null,""]
[null,null,null,null,""]
[null,null,null,null,""]
[null,null,null,null,""]
[null,null,null,null,""]
[null,null,null,null,""]
[null,null,null,null,""]
[null,null,null,null,""]
[null,null,null,null,""]
[null,null,null,null,""]
[null,null,null,null,""]
[null,null,null,null,""]
[null,null,null,null,""]
[null,null,null,null,""]
[null,null,null,null,""]
[null,null,null,null,""]
[null,null,null,null,""]
[null,null,null,null,""]
[null,null,null,null,""]
[null,null,null,null,""]
[null,null,null,null,""]
[null,null,null,null,""]
[null,null,null,null,""]
[null,null,null,null,""]
[null,null,null,null,""]
[null,null,null,null,""]
[null,null,null,null,""]
[null,null,null,null,""]
[null,null,null,null,""]
[null,null,null,null,""]
[null,null,null,null,""]
[null,null,null,null,""]
[null,null,null,null,""]
[null,null,null,null,""]
[null,null,null,null,""]
[null,null,null,null,""]
[null,null,null,null,""]
[null,null,null,null,""]
[null,null,null,null,""]
[null,null,null,null,""]
[null,null,null,null,""]
[null,null,null,null,{"$f":"SUBSTITUTE(SUBSTITUTE(A964,\"　\",\"\"),\" \",\"\")&D964","v":""}]
[null,null,null,null,""]
[null,null,null,null,""]
[null,null,null,null,""]
[null,null,null,null,""]
[null,null,null,null,""]
[null,null,null,null,""]
[null,null,null,null,""]
[null,null,null,null,""]
[null,null,null,null,""]
[null,null,null,null,""]
[null,null,null,null,""]
[null,null,null,null,""]
[null,null,null,null,""]
[null,null,null,null,""]
[null,null,null,null,""]
[null,null,null,null,""]
[null,null,null,null,""]
[null,null,null,null,""]
[null,null,null,null,""]
[null,null,null,null,""]
[null,null,null,null,""]
[null,null,null,null,""]
[null,null,null,null,""]
[null,null,null,null,""]
[null,null,null,null,""]
[null,null,null,null,""]
[null,null,null,null,""]
[null,null,null,null,""]
[null,null,null,null,""]
[null,null,null,null,""]
[null,null,null,null,""]
[null,null,null,null,""]
[null,null,null,null,""]
[null,null,null,null,""]
[null,null,null,null,""]
[null,null,null,null,""]
[null,null,null,null,""]
[null,null,null,null,""]
[null,null,null,null,""]
[null,null,null,null,""]
[null,null,null,null,""]
[null,null,null,null,""]
[null,null,null,null,""]
[null,null,null,null,""]
[null,null,null,null,""]
[null,null,null,null,""]
[null,null,null,null,""]
[null,null,null,null,""]
[null,null,null,null,""]
[null,null,null,null,""]
[null,null,null,null,""]
[null,null,null,null,""]
[null,null,null,null,""]
[null,null,null,null,""]
[null,null,null,null,""]
[null,null,null,null,""]
[null,null,null,null,""]
[null,null,null,null,""]
[null,null,null,null,""]
[null,null,null,null,""]
[null,null,null,null,""]
[null,null,null,null,""]
[null,null,null,null,""]
[null,null,null,null,{"$f":"SUBSTITUTE(SUBSTITUTE(A1028,\"　\",\"\"),\" \",\"\")&D1028","v":""}]
[null,null,null,null,""]
[null,null,null,null,""]
[null,null,null,null,""]
[null,null,null,null,""]
[null,null,null,null,""]
[null,null,null,null,""]
[null,null,null,null,""]
[null,null,null,null,""]
[null,null,null,null,""]
[null,null,null,null,""]
[null,null,null,null,""]
[null,null,null,null,""]
[null,null,null,null,""]
[null,null,null,null,""]
[null,null,null,null,""]
[null,null,null,null,""]
[null,null,null,null,""]
[null,null,null,null,""]
[null,null,null,null,""]
[null,null,null,null,""]
[null,null,null,null,""]
[null,null,null,null,""]
[null,null,null,null,""]
[null,null,null,null,""]
[null,null,null,null,""]
[null,null,null,null,""]
[null,null,null,null,""]
[null,null,null,null,""]
[null,null,null,null,""]
[null,null,null,null,""]
[null,null,null,null,""]
[null,null,null,null,""]
[null,null,null,null,""]
[null,null,null,null,""]
[null,null,null,null,""]
[null,null,null,null,""]
[null,null,null,null,""]
[null,null,null,null,""]
[null,null,null,null,""]
[null,null,null,null,""]
[null,null,null,null,""]
[null,null,null,null,""]
[null,null,null,null,""]
[null,null,null,null,""]
[null,null,null,null,""]
[null,null,null,null,""]
[null,null,null,null,""]
[null,null,null,null,""]
[null,null,null,null,""]
[null,null,null,null,""]
[null,null,null,null,""]
[null,null,null,null,""]
[null,null,null,null,""]
[null,null,null,null,""]
[null,null,null,null,""]
[null,null,null,null,""]
[null,null,null,null,""]
[null,null,null,null,""]
[null,null,null,null,""]
[null,null,null,null,""]
[null,null,null,null,""]
[null,null,null,null,""]
[null,null,null,null,""]
[null,null,null,null,{"$f":"SUBSTITUTE(SUBSTITUTE(A1092,\"　\",\"\"),\" \",\"\")&D1092","v":""}]
[null,null,null,null,""]
[null,null,null,null,""]
[null,null,null,null,""]
[null,null,null,null,""]
[null,null,null,null,""]
[null,null,null,null,""]
[null,null,null,null,""]
[null,null,null,null,""]
[null,null,null,null,""]
[null,null,null,null,""]
[null,null,null,null,""]
[null,null,null,null,""]
[null,null,null,null,""]
[null,null,null,null,""]
[null,null,null,null,""]
[null,null,null,null,""]
[null,null,null,null,""]
[null,null,null,null,""]
[null,null,null,null,""]
[null,null,null,null,""]
[null,null,null,null,""]
[null,null,null,null,""]
[null,null,null,null,""]
[null,null,null,null,""]
[null,null,null,null,""]
[null,null,null,null,""]
[null,null,null,null,""]
[null,null,null,null,""]
[null,null,null,null,""]
[null,null,null,null,""]
[null,null,null,null,""]
[null,null,null,null,""]
[null,null,null,null,""]
[null,null,null,null,""]
[null,null,null,null,""]
[null,null,null,null,""]
[null,null,null,null,""]
[null,null,null,null,""]
[null,null,null,null,""]
[null,null,null,null,""]
[null,null,null,null,""]
[null,null,null,null,""]
[null,null,null,null,""]
[null,null,null,null,""]
[null,null,null,null,""]
[null,null,null,null,""]
[null,null,null,null,""]
[null,null,null,null,""]
[null,null,null,null,""]
[null,null,null,null,""]
[null,null,null,null,""]
[null,null,null,null,""]
[null,null,null,null,""]
[null,null,null,null,""]
[null,null,null,null,""]
[null,null,null,null,""]
[null,null,null,null,""]
[null,null,null,null,""]
[null,null,null,null,""]
[null,null,null,null,""]
[null,null,null,null,""]
[null,null,null,null,""]
[null,null,null,null,""]
[null,null,null,null,{"$f":"SUBSTITUTE(SUBSTITUTE(A1156,\"　\",\"\"),\" \",\"\")&D1156","v":""}]
[null,null,null,null,""]
[null,null,null,null,""]
[null,null,null,null,""]
[null,null,null,null,""]
[null,null,null,null,""]
[null,null,null,null,""]
[null,null,null,null,""]
[null,null,null,null,""]
[null,null,null,null,""]
[null,null,null,null,""]
[null,null,null,null,""]
[null,null,null,null,""]
[null,null,null,null,""]
[null,null,null,null,""]
[null,null,null,null,""]
[null,null,null,null,""]
[null,null,null,null,""]
[null,null,null,null,""]
[null,null,null,null,""]
[null,null,null,null,""]
[null,null,null,null,""]
[null,null,null,null,""]
[null,null,null,null,""]
[null,null,null,null,""]
[null,null,null,null,""]
[null,null,null,null,""]
[null,null,null,null,""]
[null,null,null,null,""]
[null,null,null,null,""]
[null,null,null,null,""]
[null,null,null,null,""]
[null,null,null,null,""]
[null,null,null,null,""]
[null,null,null,null,""]
[null,null,null,null,""]
[null,null,null,null,""]
[null,null,null,null,""]
[null,null,null,null,""]
[null,null,null,null,""]
[null,null,null,null,""]
[null,null,null,null,""]
[null,null,null,null,""]
[null,null,null,null,""]
[null,null,null,null,""]
[null,null,null,null,""]
[null,null,null,null,""]
[null,null,null,null,""]
[null,null,null,null,""]
[null,null,null,null,""]
[null,null,null,null,""]
[null,null,null,null,""]
[null,null,null,null,""]
[null,null,null,null,""]
[null,null,null,null,""]
[null,null,null,null,""]
[null,null,null,null,""]
[null,null,null,null,""]
[null,null,null,null,""]
[null,null,null,null,""]
[null,null,null,null,""]
[null,null,null,null,""]
[null,null,null,null,""]
[null,null,null,null,""]
[null,null,null,null,{"$f":"SUBSTITUTE(SUBSTITUTE(A1220,\"　\",\"\"),\" \",\"\")&D1220","v":""}]
[null,null,null,null,""]
[null,null,null,null,""]
[null,null,null,null,""]
[null,null,null,null,""]
[null,null,null,null,""]
[null,null,null,null,""]
[null,null,null,null,""]
[null,null,null,null,""]
[null,null,null,null,""]
[null,null,null,null,""]
[null,null,null,null,""]
[null,null,null,null,""]
[null,null,null,null,""]
[null,null,null,null,""]
[null,null,null,null,""]
[null,null,null,null,""]
[null,null,null,null,""]
[null,null,null,null,""]
[null,null,null,null,""]
[null,null,null,null,""]
[null,null,null,null,""]
[null,null,null,null,""]
[null,null,null,null,""]
[null,null,null,null,""]
[null,null,null,null,""]
[null,null,null,null,""]
[null,null,null,null,""]
[null,null,null,null,""]
[null,null,null,null,""]
[null,null,null,null,""]
[null,null,null,null,""]
[null,null,null,null,""]
[null,null,null,null,""]
[null,null,null,null,""]
[null,null,null,null,""]
[null,null,null,null,""]
[null,null,null,null,""]
[null,null,null,null,""]
[null,null,null,null,""]
[null,null,null,null,""]
[null,null,null,null,""]
[null,null,null,null,""]
[null,null,null,null,""]
[null,null,null,null,""]
[null,null,null,null,""]
[null,null,null,null,""]
[null,null,null,null,""]
[null,null,null,null,""]
[null,null,null,null,""]
[null,null,null,null,""]
[null,null,null,null,""]
[null,null,null,null,""]
[null,null,null,null,""]
[null,null,null,null,""]
[null,null,null,null,""]
[null,null,null,null,""]
[null,null,null,null,""]
[null,null,null,null,""]
[null,null,null,null,""]
[null,null,null,null,""]
[null,null,null,null,""]
[null,null,null,null,""]
[null,null,null,null,""]
[null,null,null,null,{"$f":"SUBSTITUTE(SUBSTITUTE(A1284,\"　\",\"\"),\" \",\"\")&D1284","v":""}]
[null,null,null,null,""]
[null,null,null,null,""]
[null,null,null,null,""]
[null,null,null,null,""]
[null,null,null,null,""]
[null,null,null,null,""]
[null,null,null,null,""]
[null,null,null,null,""]
[null,null,null,null,""]
[null,null,null,null,""]
[null,null,null,null,""]
[null,null,null,null,""]
[null,null,null,null,""]
[null,null,null,null,""]
[null,null,null,null,""]
[null,null,null,null,""]
[null,null,null,null,""]
[null,null,null,null,""]
[null,null,null,null,""]
[null,null,null,null,""]
[null,null,null,null,""]
[null,null,null,null,""]
[null,null,null,null,""]
[null,null,null,null,""]
[null,null,null,null,""]
[null,null,null,null,""]
[null,null,null,null,""]
[null,null,null,null,""]
[null,null,null,null,""]
[null,null,null,null,""]
[null,null,null,null,""]
[null,null,null,null,""]
[null,null,null,null,""]
[null,null,null,null,""]
[null,null,null,null,""]
[null,null,null,null,""]
[null,null,null,null,""]
[null,null,null,null,""]
[null,null,null,null,""]
[null,null,null,null,""]
[null,null,null,null,""]
[null,null,null,null,""]
[null,null,null,null,""]
[null,null,null,null,""]
[null,null,null,null,""]
[null,null,null,null,""]
[null,null,null,null,""]
[null,null,null,null,""]
[null,null,null,null,""]
[null,null,null,null,""]
[null,null,null,null,""]
[null,null,null,null,""]
[null,null,null,null,""]
[null,null,null,null,""]
[null,null,null,null,""]
[null,null,null,null,""]
[null,null,null,null,""]
[null,null,null,null,""]
[null,null,null,null,""]
[null,null,null,null,""]
[null,null,null,null,""]
[null,null,null,null,""]
[null,null,null,null,""]
[null,null,null,null,{"$f":"SUBSTITUTE(SUBSTITUTE(A1348,\"　\",\"\"),\" \",\"\")&D1348","v":""}]
[null,null,null,null,""]
[null,null,null,null,""]
[null,null,null,null,""]
[null,null,null,null,""]
[null,null,null,null,""]
[null,null,null,null,""]
[null,null,null,null,""]
[null,null,null,null,""]
[null,null,null,null,""]
[null,null,null,null,""]
[null,null,null,null,""]
[null,null,null,null,""]
[null,null,null,null,""]
[null,null,null,null,""]
[null,null,null,null,""]
[null,null,null,null,""]
[null,null,null,null,""]
[null,null,null,null,""]
[null,null,null,null,""]
[null,null,null,null,""]
[null,null,null,null,""]
[null,null,null,null,""]
[null,null,null,null,""]
[null,null,null,null,""]
[null,null,null,null,""]
[null,null,null,null,""]
[null,null,null,null,""]
[null,null,null,null,""]
[null,null,null,null,""]
[null,null,null,null,""]
[null,null,null,null,""]
[null,null,null,null,""]
[null,null,null,null,""]
[null,null,null,null,""]
[null,null,null,null,""]
[null,null,null,null,""]
[null,null,null,null,""]
[null,null,null,null,""]
[null,null,null,null,""]
[null,null,null,null,""]
[null,null,null,null,""]
[null,null,null,null,""]
[null,null,null,null,""]
[null,null,null,null,""]
[null,null,null,null,""]
[null,null,null,null,""]
[null,null,null,null,""]
[null,null,null,null,""]
[null,null,null,null,""]
[null,null,null,null,""]
[null,null,null,null,""]
[null,null,null,null,""]
[null,null,null,null,""]
[null,null,null,null,""]
[null,null,null,null,""]
[null,null,null,null,""]
[null,null,null,null,""]
[null,null,null,null,""]
[null,null,null,null,""]
[null,null,null,null,""]
[null,null,null,null,""]
[null,null,null,null,""]
[null,null,null,null,""]
[null,null,null,null,{"$f":"SUBSTITUTE(SUBSTITUTE(A1412,\"　\",\"\"),\" \",\"\")&D1412","v":""}]
[null,null,null,null,""]
[null,null,null,null,""]
[null,null,null,null,""]
[null,null,null,null,""]
[null,null,null,null,""]
[null,null,null,null,""]
[null,null,null,null,""]
[null,null,null,null,""]
[null,null,null,null,""]
[null,null,null,null,""]
[null,null,null,null,""]
[null,null,null,null,""]
[null,null,null,null,""]
[null,null,null,null,""]
[null,null,null,null,""]
[null,null,null,null,""]
[null,null,null,null,""]
[null,null,null,null,""]
[null,null,null,null,""]
[null,null,null,null,""]
[null,null,null,null,""]
[null,null,null,null,""]
[null,null,null,null,""]
[null,null,null,null,""]
[null,null,null,null,""]
[null,null,null,null,""]
[null,null,null,null,""]
[null,null,null,null,""]
[null,null,null,null,""]
[null,null,null,null,""]
[null,null,null,null,""]
[null,null,null,null,""]
[null,null,null,null,""]
[null,null,null,null,""]
[null,null,null,null,""]
[null,null,null,null,""]
[null,null,null,null,""]
[null,null,null,null,""]
[null,null,null,null,""]
[null,null,null,null,""]
[null,null,null,null,""]
[null,null,null,null,""]
[null,null,null,null,""]
[null,null,null,null,""]
[null,null,null,null,""]
[null,null,null,null,""]
[null,null,null,null,""]
[null,null,null,null,""]
[null,null,null,null,""]
[null,null,null,null,""]
[null,null,null,null,""]
[null,null,null,null,""]
[null,null,null,null,""]
[null,null,null,null,""]
[null,null,null,null,""]
[null,null,null,null,""]
[null,null,null,null,""]
[null,null,null,null,""]
[null,null,null,null,""]
[null,null,null,null,""]
[null,null,null,null,""]
[null,null,null,null,""]
[null,null,null,null,""]
[null,null,null,null,{"$f":"SUBSTITUTE(SUBSTITUTE(A1476,\"　\",\"\"),\" \",\"\")&D1476","v":""}]
[null,null,null,null,""]
[null,null,null,null,""]
[null,null,null,null,""]
[null,null,null,null,""]
[null,null,null,null,""]
[null,null,null,null,""]
[null,null,null,null,""]
[null,null,null,null,""]
[null,null,null,null,""]
[null,null,null,null,""]
[null,null,null,null,""]
[null,null,null,null,""]
[null,null,null,null,""]
[null,null,null,null,""]
[null,null,null,null,""]
[null,null,null,null,""]
[null,null,null,null,""]
[null,null,null,null,""]
[null,null,null,null,""]
[null,null,null,null,""]
[null,null,null,null,""]
[null,null,null,null,""]
[null,null,null,null,""]
[null,null,null,null,""]
[null,null,null,null,""]
[null,null,null,null,""]
[null,null,null,null,""]
[null,null,null,null,""]
[null,null,null,null,""]
[null,null,null,null,""]
[null,null,null,null,""]
[null,null,null,null,""]
[null,null,null,null,""]
[null,null,null,null,""]
[null,null,null,null,""]
[null,null,null,null,""]
[null,null,null,null,""]
[null,null,null,null,""]
[null,null,null,null,""]
[null,null,null,null,""]
[null,null,null,null,""]
[null,null,null,null,""]
[null,null,null,null,""]
[null,null,null,null,""]
[null,null,null,null,""]
[null,null,null,null,""]
[null,null,null,null,""]
[null,null,null,null,""]
[null,null,null,null,""]
[null,null,null,null,""]
[null,null,null,null,""]
[null,null,null,null,""]
[null,null,null,null,""]
[null,null,null,null,""]
[null,null,null,null,""]
[null,null,null,null,""]
[null,null,null,null,""]
[null,null,null,null,""]
[null,null,null,null,""]
[null,null,null,null,""]
[null,null,null,null,""]
[null,null,null,null,""]
[null,null,null,null,""]
[null,null,null,null,{"$f":"SUBSTITUTE(SUBSTITUTE(A1540,\"　\",\"\"),\" \",\"\")&D1540","v":""}]
[null,null,null,null,""]
[null,null,null,null,""]
[null,null,null,null,""]
[null,null,null,null,""]
[null,null,null,null,""]
[null,null,null,null,""]
[null,null,null,null,""]
[null,null,null,null,""]
[null,null,null,null,""]
[null,null,null,null,""]
[null,null,null,null,""]
[null,null,null,null,""]
[null,null,null,null,""]
[null,null,null,null,""]
[null,null,null,null,""]
[null,null,null,null,""]
[null,null,null,null,""]
[null,null,null,null,""]
[null,null,null,null,""]
[null,null,null,null,""]
[null,null,null,null,""]
[null,null,null,null,""]
[null,null,null,null,""]
[null,null,null,null,""]
[null,null,null,null,""]
[null,null,null,null,""]
[null,null,null,null,""]
[null,null,null,null,""]
[null,null,null,null,""]
[null,null,null,null,""]
[null,null,null,null,""]
[null,null,null,null,""]
[null,null,null,null,""]
[null,null,null,null,""]
[null,null,null,null,""]
[null,null,null,null,""]
[null,null,null,null,""]
[null,null,null,null,""]
[null,null,null,null,""]
[null,null,null,null,""]
[null,null,null,null,""]
[null,null,null,null,""]
[null,null,null,null,""]
[null,null,null,null,""]
[null,null,null,null,""]
[null,null,null,null,""]
[null,null,null,null,""]
[null,null,null,null,""]
[null,null,null,null,""]
[null,null,null,null,""]
[null,null,null,null,""]
[null,null,null,null,""]
[null,null,null,null,""]
[null,null,null,null,""]
[null,null,null,null,""]
[null,null,null,null,""]
[null,null,null,null,""]
[null,null,null,null,""]
[null,null,null,null,""]
[null,null,null,null,""]
[null,null,null,null,""]
[null,null,null,null,""]
[null,null,null,null,""]
[null,null,null,null,{"$f":"SUBSTITUTE(SUBSTITUTE(A1604,\"　\",\"\"),\" \",\"\")&D1604","v":""}]
[null,null,null,null,""]
[null,null,null,null,""]
[null,null,null,null,""]
[null,null,null,null,""]
[null,null,null,null,""]
[null,null,null,null,""]
[null,null,null,null,""]
[null,null,null,null,""]
[null,null,null,null,""]
[null,null,null,null,""]
[null,null,null,null,""]
[null,null,null,null,""]
[null,null,null,null,""]
[null,null,null,null,""]
[null,null,null,null,""]
[null,null,null,null,""]
[null,null,null,null,""]
[null,null,null,null,""]
[null,null,null,null,""]
[null,null,null,null,""]
[null,null,null,null,""]
[null,null,null,null,""]
[null,null,null,null,""]
[null,null,null,null,""]
[null,null,null,null,""]
[null,null,null,null,""]
[null,null,null,null,""]
[null,null,null,null,""]
[null,null,null,null,""]
[null,null,null,null,""]
[null,null,null,null,""]
[null,null,null,null,""]
[null,null,null,null,""]
[null,null,null,null,""]
[null,null,null,null,""]
[null,null,null,null,""]
[null,null,null,null,""]
[null,null,null,null,""]
[null,null,null,null,""]
[null,null,null,null,""]
[null,null,null,null,""]
[null,null,null,null,""]
[null,null,null,null,""]
[null,null,null,null,""]
[null,null,null,null,""]
[null,null,null,null,""]
[null,null,null,null,""]
[null,null,null,null,""]
[null,null,null,null,""]
[null,null,null,null,""]
[null,null,null,null,""]
[null,null,null,null,""]
[null,null,null,null,""]
[null,null,null,null,""]
[null,null,null,null,""]
[null,null,null,null,""]
[null,null,null,null,""]
[null,null,null,null,""]
[null,null,null,null,""]
[null,null,null,null,""]
[null,null,null,null,""]
[null,null,null,null,""]
[null,null,null,null,""]
[null,null,null,null,{"$f":"SUBSTITUTE(SUBSTITUTE(A1668,\"　\",\"\"),\" \",\"\")&D1668","v":""}]
[null,null,null,null,""]
[null,null,null,null,""]
[null,null,null,null,""]
[null,null,null,null,""]
[null,null,null,null,""]
[null,null,null,null,""]
[null,null,null,null,""]
[null,null,null,null,""]
[null,null,null,null,""]
[null,null,null,null,""]
[null,null,null,null,""]
[null,null,null,null,""]
[null,null,null,null,""]
[null,null,null,null,""]
[null,null,null,null,""]
[null,null,null,null,""]
[null,null,null,null,""]
[null,null,null,null,""]
[null,null,null,null,""]
[null,null,null,null,""]
[null,null,null,null,""]
[null,null,null,null,""]
[null,null,null,null,""]
[null,null,null,null,""]
[null,null,null,null,""]
[null,null,null,null,""]
[null,null,null,null,""]
[null,null,null,null,""]
[null,null,null,null,""]
[null,null,null,null,""]
[null,null,null,null,""]
[null,null,null,null,""]
[null,null,null,null,""]
[null,null,null,null,""]
[null,null,null,null,""]
[null,null,null,null,""]
[null,null,null,null,""]
[null,null,null,null,""]
[null,null,null,null,""]
[null,null,null,null,""]
[null,null,null,null,""]
[null,null,null,null,""]
[null,null,null,null,""]
[null,null,null,null,""]
[null,null,null,null,""]
[null,null,null,null,""]
[null,null,null,null,""]
[null,null,null,null,""]
[null,null,null,null,""]
[null,null,null,null,""]
[null,null,null,null,""]
[null,null,null,null,""]
[null,null,null,null,""]
[null,null,null,null,""]
[null,null,null,null,""]
[null,null,null,null,""]
[null,null,null,null,""]
[null,null,null,null,""]
[null,null,null,null,""]
[null,null,null,null,""]
[null,null,null,null,""]
[null,null,null,null,""]
[null,null,null,null,""]
[null,null,null,null,{"$f":"SUBSTITUTE(SUBSTITUTE(A1732,\"　\",\"\"),\" \",\"\")&D1732","v":""}]
[null,null,null,null,""]
[null,null,null,null,""]
[null,null,null,null,""]
[null,null,null,null,""]
[null,null,null,null,""]
[null,null,null,null,""]
[null,null,null,null,""]
[null,null,null,null,""]
[null,null,null,null,""]
[null,null,null,null,""]
[null,null,null,null,""]
[null,null,null,null,""]
[null,null,null,null,""]
[null,null,null,null,""]
[null,null,null,null,""]
[null,null,null,null,""]
[null,null,null,null,""]
[null,null,null,null,""]
[null,null,null,null,""]
[null,null,null,null,""]
[null,null,null,null,""]
[null,null,null,null,""]
[null,null,null,null,""]
[null,null,null,null,""]
[null,null,null,null,""]
[null,null,null,null,""]
[null,null,null,null,""]
[null,null,null,null,""]
[null,null,null,null,""]
[null,null,null,null,""]
[null,null,null,null,""]
[null,null,null,null,""]
[null,null,null,null,""]
[null,null,null,null,""]
[null,null,null,null,""]
[null,null,null,null,""]
[null,null,null,null,""]
[null,null,null,null,""]
[null,null,null,null,""]
[null,null,null,null,""]
[null,null,null,null,""]
[null,null,null,null,""]
[null,null,null,null,""]
[null,null,null,null,""]
[null,null,null,null,""]
[null,null,null,null,""]
[null,null,null,null,""]
[null,null,null,null,""]
[null,null,null,null,""]
[null,null,null,null,""]
[null,null,null,null,""]
[null,null,null,null,""]
[null,null,null,null,""]
[null,null,null,null,""]
[null,null,null,null,""]
[null,null,null,null,""]
[null,null,null,null,""]
[null,null,null,null,""]
[null,null,null,null,""]
[null,null,null,null,""]
[null,null,null,null,""]
[null,null,null,null,""]
[null,null,null,null,""]
[null,null,null,null,{"$f":"SUBSTITUTE(SUBSTITUTE(A1796,\"　\",\"\"),\" \",\"\")&D1796","v":""}]
[null,null,null,null,""]
[null,null,null,null,""]
[null,null,null,null,""]
[null,null,null,null,""]
[null,null,null,null,""]
[null,null,null,null,""]
[null,null,null,null,""]
[null,null,null,null,""]
[null,null,null,null,""]
[null,null,null,null,""]
[null,null,null,null,""]
[null,null,null,null,""]
[null,null,null,null,""]
[null,null,null,null,""]
[null,null,null,null,""]
[null,null,null,null,""]
[null,null,null,null,""]
[null,null,null,null,""]
[null,null,null,null,""]
[null,null,null,null,""]
[null,null,null,null,""]
[null,null,null,null,""]
[null,null,null,null,""]
[null,null,null,null,""]
[null,null,null,null,""]
[null,null,null,null,""]
[null,null,null,null,""]
[null,null,null,null,""]
[null,null,null,null,""]
[null,null,null,null,""]
[null,null,null,null,""]
[null,null,null,null,""]
[null,null,null,null,""]
[null,null,null,null,""]
[null,null,null,null,""]
[null,null,null,null,""]
[null,null,null,null,""]
[null,null,null,null,""]
[null,null,null,null,""]
[null,null,null,null,""]
[null,null,null,null,""]
[null,null,null,null,""]
[null,null,null,null,""]
[null,null,null,null,""]
[null,null,null,null,""]
[null,null,null,null,""]
[null,null,null,null,""]
[null,null,null,null,""]
[null,null,null,null,""]
[null,null,null,null,""]
[null,null,null,null,""]
[null,null,null,null,""]
[null,null,null,null,""]
[null,null,null,null,""]
[null,null,null,null,""]
[null,null,null,null,""]
[null,null,null,null,""]
[null,null,null,null,""]
[null,null,null,null,""]
[null,null,null,null,""]
[null,null,null,null,""]
[null,null,null,null,""]
[null,null,null,null,""]
[null,null,null,null,{"$f":"SUBSTITUTE(SUBSTITUTE(A1860,\"　\",\"\"),\" \",\"\")&D1860","v":""}]
[null,null,null,null,""]
[null,null,null,null,""]
[null,null,null,null,""]
[null,null,null,null,""]
[null,null,null,null,""]
[null,null,null,null,""]
[null,null,null,null,""]
[null,null,null,null,""]
[null,null,null,null,""]
[null,null,null,null,""]
[null,null,null,null,""]
[null,null,null,null,""]
[null,null,null,null,""]
[null,null,null,null,""]
[null,null,null,null,""]
[null,null,null,null,""]
[null,null,null,null,""]
[null,null,null,null,""]
[null,null,null,null,""]
[null,null,null,null,""]
[null,null,null,null,""]
[null,null,null,null,""]
[null,null,null,null,""]
[null,null,null,null,""]
[null,null,null,null,""]
[null,null,null,null,""]
[null,null,null,null,""]
[null,null,null,null,""]
[null,null,null,null,""]
[null,null,null,null,""]
[null,null,null,null,""]
[null,null,null,null,""]
[null,null,null,null,""]
[null,null,null,null,""]
[null,null,null,null,""]
[null,null,null,null,""]
[null,null,null,null,""]
[null,null,null,null,""]
[null,null,null,null,""]
[null,null,null,null,""]
[null,null,null,null,""]
[null,null,null,null,""]
[null,null,null,null,""]
[null,null,null,null,""]
[null,null,null,null,""]
[null,null,null,null,""]
[null,null,null,null,""]
[null,null,null,null,""]
[null,null,null,null,""]
[null,null,null,null,""]
[null,null,null,null,""]
[null,null,null,null,""]
[null,null,null,null,""]
[null,null,null,null,""]
[null,null,null,null,""]
[null,null,null,null,""]
[null,null,null,null,""]
[null,null,null,null,""]
[null,null,null,null,""]
[null,null,null,null,""]
[null,null,null,null,""]
[null,null,null,null,""]
[null,null,null,null,""]
[null,null,null,null,{"$f":"SUBSTITUTE(SUBSTITUTE(A1924,\"　\",\"\"),\" \",\"\")&D1924","v":""}]
[null,null,null,null,""]
[null,null,null,null,""]
[null,null,null,null,""]
[null,null,null,null,""]
[null,null,null,null,""]
[null,null,null,null,""]
[null,null,null,null,""]
[null,null,null,null,""]
[null,null,null,null,""]
[null,null,null,null,""]
[null,null,null,null,""]
[null,null,null,null,""]
[null,null,null,null,""]
[null,null,null,null,""]
[null,null,null,null,""]
[null,null,null,null,""]
[null,null,null,null,""]
[null,null,null,null,""]
[null,null,null,null,""]
[null,null,null,null,""]
[null,null,null,null,""]
[null,null,null,null,""]
[null,null,null,null,""]
[null,null,null,null,""]
[null,null,null,null,""]
[null,null,null,null,""]
[null,null,null,null,""]
[null,null,null,null,""]
[null,null,null,null,""]
[null,null,null,null,""]
[null,null,null,null,""]
[null,null,null,null,""]
[null,null,null,null,""]
[null,null,null,null,""]
[null,null,null,null,""]
[null,null,null,null,""]
[null,null,null,null,""]
[null,null,null,null,""]
[null,null,null,null,""]
[null,null,null,null,""]
[null,null,null,null,""]
[null,null,null,null,""]
[null,null,null,null,""]
[null,null,null,null,""]
[null,null,null,null,""]
[null,null,null,null,""]
[null,null,null,null,""]
[null,null,null,null,""]
[null,null,null,null,""]
[null,null,null,null,""]
[null,null,null,null,""]
[null,null,null,null,""]
[null,null,null,null,""]
[null,null,null,null,""]
[null,null,null,null,""]
[null,null,null,null,""]
[null,null,null,null,""]
[null,null,null,null,""]
[null,null,null,null,""]
[null,null,null,null,""]
[null,null,null,null,""]
[null,null,null,null,""]
[null,null,null,null,""]
[null,null,null,null,{"$f":"SUBSTITUTE(SUBSTITUTE(A1988,\"　\",\"\"),\" \",\"\")&D1988","v":""}]
[null,null,null,null,""]
[null,null,null,null,""]
[null,null,null,null,""]
[null,null,null,null,""]
[null,null,null,null,""]
[null,null,null,null,""]
[null,null,null,null,""]
[null,null,null,null,""]
[null,null,null,null,""]
[null,null,null,null,""]
[null,null,null,null,""]
[null,null,null,null,""]
[null,null,null,null,""]
[null,null,null,null,""]
[null,null,null,null,""]
[null,null,null,null,""]
[null,null,null,null,""]
[null,null,null,null,""]
[null,null,null,null,""]
[null,null,null,null,""]
[null,null,null,null,""]
[null,null,null,null,""]
[null,null,null,null,""]
[null,null,null,null,""]
[null,null,null,null,""]
[null,null,null,null,""]
[null,null,null,null,""]
[null,null,null,null,""]
[null,null,null,null,""]
[null,null,null,null,""]
[null,null,null,null,""]
[null,null,null,null,""]
[null,null,null,null,""]
[null,null,null,null,""]
[null,null,null,null,""]
[null,null,null,null,""]
[null,null,null,null,""]
[null,null,null,null,""]
[null,null,null,null,""]
[null,null,null,null,""]
[null,null,null,null,""]
[null,null,null,null,""]
[null,null,null,null,""]
[null,null,null,null,""]
[null,null,null,null,""]
[null,null,null,null,""]
[null,null,null,null,""]
[null,null,null,null,""]
[null,null,null,null,""]
[null,null,null,null,""]
[null,null,null,null,""]
[null,null,null,null,""]
[null,null,null,null,""]
[null,null,null,null,""]
[null,null,null,null,""]
[null,null,null,null,""]
[null,null,null,null,""]
[null,null,null,null,""]
[null,null,null,null,""]
[null,null,null,null,""]
[null,null,null,null,""]
[null,null,null,null,""]
[null,null,null,null,""]
[null,null,null,null,{"$f":"SUBSTITUTE(SUBSTITUTE(A2052,\"　\",\"\"),\" \",\"\")&D2052","v":""}]
[null,null,null,null,""]
[null,null,null,null,""]
[null,null,null,null,""]
[null,null,null,null,""]
[null,null,null,null,""]
[null,null,null,null,""]
[null,null,null,null,""]
[null,null,null,null,""]
[null,null,null,null,""]
[null,null,null,null,""]
[null,null,null,null,""]
[null,null,null,null,""]
[null,null,null,null,""]
[null,null,null,null,""]
[null,null,null,null,""]
[null,null,null,null,""]
[null,null,null,null,""]
[null,null,null,null,""]
[null,null,null,null,""]
[null,null,null,null,""]
[null,null,null,null,""]
[null,null,null,null,""]
[null,null,null,null,""]
[null,null,null,null,""]
[null,null,null,null,""]
[null,null,null,null,""]
[null,null,null,null,""]
[null,null,null,null,""]
[null,null,null,null,""]
[null,null,null,null,""]
[null,null,null,null,""]
[null,null,null,null,""]
[null,null,null,null,""]
[null,null,null,null,""]
[null,null,null,null,""]
[null,null,null,null,""]
[null,null,null,null,""]
[null,null,null,null,""]
[null,null,null,null,""]
[null,null,null,null,""]
[null,null,null,null,""]
[null,null,null,null,""]
[null,null,null,null,""]
[null,null,null,null,""]
[null,null,null,null,""]
[null,null,null,null,""]
[null,null,null,null,""]
[null,null,null,null,""]
[null,null,null,null,""]
[null,null,null,null,""]
[null,null,null,null,""]
[null,null,null,null,""]
[null,null,null,null,""]
[null,null,null,null,""]
[null,null,null,null,""]
[null,null,null,null,""]
[null,null,null,null,""]
[null,null,null,null,""]
[null,null,null,null,""]
[null,null,null,null,""]
[null,null,null,null,""]
[null,null,null,null,""]
[null,null,null,null,""]
[null,null,null,null,{"$f":"SUBSTITUTE(SUBSTITUTE(A2116,\"　\",\"\"),\" \",\"\")&D2116","v":""}]
[null,null,null,null,""]
[null,null,null,null,""]
[null,null,null,null,""]
[null,null,null,null,""]
[null,null,null,null,""]
[null,null,null,null,""]
[null,null,null,null,""]
[null,null,null,null,""]
[null,null,null,null,""]
[null,null,null,null,""]
[null,null,null,null,""]
[null,null,null,null,""]
[null,null,null,null,""]
[null,null,null,null,""]
[null,null,null,null,""]
[null,null,null,null,""]
[null,null,null,null,""]
[null,null,null,null,""]
[null,null,null,null,""]
[null,null,null,null,""]
[null,null,null,null,""]
[null,null,null,null,""]
[null,null,null,null,""]
[null,null,null,null,""]
[null,null,null,null,""]
[null,null,null,null,""]
[null,null,null,null,""]
[null,null,null,null,""]
[null,null,null,null,""]
[null,null,null,null,""]
[null,null,null,null,""]
[null,null,null,null,""]
[null,null,null,null,""]
[null,null,null,null,""]
[null,null,null,null,""]
[null,null,null,null,""]
[null,null,null,null,""]
[null,null,null,null,""]
[null,null,null,null,""]
[null,null,null,null,""]
[null,null,null,null,""]
[null,null,null,null,""]
[null,null,null,null,""]
[null,null,null,null,""]
[null,null,null,null,""]
[null,null,null,null,""]
[null,null,null,null,""]
[null,null,null,null,""]
[null,null,null,null,""]
[null,null,null,null,""]
[null,null,null,null,""]
[null,null,null,null,""]
[null,null,null,null,""]
[null,null,null,null,""]
[null,null,null,null,""]
[null,null,null,null,""]
[null,null,null,null,""]
[null,null,null,null,""]
[null,null,null,null,""]
[null,null,null,null,""]
[null,null,null,null,""]
[null,null,null,null,""]
[null,null,null,null,""]
[null,null,null,null,{"$f":"SUBSTITUTE(SUBSTITUTE(A2180,\"　\",\"\"),\" \",\"\")&D2180","v":""}]
[null,null,null,null,""]
[null,null,null,null,""]
[null,null,null,null,""]
[null,null,null,null,""]
[null,null,null,null,""]
[null,null,null,null,""]
[null,null,null,null,""]
[null,null,null,null,""]
[null,null,null,null,""]
[null,null,null,null,""]
[null,null,null,null,""]
[null,null,null,null,""]
[null,null,null,null,""]
[null,null,null,null,""]
[null,null,null,null,""]
[null,null,null,null,""]
[null,null,null,null,""]
[null,null,null,null,""]
[null,null,null,null,""]
[null,null,null,null,""]
[null,null,null,null,""]
[null,null,null,null,""]
[null,null,null,null,""]
[null,null,null,null,""]
[null,null,null,null,""]
[null,null,null,null,""]
[null,null,null,null,""]
[null,null,null,null,""]
[null,null,null,null,""]
[null,null,null,null,""]
[null,null,null,null,""]
[null,null,null,null,""]
[null,null,null,null,""]
[null,null,null,null,""]
[null,null,null,null,""]
[null,null,null,null,""]
[null,null,null,null,""]
[null,null,null,null,""]
[null,null,null,null,""]
[null,null,null,null,""]
[null,null,null,null,""]
[null,null,null,null,""]
[null,null,null,null,""]
[null,null,null,null,""]
[null,null,null,null,""]
[null,null,null,null,""]
[null,null,null,null,""]
[null,null,null,null,""]
[null,null,null,null,""]
[null,null,null,null,""]
[null,null,null,null,""]
[null,null,null,null,""]
[null,null,null,null,""]
[null,null,null,null,""]
[null,null,null,null,""]
[null,null,null,null,""]
[null,null,null,null,""]
[null,null,null,null,""]
[null,null,null,null,""]
[null,null,null,null,""]
[null,null,null,null,""]
[null,null,null,null,""]
[null,null,null,null,""]
[null,null,null,null,{"$f":"SUBSTITUTE(SUBSTITUTE(A2244,\"　\",\"\"),\" \",\"\")&D2244","v":""}]
[null,null,null,null,""]
[null,null,null,null,""]
[null,null,null,null,""]
[null,null,null,null,""]
[null,null,null,null,""]
[null,null,null,null,""]
[null,null,null,null,""]
[null,null,null,null,""]
[null,null,null,null,""]
[null,null,null,null,""]
[null,null,null,null,""]
[null,null,null,null,""]
[null,null,null,null,""]
[null,null,null,null,""]
[null,null,null,null,""]
[null,null,null,null,""]
[null,null,null,null,""]
[null,null,null,null,""]
[null,null,null,null,""]
[null,null,null,null,""]
[null,null,null,null,""]
[null,null,null,null,""]
[null,null,null,null,""]
[null,null,null,null,""]
[null,null,null,null,""]
[null,null,null,null,""]
[null,null,null,null,""]
[null,null,null,null,""]
[null,null,null,null,""]
[null,null,null,null,""]
[null,null,null,null,""]
[null,null,null,null,""]
[null,null,null,null,""]
[null,null,null,null,""]
[null,null,null,null,""]
[null,null,null,null,""]
[null,null,null,null,""]
[null,null,null,null,""]
[null,null,null,null,""]
[null,null,null,null,""]
[null,null,null,null,""]
[null,null,null,null,""]
[null,null,null,null,""]
[null,null,null,null,""]
[null,null,null,null,""]
[null,null,null,null,""]
[null,null,null,null,""]
[null,null,null,null,""]
[null,null,null,null,""]
[null,null,null,null,""]
[null,null,null,null,""]
[null,null,null,null,""]
[null,null,null,null,""]
[null,null,null,null,""]
[null,null,null,null,""]
[null,null,null,null,""]
[null,null,null,null,""]
[null,null,null,null,""]
[null,null,null,null,""]
[null,null,null,null,""]
[null,null,null,null,""]
[null,null,null,null,""]
[null,null,null,null,""]
[null,null,null,null,{"$f":"SUBSTITUTE(SUBSTITUTE(A2308,\"　\",\"\"),\" \",\"\")&D2308","v":""}]
[null,null,null,null,""]
[null,null,null,null,""]
[null,null,null,null,""]
[null,null,null,null,""]
[null,null,null,null,""]
[null,null,null,null,""]
[null,null,null,null,""]
[null,null,null,null,""]
[null,null,null,null,""]
[null,null,null,null,""]
[null,null,null,null,""]
[null,null,null,null,""]
[null,null,null,null,""]
[null,null,null,null,""]
[null,null,null,null,""]
[null,null,null,null,""]
[null,null,null,null,""]
[null,null,null,null,""]
[null,null,null,null,""]
[null,null,null,null,""]
[null,null,null,null,""]
[null,null,null,null,""]
[null,null,null,null,""]
[null,null,null,null,""]
[null,null,null,null,""]
[null,null,null,null,""]
[null,null,null,null,""]
[null,null,null,null,""]
[null,null,null,null,""]
[null,null,null,null,""]
[null,null,null,null,""]
[null,null,null,null,""]
[null,null,null,null,""]
[null,null,null,null,""]
[null,null,null,null,""]
[null,null,null,null,""]
[null,null,null,null,""]
[null,null,null,null,""]
[null,null,null,null,""]
[null,null,null,null,""]
[null,null,null,null,""]
[null,null,null,null,""]
[null,null,null,null,""]
[null,null,null,null,""]
[null,null,null,null,""]
[null,null,null,null,""]
[null,null,null,null,""]
[null,null,null,null,""]
[null,null,null,null,""]
[null,null,null,null,""]
[null,null,null,null,""]
[null,null,null,null,""]
[null,null,null,null,""]
[null,null,null,null,""]
[null,null,null,null,""]
[null,null,null,null,""]
[null,null,null,null,""]
[null,null,null,null,""]
[null,null,null,null,""]
[null,null,null,null,""]
[null,null,null,null,""]
[null,null,null,null,""]
[null,null,null,null,""]
[null,null,null,null,{"$f":"SUBSTITUTE(SUBSTITUTE(A2372,\"　\",\"\"),\" \",\"\")&D2372","v":""}]
[null,null,null,null,""]
[null,null,null,null,""]
[null,null,null,null,""]
[null,null,null,null,""]
[null,null,null,null,""]
[null,null,null,null,""]
[null,null,null,null,""]
[null,null,null,null,""]
[null,null,null,null,""]
[null,null,null,null,""]
[null,null,null,null,""]
[null,null,null,null,""]
[null,null,null,null,""]
[null,null,null,null,""]
[null,null,null,null,""]
[null,null,null,null,""]
[null,null,null,null,""]
[null,null,null,null,""]
[null,null,null,null,""]
[null,null,null,null,""]
[null,null,null,null,""]
[null,null,null,null,""]
[null,null,null,null,""]
[null,null,null,null,""]
[null,null,null,null,""]
[null,null,null,null,""]
[null,null,null,null,""]
[null,null,null,null,""]
[null,null,null,null,""]
[null,null,null,null,""]
[null,null,null,null,""]
[null,null,null,null,""]
[null,null,null,null,""]
[null,null,null,null,""]
[null,null,null,null,""]
[null,null,null,null,""]
[null,null,null,null,""]
[null,null,null,null,""]
[null,null,null,null,""]
[null,null,null,null,""]
[null,null,null,null,""]
[null,null,null,null,""]
[null,null,null,null,""]
[null,null,null,null,""]
[null,null,null,null,""]
[null,null,null,null,""]
[null,null,null,null,""]
[null,null,null,null,""]
[null,null,null,null,""]
[null,null,null,null,""]
[null,null,null,null,""]
[null,null,null,null,""]
[null,null,null,null,""]
[null,null,null,null,""]
[null,null,null,null,""]
[null,null,null,null,""]
[null,null,null,null,""]
[null,null,null,null,""]
[null,null,null,null,""]
[null,null,null,null,""]
[null,null,null,null,""]
[null,null,null,null,""]
[null,null,null,null,""]
[null,null,null,null,{"$f":"SUBSTITUTE(SUBSTITUTE(A2436,\"　\",\"\"),\" \",\"\")&D2436","v":""}]
[null,null,null,null,""]
[null,null,null,null,""]
[null,null,null,null,""]
[null,null,null,null,""]
[null,null,null,null,""]
[null,null,null,null,""]
[null,null,null,null,""]
[null,null,null,null,""]
[null,null,null,null,""]
[null,null,null,null,""]
[null,null,null,null,""]
[null,null,null,null,""]
[null,null,null,null,""]
[null,null,null,null,""]
[null,null,null,null,""]
[null,null,null,null,""]
[null,null,null,null,""]
[null,null,null,null,""]
[null,null,null,null,""]
[null,null,null,null,""]
[null,null,null,null,""]
[null,null,null,null,""]
[null,null,null,null,""]
[null,null,null,null,""]
[null,null,null,null,""]
[null,null,null,null,""]
[null,null,null,null,""]
[null,null,null,null,""]
[null,null,null,null,""]
[null,null,null,null,""]
[null,null,null,null,""]
[null,null,null,null,""]
[null,null,null,null,""]
[null,null,null,null,""]
[null,null,null,null,""]
[null,null,null,null,""]
[null,null,null,null,""]
[null,null,null,null,""]
[null,null,null,null,""]
[null,null,null,null,""]
[null,null,null,null,""]
[null,null,null,null,""]
[null,null,null,null,""]
[null,null,null,null,""]
[null,null,null,null,""]
[null,null,null,null,""]
[null,null,null,null,""]
[null,null,null,null,""]
[null,null,null,null,""]
[null,null,null,null,""]
[null,null,null,null,""]
[null,null,null,null,""]
[null,null,null,null,""]
[null,null,null,null,""]
[null,null,null,null,""]
[null,null,null,null,""]
[null,null,null,null,""]
[null,null,null,null,""]
[null,null,null,null,""]
[null,null,null,null,""]
[null,null,null,null,""]
[null,null,null,null,""]
[null,null,null,null,""]
[null,null,null,null,{"$f":"SUBSTITUTE(SUBSTITUTE(A2500,\"　\",\"\"),\" \",\"\")&D2500","v":""}]
[null,null,null,null,""]
[null,null,null,null,""]
[null,null,null,null,""]
[null,null,null,null,""]
[null,null,null,null,""]
[null,null,null,null,""]
[null,null,null,null,""]
[null,null,null,null,""]
[null,null,null,null,""]
[null,null,null,null,""]
[null,null,null,null,""]
[null,null,null,null,""]
[null,null,null,null,""]
[null,null,null,null,""]
[null,null,null,null,""]
[null,null,null,null,""]
[null,null,null,null,""]
[null,null,null,null,""]
[null,null,null,null,""]
[null,null,null,null,""]
[null,null,null,null,""]
[null,null,null,null,""]
[null,null,null,null,""]
[null,null,null,null,""]
[null,null,null,null,""]
[null,null,null,null,""]
[null,null,null,null,""]
[null,null,null,null,""]
[null,null,null,null,""]
[null,null,null,null,""]
[null,null,null,null,""]
[null,null,null,null,""]
[null,null,null,null,""]
[null,null,null,null,""]
[null,null,null,null,""]
[null,null,null,null,""]
[null,null,null,null,""]
[null,null,null,null,""]
[null,null,null,null,""]
[null,null,null,null,""]
[null,null,null,null,""]
[null,null,null,null,""]
[null,null,null,null,""]
[null,null,null,null,""]
[null,null,null,null,""]
[null,null,null,null,""]
[null,null,null,null,""]
[null,null,null,null,""]
[null,null,null,null,""]
[null,null,null,null,""]
[null,null,null,null,""]
[null,null,null,null,""]
[null,null,null,null,""]
[null,null,null,null,""]
[null,null,null,null,""]
[null,null,null,null,""]
[null,null,null,null,""]
[null,null,null,null,""]
[null,null,null,null,""]
[null,null,null,null,""]
[null,null,null,null,""]
[null,null,null,null,""]
[null,null,null,null,""]
[null,null,null,null,{"$f":"SUBSTITUTE(SUBSTITUTE(A2564,\"　\",\"\"),\" \",\"\")&D2564","v":""}]
[null,null,null,null,""]
[null,null,null,null,""]
[null,null,null,null,""]
[null,null,null,null,""]
[null,null,null,null,""]
[null,null,null,null,""]
[null,null,null,null,""]
[null,null,null,null,""]
[null,null,null,null,""]
[null,null,null,null,""]
[null,null,null,null,""]
[null,null,null,null,""]
[null,null,null,null,""]
[null,null,null,null,""]
[null,null,null,null,""]
[null,null,null,null,""]
[null,null,null,null,""]
[null,null,null,null,""]
[null,null,null,null,""]
[null,null,null,null,""]
[null,null,null,null,""]
[null,null,null,null,""]
[null,null,null,null,""]
[null,null,null,null,""]
[null,null,null,null,""]
[null,null,null,null,""]
[null,null,null,null,""]
[null,null,null,null,""]
[null,null,null,null,""]
[null,null,null,null,""]
[null,null,null,null,""]
[null,null,null,null,""]
[null,null,null,null,""]
[null,null,null,null,""]
[null,null,null,null,""]
[null,null,null,null,""]
[null,null,null,null,""]
[null,null,null,null,""]
[null,null,null,null,""]
[null,null,null,null,""]
[null,null,null,null,""]
[null,null,null,null,""]
[null,null,null,null,""]
[null,null,null,null,""]
[null,null,null,null,""]
[null,null,null,null,""]
[null,null,null,null,""]
[null,null,null,null,""]
[null,null,null,null,""]
[null,null,null,null,""]
[null,null,null,null,""]
[null,null,null,null,""]
[null,null,null,null,""]
[null,null,null,null,""]
[null,null,null,null,""]
[null,null,null,null,""]
[null,null,null,null,""]
[null,null,null,null,""]
[null,null,null,null,""]
[null,null,null,null,""]
[null,null,null,null,""]
[null,null,null,null,""]
[null,null,null,null,""]
[null,null,null,null,{"$f":"SUBSTITUTE(SUBSTITUTE(A2628,\"　\",\"\"),\" \",\"\")&D2628","v":""}]
[null,null,null,null,""]
[null,null,null,null,""]
[null,null,null,null,""]
[null,null,null,null,""]
[null,null,null,null,""]
[null,null,null,null,""]
[null,null,null,null,""]
[null,null,null,null,""]
[null,null,null,null,""]
[null,null,null,null,""]
[null,null,null,null,""]
[null,null,null,null,""]
[null,null,null,null,""]
[null,null,null,null,""]
[null,null,null,null,""]
[null,null,null,null,""]
[null,null,null,null,""]
[null,null,null,null,""]
[null,null,null,null,""]
[null,null,null,null,""]
[null,null,null,null,""]
[null,null,null,null,""]
[null,null,null,null,""]
[null,null,null,null,""]
[null,null,null,null,""]
[null,null,null,null,""]
[null,null,null,null,""]
[null,null,null,null,""]
[null,null,null,null,""]
[null,null,null,null,""]
[null,null,null,null,""]
[null,null,null,null,""]
[null,null,null,null,""]
[null,null,null,null,""]
[null,null,null,null,""]
[null,null,null,null,""]
[null,null,null,null,""]
[null,null,null,null,""]
[null,null,null,null,""]
[null,null,null,null,""]
[null,null,null,null,""]
[null,null,null,null,""]
[null,null,null,null,""]
[null,null,null,null,""]
[null,null,null,null,""]
[null,null,null,null,""]
[null,null,null,null,""]
[null,null,null,null,""]
[null,null,null,null,""]
[null,null,null,null,""]
[null,null,null,null,""]
[null,null,null,null,""]
[null,null,null,null,""]
[null,null,null,null,""]
[null,null,null,null,""]
[null,null,null,null,""]
[null,null,null,null,""]
[null,null,null,null,""]
[null,null,null,null,""]
[null,null,null,null,""]
[null,null,null,null,""]
[null,null,null,null,""]
[null,null,null,null,""]
[null,null,null,null,{"$f":"SUBSTITUTE(SUBSTITUTE(A2692,\"　\",\"\"),\" \",\"\")&D2692","v":""}]
[null,null,null,null,""]
[null,null,null,null,""]
[null,null,null,null,""]
[null,null,null,null,""]
[null,null,null,null,""]
[null,null,null,null,""]
[null,null,null,null,""]
[null,null,null,null,""]
[null,null,null,null,""]
[null,null,null,null,""]
[null,null,null,null,""]
[null,null,null,null,""]
[null,null,null,null,""]
[null,null,null,null,""]
[null,null,null,null,""]
[null,null,null,null,""]
[null,null,null,null,""]
[null,null,null,null,""]
[null,null,null,null,""]
[null,null,null,null,""]
[null,null,null,null,""]
[null,null,null,null,""]
[null,null,null,null,""]
[null,null,null,null,""]
[null,null,null,null,""]
[null,null,null,null,""]
[null,null,null,null,""]
[null,null,null,null,""]
[null,null,null,null,""]
[null,null,null,null,""]
[null,null,null,null,""]
[null,null,null,null,""]
[null,null,null,null,""]
[null,null,null,null,""]
[null,null,null,null,""]
[null,null,null,null,""]
[null,null,null,null,""]
[null,null,null,null,""]
[null,null,null,null,""]
[null,null,null,null,""]
[null,null,null,null,""]
[null,null,null,null,""]
[null,null,null,null,""]
[null,null,null,null,""]
[null,null,null,null,""]
[null,null,null,null,""]
[null,null,null,null,""]
[null,null,null,null,""]
[null,null,null,null,""]
[null,null,null,null,""]
[null,null,null,null,""]
[null,null,null,null,""]
[null,null,null,null,""]
[null,null,null,null,""]
[null,null,null,null,""]
[null,null,null,null,""]
[null,null,null,null,""]
[null,null,null,null,""]
[null,null,null,null,""]
[null,null,null,null,""]
[null,null,null,null,""]
[null,null,null,null,""]
[null,null,null,null,""]
[null,null,null,null,{"$f":"SUBSTITUTE(SUBSTITUTE(A2756,\"　\",\"\"),\" \",\"\")&D2756","v":""}]
[null,null,null,null,""]
[null,null,null,null,""]
[null,null,null,null,""]
[null,null,null,null,""]
[null,null,null,null,""]
[null,null,null,null,""]
[null,null,null,null,""]
[null,null,null,null,""]
[null,null,null,null,""]
[null,null,null,null,""]
[null,null,null,null,""]
[null,null,null,null,""]
[null,null,null,null,""]
[null,null,null,null,""]
[null,null,null,null,""]
[null,null,null,null,""]
[null,null,null,null,""]
[null,null,null,null,""]
[null,null,null,null,""]
[null,null,null,null,""]
[null,null,null,null,""]
[null,null,null,null,""]
[null,null,null,null,""]
[null,null,null,null,""]
[null,null,null,null,""]
[null,null,null,null,""]
[null,null,null,null,""]
[null,null,null,null,""]
[null,null,null,null,""]
[null,null,null,null,""]
[null,null,null,null,""]
[null,null,null,null,""]
[null,null,null,null,""]
[null,null,null,null,""]
[null,null,null,null,""]
[null,null,null,null,""]
[null,null,null,null,""]
[null,null,null,null,""]
[null,null,null,null,""]
[null,null,null,null,""]
[null,null,null,null,""]
[null,null,null,null,""]
[null,null,null,null,""]
[null,null,null,null,""]
[null,null,null,null,""]
[null,null,null,null,""]
[null,null,null,null,""]
[null,null,null,null,""]
[null,null,null,null,""]
[null,null,null,null,""]
[null,null,null,null,""]
[null,null,null,null,""]
[null,null,null,null,""]
[null,null,null,null,""]
[null,null,null,null,""]
[null,null,null,null,""]
[null,null,null,null,""]
[null,null,null,null,""]
[null,null,null,null,""]
[null,null,null,null,""]
[null,null,null,null,""]
[null,null,null,null,""]
[null,null,null,null,""]
[null,null,null,null,{"$f":"SUBSTITUTE(SUBSTITUTE(A2820,\"　\",\"\"),\" \",\"\")&D2820","v":""}]
[null,null,null,null,""]
[null,null,null,null,""]
[null,null,null,null,""]
[null,null,null,null,""]
[null,null,null,null,""]
[null,null,null,null,""]
[null,null,null,null,""]
[null,null,null,null,""]
[null,null,null,null,""]
[null,null,null,null,""]
[null,null,null,null,""]
[null,null,null,null,""]
[null,null,null,null,""]
[null,null,null,null,""]
[null,null,null,null,""]
[null,null,null,null,""]
[null,null,null,null,""]
[null,null,null,null,""]
[null,null,null,null,""]
[null,null,null,null,""]
[null,null,null,null,""]
[null,null,null,null,""]
[null,null,null,null,""]
[null,null,null,null,""]
[null,null,null,null,""]
[null,null,null,null,""]
[null,null,null,null,""]
[null,null,null,null,""]
[null,null,null,null,""]
[null,null,null,null,""]
[null,null,null,null,""]
[null,null,null,null,""]
[null,null,null,null,""]
[null,null,null,null,""]
[null,null,null,null,""]
[null,null,null,null,""]
[null,null,null,null,""]
[null,null,null,null,""]
[null,null,null,null,""]
[null,null,null,null,""]
[null,null,null,null,""]
[null,null,null,null,""]
[null,null,null,null,""]
[null,null,null,null,""]
[null,null,null,null,""]
[null,null,null,null,""]
[null,null,null,null,""]
[null,null,null,null,""]
[null,null,null,null,""]
[null,null,null,null,""]
[null,null,null,null,""]
[null,null,null,null,""]
[null,null,null,null,""]
[null,null,null,null,""]
[null,null,null,null,""]
[null,null,null,null,""]
[null,null,null,null,""]
[null,null,null,null,""]
[null,null,null,null,""]
[null,null,null,null,""]
[null,null,null,null,""]
[null,null,null,null,""]
[null,null,null,null,""]
[null,null,null,null,{"$f":"SUBSTITUTE(SUBSTITUTE(A2884,\"　\",\"\"),\" \",\"\")&D2884","v":""}]
[null,null,null,null,""]
[null,null,null,null,""]
[null,null,null,null,""]
[null,null,null,null,""]
[null,null,null,null,""]
[null,null,null,null,""]
[null,null,null,null,""]
[null,null,null,null,""]
[null,null,null,null,""]
[null,null,null,null,""]
[null,null,null,null,""]
[null,null,null,null,""]
[null,null,null,null,""]
[null,null,null,null,""]
[null,null,null,null,""]
[null,null,null,null,""]
[null,null,null,null,""]
[null,null,null,null,""]
[null,null,null,null,""]
[null,null,null,null,""]
[null,null,null,null,""]
[null,null,null,null,""]
[null,null,null,null,""]
[null,null,null,null,""]
[null,null,null,null,""]
[null,null,null,null,""]
[null,null,null,null,""]
[null,null,null,null,""]
[null,null,null,null,""]
[null,null,null,null,""]
[null,null,null,null,""]
[null,null,null,null,""]
[null,null,null,null,""]
[null,null,null,null,""]
[null,null,null,null,""]
[null,null,null,null,""]
[null,null,null,null,""]
[null,null,null,null,""]
[null,null,null,null,""]
[null,null,null,null,""]
[null,null,null,null,""]
[null,null,null,null,""]
[null,null,null,null,""]
[null,null,null,null,""]
[null,null,null,null,""]
[null,null,null,null,""]
[null,null,null,null,""]
[null,null,null,null,""]
[null,null,null,null,""]
[null,null,null,null,""]
[null,null,null,null,""]
[null,null,null,null,""]
[null,null,null,null,""]
[null,null,null,null,""]
[null,null,null,null,""]
[null,null,null,null,""]
[null,null,null,null,""]
[null,null,null,null,""]
[null,null,null,null,""]
[null,null,null,null,""]
[null,null,null,null,""]
[null,null,null,null,""]
[null,null,null,null,""]
[null,null,null,null,{"$f":"SUBSTITUTE(SUBSTITUTE(A2948,\"　\",\"\"),\" \",\"\")&D2948","v":""}]
[null,null,null,null,""]
[null,null,null,null,""]
[null,null,null,null,""]
[null,null,null,null,""]
[null,null,null,null,""]
[null,null,null,null,""]
[null,null,null,null,""]
[null,null,null,null,""]
[null,null,null,null,""]
[null,null,null,null,""]
[null,null,null,null,""]
[null,null,null,null,""]
[null,null,null,null,""]
[null,null,null,null,""]
[null,null,null,null,""]
[null,null,null,null,""]
[null,null,null,null,""]
[null,null,null,null,""]
[null,null,null,null,""]
[null,null,null,null,""]
[null,null,null,null,""]
[null,null,null,null,""]
[null,null,null,null,""]
[null,null,null,null,""]
[null,null,null,null,""]
[null,null,null,null,""]
[null,null,null,null,""]
[null,null,null,null,""]
[null,null,null,null,""]
[null,null,null,null,""]
[null,null,null,null,""]
[null,null,null,null,""]
[null,null,null,null,""]
[null,null,null,null,""]
[null,null,null,null,""]
[null,null,null,null,""]
[null,null,null,null,""]
[null,null,null,null,""]
[null,null,null,null,""]
[null,null,null,null,""]
[null,null,null,null,""]
[null,null,null,null,""]
[null,null,null,null,""]
[null,null,null,null,""]
[null,null,null,null,""]
[null,null,null,null,""]
[null,null,null,null,""]
[null,null,null,null,""]
[null,null,null,null,""]
[null,null,null,null,""]
[null,null,null,null,""]
[null,null,null,null,""]
[null,null,null,null,""]

{"sheet":"⑤申込みスケジュール","index":6,"n_rows":25,"n_cols":16,"rows_kept":25,"cut":false,"hidden":false,"merged":[[14,2,15,2],[14,7,14,9],[14,11,15,15],[15,8,15,10],[22,14,22,15],[16,8,16,15],[18,10,18,15],[19,11,19,15],[20,12,20,15],[21,13,21,15],[11,6,11,8],[12,2,13,2],[12,6,12,8],[12,10,13,15],[13,7,13,9],[2,1,2,15],[4,1,5,3],[4,4,4,15],[6,1,24,1],[6,2,7,2],[6,4,6,6],[6,7,7,15],[7,4,7,6],[8,2,9,2],[8,4,8,6],[8,8,9,15],[17,9,17,15],[9,5,9,7],[10,2,11,2],[10,5,10,7],[10,9,11,15]]}
[]
[]
[null,"申込みスケジュール"]
[]
[null,"2026年度",null,null,"受 診 希 望 月"]
[null,null,null,null,"4月健診","5月健診","6月健診","7月健診","8月健診","9月健診","10月健診","11月健診","12月健診","1月健診","2月健診","3月健診"]
[null,"申込み時期","2月","15日までに申込み","2月末日までに回答",null,null,"3月末日までに回答　　　　　　　　　　　　　　　　　　　　"]
[null,null,null,"末日までに申込み","3月15日までに回答"]
[null,null,"3月","15日までに申込み","3月末日までに回答",null,null,null,"4月末日までに回答　　　　　　　　　　　　　　　　　　　　"]
[null,null,null,"末日までに申込み",null,"4月15日までに回答"]
[null,null,"4月","15日までに申込み",null,"4月末日までに回答",null,null,null,"5月末日までに回答　　　　　　　　　　　　　　　　　　　　"]
[null,null,null,"末日までに申込み",null,null,"5月15日までに回答"]
[null,null,"5月","15日までに申込み",null,null,"5月末日までに回答",null,null,null,"6月末日までに回答　　　　　　　　　　　　　　　　　　　　"]
[null,null,null,"末日までに申込み",null,null,null,"6月15日までに回答"]
[null,null,"6月","15日までに申込み",null,null,null,"6月末日までに回答",null,null,null,"7月末日までに回答　　　　　　　　　　　　　　　　　　　　"]
[null,null,null,"末日までに申込み",null,null,null,null,"7月15日までに回答"]
[null,null,"7月","末日までに申込み",null,null,null,null,"2週間以内に回答"]
[null,null,"8月","末日までに申込み",null,null,null,null,null,"2週間以内に回答"]
[null,null,"9月","末日までに申込み",null,null,null,null,null,null,"2週間以内に回答"]
[null,null,"10月","末日までに申込み",null,null,null,null,null,null,null,"2週間以内に回答"]
[null,null,"11月","末日までに申込み",null,null,null,null,null,null,null,null,"2週間以内に回答"]
[null,null,"12月","末日までに申込み",null,null,null,null,null,null,null,null,null,"2週間以内に回答"]
[null,null,"1月","末日までに申込み",null,null,null,null,null,null,null,null,null,null,"2週間以内に回答"]
[null,null,"2月","末日までに申込み",null,null,null,null,null,null,null,null,null,null,null,"2週間以内\nに回答"]
[null,null,"3月","末日までに申込み",null,null,null,null,null,null,null,null,null,null,null,"随時回答"]

{"sheet":"⑥営業時間","index":7,"n_rows":65,"n_cols":14,"rows_kept":65,"cut":false,"hidden":false,"merged":[[63,1,63,13],[64,1,64,13],[44,3,44,7],[44,8,44,13],[44,1,45,2],[34,1,34,13],[61,1,61,13],[29,11,29,13],[29,8,29,9],[56,8,56,9],[41,3,41,13],[42,3,42,13],[43,3,43,13],[56,3,56,5],[57,3,57,13],[46,6,46,7],[48,6,48,7],[56,6,56,7],[54,6,54,7],[52,6,52,7],[50,6,50,7],[47,6,47,7],[49,6,49,7],[30,3,30,13],[17,8,17,13],[17,3,17,7],[17,1,18,2],[19,8,19,13],[21,8,21,13],[25,8,25,13],[23,8,23,13],[20,8,20,13],[24,8,24,13],[19,6,19,7],[20,6,20,7],[29,6,29,7],[27,6,27,7],[25,6,25,7],[23,6,23,7],[21,6,21,7],[22,3,22,13],[28,3,28,13],[26,6,26,7],[24,6,24,7],[26,3,26,5],[27,3,27,5],[27,8,27,13],[50,8,50,9],[51,3,51,5],[52,3,52,5],[53,3,53,5],[54,3,54,5],[55,3,55,5],[46,3,46,5],[47,3,47,5],[48,3,48,5],[49,3,49,5],[50,3,50,5],[1,1,1,13],[41,1,41,2],[33,1,33,13],[32,1,32,13],[19,1,20,1],[21,1,22,1],[23,1,24,1],[25,1,26,1],[27,1,28,1],[29,1,30,1],[15,1,15,2],[14,1,14,2],[3,1,3,13],[14,3,14,13],[15,3,15,13],[16,3,16,13],[19,3,19,5],[20,3,20,5],[21,3,21,5],[23,3,23,5],[24,3,24,5],[25,3,25,5],[26,8,26,13],[29,3,29,5],[62,1,62,13],[4,1,4,13],[5,1,5,13],[59,1,59,13],[60,1,60,13],[54,1,55,1],[56,1,57,1],[35,1,35,13],[43,1,43,2],[16,1,16,2],[46,12,56,13],[52,8,52,9],[54,8,54,9],[42,1,42,2],[11,1,11,13],[46,1,47,1],[48,1,49,1],[50,1,51,1],[52,1,53,1],[51,6,51,7],[53,6,53,7],[55,6,55,7],[46,8,46,9],[48,8,48,9]]}
[]
[]
[]
[null,"2026年度"]
[null,"桜十字福岡病院・桜十字博多駅健診クリニック"]
[null,"　人間ドック/健康診断　営業時間ご案内"]
[]
[]
[]
[]
[]
[null,"適用期間 ( 2026年4月1日 ～ 2027年3月31日 )　　　　※予定はご案内無しに変更となる場合がございます。予めご了承ください。"]
[]
[]
[null,"施設名称",null,"　桜十字福岡病院 2F　　人間ドック・健診センター"]
[null,"所在地",null,"　福岡市中央区渡辺通3-5-11"]
[null,"営業時間",null,"　【AM】 7：45 ～ 10：30 (※土曜日： 8：00 ～ 9：45)　　　　　【PM】 13：45 ～ 15：00"]
[null,null,null,"健診コース",null,null,null,null,"検査項目"]
[null,null,null,"定期健診","雇用時健診","法定健診\n(胃の検査なし)","生活習慣病\n健診","人間\nドック","超音波検査\n(エコー) ※1","胃部検査\n※2","大腸検査\n※3","婦人科検診\n※4","MRI","CT"]
[null,"月","AM",null,null,null,"○",null,"○"]
[null,null,"PM","○"]
[null,"火","AM",null,null,null,"○",null,"○"]
[null,null,"PM","休　診"]
[null,"水","AM",null,null,null,"○",null,"○"]
[null,null,"PM","○"]
[null,"木","AM",null,null,null,"○",null,"○"]
[null,null,"PM","○"]
[null,"金","AM",null,null,null,"○",null,"○"]
[null,null,"PM","休　診"]
[null,"土","AM",null,null,null,"○",null,"○",null,null,"○"]
[null,null,"PM","休　診"]
[]
[null,"※1　超音波検査　→　腹部エコー ・ 頸動脈エコー ・ 甲状腺エコー ・ 乳腺エコー"]
[null,"※2　胃部検査　　 →　バリウム検査 ・ 胃カメラ検査（鎮静剤あり/なし）"]
[null,"※3　大腸検査　　 →　大腸CT（月曜日/金曜日のみ） ・ 大腸カメラ（月曜日～金曜日）"]
[null,"※4　婦人科検診　→　子宮頸部細胞診 ・ 経腟エコー ・ マンモグラフィー（１方向/2方向）　　土曜日はマンモグラフィーのみ受診可能"]
[]
[]
[]
[]
[]
[null,"施設名称",null,"　桜十字博多駅健診クリニック"]
[null,"所在地",null,"　福岡市博多区博多駅中央街8-1　JRJP博多ビル ８Ｆ"]
[null,"営業時間",null,"　【AM】 8：00 ～ 11：00 (※土曜日： 8：00 ～ 10：15)　　　　　【PM】 月・火・木　14：00 ～ 15：30　/　水・金　14：00 ～ 14：30"]
[null,null,null,"健診コース",null,null,null,null,"検査項目"]
[null,null,null,"定期健診","雇用時健診","法定健診\n(胃の検査なし)","生活習慣病\n健診","人間\nドック","超音波検査\n(エコー) ※1","胃部検査\n※2","大腸検査\n※3","婦人科検診\n※4","MRI","CT"]
[null,"月","AM",null,null,null,"○",null,"○",null,null,"　　○※5","MRI・CT は\n“桜十字福岡病院”\nでのみ受診可能"]
[null,null,"PM","○",null,null,null,null,null,null,"○"]
[null,"火","AM",null,null,null,"○",null,"○",null,null,"○"]
[null,null,"PM","○",null,null,null,null,null,null,"○"]
[null,"水","AM",null,null,null,"○",null,"○",null,null,"○"]
[null,null,"PM","○",null,null,null,null,null,null,"○"]
[null,"木","AM",null,null,null,"○",null,"○",null,null,"○"]
[null,null,"PM","○",null,null,null,null,null,null,"○"]
[null,"金","AM",null,null,null,"　　○※6",null,"○",null,null,"○"]
[null,null,"PM","○",null,null,null,null,null,null,"○"]
[null,"土","AM",null,null,null,"○",null,"○"]
[null,null,"PM","休　診"]
[]
[null,"※1　超音波検査　→　腹部エコー ・ 頸動脈エコー ・ 甲状腺エコー ・ 乳腺エコー"]
[null,"※2　胃部検査　　 →　バリウム検査 ・ 胃カメラ検査（鎮静剤あり/なし）"]
[null,"※3　大腸検査　　 →　大腸カメラのみ"]
[null,"※4　婦人科検診　→　子宮頸部細胞診 ・ 経腟エコー ・ マンモグラフィー（１方向/2方向）"]
[null,"※5　月曜日は子宮頸部細胞診の検査を行っておりません。"]
[null,"※6　金曜日の午前中はレディースデーです。　男性のご予約は承れません。"]

{"sheet":"⑦診療日カレンダー","index":8,"n_rows":138,"n_cols":24,"rows_kept":138,"cut":false,"hidden":false,"merged":[[110,1,110,7],[110,9,110,15],[110,17,110,23],[124,1,124,7],[124,9,124,15],[124,17,124,23],[94,1,94,7],[94,9,94,15],[94,17,94,23],[38,1,38,7],[38,9,38,15],[38,17,38,23],[52,1,52,7],[52,9,52,15],[52,17,52,23],[74,1,74,23],[76,1,76,23],[78,1,78,7],[78,9,78,15],[78,17,78,23],[22,1,22,7],[22,9,22,15],[22,17,22,23],[2,1,2,23],[4,1,4,23],[6,1,6,7],[6,9,6,15],[6,17,6,23]]}
[]
[]
[null,"健診カレンダー（桜十字福岡病院）"]
[]
[null,"　　　　火曜日・金曜日・土曜日は午前のみ（午後休館）"]
[]
[null,2026,null,null,null,null,null,null,null,2026,null,null,null,null,null,null,null,2026]
[null,"日","月","火","水","木","金","土",null,"日","月","火","水","木","金","土",null,"日","月","火","水","木","金","土"]
[null,null,null,null,1,2,3,4,null,null,null,null,null,null,1,2,null,null,1,2,3,4,5,6]
[null,null,null,null,null,null,null,"休館",null,null,null,null,null,null,null,"休館"]
[null,5,6,7,8,9,10,11,null,3,4,5,6,7,8,9,null,7,8,9,10,11,12,13]
[null,"休館",null,null,null,null,null,"休館",null,"休館","休館","休館","休館",null,null,"休館",null,"休館",null,null,null,null,null,"休館"]
[null,12,13,14,15,16,17,18,null,10,11,12,13,14,15,16,null,14,15,16,17,18,19,20]
[null,"休館",null,null,null,null,null,null,null,"休館",null,null,null,null,null,null,null,"休館"]
[null,19,20,21,22,23,24,25,null,17,18,19,20,21,22,23,null,21,22,23,24,25,26,27]
[null,"休館",null,null,null,null,null,"休館",null,"休館",null,null,null,null,null,"休館",null,"休館",null,null,null,null,null,"休館"]
[null,26,27,28,29,30,null,null,null,24,25,26,27,28,29,30,null,28,29,30]
[null,"休館",null,null,"休館",null,null,null,null,"休館",null,null,null,null,null,null,null,"休館"]
[null,null,null,null,null,null,null,null,null,31]
[null,null,null,null,null,null,null,null,null,"休館"]
[]
[]
[null,2026,null,null,null,null,null,null,null,2026,null,null,null,null,null,null,null,2026]
[null,"日","月","火","水","木","金","土",null,"日","月","火","水","木","金","土",null,"日","月","火","水","木","金","土"]
[null,null,null,null,1,2,3,4,null,null,null,null,null,null,null,1,null,null,null,1,2,3,4,5]
[]
[null,5,6,7,8,9,10,11,null,2,3,4,5,6,7,8,null,6,7,8,9,10,11,12]
[null,"休館",null,null,null,null,null,"休館",null,"休館",null,null,null,null,null,"休館",null,"休館",null,null,null,null,null,"休館"]
[null,12,13,14,15,16,17,18,null,9,10,11,12,13,14,15,null,13,14,15,16,17,18,19]
[null,"休館",null,null,null,null,null,null,null,"休館",null,"休館",null,null,null,null,null,"休館"]
[null,19,20,21,22,23,24,25,null,16,17,18,19,20,21,22,null,20,21,22,23,24,25,26]
[null,"休館","休館",null,null,null,null,"休館",null,"休館",null,null,null,null,null,"休館",null,"休館","休館","休館","休館",null,null,"休館"]
[null,26,27,28,29,30,31,null,null,23,24,25,26,27,28,29,null,27,28,29,30]
[null,"休館",null,null,null,null,null,null,null,"休館",null,null,null,null,null,null,null,"休館"]
[null,null,null,null,null,null,null,null,null,30,31]
[null,null,null,null,null,null,null,null,null,"休館"]
[]
[]
[null,2026,null,null,null,null,null,null,null,2026,null,null,null,null,null,null,null,2026]
[null,"日","月","火","水","木","金","土",null,"日","月","火","水","木","金","土",null,"日","月","火","水","木","金","土"]
[null,null,null,null,null,1,2,3,null,1,2,3,4,5,6,7,null,null,null,1,2,3,4,5]
[null,null,null,null,null,null,null,null,null,"休館",null,"休館"]
[null,4,5,6,7,8,9,10,null,8,9,10,11,12,13,14,null,6,7,8,9,10,11,12]
[null,"休館",null,null,null,null,null,"休館",null,"休館",null,null,null,null,null,"休館",null,"休館",null,null,null,null,null,"休館"]
[null,11,12,13,14,15,16,17,null,15,16,17,18,19,20,21,null,13,14,15,16,17,18,19]
[null,"休館","休館",null,null,null,null,null,null,"休館",null,null,null,null,null,null,null,"休館"]
[null,18,19,20,21,22,23,24,null,22,23,24,25,26,27,28,null,20,21,22,23,24,25,26]
[null,"休館",null,null,null,null,null,"休館",null,"休館","休館",null,null,null,null,"休館",null,"休館",null,null,null,null,null,"休館"]
[null,25,26,27,28,29,30,31,null,29,30,null,null,null,null,null,null,27,28,29,30,31]
[null,"休館",null,null,null,null,null,null,null,"休館",null,null,null,null,null,null,null,"休館",null,"休館","休館","休館"]
[]
[]
[null,2027,null,null,null,null,null,null,null,2027,null,null,null,null,null,null,null,2027]
[null,"日","月","火","水","木","金","土",null,"日","月","火","水","木","金","土",null,"日","月","火","水","木","金","土"]
[null,null,null,null,null,null,1,2,null,null,1,2,3,4,5,6,null,null,1,2,3,4,5,6]
[null,null,null,null,null,null,"休館","休館",null,null,null,null,null,null,null,null,null,null,null,null,null,null,null,"休館"]
[null,3,4,5,6,7,8,9,null,7,8,9,10,11,12,13,null,7,8,9,10,11,12,13]
[null,"休館",null,null,null,null,null,"休館",null,"休館",null,null,null,"休館",null,"休館",null,"休館",null,null,null,null,null,"休館"]
[null,10,11,12,13,14,15,16,null,14,15,16,17,18,19,20,null,14,15,16,17,18,19,20]
[null,"休館","休館",null,null,null,null,null,null,"休館",null,null,null,null,null,null,null,"休館"]
[null,17,18,19,20,21,22,23,null,21,22,23,24,25,26,27,null,21,22,23,24,25,26,27]
[null,"休館",null,null,null,null,null,"休館",null,"休館",null,"休館",null,null,null,"休館",null,"休館","休館",null,null,null,null,"休館"]
[null,24,25,26,27,28,29,30,null,28,null,null,null,null,null,null,null,28,29,30,31]
[null,"休館",null,null,null,null,null,null,null,"休館",null,null,null,null,null,null,null,"休館"]
[null,31]
[null,"休館"]
[]
[]
[]
[]
[]
[]
[]
[]
[null,"健診カレンダー（博多駅健診クリニック）"]
[]
[null,"　　　　金曜日はレディースデー（午前中は女性専用　午後は男女可能）　　　　　　　　　　　　　　　　土曜日は午前のみ（午後休館）"]
[]
[null,2026,null,null,null,null,null,null,null,2026,null,null,null,null,null,null,null,2026]
[null,"日","月","火","水","木","金","土",null,"日","月","火","水","木","金","土",null,"日","月","火","水","木","金","土"]
[null,null,null,null,1,2,3,4,null,null,null,null,null,null,1,2,null,null,1,2,3,4,5,6]
[null,null,null,null,null,null,null,"休館",null,null,null,null,null,null,null,"休館",null,null,null,null,null,null,null,"休館"]
[null,5,6,7,8,9,10,11,null,3,4,5,6,7,8,9,null,7,8,9,10,11,12,13]
[null,"休館",null,null,null,null,null,"休館",null,"休館","休館","休館","休館",null,null,"休館",null,"休館",null,null,null,null,null,"休館"]
[null,12,13,14,15,16,17,18,null,10,11,12,13,14,15,16,null,14,15,16,17,18,19,20]
[null,"休館",null,null,null,null,null,null,null,"休館",null,null,null,null,null,null,null,"休館"]
[null,19,20,21,22,23,24,25,null,17,18,19,20,21,22,23,null,21,22,23,24,25,26,27]
[null,"休館",null,null,null,null,null,"休館",null,"休館",null,null,null,null,null,"休館",null,"休館",null,null,null,null,null,"休館"]
[null,26,27,28,29,30,null,null,null,24,25,26,27,28,29,30,null,28,29,30]
[null,"休館",null,null,"休館",null,null,null,null,"休館",null,null,null,null,null,"休館",null,"休館"]
[null,null,null,null,null,null,null,null,null,31]
[null,null,null,null,null,null,null,null,null,"休館"]
[]
[]
[null,2026,null,null,null,null,null,null,null,2026,null,null,null,null,null,null,null,2026]
[null,"日","月","火","水","木","金","土",null,"日","月","火","水","木","金","土",null,"日","月","火","水","木","金","土"]
[null,null,null,null,1,2,3,4,null,null,null,null,null,null,null,1,null,null,null,1,2,3,4,5]
[null,null,null,null,null,null,null,"休館",null,null,null,null,null,null,null,"休館",null,null,null,null,null,null,null,"休館"]
[null,5,6,7,8,9,10,11,null,2,3,4,5,6,7,8,null,6,7,8,9,10,11,12]
[null,"休館",null,null,null,null,null,"休館",null,"休館",null,null,null,null,null,"休館",null,"休館",null,null,null,null,null,"休館"]
[null,12,13,14,15,16,17,18,null,9,10,11,12,13,14,15,null,13,14,15,16,17,18,19]
[null,"休館",null,null,null,null,null,null,null,"休館",null,"休館",null,null,null,null,null,"休館"]
[null,19,20,21,22,23,24,25,null,16,17,18,19,20,21,22,null,20,21,22,23,24,25,26]
[null,"休館","休館",null,null,null,null,"休館",null,"休館",null,null,null,null,null,"休館",null,"休館","休館","休館","休館",null,null,"休館"]
[null,26,27,28,29,30,31,null,null,23,24,25,26,27,28,29,null,27,28,29,30]
[null,"休館",null,null,null,null,null,null,null,"休館",null,null,null,null,null,"休館",null,"休館"]
[null,null,null,null,null,null,null,null,null,30,31]
[null,null,null,null,null,null,null,null,null,"休館"]
[]
[]
[null,2026,null,null,null,null,null,null,null,2026,null,null,null,null,null,null,null,2026]
[null,"日","月","火","水","木","金","土",null,"日","月","火","水","木","金","土",null,"日","月","火","水","木","金","土"]
[null,null,null,null,null,1,2,3,null,1,2,3,4,5,6,7,null,null,null,1,2,3,4,5]
[null,null,null,null,null,null,null,"休館",null,"休館",null,"休館",null,null,null,"休館",null,null,null,null,null,null,null,"休館"]
[null,4,5,6,7,8,9,10,null,8,9,10,11,12,13,14,null,6,7,8,9,10,11,12]
[null,"休館",null,null,null,null,null,"休館",null,"休館",null,null,null,null,null,"休館",null,"休館",null,null,null,null,null,"休館"]
[null,11,12,13,14,15,16,17,null,15,16,17,18,19,20,21,null,13,14,15,16,17,18,19]
[null,"休館","休館",null,null,null,null,null,null,"休館",null,null,null,null,null,null,null,"休館"]
[null,18,19,20,21,22,23,24,null,22,23,24,25,26,27,28,null,20,21,22,23,24,25,26]
[null,"休館",null,null,null,null,null,"休館",null,"休館","休館",null,null,null,null,"休館",null,"休館",null,null,null,null,null,"休館"]
[null,25,26,27,28,29,30,31,null,29,30,null,null,null,null,null,null,27,28,29,30,31]
[null,"休館",null,null,null,null,null,"休館",null,"休館",null,null,null,null,null,null,null,"休館",null,"休館","休館","休館"]
[]
[]
[null,2027,null,null,null,null,null,null,null,2027,null,null,null,null,null,null,null,2027]
[null,"日","月","火","水","木","金","土",null,"日","月","火","水","木","金","土",null,"日","月","火","水","木","金","土"]
[null,null,null,null,null,null,1,2,null,null,1,2,3,4,5,6,null,null,1,2,3,4,5,6]
[null,null,null,null,null,null,"休館","休館",null,null,null,null,null,null,null,"休館",null,null,null,null,null,null,null,"休館"]
[null,3,4,5,6,7,8,9,null,7,8,9,10,11,12,13,null,7,8,9,10,11,12,13]
[null,"休館",null,null,null,null,null,"休館",null,"休館",null,null,null,"休館",null,"休館",null,"休館",null,null,null,null,null,"休館"]
[null,10,11,12,13,14,15,16,null,14,15,16,17,18,19,20,null,14,15,16,17,18,19,20]
[null,"休館","休館",null,null,null,null,null,null,"休館",null,null,null,null,null,null,null,"休館"]
[null,17,18,19,20,21,22,23,null,21,22,23,24,25,26,27,null,21,22,23,24,25,26,27]
[null,"休館",null,null,null,null,null,"休館",null,"休館",null,"休館",null,null,null,"休館",null,"休館","休館",null,null,null,null,"休館"]
[null,24,25,26,27,28,29,30,null,28,null,null,null,null,null,null,null,28,29,30,31]
[null,"休館",null,null,null,null,null,"休館",null,"休館",null,null,null,null,null,null,null,"休館"]
[null,31]
[null,"休館"]

{"sheet":"⓼オプション","index":9,"n_rows":71,"n_cols":5,"rows_kept":71,"cut":false,"hidden":false,"merged":[[26,0,35,0],[1,0,1,1],[2,0,11,0],[12,0,15,0],[16,0,21,0],[22,0,25,0],[69,1,69,3],[36,0,39,0],[40,0,41,0],[44,0,46,0],[44,2,45,2],[47,0,57,0],[58,0,68,0]]}
["2026年度 オプション検査料金表",null,null,null,"料金　税込【10％】"]
["オプション名",null,"検査の説明","桜十字福岡病院","博多駅健診クリニック"]
["脳・心臓","頭部MRI・MRA　※1","磁石と電磁波を用い放射線被曝なく脳の状態を詳しく調べることができるため、将来の脳卒中予防の目的で脳ドックの主要検査項目の一つとなっています。また造影剤（薬剤）を用いずに脳の動脈を立体的に観察できるため、くも膜下出血の原因となる未破裂動脈瘤の有無についても調べることが可能です。",27500]
[null,"頸動脈超音波（エコー）","頸動脈にエコーをあて動脈壁の厚さを測定し、全身の動脈硬化の程度を判定する検査です。また頸動脈が狭くなっていないかについても調べることができます。",4730,4400]
[null,"脳検査セット　※1\n　（頭部MRI・MRA + 頸動脈超音波）","MRIによる脳や脳動脈の状態チェックとエコーによる動脈硬化のチェックを合わせたセットです。40歳以上、飲酒や喫煙量が多い、血縁者に脳卒中になった方がいる、肥満や生活習慣病がある方などにおすすめです。",29150]
[null,"AI認知機能検査（BrainSuite）","AIを使用した認知機能検査です。脳画像検査（MRI）及び認知機能スクリーニング検査を行い、現在の脳機能を評価することで、生活習慣を見直し、脳萎縮を抑え認知症等の疾患を予防・脳健康を維持することにつなげます。\n※MRIの検査と併せて実施する為、すでにMRIを申し込まれている方が追加可能です。",11220]
[null,"AI認知機能検査セット　※1\n　（頭部MRI・MRA + BrainSuite）","MRIによる脳や脳動脈の状態チェックとAIを使用した認知機能検査を合わせたセットです。",35200]
[null,"MCIスクリーニング検査プラス","軽度認知障害 (MCI ）のリスク を調べることができる40歳以上の方にお勧めの血液検査です。\n認知症の予備軍とも言われ、そのまま放置すると5年で50%近くが認知症に進行しすると言われております。なお、急性炎症が認められる方、肝硬変の方、先天的脂質異常症の方、自己免疫性疾患をお持ちの方は判定結果に影響する可能性がございます。",24200,24200]
[null,"安静時心電図","手足・胸に電極を付け、心臓が発する電気刺激を波形として記録する検査です。心臓の病気を発見する手掛かりになります。",1980,1650]
[null,"Heartnote®　ホルター心電図検査","小型・軽量のため日常生活での負担が少なく、最長7日間の心電図を検査できます。発作性心房細動など、通常の健診の短い心電図では発見しにくい不整脈の検出率を高め、脳梗塞リスクの早期発見に貢献します。\n(医師コメント付)",23100,23100]
[null,"NTPro-BNP","心臓にかかる負荷の有無やその程度を測定する心機能のマーカーです。自覚症状のない初期の段階の心機能低下の早期発見につながります。",2750,2750]
[null,"LOX‐index　※1","脳梗塞や心筋梗塞の原因となる動脈硬化の原因物質を測定することにより、脳梗塞や心筋梗塞の発症リスクがわかる最新の検査です。近親者でこれらの疾患の既往歴がある方、コレステロールや血糖値が高い方、喫煙されている40歳以上の方などにおすすめです。妊娠中の方は正確な数値が出ませんのでご注意ください。",13200,13200]
["肺","低線量肺がんCT　※1","日本人のがん死亡者数の第１位である肺がんを発見することに特化したCT検査です。対象臓器を肺に限定することで、被ばく線量を従来の胸部CTの約1/5（当院従来比）に低減させることができます。",11000]
[null,"喀痰検査","痰の中に病的な細胞が含まれていないかを顕微鏡で調べる検査です。主に扁平上皮がんの発見を目的として胸部レントゲン写真や低線量肺がんCTと併せて行います。",3300,3300]
[null,"Pro‐GRP","肺がん（特に小細胞がん）に有用な腫瘍マーカーです。",2750,2750]
[null,"シフラ","肺がん（特に扁平上皮がん）に有用な腫瘍マーカーです。",2750,2750]
["胃","胃透視（バリウム検査）　※1","バリウムを飲んでX線で食道・胃・十二指腸の上部消化管の検査を行います。胃全体の形を捉えやすいため、スキルス胃がんの特徴である胃の伸展不良（壁が硬くふくらみが悪い）の診断に有用です。",12100,11000]
[null,"35歳未満限定胃透視（バリウム検査）　※1","35歳未満限定料金。一般的な胃がんはピロリ菌の感染や喫煙などがリスクとされ50代以上の男性に多いのに対して、スキルス胃がんは20代や30代の若年層（特に女性）にも発生することがあります。",7700,7700]
[null,"胃内視鏡検査（胃カメラ）　※1 　　　　　　　","内視鏡を使用して、食道・胃・十二指腸を直接観察し、がん、潰瘍・ポリープ・炎症などの発見に有用です。カメラを口から挿入する方法と鼻から挿入する方法があります。",17600,16500]
[null,"胃内視鏡検査（胃カメラ）鎮静剤　　　　　　　","胃カメラ時（口から挿入する場合）に使用します。意識がぼんやりとした状態となり苦痛を軽減できますが、使用後は一定時間お休み頂きます。検査当日は車等の運転は出来ません。\n※鎮静効果には個人差があります。",3300,3300]
[null,"ヘリコバクターピロリIgG","胃がんや胃潰瘍の原因と言われる「ピロリ菌」に感染していないかを調べます。",2750,2750]
[null,"ABC検査（胃がんリスク健診）","ピロリ菌感染の有無と胃粘膜萎縮の程度を測定し、胃がんのリスクを総合的に判定します。\n明らかな消化器症状のある方や治療中の方、ピロリ菌の除菌後の方は正しい結果が得られませんのでご注意ください。",6600,6600]
["大腸","大腸内視鏡検査（大腸カメラ）　※1","肛門から内視鏡を入れて直腸から盲腸までの大腸全体を直接観察します。大腸がんは男女ともに死因の上位です。40歳以上の方は一度検査をすることをお勧めします。",27500,24200]
[null,"便潜血","便中の血液混入の有無を判断する検査です。大腸がんを発見する手がかりとなります。",1650,1650]
[null,"Flora Scan","日本人特有の腸内フローラ（腸内細菌の種類や量）のタイプを5つに分類し、生活習慣病、および腸疾患等との関連性を調べる検査です。",16500,16500]
[null,"CEA","大腸がん発見の手がかりとなる検査です。便潜血とセットでの受診をおすすめします。",2750,2750]
["肝臓・胆のう・膵臓","腹部超音波（エコー）","超音波を発する器具（プローブ）を腹部にあてて、上腹部臓器（肝臓・胆のう・すい臓・腎臓・ひ臓・腹部大動脈）を観察し、腫瘍や結石の有無などを調べる検査です。",7150,6050]
[null,"腹部CT　※1","放射線を用いて、肝臓・胆のう・膵臓・腎臓・ひ臓などの上腹部臓器のほか、大動脈や骨盤内についての異常の有無を調べる検査です。",14850]
[null,"AFP　※1","肝臓がん発見の手がかりとなる検査です。肝がん（肝臓がん）を罹患した場合は血液中にAFPがみられるため、腫瘍マーカーとして用いられている検査です。",2750,2750]
[null,"PIVKA-Ⅱ","肝臓がん発見の手がかりとなる検査です。肝細胞がんの有無の可能性を知るために行われる検査です。",2750,2750]
[null,"肝臓腫瘍マーカーセット\n　（AFP※1 + PIVKA‐Ⅱ）","肝臓がん発見の手がかりとなる検査です。",4400,4400]
[null,"膵臓腫瘍マーカーセット\n　（APOA2アイソフォーム + CA19-9）","異なる物質を測定する2種類の腫瘍マーカー（ 「APOA2アイソフォーム」 + 「CA19-9」 ）を組み合わせることで、相補的にすい臓がんの診断補助精度が向上します。 ",7700,7700]
[null,"CA19-9 ","膵臓がん発見の手がかりとなる検査です。胃がんや大腸がんなど、消化器系のがんにも反応を示します。",2750,2750]
[null,"HBｓ抗原（B型肝炎ウイルス検査）","B型肝炎ウイルス感染の有無を調べる検査です。",1320,1320]
[null,"HBｓ抗体（B型肝炎ウイルス検査）","HBs抗原に対する抗体の有無を調べる検査です。陽性であれば過去に感染し、その後、治癒したことを示唆します。HBVワクチンを接種した場合にも陽性となります。",1320,1320]
[null,"HCV抗体（C型肝炎ウイルス検査）","C型肝炎ウイルス感染の有無を調べる検査です。HCV抗体陽性の場合、C型肝炎ウイルスへの感染の既往を意味します。早期に検査をすることで肝硬変や肝臓がんなどへの進展を防ぎます。",2200,2200]
["保健師お勧め","HbA1c (ヘモグロビンA1C）","食事や運動などの影響を受けにくく、過去1～2か月の平均的な血糖の状態を調べる検査です。血糖値のコントロール状態を知ることができます。",770,770]
[null,"眼底カメラ","カメラを用いて眼底にある血管や神経組織を観察します。緑内障、網膜色素変性症、黄斑変性症、網膜剥離、眼底出血などの眼の病気の他、高血圧や糖尿病などの全身性の病気の発見にも有効です。",2200,1650]
[null,"内臓脂肪CT　※1","内臓脂肪が多いほどメタボリック・シンドロームの発症の可能性が高まります。CTを用いて腹部の内臓脂肪と皮下脂肪の量を測定することで、腹囲は正常でも内臓脂肪の多い「隠れ肥満」の発見に有用です。",4180]
[null,"Inbody測定（体組成測定）　※1","体成分分析装置です。体脂肪率だけでなく、体を構成する基本成分である体水分・タンパク質・ミネラル・体脂肪を定量的に分析します。生活習慣を見直すきっかけになります。",1100]
["甲状腺","甲状腺超音波（エコー）","甲状腺に超音波をあてて甲状腺の大きさやしこりの有無など内部の状態を調べる検査です。血液検査とあわせて受けることをおすすめします。",4400,4400]
[null,"TSH・FT3・FT4","甲状腺刺激ホルモンと2種類の甲状腺ホルモンの量を調べることで、女性に多い甲状腺機能異常（バセドウ病、橋本病など）の早期発見につながります。",4400,4400]
["前立腺","高感度PSA (40歳以上)","前立腺がんに特異性の高い検査です。自覚症状のない段階での早期発見にも役立ちます。",2750,2750]
["リウ\nマチ","抗CCP抗体","女性に多い病気と言われる関節リウマチの発症予測に有用な検査です。抗CCP抗体は今までのリウマチ因子検査よりはるかに鋭敏であり、正確にリウマチの発症を予測できる最も重要な血液検査です。",2200,2200]
["乳腺","マンモグラフィ 1方向 （30歳以上） ※1　　　　　　　　　","乳房を挟んでX線撮影をする検査です。小さなしこりや石灰化を調べ、近年増加している乳がんの早期発見に有用です。乳腺が豊富な方（乳腺高濃度）は、乳腺超音波との併用をおすすめします。1方向と2方向では撮影枚数が異なります。乳腺密度の高い方（30～40代）は2方向をおすすめします。30歳未満の方は、乳腺密度が高いため乳腺エコーをご検討ください。",4400,3300]
[null,"マンモグラフィ 2方向 （30歳以上）　※1　　　　　　　　　　",null,5500,4400]
[null,"乳腺超音波（エコー）","乳房に超音波をあて、しこりや乳管の変化の有無を調べる検査です。乳腺が発達している若い方（乳腺高濃度）や妊娠中・授乳中の方にもおすすめです。",4400,4400]
["婦人科（子宮・卵巣）","子宮頸部細胞診　※2","ブラシを用いて子宮頸部より細胞を採取し子宮頸がんに至る病変細胞の有無を顕微鏡で調べる検査です。子宮頸部がんは、子宮の入り口付近に発生することが多いので、直接細胞を採取することでがん及び前がん状態を見つけることができます。",5500,4400]
[null,"HPV検査","子宮頸がんの原因となるHPV（ヒトパピローマウイルス）への感染の有無を調べる検査です。子宮頸がん検査（細胞診）時に一緒に検査することが可能で、同時に検査することで子宮がん検診の精度を高めることができます。\n※「子宮頚部細胞診」をお申込みの方のみ追加可能です。",5500,5500]
[null,"経腟超音波（エコー）","膣の中に細長いエコーの機械（プローブ）を挿入し、子宮や卵巣の状態を観察する検査です。子宮筋腫・子宮内膜症・卵巣腫瘍などの発見につながります。\n※「子宮頚部細胞診」をお申込みの方のみ追加可能です。",5500]
[null,"エクオール検査","エクオールとは女性ホルモンと似た働きをする成分です。腸内で、大豆イソフラボンから「エクオール」が作られているかを尿検査で調べます。更年期の症状が気になるゆらぎ世代の方々におすすめです。\n※前日に大豆食品を摂取する必要がございます。目安：納豆1/2パック、豆腐1/4丁、豆乳100cc以上",3850,3850]
[null,"ホルモンチェック","女性ホルモンの乱れや自律神経の乱れは閉経前後の心身にさまざまな不調をもたらします。不調の原因が女性ホルモンの減少によるものかどうかの参考のために血中の女性ホルモンの値を調べる検査です。特に更年期世代の方はご自身が閉経に向けたどのあたりの状態にいるのかの参考になります。",4400,4400]
[null,"CA125　※3","卵巣がん発見の手がかりとなる検査です。妊娠中の方はご受診いただけません。",2750,2750]
[null,"AMH（抗ミュラー管ホルモン）検査　※1","現在の「卵子」の数の目安、つまり卵巣予備能（卵巣年齢）を知ることができ、今後の妊活を含めライフプラン形成に役立てることができます。血液検査のため月経周期を気にせずに検査を受けられます。今後妊娠を希望される方におすすめします。",6600,6600]
[null,"骨密度　※1","放射線を用いて骨の密度を測定する検査です。女性ホルモンの減少と深くかかわるため、40歳以上の女性、特に閉経後の方におすすめします。",3300,2200]
[null,"婦人科ナースおススメ3点セット\n　（子宮頸部細胞診※2 + HPV + 経腟エコー）","子宮・卵巣の健康状態がわかるベーシックでお得なセットです。１度内診台に上がり１０分程度で全ての検査が受けられます。",15400]
[null,"婦人科ナースおススメ2点セット\n　（子宮頚部細胞診※2 + 経腟エコー）","子宮・卵巣の健康状態がわかるベーシックでお得なセットです。１度内診台に上がり１０分程度で全ての検査が受けられます。",9900]
[null,"婦人科ナースおススメ2点セット\n　（HPV + 経腟エコー）","子宮・卵巣の健康状態がわかるベーシックでお得なセットです。１度内診台に上がり１０分程度で全ての検査が受けられます。\n※「子宮頚部細胞診」をお申込みの方のみ追加可能です。",9900]
["　","風疹抗体検査","風疹に対する免疫があるかどうかを調べる検査です。",4950,4950]
[null,"麻疹抗体検査","麻疹に対する免疫があるかどうかを調べる検査です。",4950,4950]
[null,"血液型（ABO・Rh）","緊急で輸血が必要となる場合に役立ちます。",1100,1100]
[null,"View39（アレルギー検査）　※1","アレルギー症状は、自覚症状がある方はもちろん、現在症状がなくても、ご自身がどのようなアレルゲン物質に対してアレルギーを引き起こす可能性があるか知っておくことが大切です。View39では少量の採血で一度に39種類（卵、牛乳、小麦、豆類、甲殻類、果物、魚、肉、動物、昆虫、樹木、草、カビ、塵など）のアレルギー検査が可能です。",14850,14850]
[null,"アミノインデックス　※1","血液中のアミノ酸濃度を測定し、採血のみで複数のがんに罹患しているリスク(AICS)や将来、脳卒中や心筋梗塞、糖尿病などの生活習慣病になるリスク(AILS)、50歳以上の方は認知症になるリスクを評価できるスクリーニング検査です。",25300,25300]
[null,"SCC抗原","扁平上皮がん（食道がん、子宮頸がん、皮膚がん、肺がん、咽頭がん）などを調べます。",2750,2750]
[null,"40歳以上男性向け腫瘍マーカー4種セット　　　　　　\n　（AFP + CA19-9 + CEA + PSA）","男性向けのお得な腫瘍マーカー４種セットです。",7700,7700]
[null,"女性向け腫瘍マーカー4種セット\n　（AFP※1 + CA19-9 + CEA + CA125※3）","\n女性向けのお得な腫瘍マーカー４種セットです。\n",7700,7700]
[null,"男女兼用腫瘍マーカー5種セット \n　（AFP※1 + CA19-9 + CEA + シフラ + Pro-GRP）","男性女性どちらでもご利用いただけるお得な腫瘍マーカー5種セットです。",8800,8800]
[null,"40歳以上男性向け腫瘍マーカー6種セット　　　　　　\n　（AFP + CA19-9 + CEA + シフラ + Pro-GRP + PSA） ","男性向けのお得な腫瘍マーカー６種セットです。\n※39歳以下の方は5種セットをご検討ください。",9900,9900]
[null,"女性向け腫瘍マーカー6種セット\n　（AFP※1 + CA19-9 + CEA + シフラ + Pro‐GRP +\n　  CA125※3）","\n女性向けのお得な腫瘍マーカー６種セットです。\n",9900,9900]
[null,"\n※1　妊娠中の方および妊娠の可能性がある方はご受診いただけませんのでご了承ください。\n※2　妊娠中の方および妊娠の可能性がある方はご受診いただけません。 \n　　　 また月経中の方は、検査に必要な細胞量が十分採取できない可能性がございますので、当日ご相談ください。\n※3　妊娠中の方および妊娠の可能性がある方はご受診いただけません。 \n　　　 また、月経中の方は正確な結果が出ない可能性がございますので、当日ご相談ください。\n"]
[null,null,null,null,"【2026年1月改訂】"]

{"sheet":"⑧オプション一覧","index":10,"n_rows":69,"n_cols":6,"rows_kept":69,"cut":false,"hidden":true,"merged":[[68,2,68,5],[67,4,67,5],[66,4,66,5],[65,4,65,5],[57,1,67,1],[64,4,64,5],[63,4,63,5],[62,4,62,5],[60,4,60,5],[59,4,59,5],[58,4,58,5],[57,4,57,5],[61,4,61,5],[48,4,48,5],[50,4,50,5],[53,4,53,5],[52,4,52,5],[51,4,51,5],[46,4,46,5],[32,4,32,5],[30,4,30,5],[29,4,29,5],[28,4,28,5],[35,4,35,5],[34,4,34,5],[33,4,33,5],[36,4,36,5],[41,4,41,5],[40,4,40,5],[43,4,43,5],[42,4,42,5],[31,4,31,5],[21,4,21,5],[20,4,20,5],[19,4,19,5],[17,4,17,5],[23,4,23,5],[47,1,56,1],[1,1,1,5],[9,4,9,5],[11,4,11,5],[12,4,12,5],[15,4,15,5],[14,4,14,5],[4,1,12,1],[13,1,15,1],[25,4,25,5],[24,4,24,5],[2,4,2,5],[2,1,3,2],[2,3,3,3],[16,1,21,1],[22,1,25,1],[26,1,35,1],[36,1,39,1],[40,1,41,1],[44,1,46,1],[44,3,45,3]]}
[]
[null,"2025年度 　　オプション検査料金表"]
[null,"オプション名",null,"検査の説明","料金（税込）"]
[null,null,null,null,"天神","博多"]
[null,"脳・心臓","頭部MRI・MRA　※1","磁石と電磁波を用い放射線被曝なく脳の状態を詳しく調べることができるため、将来の脳卒中予防の目的で脳ドックの主要検査項目の一つとなっています。また造影剤（薬剤）を用いずに脳の動脈を立体的に観察できるため、くも膜下出血の原因となる未破裂動脈瘤の有無についても調べることが可能です。",27500]
[null,null,"頸動脈エコー","頸動脈にエコーをあて動脈壁の厚さを測定し、全身の動脈硬化の程度を判定する検査です。また頸動脈が狭くなっていないかについても調べることができます。",4730,4400]
[null,null,"脳検査セット　※1\n　（頭部MRI・MRA + 頸動脈エコー）","MRIによる脳や脳動脈の状態チェックとエコーによる動脈硬化のチェックを合わせたセットです。40歳以上、飲酒や喫煙量が多い、血縁者に脳卒中になった方がいる、肥満や生活習慣病がある方などにおすすめです。",29150]
[null,null,"AI認知機能検査（BrainSuite）","AIを使用した認知機能検査です。脳画像検査（MRI）及び認知機能スクリーニング検査を行い、現在の脳機能を評価することで、生活習慣を見直し、脳萎縮を抑え認知症等の疾患を予防・脳健康を維持することにつなげます。\n※MRIの検査と併せて実施する為、すでにMRIを申し込まれている方が追加可能です。",11220]
[null,null,"AI認知機能検査セット　※1\n　（頭部MRI・MRA + BrainSuite）","MRIによる脳や脳動脈の状態チェックとAIを使用した認知機能検査を合わせたセットです。",35200]
[null,null,"MCIスクリーニング検査プラス","軽度認知障害 (MCI ）のリスク を調べることができる40歳以上の方にお勧めの血液検査です。\n認知症の予備軍とも言われ、そのまま放置すると5年で50%近くが認知症に進行しすると言われております。また急性炎症が認められる方、肝硬変の方、先天的脂質異常症の方、自己免疫性疾患をお持ちの方は判定結果に影響する可能性がございます。",24200]
[null,null,"安静時心電図","手足・胸に電極を付け、心臓が発する電気刺激を波形として記録する検査です。心臓の病気を発見する手掛かりになります。",1980,1650]
[null,null,"NTPro-BNP","心臓にかかる負荷の有無やその程度を測定する心機能のマーカーです。自覚症状のない初期の段階の心機能低下の早期発見につながります。",2750]
[null,null,"LOX‐index　※1","脳梗塞や心筋梗塞の原因となる動脈硬化の原因物質を測定することにより、脳梗塞や心筋梗塞の発症リスクがわかる最新の検査です。近親者でこれらの疾患の既往歴がある方、コレステロールや血糖値が高い方、喫煙されている40歳以上の方などにおすすめです。妊娠中の方は正確な数値が出ませんのでご注意ください。",13200]
[null,"肺","低線量肺がんCT　※1","日本人のがん死亡者数の第１位である肺がんを発見することに特化したCT検査です。対象臓器を肺に限定することで、被ばく線量を従来の胸部CTの約1/5（当院従来比）に低減させることができます。",11000]
[null,null,"Pro‐GRP","肺がん（特に小細胞がん）に有用な腫瘍マーカーです。",2750]
[null,null,"シフラ","肺がん（特に扁平上皮がん）に有用な腫瘍マーカーです。",2750]
[null,"胃","胃透視（バリウム検査）　※1","バリウムを飲んでX線で食道・胃・十二指腸の上部消化管の検査を行います。胃全体の形を捉えやすいため、スキルス胃がんの特徴である胃の伸展不良（壁が硬くふくらみが悪い）の診断に有用です。",12100,11000]
[null,null,"35歳未満限定胃透視（バリウム検査）　※1","35歳未満限定料金。一般的な胃がんはピロリ菌の感染や喫煙などがリスクとされ50代以上の男性に多いのに対して、スキルス胃がんは20代や30代の若年層（特に女性）にも発生することがあります。",7700]
[null,null,"胃カメラ（胃内視鏡検査）　※1","内視鏡を使用して、食道・胃・十二指腸を直接観察し、がん、潰瘍・ポリープ・炎症などの発見に有用です。カメラを口から挿入する方法と鼻から挿入する方法があります。",17600,16500]
[null,null,"胃カメラ鎮静剤","胃カメラ時（口から挿入する場合）に使用します。意識がぼんやりとした状態となり苦痛を軽減できますが、使用後は一定時間お休み頂きます。検査当日は車等の運転は出来ません。※鎮静効果には個人差があります。",3300]
[null,null,"ヘリコバクターピロリIgG","胃がんや胃潰瘍の原因と言われる「ピロリ菌」に感染していないかを調べます。",2750]
[null,null,"ABC検査（胃がんリスク健診）","ピロリ菌感染の有無と胃粘膜萎縮の程度を測定し、胃がんのリスクを総合的に判定します。\n明らかな消化器症状のある方や治療中の方、ピロリ菌の除菌後の方は正しい結果が得られませんのでご注意ください。",6600]
[null,"大腸","大腸カメラ（大腸内視鏡検査）　※1","肛門から内視鏡を入れて直腸から盲腸までの大腸全体を直接観察します。大腸がんは男女ともに死因の上位です。40歳以上の方は一度検査をすることをお勧めします。",27500,24200]
[null,null,"便潜血","便中の血液混入の有無を判断する検査です。大腸がんを発見する手がかりとなります。",1650]
[null,null,"Flora Scan","日本人特有の腸内フローラ（腸内細菌の種類や量）のタイプを5つに分類し、生活習慣病、および腸疾患等との関連性を調べる検査です。",16500]
[null,null,"CEA","大腸がん発見の手がかりとなる検査です。便潜血とセットでの受診をおすすめします。",2750]
[null,"肝臓・胆のう・膵臓","腹部エコー","超音波を発する器具（プローブ）を腹部にあてて、上腹部臓器（肝臓・胆のう・すい臓・腎臓・ひ臓・腹部大動脈）を観察し、腫瘍や結石の有無などを調べる検査です。",7150,6050]
[null,null,"腹部CT　※1","放射線を用いて、肝臓・胆のう・膵臓・腎臓・ひ臓などの上腹部臓器のほか、大動脈や骨盤内についての異常の有無を調べる検査です。",14850]
[null,null,"AFP　※1","肝臓がん発見の手がかりとなる検査です。肝がん（肝臓がん）を罹患した場合は血液中にAFPがみられるため、腫瘍マーカーとして用いられている検査です。",2750]
[null,null,"PIVKA-Ⅱ","肝臓がん発見の手がかりとなる検査です。肝細胞がんの有無の可能性を知るために行われる検査です。",2750]
[null,null,"肝臓腫瘍マーカーセット\n　（AFP※1 + PIVKA‐Ⅱ）","肝臓がん発見の手がかりとなる検査です。",4400]
[null,null,"膵臓腫瘍マーカーセット\n　（APOA2アイソフォーム + CA19-9）","異なる物質を測定する2種類の腫瘍マーカー（ 「APOA2アイソフォーム」 + 「CA19-9」 ）を組み合わせることで、相補的にすい臓がんの診断補助精度が向上します。 ",7700]
[null,null,"CA19-9 ","膵臓がん発見の手がかりとなる検査です。胃がんや大腸がんなど、消化器系のがんにも反応を示します。",2750]
[null,null,"HBｓ抗原（B型肝炎ウイルス検査）","B型肝炎ウイルス感染の有無を調べる検査です。",1320]
[null,null,"HBｓ抗体（B型肝炎ウイルス検査）","HBs抗原に対する抗体の有無を調べる検査です。陽性であれば過去に感染し、その後、治癒したことを示唆します。HBVワクチンを接種した場合にも陽性となります。",1320]
[null,null,"HCV抗体（C型肝炎ウイルス検査）","C型肝炎ウイルス感染の有無を調べる検査です。HCV抗体陽性の場合、C型肝炎ウイルスへの感染の既往を意味します。早期に検査をすること肝硬変や肝臓がんなどへの進展を防ぎます。",2200]
[null,"保健師おススメ","HbA1c (ヘモグロビンA1C）","食事や運動などの影響を受けにくく、過去1～2か月の平均的な血糖の状態を調べる検査です。血糖値のコントロール状態を知ることができます。",770]
[null,null,"眼底カメラ","カメラを用いて眼底にある血管や神経組織を観察します。緑内障、網膜色素変性症、黄斑変性症、網膜剥離、眼底出血などの眼の病気の他、高血圧や糖尿病などの全身性の病気の発見にも有効です。",2200,1650]
[null,null,"内臓脂肪CT　※1","内臓脂肪が多いほどメタボリック・シンドロームの発症の可能性が高まります。CTを用いて腹部の内臓脂肪と皮下脂肪の量を測定することで、腹囲は正常でも内臓脂肪の多い「隠れ肥満」の発見に有用です。",4180]
[null,null,"Inbody測定（体組成測定）　※1","体成分分析装置です。体脂肪率だけでなく、体を構成する基本成分である体水分・タンパク質・ミネラル・体脂肪を定量的に分析します。生活習慣を見直すきっかけになります。",1100]
[null,"甲状腺","甲状腺エコー","甲状腺に超音波をあてて甲状腺の大きさやしこりの有無など内部の状態を調べる検査です。血液検査とあわせて受けることをおすすめします。",4400]
[null,null,"TSH・FT3・FT4","甲状腺刺激ホルモンと2種類の甲状腺ホルモンの量を調べることで、女性に多い甲状腺機能異常（バセドウ病、橋本病など）の早期発見につながります。",4400]
[null,"前立腺","高感度PSA","前立腺がんに特異性の高い検査です。自覚症状のない段階での早期発見にも役立ちます。40歳以上の男性におすすめします。",2750]
[null,"リウマチ","抗CCP抗体","女性に多い病気と言われる関節リウマチの発症予測に有用な検査です。抗CCP抗体は今までのリウマチ因子検査よりはるかに鋭敏であり、正確にリウマチの発症を予測できる最も重要な血液検査です。",2200]
[null,"乳腺","マンモグラフィ（1方向）　※1","乳房を挟んでX線撮影をする検査です。小さなしこりや石灰化を調べ、近年増加している乳がんの早期発見に有用です。乳腺が豊富な方（乳腺高濃度）は、乳腺超音波との併用をおすすめします。1方向と2方向では撮影枚数が異なります。乳腺密度の高い方（30～40代）は2方向をおすすめします。",4400,3300]
[null,null,"マンモグラフィ（2方向）　※1",null,5500,4400]
[null,null,"乳腺エコー","乳房に超音波をあて、しこりや乳管の変化の有無を調べる検査です。乳腺が発達している若い方（乳腺高濃度）や妊娠中・授乳中の方にもおすすめです。",4400]
[null,"婦人科（子宮・卵巣）","子宮頸部細胞診　※2","ブラシを用いて子宮頸部より細胞を採取し子宮頸がんに至る病変細胞の有無を顕微鏡で調べる検査です。子宮頸部がんは、子宮の入り口付近に発生することが多いので、直接細胞を採取することでがん及び前がん状態を見つけることができます。",5500,4400]
[null,null,"HPV検査","子宮頸がんの原因となるHPV（ヒトパピローマウイルス）への感染の有無を調べる検査です。子宮頸がん検査（細胞診）時に一緒に検査することが可能で、同時に検査することで子宮がん検診の精度を高めることができます。\n※「子宮頚部細胞診」をお申込みの方のみ追加可能です。",5500]
[null,null,"経腟エコー","膣の中に細長いエコーの機械（プローブ）を挿入し、子宮や卵巣の状態を観察する検査です。子宮筋腫・子宮内膜症・卵巣腫瘍などの発見につながります。\n※「子宮頚部細胞診」をお申込みの方のみ追加可能です。",4180]
[null,null,"エクオール検査","エクオールとは女性ホルモンと似た働きをする成分です。腸内で、大豆イソフラボンから「エクオール」が作られているかを尿検査で調べます。更年期の症状が気になるゆらぎ世代の方々におすすめです。\n※前日に大豆食品を摂取する必要がございます。目安：納豆1/2パック、豆腐1/4丁、豆乳100cc以上",3850]
[null,null,"ホルモンチェック","女性ホルモンの乱れや自律神経の乱れは閉経前後の心身にさまざまな不調をもたらします。不調の原因が女性ホルモンの減少によるものかどうかの参考のために血中の女性ホルモンの値を調べる検査です。特にゆらぎ世代の方はご自身が閉経に向けたどのあたりの状態にいるのかの参考になります。",4400]
[null,null,"CA125　※3","卵巣がん発見の手がかりとなる検査です。妊娠中の方はご受診いただけません。",2750]
[null,null,"AMH（抗ミュラー管ホルモン）検査　※1","現在の「卵子」の数の目安、つまり卵巣予備能（卵巣年齢）を知ることができ、今後の妊活を含めライフプラン形成に役立てることができます。血液検査のため月経周期を気にせずに検査を受けられます。今後妊娠を希望される方におすすめします。",6600]
[null,null,"骨密度　※1","放射線を用いて骨の密度を測定する検査です。女性ホルモンの減少と深くかかわるため、40歳以上の女性、特に閉経後の方におすすめします。",3300,2200]
[null,null,"婦人科ナースおススメ3点セット\n　（子宮頸部細胞診※2 + HPV + 経腟エコー）","子宮・卵巣の健康状態がわかるベーシックでお得なセットです。１度内診台に上がり１０分程度で全ての検査が受けられます。",13200]
[null,null,"婦人科ナースおススメ2点セット\n　（HPV + 経腟エコー）","子宮・卵巣の健康状態がわかるベーシックでお得なセットです。１度内診台に上がり１０分程度で全ての検査が受けられます。\n※「子宮頚部細胞診」をお申込みの方のみ追加可能です。",7700]
[null,"　","風疹抗体検査","風疹に対する免疫があるかどうかを調べる検査です。",4950]
[null,null,"麻疹抗体検査","麻疹に対する免疫があるかどうかを調べる検査です。",4950]
[null,null,"血液型（ABO・Rh）","緊急で輸血が必要となる場合に役立ちます。",1100]
[null,null,"View39（アレルギー検査）　※1","アレルギー症状は、自覚症状がある方はもちろん、現在症状がなくても、ご自身がどのようなアレルゲン物質に対してアレルギーを引き起こす可能性があるか知っておくことが大切です。View39では少量の採血で一度に39種類（卵、牛乳、小麦、豆類、甲殻類、果物、魚、肉、動物、昆虫、樹木、草、カビ、塵など）のアレルギー検査が可能です。",14850]
[null,null,"アミノインデックス　※1","血液中のアミノ酸濃度を測定し、採血のみで複数のがんに罹患しているリスク(AICS)や将来、脳卒中や心筋梗塞、糖尿病などの生活習慣病になるリスク(AILS)、50歳以上の方は認知症になるリスクを評価できるスクリーニング検査です。",25300]
[null,null,"SCC抗原","扁平上皮がん（食道がん、子宮頸がん、皮膚がん、肺がん、咽頭がん）などを調べます。",2750]
[null,null,"男性向け腫瘍マーカー4種セット\n　（AFP + CA19-9 + CEA + PSA）","男性向けのお得な腫瘍マーカー４種セットです。",7700]
[null,null,"女性向け腫瘍マーカー4種セット\n　（AFP※1 + CA19-9 + CEA + CA125※3）","女性向けのお得な腫瘍マーカー４種セットです。",7700]
[null,null,"男女兼用腫瘍マーカー5種セット\n　（AFP※1 + CA19-9 + CEA + シフラ + Pro-GRP）","男性女性どちらでもご利用いただけるお得な腫瘍マーカー5種セットです。",8800]
[null,null,"男性向け腫瘍マーカー6種セット\n　（AFP + CA19-9 + CEA + シフラ + Pro-GRP + PSA） ","男性向けのお得な腫瘍マーカー６種セットです。",9900]
[null,null,"女性向け腫瘍マーカー6種セット\n　（AFP※1 + CA19-9 + CEA + シフラ + Pro‐GRP + CA125※3）","女性向けのお得な腫瘍マーカー６種セットです。",9900]
[null,null,"\n※1　妊娠中の方および妊娠の可能性がある方はご受診いただけませんのでご了承ください。\n※2　妊娠中の方および妊娠の可能性がある方はご受診いただけません。 \n　　　 また月経中の方は、検査に必要な細胞量が十分採取できない可能性がございますので、当日ご相談ください。\n※3　妊娠中の方および妊娠の可能性がある方はご受診いただけません。 \n　　　 また、月経中の方は正確な結果が出ない可能性がございますので、当日ご相談ください。\n"]

{"sheet":"取り込み用","index":11,"n_rows":1,"n_cols":33,"rows_kept":1,"cut":false,"hidden":true,"merged":[]}
["受診施設","受付フロア","予約日","予約時間帯コード","呼出時間","団体番号","個人番号","カナ氏名","漢字氏名","性別","生年月日","保険者番号","被保険者証等記号","被保険者証等番号","契約番号","主コース","胃カメラ","協会マンモ","協会子宮","オプション","オプション","本人・家族区分","従業員コード","部署コード１","部署コード２","部署コード３","郵便番号","住所１","住所２","予約コメント","E-MAIL","加入健保団体番号","予約区分"]

{"sheet":"契約コース内容","index":12,"n_rows":27,"n_cols":2,"rows_kept":27,"cut":false,"hidden":true,"merged":[]}
["F0001","◆天神◆定期健康診断Ｂ"]
["F0002","◇博多◇定期健康診断Ｂ"]
["F0003","◆天神◆定期健康診断Ａ"]
["F0101","◇博多◇定期健康診断Ａ"]
["FK001","協会けんぽ一般健診"]
["FK002","協会けんぽ付加健診"]
["FK003","◆天神◆協会けんぽ付加健診同項目"]
["FK004","◆天神◆協会けんぽ一般健診同項目"]
["FK005","◆天神◆協会けんぽ差額人間ドック"]
["FK008","◇博多◇協会けんぽ付加健診同項目"]
["FK009","◇博多◇協会けんぽ一般健診同項目"]
["FK010","◇博多◇協会けんぽ差額人間ドック"]
["FK099","協会けんぽ肝炎ウィルス検査"]
["FK100","協会けんぽ子宮頸がん検診"]
["FK101","協会けんぽ乳がん検診(2方向)"]
["FK102","協会けんぽ乳がん検診(1方向)"]
["FZ001","◆天神◆マンモグラフィ(1方向)"]
["FZ002","◆天神◆マンモグラフィ(2方向)"]
["FZ003","◆天神◆乳腺超音波"]
["FZ004","◆天神◆子宮頸部細胞診"]
["FZ032","◇博多◇マンモグラフィ(1方向)"]
["FZ033","◇博多◇マンモグラフィ(2方向)"]
["FZ034","◇博多◇乳腺超音波"]
["FZ036","◇博多◇子宮頸部細胞診"]
["FZ100","【R2/窓口払い】インフルエンザ予防接種"]
["FZC01","胃カメラ(差額5500円)"]
["FZC02","胃カメラ差額(上下セット)"]

{"sheet":"運用について","index":13,"n_rows":10,"n_cols":5,"rows_kept":10,"cut":false,"hidden":true,"merged":[[5,1,9,1],[5,2,9,2],[5,0,9,0]]}
[null,"業務内容","流れ","詳細","システム"]
["①","既存ID抽出","当院→企業","個人一覧より企業登録の既存の情報を抽出しエクセルデーターを作成","★企業やり取りエクセルデータ"]
[]
["②","今年度の受診対象者リスト作成","企業→当院","①のエクセルデータに今年度の対象者・検査コース・OPなど希望内容を担当者で整え提供してもらう","★企業やり取りエクセルデータ"]
[]
["③","予約枠・契約・日程を調整する","当院","新規ID作成（ワイズマン作成自動化あり）","★ID自動化CSV作成"]
[null,null,null,"団体契約運用を作成　（協会けんぽ親団体で運用）"]
[null,null,null,"日程を仮枠で提供　もしくは　日程を確定し提供","★一括オーダ取り込みCSV作成"]
[null,null,null,"仮枠を提供","★仮枠提供一覧作成"]
[null,null,null,"日程を確定","★日程表一覧作成"]

{"sheet":"検査項目セレクト","index":14,"n_rows":3,"n_cols":10,"rows_kept":3,"cut":false,"hidden":true,"merged":[]}
["定期Ｂ","定期Ｂ","一般健診","一般健診","バリウム","〇","MG１方向",null,"乳エコー","子宮細胞診"]
[null,"一般健診（若年）","人間ドック","節目健診","胃カメラ(鼻・口/鎮静なし)","✕","MG２方向"]
[null,null,null,"人間ドック","胃カメラ(口/鎮静あり)"]